Workbook

Sheet Introduction
C4: Joint Monitoring Programme for Water Supply, Sanitation and Hygiene
C6: Estimates on household water, sanitation and hygiene by wealth quintile and sub-national region in
C7: =+Water!B5 -> Rwanda
C9: Updated May 2021
C11: Follow the links below to find the following information:
C13: JMP Estimates
C14: WASH status and trends by wealth quintile (customized quintiles made without water and sanitation assets)
C15: Water
C16: Sanitation
C17: Hygiene
C19: Data inputs
C20: customized wealth quintiles and subnational data:
C21: =IF(INDIRECT(CONCATENATE("Water","!B105"))=0,"",INDIRECT(CONCATENATE("Water","!B105"))) -> MICS00
C22: =IF(INDIRECT(CONCATENATE("Water","!B106"))=0,"",INDIRECT(CONCATENATE("Water","!B106"))) -> DHS00
C23: =IF(INDIRECT(CONCATENATE("Water","!B107"))=0,"",INDIRECT(CONCATENATE("Water","!B107"))) -> DHS05
C24: =IF(INDIRECT(CONCATENATE("Water","!B108"))=0,"",INDIRECT(CONCATENATE("Water","!B108"))) -> DHS08
C25: =IF(INDIRECT(CONCATENATE("Water","!B109"))=0,"",INDIRECT(CONCATENATE("Water","!B109"))) -> DHS10
C26: =IF(INDIRECT(CONCATENATE("Water","!B110"))=0,"",INDIRECT(CONCATENATE("Water","!B110"))) -> MIS13
C27: =IF(INDIRECT(CONCATENATE("Water","!B111"))=0,"",INDIRECT(CONCATENATE("Water","!B111"))) -> DHS15
C28: =IF(INDIRECT(CONCATENATE("Water","!B112"))=0,"",INDIRECT(CONCATENATE("Water","!B112"))) -> MIS17
C29: =IF(INDIRECT(CONCATENATE("Water","!B113"))=0,"",INDIRECT(CONCATENATE("Water","!B113"))) -> 
C30: =IF(INDIRECT(CONCATENATE("Water","!B114"))=0,"",INDIRECT(CONCATENATE("Water","!B114"))) -> 
C31: =IF(INDIRECT(CONCATENATE("Water","!B115"))=0,"",INDIRECT(CONCATENATE("Water","!B115"))) -> 
C32: =IF(INDIRECT(CONCATENATE("Water","!B116"))=0,"",INDIRECT(CONCATENATE("Water","!B116"))) -> 
L55: =+IF(ISNUMBER(M48), "", "Insufficient data to estimate safely managed sanitation services at national level") -> Insufficient data to estimate safely managed sanitation services at national level

Sheet Water
A1: BGD
B4: Summary of trends in use of drinking water by wealth quintile (%)
B5: =IF(ISERROR(INDIRECT(CONCATENATE($B105,"!A2"))),"",INDIRECT(CONCATENATE($B105,"!A2"))) -> Rwanda
B7: =B118 -> National use of drinking water sources, 2000–2020 | J7: =B218 -> Urban use of drinking water sources, 2000–2020 | R7: =B318 -> Rural use of drinking water sources, 2000–2020
B31: =IF(ISERROR(INDIRECT(CONCATENATE($B105,"!A2"))),"",INDIRECT(CONCATENATE($B105,"!A2"))) -> Rwanda | F31: Poorest | J31: Poor | N31: Middle | R31: Rich | V31: Richest
F32: Basic | G32: Limited | H32: Unimproved | I32: Surface water | J32: Basic | K32: Limited | L32: Unimproved | M32: Surface water | N32: Basic | O32: Limited | P32: Unimproved | Q32: Surface water | R32: Basic | S32: Limited | T32: Unimproved | U32: Surface water | V32: Basic | W32: Limited | X32: Unimproved | Y32: Surface water
B33: NATIONAL | D33: Estimate | E33: =C99 -> 2000 | F33: =E99 -> 43.86202205 | G33: =F99 -> 23.79012778 | H33: 17.17768916 | I33: 15.170161 | J33: =J99 -> 38.70716178 | K33: =K99 -> 20.71763411 | L33: 18.81036776 | M33: 21.76483635 | N33: =O99 -> 40.24879436 | O33: =P99 -> 20.98047472 | P33: 19.87594912 | Q33: 18.8947818 | R33: =T99 -> 44.36412128 | S33: =U99 -> 18.74272973 | T33: 15.65172704 | U33: 21.24142195 | V33: =Y99 -> 68.06820337 | W33: =Z99 -> 12.71325576 | X33: 10.04026789 | Y33: 9.178272985
E34: =C100 -> 2020 | F34: =E100 -> 42.89257032 | G34: 23.26431115 | H34: 24.47920286 | I34: 9.363915667 | J34: =J100 -> 46.87545903 | K34: 25.08963624 | L34: 21.09855863 | M34: 6.936346107 | N34: =O100 -> 48.02793777 | O34: 25.03550603 | P34: 19.13135701 | Q34: 7.805199187 | R34: =T100 -> 54.85898662 | S34: 23.17654739 | T34: 16.10742011 | U34: 5.857045878 | V34: =Y100 -> 77.91645624 | W34: 14.55263672 | X34: 5.636427027 | Y34: 1.894480015
B36: URBAN | D36: Estimate | E36: =C199 -> 2000 | F36: =E199 -> 56.88998923 | G36: =F199 -> 19.06158591 | H36: 13.56653597 | I36: 10.4818889 | J36: =J199 -> 65.53508073 | K36: =K199 -> 15.98233801 | L36: 11.67357421 | M36: 6.809007059 | N36: =O199 -> 76.77176232 | O36: =P199 -> 7.912254696 | P36: 10.13571457 | Q36: 5.180268415 | R36: =T199 -> 89.41740838 | S36: =U199 -> 3.186654564 | T36: 5.270566731 | U36: 2.125370329 | V36: =Y199 -> 92.32779772 | W36: =Z199 -> 3.621980672 | X36: 3.414080332 | Y36: 0.6361412709
E37: =C200 -> 2020 | F37: =E200 -> 58.73959825 | G37: 19.68131676 | H37: 13.82487338 | I37: 7.754211611 | J37: =J200 -> 71.69516167 | K37: 17.48462494 | L37: 8.521291793 | M37: 2.298921599 | N37: =O200 -> 85.9509475 | O37: 8.858280278 | P37: 4.946426513 | Q37: 0.2443457084 | R37: =T200 -> 94.51464235 | S37: 3.368309615 | T37: 2.117048035 | U37: 0 | V37: =Y200 -> 95.61740159 | W37: 3.751030448 | X37: 0.6245733105 | Y37: 0.006994652958
B39: RURAL | D39: Estimate | E39: =C299 -> 2000 | F39: =E299 -> 38.50112004 | G39: =F299 -> 21.91731995 | H39: 19.9635804 | I39: 19.61797962 | J39: =J299 -> 37.97947006 | K39: =K299 -> 20.41214468 | L39: 19.7811824 | M39: 21.82720286 | N39: =O299 -> 39.63391097 | O39: =P299 -> 20.97829846 | P39: 19.46303836 | Q39: 19.92475221 | R39: =T299 -> 41.6647558 | S39: =U299 -> 21.10466059 | T39: 16.74823808 | U39: 20.48234553 | V39: =Y299 -> 48.18786702 | W39: =Z299 -> 19.0351179 | X39: 13.81334422 | Y39: 18.96367085
E40: =C300 -> 2020 | F40: =E300 -> 41.83383511 | G40: 23.81451625 | H40: 23.87571396 | I40: 10.47593468 | J40: =J300 -> 44.8069881 | K40: 24.08160836 | L40: 22.13113313 | M40: 8.980270407 | N40: =O300 -> 45.81145704 | O40: 24.24808441 | P40: 20.31810567 | Q40: 9.622352884 | R40: =T300 -> 45.66881225 | S40: 23.13285566 | T40: 19.46679146 | U40: 11.73154064 | V40: =Y300 -> 58.21506061 | W40: 22.99604882 | X40: 13.14084172 | Y40: 5.648048844
A97: NATIONAL | D97: Poorest | I97: Poor | N97: Middle | S97: Rich | X97: Richest
D98: Improved | E98: Basic | F98: Limited | G98: Unimproved | H98: Surface water | I98: Improved | J98: Basic | K98: Limited | L98: Unimproved | M98: Surface water | N98: Improved | O98: Basic | P98: Limited | Q98: Unimproved | R98: Surface water | S98: Improved | T98: Basic | U98: Limited | V98: Unimproved | W98: Surface water | X98: Improved | Y98: Basic | Z98: Limited | AA98: Unimproved | AB98: Surface water
A99: Forecast period: | C99: 2000 | D99: =IF((D101+H101)>100,D101*100/(D101+H101),D101) -> 67.65214984 | E99: =D99*AVERAGEIF(E105:E116,">0")/100 -> 43.86202205 | F99: =D99*(100-AVERAGEIF(E105:E116,">0"))/100 -> 23.79012778 | G99: =100-(E99+F99+H99) -> 17.17768916 | H99: =IF((D101+H101)>100,H101*100/(D101+H101),H101) -> 15.170161 | I99: =IF((I101+M101)>100,I101*100/(I101+M101),I101) -> 59.42479589 | J99: =I99*AVERAGEIF(J105:J116,">0")/100 -> 38.70716178 | K99: =I99*(100-AVERAGEIF(J105:J116,">0"))/100 -> 20.71763411 | L99: =100-(J99+K99+M99) -> 18.81036776 | M99: =IF((I101+M101)>100,M101*100/(I101+M101),M101) -> 21.76483635 | N99: =IF((N101+R101)>100,N101*100/(N101+R101),N101) -> 61.22926908 | O99: =N99*AVERAGEIF(O105:O116,">0")/100 -> 40.24879436 | P99: =N99*(100-AVERAGEIF(O105:O116,">0"))/100 -> 20.98047472 | Q99: =100-(O99+P99+R99) -> 19.87594912 | R99: =IF((N101+R101)>100,R101*100/(N101+R101),R101) -> 18.8947818 | S99: =IF((S101+W101)>100,S101*100/(S101+W101),S101) -> 63.10685101 | T99: =S99*AVERAGEIF(T105:T116,">0")/100 -> 44.36412128 | U99: =S99*(100-AVERAGEIF(T105:T116,">0"))/100 -> 18.74272973 | V99: =100-(T99+U99+W99) -> 15.65172704 | W99: =IF((S101+W101)>100,W101*100/(S101+W101),W101) -> 21.24142195 | X99: =IF((X101+AB101)>100,X101*100/(X101+AB101),X101) -> 80.78145913 | Y99: =X99*AVERAGEIF(Y105:Y116,">0")/100 -> 68.06820337 | Z99: =X99*(100-AVERAGEIF(Y105:Y116,">0"))/100 -> 12.71325576 | AA99: =100-(Y99+Z99+AB99) -> 10.04026789 | AB99: =IF((X101+AB101)>100,AB101*100/(X101+AB101),AB101) -> 9.178272985
C100: 2020 | D100: =IF((D102+H102)>100,D102*100/(D102+H102),D102) -> 66.15688147 | E100: =D100*AVERAGEIF(E105:E116,">0")/100 -> 42.89257032 | F100: =D100*(100-AVERAGEIF(E105:E116,">0"))/100 -> 23.26431115 | G100: =100-(E100+F100+H100) -> 24.47920286 | H100: =IF((D102+H102)>100,H102*100/(D102+H102),H102) -> 9.363915667 | I100: =IF((I102+M102)>100,I102*100/(I102+M102),I102) -> 71.96509527 | J100: =I100*AVERAGEIF(J105:J116,">0")/100 -> 46.87545903 | K100: =I100*(100-AVERAGEIF(J105:J116,">0"))/100 -> 25.08963624 | L100: =100-(J100+K100+M100) -> 21.09855863 | M100: =IF((I102+M102)>100,M102*100/(I102+M102),M102) -> 6.936346107 | N100: =IF((N102+R102)>100,N102*100/(N102+R102),N102) -> 73.0634438 | O100: =N100*AVERAGEIF(O105:O116,">0")/100 -> 48.02793777 | P100: =N100*(100-AVERAGEIF(O105:O116,">0"))/100 -> 25.03550603 | Q100: =100-(O100+P100+R100) -> 19.13135701 | R100: =IF((N102+R102)>100,R102*100/(N102+R102),R102) -> 7.805199187 | S100: =IF((S102+W102)>100,S102*100/(S102+W102),S102) -> 78.03553401 | T100: =S100*AVERAGEIF(T105:T116,">0")/100 -> 54.85898662 | U100: =S100*(100-AVERAGEIF(T105:T116,">0"))/100 -> 23.17654739 | V100: =100-(T100+U100+W100) -> 16.10742011 | W100: =IF((S102+W102)>100,W102*100/(S102+W102),W102) -> 5.857045878 | X100: =IF((X102+AB102)>100,X102*100/(X102+AB102),X102) -> 92.46909296 | Y100: =X100*AVERAGEIF(Y105:Y116,">0")/100 -> 77.91645624 | Z100: =X100*(100-AVERAGEIF(Y105:Y116,">0"))/100 -> 14.55263672 | AA100: =100-(Y100+Z100+AB100) -> 5.636427027 | AB100: =IF((X102+AB102)>100,AB102*100/(X102+AB102),AB102) -> 1.894480015
A101: Regression period: | C101: =MinRegYear(C99,C105:C116) -> 2000 | D101: =IF(MAX(C105:C116)-MIN(C105:C116)<5,AVERAGEIF(C105:C116,">0",D105:D116), IF(FORECAST($C101,D$105:D$116,$C$105:$C$116)<0,0, IF(FORECAST($C101,D$105:D$116,$C$105:$C$116)>100,100, FORECAST($C101,D$105:D$116,$C$105:$C$116)))) -> 67.65214984 | H101: =IF(MAX(C105:C116)-MIN(C105:C116)<5,AVERAGEIF(C105:C116,">0",H105:H116), IF(FORECAST($C101,H$105:H$116,$C$105:$C$116)<0,0, IF(FORECAST($C101,H$105:H$116,$C$105:$C$116)>100,100, FORECAST($C101,H$105:H$116,$C$105:$C$116)))) -> 15.170161 | I101: =IF(MAX(C105:C116)-MIN(C105:C116)<5,AVERAGEIF(C105:C116,">0",I105:I116), IF(FORECAST($C101,I$105:I$116,$C$105:$C$116)<0,0, IF(FORECAST($C101,I$105:I$116,$C$105:$C$116)>100,100, FORECAST($C101,I$105:I$116,$C$105:$C$116)))) -> 59.42479589 | M101: =IF(MAX(C105:C116)-MIN(C105:C116)<5,AVERAGEIF(C105:C116,">0",M105:M116), IF(FORECAST($C101,M$105:M$116,$C$105:$C$116)<0,0, IF(FORECAST($C101,M$105:M$116,$C$105:$C$116)>100,100, FORECAST($C101,M$105:M$116,$C$105:$C$116)))) -> 21.76483635 | N101: =IF(MAX(C105:C116)-MIN(C105:C116)<5,AVERAGEIF(C105:C116,">0",N105:N116), IF(FORECAST($C101,N$105:N$116,$C$105:$C$116)<0,0, IF(FORECAST($C101,N$105:N$116,$C$105:$C$116)>100,100, FORECAST($C101,N$105:N$116,$C$105:$C$116)))) -> 61.22926908 | R101: =IF(MAX(C105:C116)-MIN(C105:C116)<5,AVERAGEIF(C105:C116,">0",R105:R116), IF(FORECAST($C101,R$105:R$116,$C$105:$C$116)<0,0, IF(FORECAST($C101,R$105:R$116,$C$105:$C$116)>100,100, FORECAST($C101,R$105:R$116,$C$105:$C$116)))) -> 18.8947818 | S101: =IF(MAX(C105:C116)-MIN(C105:C116)<5,AVERAGEIF(C105:C116,">0",S105:S116), IF(FORECAST($C101,S$105:S$116,$C$105:$C$116)<0,0, IF(FORECAST($C101,S$105:S$116,$C$105:$C$116)>100,100, FORECAST($C101,S$105:S$116,$C$105:$C$116)))) -> 63.10685101 | W101: =IF(MAX(C105:C116)-MIN(C105:C116)<5,AVERAGEIF(C105:C116,">0",W105:W116), IF(FORECAST($C101,W$105:W$116,$C$105:$C$116)<0,0, IF(FORECAST($C101,W$105:W$116,$C$105:$C$116)>100,100, FORECAST($C101,W$105:W$116,$C$105:$C$116)))) -> 21.24142195 | X101: =IF(MAX(C105:C116)-MIN(C105:C116)<5,AVERAGEIF(C105:C116,">0",X105:X116), IF(FORECAST($C101,X$105:X$116,$C$105:$C$116)<0,0, IF(FORECAST($C101,X$105:X$116,$C$105:$C$116)>100,100, FORECAST($C101,X$105:X$116,$C$105:$C$116)))) -> 80.78145913 | AB101: =IF(MAX(C105:C116)-MIN(C105:C116)<5,AVERAGEIF(C105:C116,">0",AB105:AB116), IF(FORECAST($C101,AB$105:AB$116,$C$105:$C$116)<0,0, IF(FORECAST($C101,AB$105:AB$116,$C$105:$C$116)>100,100, FORECAST($C101,AB$105:AB$116,$C$105:$C$116)))) -> 9.178272985
C102: =MaxRegYear(C100,C105:C116) -> 2019 | D102: =IF(MAX(C105:C116)-MIN(C105:C116)<5,AVERAGEIF(C105:C116,">0",D105:D116), IF(FORECAST($C102,D$105:D$116,$C$105:$C$116)<0,0, IF(FORECAST($C102,D$105:D$116,$C$105:$C$116)>100,100, FORECAST($C102,D$105:D$116,$C$105:$C$116)))) -> 66.15688147 | H102: =IF(MAX(C105:C116)-MIN(C105:C116)<5,AVERAGEIF(C105:C116,">0",H105:H116), IF(FORECAST($C102,H$105:H$116,$C$105:$C$116)<0,0, IF(FORECAST($C102,H$105:H$116,$C$105:$C$116)>100,100, FORECAST($C102,H$105:H$116,$C$105:$C$116)))) -> 9.363915667 | I102: =IF(MAX(C105:C116)-MIN(C105:C116)<5,AVERAGEIF(C105:C116,">0",I105:I116), IF(FORECAST($C102,I$105:I$116,$C$105:$C$116)<0,0, IF(FORECAST($C102,I$105:I$116,$C$105:$C$116)>100,100, FORECAST($C102,I$105:I$116,$C$105:$C$116)))) -> 71.96509527 | M102: =IF(MAX(C105:C116)-MIN(C105:C116)<5,AVERAGEIF(C105:C116,">0",M105:M116), IF(FORECAST($C102,M$105:M$116,$C$105:$C$116)<0,0, IF(FORECAST($C102,M$105:M$116,$C$105:$C$116)>100,100, FORECAST($C102,M$105:M$116,$C$105:$C$116)))) -> 6.936346107 | N102: =IF(MAX(C105:C116)-MIN(C105:C116)<5,AVERAGEIF(C105:C116,">0",N105:N116), IF(FORECAST($C102,N$105:N$116,$C$105:$C$116)<0,0, IF(FORECAST($C102,N$105:N$116,$C$105:$C$116)>100,100, FORECAST($C102,N$105:N$116,$C$105:$C$116)))) -> 73.0634438 | R102: =IF(MAX(C105:C116)-MIN(C105:C116)<5,AVERAGEIF(C105:C116,">0",R105:R116), IF(FORECAST($C102,R$105:R$116,$C$105:$C$116)<0,0, IF(FORECAST($C102,R$105:R$116,$C$105:$C$116)>100,100, FORECAST($C102,R$105:R$116,$C$105:$C$116)))) -> 7.805199187 | S102: =IF(MAX(C105:C116)-MIN(C105:C116)<5,AVERAGEIF(C105:C116,">0",S105:S116), IF(FORECAST($C102,S$105:S$116,$C$105:$C$116)<0,0, IF(FORECAST($C102,S$105:S$116,$C$105:$C$116)>100,100, FORECAST($C102,S$105:S$116,$C$105:$C$116)))) -> 78.03553401 | W102: =IF(MAX(C105:C116)-MIN(C105:C116)<5,AVERAGEIF(C105:C116,">0",W105:W116), IF(FORECAST($C102,W$105:W$116,$C$105:$C$116)<0,0, IF(FORECAST($C102,W$105:W$116,$C$105:$C$116)>100,100, FORECAST($C102,W$105:W$116,$C$105:$C$116)))) -> 5.857045878 | X102: =IF(MAX(C105:C116)-MIN(C105:C116)<5,AVERAGEIF(C105:C116,">0",X105:X116), IF(FORECAST($C102,X$105:X$116,$C$105:$C$116)<0,0, IF(FORECAST($C102,X$105:X$116,$C$105:$C$116)>100,100, FORECAST($C102,X$105:X$116,$C$105:$C$116)))) -> 92.46909296 | AB102: =IF(MAX(C105:C116)-MIN(C105:C116)<5,AVERAGEIF(C105:C116,">0",AB105:AB116), IF(FORECAST($C102,AB$105:AB$116,$C$105:$C$116)<0,0, IF(FORECAST($C102,AB$105:AB$116,$C$105:$C$116)>100,100, FORECAST($C102,AB$105:AB$116,$C$105:$C$116)))) -> 1.894480015
B104: Survey | C104: Year | D104: Improved | E104: % Improved < = 30min | H104: Surface water | I104: Improved | J104: % Improved < = 30min | M104: Surface water | N104: Improved | O104: % Improved < = 30min | R104: Surface water | S104: Improved | T104: % Improved < = 30min | W104: Surface water | X104: Improved | Y104: % Improved < = 30min | AB104: Surface water
B105: MICS00 | C105: 2000 | D105: =IF(ISERROR(INDIRECT(CONCATENATE($B105,"!C16"))),"",INDIRECT(CONCATENATE($B105,"!C16"))) -> 66.74688074 | E105: =IF(ISERROR(INDIRECT(CONCATENATE($B105,"!C23"))),"",INDIRECT(CONCATENATE($B105,"!C23"))) -> 61.27589696 | H105: =IF(ISERROR(INDIRECT(CONCATENATE($B105,"!C21"))),"",INDIRECT(CONCATENATE($B105,"!C21"))) -> 22.19851727 | I105: =IF(ISERROR(INDIRECT(CONCATENATE($B105,"!D16"))),"",INDIRECT(CONCATENATE($B105,"!D16"))) -> 66.16224115 | J105: =IF(ISERROR(INDIRECT(CONCATENATE($B105,"!D23"))),"",INDIRECT(CONCATENATE($B105,"!D23"))) -> 60.38040047 | M105: =IF(ISERROR(INDIRECT(CONCATENATE($B105,"!D21"))),"",INDIRECT(CONCATENATE($B105,"!D21"))) -> 24.56162269 | N105: =IF(ISERROR(INDIRECT(CONCATENATE($B105,"!E16"))),"",INDIRECT(CONCATENATE($B105,"!E16"))) -> 70.28087236 | O105: =IF(ISERROR(INDIRECT(CONCATENATE($B105,"!E23"))),"",INDIRECT(CONCATENATE($B105,"!E23"))) -> 59.9194738 | R105: =IF(ISERROR(INDIRECT(CONCATENATE($B105,"!E21"))),"",INDIRECT(CONCATENATE($B105,"!E21"))) -> 19.62688522 | S105: =IF(ISERROR(INDIRECT(CONCATENATE($B105,"!F16"))),"",INDIRECT(CONCATENATE($B105,"!F16"))) -> 68.31502178 | T105: =IF(ISERROR(INDIRECT(CONCATENATE($B105,"!F23"))),"",INDIRECT(CONCATENATE($B105,"!F23"))) -> 70.99274284 | W105: =IF(ISERROR(INDIRECT(CONCATENATE($B105,"!F21"))),"",INDIRECT(CONCATENATE($B105,"!F21"))) -> 23.93523154 | X105: =IF(ISERROR(INDIRECT(CONCATENATE($B105,"!G16"))),"",INDIRECT(CONCATENATE($B105,"!G16"))) -> 85.19607011 | Y105: =IF(ISERROR(INDIRECT(CONCATENATE($B105,"!G23"))),"",INDIRECT(CONCATENATE($B105,"!G23"))) -> 77.59059011 | AB105: =IF(ISERROR(INDIRECT(CONCATENATE($B105,"!G221"))),"",INDIRECT(CONCATENATE($B105,"!G21"))) -> 11.8187662
B106: DHS00 | C106: 2000 | D106: 78.8573947 | E106: N/A | H106: 8.262943613 | I106: 65.54913761 | J106: N/A | M106: 14.70747388 | N106: 63.34763962 | O106: N/A | R106: 16.30280585 | S106: 68.4452212 | T106: N/A | W106: 16.34957698 | X106: 87.59483016 | Y106: N/A | AB106: 4.917020326
B107: DHS05 | C107: 2005 | D107: 59.07935324 | E107: N/A | H107: 12.55670296 | I107: 51.51726348 | J107: N/A | M107: 22.50121453 | N107: 52.31289984 | O107: N/A | R107: 19.76025506 | S107: 55.67510045 | T107: N/A | W107: 22.28090192 | X107: 72.31017718 | Y107: N/A | AB107: 9.83080588
B108: DHS08 | C108: 2008 | D108: 55.24640284 | E108: N/A | H108: 16.59214095 | I108: 49.95770966 | J108: N/A | M108: 20.24025625 | N108: 55.86169043 | O108: N/A | R108: 14.68431357 | S108: 60.39781919 | T108: N/A | W108: 14.43826879 | X108: 78.2533449 | Y108: N/A | AB108: 6.79625868
B109: DHS10 | C109: 2010 | D109: 67.13922307 | E109: 65.4 | H109: 9.397314187 | I109: 68.72237827 | J109: 65.1 | M109: 10.91848528 | N109: 71.27257497 | O109: 63.5 | R109: 10.12990008 | S109: 74.51287463 | T109: 66.2 | W109: 9.153818695 | X109: 86.22859557 | Y109: 80.7 | AB109: 4.468626328
B110: MIS13 | C110: 2013 | D110: 74.35081365 | E110: 67.1 | H110: 8.061087968 | I110: 75.77122195 | J110: 62 | M110: 9.646766073 | N110: 75.81789035 | O110: 65.9 | R110: 9.788680472 | S110: 78.4608404 | T110: 66.2 | W110: 10.30052029 | X110: 93.82572546 | Y110: 84.5 | AB110: 2.480955818
B111: DHS15 | C111: 2015 | D111: =IF(ISERROR(INDIRECT(CONCATENATE($B111,"!C16"))),"",INDIRECT(CONCATENATE($B111,"!C16"))) -> 64.5877494 | E111: =IF(ISERROR(INDIRECT(CONCATENATE($B111,"!C23"))),"",INDIRECT(CONCATENATE($B111,"!C23"))) -> 63.14193664 | H111: =IF(ISERROR(INDIRECT(CONCATENATE($B111,"!C21"))),"",INDIRECT(CONCATENATE($B111,"!C21"))) -> 14.45138483 | I111: =IF(ISERROR(INDIRECT(CONCATENATE($B111,"!D16"))),"",INDIRECT(CONCATENATE($B111,"!D16"))) -> 68.63453615 | J111: =IF(ISERROR(INDIRECT(CONCATENATE($B111,"!D23"))),"",INDIRECT(CONCATENATE($B111,"!D23"))) -> 65.24496524 | M111: =IF(ISERROR(INDIRECT(CONCATENATE($B111,"!D21"))),"",INDIRECT(CONCATENATE($B111,"!D21"))) -> 11.79699072 | N111: =IF(ISERROR(INDIRECT(CONCATENATE($B111,"!E16"))),"",INDIRECT(CONCATENATE($B111,"!E16"))) -> 68.05288265 | O111: =IF(ISERROR(INDIRECT(CONCATENATE($B111,"!E23"))),"",INDIRECT(CONCATENATE($B111,"!E23"))) -> 66.31605841 | R111: =IF(ISERROR(INDIRECT(CONCATENATE($B111,"!E21"))),"",INDIRECT(CONCATENATE($B111,"!E21"))) -> 14.467216 | S111: =IF(ISERROR(INDIRECT(CONCATENATE($B111,"!F16"))),"",INDIRECT(CONCATENATE($B111,"!F16"))) -> 71.18560036 | T111: =IF(ISERROR(INDIRECT(CONCATENATE($B111,"!F23"))),"",INDIRECT(CONCATENATE($B111,"!F23"))) -> 70.53821173 | W111: =IF(ISERROR(INDIRECT(CONCATENATE($B111,"!F21"))),"",INDIRECT(CONCATENATE($B111,"!F21"))) -> 13.51247839 | X111: =IF(ISERROR(INDIRECT(CONCATENATE($B111,"!G16"))),"",INDIRECT(CONCATENATE($B111,"!G16"))) -> 89.74399195 | Y111: =IF(ISERROR(INDIRECT(CONCATENATE($B111,"!G23"))),"",INDIRECT(CONCATENATE($B111,"!G23"))) -> 89.40956695 | AB111: =IF(ISERROR(INDIRECT(CONCATENATE($B111,"!G221"))),"",INDIRECT(CONCATENATE($B111,"!G21"))) -> 5.20022436
B112: MIS17 | C112: 2017 | D112: =IF(ISERROR(INDIRECT(CONCATENATE($B112,"!C16"))),"",INDIRECT(CONCATENATE($B112,"!C16"))) -> 69.85789427 | E112: =IF(ISERROR(INDIRECT(CONCATENATE($B112,"!C23"))),"",INDIRECT(CONCATENATE($B112,"!C23"))) -> 67.25532394 | H112: =IF(ISERROR(INDIRECT(CONCATENATE($B112,"!C21"))),"",INDIRECT(CONCATENATE($B112,"!C21"))) -> 9.060949774 | I112: =IF(ISERROR(INDIRECT(CONCATENATE($B112,"!D16"))),"",INDIRECT(CONCATENATE($B112,"!D16"))) -> 73.96495032 | J112: =IF(ISERROR(INDIRECT(CONCATENATE($B112,"!D23"))),"",INDIRECT(CONCATENATE($B112,"!D23"))) -> 72.95654201 | M112: =IF(ISERROR(INDIRECT(CONCATENATE($B112,"!D21"))),"",INDIRECT(CONCATENATE($B112,"!D21"))) -> 6.675495244 | N112: =IF(ISERROR(INDIRECT(CONCATENATE($B112,"!E16"))),"",INDIRECT(CONCATENATE($B112,"!E16"))) -> 75.2415909 | O112: =IF(ISERROR(INDIRECT(CONCATENATE($B112,"!E23"))),"",INDIRECT(CONCATENATE($B112,"!E23"))) -> 73.03729835 | R112: =IF(ISERROR(INDIRECT(CONCATENATE($B112,"!E21"))),"",INDIRECT(CONCATENATE($B112,"!E21"))) -> 6.709165644 | S112: =IF(ISERROR(INDIRECT(CONCATENATE($B112,"!F16"))),"",INDIRECT(CONCATENATE($B112,"!F16"))) -> 81.2913008 | T112: =IF(ISERROR(INDIRECT(CONCATENATE($B112,"!F23"))),"",INDIRECT(CONCATENATE($B112,"!F23"))) -> 77.56908522 | W112: =IF(ISERROR(INDIRECT(CONCATENATE($B112,"!F21"))),"",INDIRECT(CONCATENATE($B112,"!F21"))) -> 4.900706762 | X112: =IF(ISERROR(INDIRECT(CONCATENATE($B112,"!G16"))),"",INDIRECT(CONCATENATE($B112,"!G16"))) -> 94.92836404 | Y112: =IF(ISERROR(INDIRECT(CONCATENATE($B112,"!G23"))),"",INDIRECT(CONCATENATE($B112,"!G23"))) -> 89.11064931 | AB112: =IF(ISERROR(INDIRECT(CONCATENATE($B112,"!G221"))),"",INDIRECT(CONCATENATE($B112,"!G21"))) -> 1.845214604
B118: =CONCATENATE("National use of drinking water sources, ",C99,"–",C100) -> National use of drinking water sources, 2000–2020 | S118: Data points used for regression
E153: =IF(ISERROR(INDIRECT(CONCATENATE($B153,"!M18"))),"",INDIRECT(CONCATENATE($B153,"!M18"))) ->  | F153: =IF(ISERROR(INDIRECT(CONCATENATE($B153,"!M19"))),"",INDIRECT(CONCATENATE($B153,"!M19"))) ->  | G153: =IF(ISERROR(INDIRECT(CONCATENATE($B153,"!M20"))),"",INDIRECT(CONCATENATE($B153,"!M20"))) ->  | H153: =IF(ISERROR(INDIRECT(CONCATENATE($B153,"!M21"))),"",INDIRECT(CONCATENATE($B153,"!M21"))) ->  | J153: =IF(ISERROR(INDIRECT(CONCATENATE($B153,"!N18"))),"",INDIRECT(CONCATENATE($B153,"!N18"))) ->  | K153: =IF(ISERROR(INDIRECT(CONCATENATE($B153,"!N19"))),"",INDIRECT(CONCATENATE($B153,"!N19"))) ->  | L153: =IF(ISERROR(INDIRECT(CONCATENATE($B153,"!N20"))),"",INDIRECT(CONCATENATE($B153,"!N20"))) ->  | M153: =IF(ISERROR(INDIRECT(CONCATENATE($B153,"!N21"))),"",INDIRECT(CONCATENATE($B153,"!N21"))) ->  | O153: =IF(ISERROR(INDIRECT(CONCATENATE($B153,"!O18"))),"",INDIRECT(CONCATENATE($B153,"!O18"))) ->  | P153: =IF(ISERROR(INDIRECT(CONCATENATE($B153,"!O19"))),"",INDIRECT(CONCATENATE($B153,"!O19"))) ->  | Q153: =IF(ISERROR(INDIRECT(CONCATENATE($B153,"!O20"))),"",INDIRECT(CONCATENATE($B153,"!O20"))) ->  | R153: =IF(ISERROR(INDIRECT(CONCATENATE($B153,"!O21"))),"",INDIRECT(CONCATENATE($B153,"!O21"))) ->  | T153: =IF(ISERROR(INDIRECT(CONCATENATE($B153,"!P18"))),"",INDIRECT(CONCATENATE($B153,"!P18"))) ->  | U153: =IF(ISERROR(INDIRECT(CONCATENATE($B153,"!P19"))),"",INDIRECT(CONCATENATE($B153,"!P19"))) ->  | V153: =IF(ISERROR(INDIRECT(CONCATENATE($B153,"!P20"))),"",INDIRECT(CONCATENATE($B153,"!P20"))) ->  | W153: =IF(ISERROR(INDIRECT(CONCATENATE($B153,"!P21"))),"",INDIRECT(CONCATENATE($B153,"!P21"))) ->  | Y153: =IF(ISERROR(INDIRECT(CONCATENATE($B153,"!Q18"))),"",INDIRECT(CONCATENATE($B153,"!Q18"))) ->  | Z153: =IF(ISERROR(INDIRECT(CONCATENATE($B153,"!Q19"))),"",INDIRECT(CONCATENATE($B153,"!Q19"))) ->  | AA153: =IF(ISERROR(INDIRECT(CONCATENATE($B153,"!Q20"))),"",INDIRECT(CONCATENATE($B153,"!Q20"))) ->  | AB153: =IF(ISERROR(INDIRECT(CONCATENATE($B153,"!Q21"))),"",INDIRECT(CONCATENATE($B153,"!Q1"))) -> 
A197: URBAN | D197: Poorest | I197: Poor | N197: Middle | S197: Rich | X197: Richest
D198: Improved | E198: Basic | F198: Limited | G198: Unimproved | H198: Surface water | I198: Improved | J198: Basic | K198: Limited | L198: Unimproved | M198: Surface water | N198: Improved | O198: Basic | P198: Limited | Q198: Unimproved | R198: Surface water | S198: Improved | T198: Basic | U198: Limited | V198: Unimproved | W198: Surface water | X198: Improved | Y198: Basic | Z198: Limited | AA198: Unimproved | AB198: Surface water
A199: Forecast period: | C199: 2000 | D199: =IF((D201+H201)>100,D201*100/(D201+H201),D201) -> 75.95157514 | E199: =D199*AVERAGEIF(E205:E216,">0")/100 -> 56.88998923 | F199: =D199*(100-AVERAGEIF(E205:E216,">0"))/100 -> 19.06158591 | G199: =100-(E199+F199+H199) -> 13.56653597 | H199: =IF((D201+H201)>100,H201*100/(D201+H201),H201) -> 10.4818889 | I199: =IF((I201+M201)>100,I201*100/(I201+M201),I201) -> 81.51741873 | J199: =I199*AVERAGEIF(J205:J216,">0")/100 -> 65.53508073 | K199: =I199*(100-AVERAGEIF(J205:J216,">0"))/100 -> 15.98233801 | L199: =100-(J199+K199+M199) -> 11.67357421 | M199: =IF((I201+M201)>100,M201*100/(I201+M201),M201) -> 6.809007059 | N199: =IF((N201+R201)>100,N201*100/(N201+R201),N201) -> 84.68401701 | O199: =N199*AVERAGEIF(O205:O216,">0")/100 -> 76.77176232 | P199: =N199*(100-AVERAGEIF(O205:O216,">0"))/100 -> 7.912254696 | Q199: =100-(O199+P199+R199) -> 10.13571457 | R199: =IF((N201+R201)>100,R201*100/(N201+R201),R201) -> 5.180268415 | S199: =IF((S201+W201)>100,S201*100/(S201+W201),S201) -> 92.60406294 | T199: =S199*AVERAGEIF(T205:T216,">0")/100 -> 89.41740838 | U199: =S199*(100-AVERAGEIF(T205:T216,">0"))/100 -> 3.186654564 | V199: =100-(T199+U199+W199) -> 5.270566731 | W199: =IF((S201+W201)>100,W201*100/(S201+W201),W201) -> 2.125370329 | X199: =IF((X201+AB201)>100,X201*100/(X201+AB201),X201) -> 95.9497784 | Y199: =X199*AVERAGEIF(Y205:Y216,">0")/100 -> 92.32779772 | Z199: =X199*(100-AVERAGEIF(Y205:Y216,">0"))/100 -> 3.621980672 | AA199: =100-(Y199+Z199+AB199) -> 3.414080332 | AB199: =IF((X201+AB201)>100,AB201*100/(X201+AB201),AB201) -> 0.6361412709
C200: 2020 | D200: =IF((D202+H202)>100,D202*100/(D202+H202),D202) -> 78.42091501 | E200: =D200*AVERAGEIF(E205:E216,">0")/100 -> 58.73959825 | F200: =D200*(100-AVERAGEIF(E205:E216,">0"))/100 -> 19.68131676 | G200: =100-(E200+F200+H200) -> 13.82487338 | H200: =IF((D202+H202)>100,H202*100/(D202+H202),H202) -> 7.754211611 | I200: =IF((I202+M202)>100,I202*100/(I202+M202),I202) -> 89.17978661 | J200: =I200*AVERAGEIF(J205:J216,">0")/100 -> 71.69516167 | K200: =I200*(100-AVERAGEIF(J205:J216,">0"))/100 -> 17.48462494 | L200: =100-(J200+K200+M200) -> 8.521291793 | M200: =IF((I202+M202)>100,M202*100/(I202+M202),M202) -> 2.298921599 | N200: =IF((N202+R202)>100,N202*100/(N202+R202),N202) -> 94.80922778 | O200: =N200*AVERAGEIF(O205:O216,">0")/100 -> 85.9509475 | P200: =N200*(100-AVERAGEIF(O205:O216,">0"))/100 -> 8.858280278 | Q200: =100-(O200+P200+R200) -> 4.946426513 | R200: =IF((N202+R202)>100,R202*100/(N202+R202),R202) -> 0.2443457084 | S200: =IF((S202+W202)>100,S202*100/(S202+W202),S202) -> 97.88295196 | T200: =S200*AVERAGEIF(T205:T216,">0")/100 -> 94.51464235 | U200: =S200*(100-AVERAGEIF(T205:T216,">0"))/100 -> 3.368309615 | V200: =100-(T200+U200+W200) -> 2.117048035 | W200: =IF((S202+W202)>100,W202*100/(S202+W202),W202) -> 0 | X200: =IF((X202+AB202)>100,X202*100/(X202+AB202),X202) -> 99.36843204 | Y200: =X200*AVERAGEIF(Y205:Y216,">0")/100 -> 95.61740159 | Z200: =X200*(100-AVERAGEIF(Y205:Y216,">0"))/100 -> 3.751030448 | AA200: =100-(Y200+Z200+AB200) -> 0.6245733105 | AB200: =IF((X202+AB202)>100,AB202*100/(X202+AB202),AB202) -> 0.006994652958
A201: Regression period: | C201: =MinRegYear(C199,C205:C216) -> 2000 | D201: =IF(MAX(C205:C216)-MIN(C205:C216)<5,AVERAGEIF(C205:C216,">0",D205:D216), IF(FORECAST($C201,D$205:D$216,$C$205:$C$216)<0,0, IF(FORECAST($C201,D$205:D$216,$C$205:$C$216)>100,100, FORECAST($C201,D$205:D$216,$C$205:$C$216)))) -> 75.95157514 | H201: =IF(MAX(C205:C216)-MIN(C205:C216)<5,AVERAGEIF(C205:C216,">0",H205:H216), IF(FORECAST($C201,H$205:H$216,$C$205:$C$216)<0,0, IF(FORECAST($C201,H$205:H$216,$C$205:$C$216)>100,100, FORECAST($C201,H$205:H$216,$C$205:$C$216)))) -> 10.4818889 | I201: =IF(MAX(C205:C216)-MIN(C205:C216)<5,AVERAGEIF(C205:C216,">0",I205:I216), IF(FORECAST($C201,I$205:I$216,$C$205:$C$216)<0,0, IF(FORECAST($C201,I$205:I$216,$C$205:$C$216)>100,100, FORECAST($C201,I$205:I$216,$C$205:$C$216)))) -> 81.51741873 | M201: =IF(MAX(C205:C216)-MIN(C205:C216)<5,AVERAGEIF(C205:C216,">0",M205:M216), IF(FORECAST($C201,M$205:M$216,$C$205:$C$216)<0,0, IF(FORECAST($C201,M$205:M$216,$C$205:$C$216)>100,100, FORECAST($C201,M$205:M$216,$C$205:$C$216)))) -> 6.809007059 | N201: =IF(MAX(C205:C216)-MIN(C205:C216)<5,AVERAGEIF(C205:C216,">0",N205:N216), IF(FORECAST($C201,N$205:N$216,$C$205:$C$216)<0,0, IF(FORECAST($C201,N$205:N$216,$C$205:$C$216)>100,100, FORECAST($C201,N$205:N$216,$C$205:$C$216)))) -> 84.68401701 | R201: =IF(MAX(C205:C216)-MIN(C205:C216)<5,AVERAGEIF(C205:C216,">0",R205:R216), IF(FORECAST($C201,R$205:R$216,$C$205:$C$216)<0,0, IF(FORECAST($C201,R$205:R$216,$C$205:$C$216)>100,100, FORECAST($C201,R$205:R$216,$C$205:$C$216)))) -> 5.180268415 | S201: =IF(MAX(C205:C216)-MIN(C205:C216)<5,AVERAGEIF(C205:C216,">0",S205:S216), IF(FORECAST($C201,S$205:S$216,$C$205:$C$216)<0,0, IF(FORECAST($C201,S$205:S$216,$C$205:$C$216)>100,100, FORECAST($C201,S$205:S$216,$C$205:$C$216)))) -> 92.60406294 | W201: =IF(MAX(C205:C216)-MIN(C205:C216)<5,AVERAGEIF(C205:C216,">0",W205:W216), IF(FORECAST($C201,W$205:W$216,$C$205:$C$216)<0,0, IF(FORECAST($C201,W$205:W$216,$C$205:$C$216)>100,100, FORECAST($C201,W$205:W$216,$C$205:$C$216)))) -> 2.125370329 | X201: =IF(MAX(C205:C216)-MIN(C205:C216)<5,AVERAGEIF(C205:C216,">0",X205:X216), IF(FORECAST($C201,X$205:X$216,$C$205:$C$216)<0,0, IF(FORECAST($C201,X$205:X$216,$C$205:$C$216)>100,100, FORECAST($C201,X$205:X$216,$C$205:$C$216)))) -> 95.9497784 | AB201: =IF(MAX(C205:C216)-MIN(C205:C216)<5,AVERAGEIF(C205:C216,">0",AB205:AB216), IF(FORECAST($C201,AB$205:AB$216,$C$205:$C$216)<0,0, IF(FORECAST($C201,AB$205:AB$216,$C$205:$C$216)>100,100, FORECAST($C201,AB$205:AB$216,$C$205:$C$216)))) -> 0.6361412709
C202: =MaxRegYear(C200,C205:C216) -> 2019 | D202: =IF(MAX(C205:C216)-MIN(C205:C216)<5,AVERAGEIF(C205:C216,">0",D205:D216), IF(FORECAST($C202,D$205:D$216,$C$205:$C$216)<0,0, IF(FORECAST($C202,D$205:D$216,$C$205:$C$216)>100,100, FORECAST($C202,D$205:D$216,$C$205:$C$216)))) -> 78.42091501 | H202: =IF(MAX(C205:C216)-MIN(C205:C216)<5,AVERAGEIF(C205:C216,">0",H205:H216), IF(FORECAST($C202,H$205:H$216,$C$205:$C$216)<0,0, IF(FORECAST($C202,H$205:H$216,$C$205:$C$216)>100,100, FORECAST($C202,H$205:H$216,$C$205:$C$216)))) -> 7.754211611 | I202: =IF(MAX(C205:C216)-MIN(C205:C216)<5,AVERAGEIF(C205:C216,">0",I205:I216), IF(FORECAST($C202,I$205:I$216,$C$205:$C$216)<0,0, IF(FORECAST($C202,I$205:I$216,$C$205:$C$216)>100,100, FORECAST($C202,I$205:I$216,$C$205:$C$216)))) -> 89.17978661 | M202: =IF(MAX(C205:C216)-MIN(C205:C216)<5,AVERAGEIF(C205:C216,">0",M205:M216), IF(FORECAST($C202,M$205:M$216,$C$205:$C$216)<0,0, IF(FORECAST($C202,M$205:M$216,$C$205:$C$216)>100,100, FORECAST($C202,M$205:M$216,$C$205:$C$216)))) -> 2.298921599 | N202: =IF(MAX(C205:C216)-MIN(C205:C216)<5,AVERAGEIF(C205:C216,">0",N205:N216), IF(FORECAST($C202,N$205:N$216,$C$205:$C$216)<0,0, IF(FORECAST($C202,N$205:N$216,$C$205:$C$216)>100,100, FORECAST($C202,N$205:N$216,$C$205:$C$216)))) -> 94.80922778 | R202: =IF(MAX(C205:C216)-MIN(C205:C216)<5,AVERAGEIF(C205:C216,">0",R205:R216), IF(FORECAST($C202,R$205:R$216,$C$205:$C$216)<0,0, IF(FORECAST($C202,R$205:R$216,$C$205:$C$216)>100,100, FORECAST($C202,R$205:R$216,$C$205:$C$216)))) -> 0.2443457084 | S202: =IF(MAX(C205:C216)-MIN(C205:C216)<5,AVERAGEIF(C205:C216,">0",S205:S216), IF(FORECAST($C202,S$205:S$216,$C$205:$C$216)<0,0, IF(FORECAST($C202,S$205:S$216,$C$205:$C$216)>100,100, FORECAST($C202,S$205:S$216,$C$205:$C$216)))) -> 97.88295196 | W202: =IF(MAX(C205:C216)-MIN(C205:C216)<5,AVERAGEIF(C205:C216,">0",W205:W216), IF(FORECAST($C202,W$205:W$216,$C$205:$C$216)<0,0, IF(FORECAST($C202,W$205:W$216,$C$205:$C$216)>100,100, FORECAST($C202,W$205:W$216,$C$205:$C$216)))) -> 0 | X202: =IF(MAX(C205:C216)-MIN(C205:C216)<5,AVERAGEIF(C205:C216,">0",X205:X216), IF(FORECAST($C202,X$205:X$216,$C$205:$C$216)<0,0, IF(FORECAST($C202,X$205:X$216,$C$205:$C$216)>100,100, FORECAST($C202,X$205:X$216,$C$205:$C$216)))) -> 99.36843204 | AB202: =IF(MAX(C205:C216)-MIN(C205:C216)<5,AVERAGEIF(C205:C216,">0",AB205:AB216), IF(FORECAST($C202,AB$205:AB$216,$C$205:$C$216)<0,0, IF(FORECAST($C202,AB$205:AB$216,$C$205:$C$216)>100,100, FORECAST($C202,AB$205:AB$216,$C$205:$C$216)))) -> 0.006994652958
B204: Survey | C204: Year | D204: Improved | E204: % Improved < = 30min | H204: Surface water | I204: Improved | J204: % Improved < = 30min | M204: Surface water | N204: Improved | O204: % Improved < = 30min | R204: Surface water | S204: Improved | T204: % Improved < = 30min | W204: Surface water | X204: Improved | Y204: % Improved < = 30min | AB204: Surface water
B205: MICS00 | C205: 2000 | D205: =IF(ISERROR(INDIRECT(CONCATENATE($B205,"!H16"))),"",INDIRECT(CONCATENATE($B205,"!H16"))) -> 85.18863943 | E205: =IF(ISERROR(INDIRECT(CONCATENATE($B205,"!H23"))),"",INDIRECT(CONCATENATE($B205,"!H23"))) -> 81.42051059 | H205: =IF(ISERROR(INDIRECT(CONCATENATE($B205,"!H21"))),"",INDIRECT(CONCATENATE($B205,"!H21"))) -> 8.941356119 | I205: =IF(ISERROR(INDIRECT(CONCATENATE($B205,"!I16"))),"",INDIRECT(CONCATENATE($B205,"!I16"))) -> 93.88958435 | J205: =IF(ISERROR(INDIRECT(CONCATENATE($B205,"!I23"))),"",INDIRECT(CONCATENATE($B205,"!I23"))) -> 83.65859479 | M205: =IF(ISERROR(INDIRECT(CONCATENATE($B205,"!I21"))),"",INDIRECT(CONCATENATE($B205,"!I21"))) -> 4.668066775 | N205: =IF(ISERROR(INDIRECT(CONCATENATE($B205,"!J16"))),"",INDIRECT(CONCATENATE($B205,"!J16"))) -> 91.82914904 | O205: =IF(ISERROR(INDIRECT(CONCATENATE($B205,"!J23"))),"",INDIRECT(CONCATENATE($B205,"!J23"))) -> 89.98940344 | R205: =IF(ISERROR(INDIRECT(CONCATENATE($B205,"!J21"))),"",INDIRECT(CONCATENATE($B205,"!J21"))) -> 5.497827143 | S205: =IF(ISERROR(INDIRECT(CONCATENATE($B205,"!K16"))),"",INDIRECT(CONCATENATE($B205,"!K16"))) -> 97.3698391 | T205: =IF(ISERROR(INDIRECT(CONCATENATE($B205,"!K23"))),"",INDIRECT(CONCATENATE($B205,"!K23"))) -> 94.12687417 | W205: =IF(ISERROR(INDIRECT(CONCATENATE($B205,"!K21"))),"",INDIRECT(CONCATENATE($B205,"!K21"))) -> 2.385077966 | X205: =IF(ISERROR(INDIRECT(CONCATENATE($B205,"!L16"))),"",INDIRECT(CONCATENATE($B205,"!L16"))) -> 99.54526923 | Y205: =IF(ISERROR(INDIRECT(CONCATENATE($B205,"!L23"))),"",INDIRECT(CONCATENATE($B205,"!L23"))) -> 87.60607317 | AB205: =IF(ISERROR(INDIRECT(CONCATENATE($B205,"!L221"))),"",INDIRECT(CONCATENATE($B205,"!L21"))) -> 0.4547307665
B206: DHS00 | C206: 2000 | D206: 84.25921664 | E206: N/A | H206: 8.334684431 | I206: 90.59888135 | J206: N/A | M206: 3.274338698 | N206: 93.71330386 | O206: N/A | R206: 2.204234395 | S206: 95.41942937 | T206: N/A | W206: 1.527453182 | X206: 97.1745544 | Y206: N/A | AB206: 0.4666969885
B207: DHS05 | C207: 2005 | D207: 62.96306101 | E207: N/A | H207: 12.55670296 | I207: 68.01297563 | J207: N/A | M207: 11.16034401 | N207: 72.13133831 | O207: N/A | R207: 6.457453411 | S207: 86.63957528 | T207: N/A | W207: 1.346011448 | X207: 91.90979618 | Y207: N/A | AB207: 0.8850137737
B208: DHS08 | C208: 2008 | D208: 54.62509412 | E208: N/A | H208: 18.89379295 | I208: 60.37599714 | J208: N/A | M208: 11.62623961 | N208: 75.64355727 | O208: N/A | R208: 7.260037198 | S208: 90.2967397 | T208: N/A | W208: 2.342741214 | X208: 93.41760967 | Y208: N/A | AB208: 0.7867244286
B209: DHS10 | C209: 2010 | D209: 80.95667875 | E209: 61.2 | H209: 3.288033488 | I209: 84.83781298 | J209: 69.3 | M209: 1.705769922 | N209: 88.65177246 | O209: 84.4 | R209: 0 | S209: 93.24381645 | T209: 97.2 | W209: 0.9378418933 | X209: 98.43988106 | Y209: 97.5 | AB209: 0
B210: MIS13 | C210: 2013 | D210: 90.87773068 | E210: 70.9 | H210: 0.1720938689 | I210: 97.68243271 | J210: 72 | M210: 0 | N210: 99.35109584 | O210: 92.1 | R210: 0 | S210: 100 | T210: 97.8 | W210: 0 | X210: 100 | Y210: 99.4 | AB210: 0
B211: DHS15 | C211: 2015 | D211: 71.80671788 | E211: 77.47415995 | H211: 16.93748815 | I211: 88.6393445 | J211: 86.53818413 | M211: 5.038501954 | N211: 95.65092372 | O211: 94.60767013 | R211: 2.357187593 | S211: 96.7559696 | T211: 97.68991118 | W211: 0.5231013513 | X211: 99.34629809 | Y211: 98.63484481 | AB211: 0.2442815772
B212: MIS17 | C212: 2017 | D212: 85.77310001 | E212: 83.52020373 | H212: 4.968745758 | I212: 95.52553254 | J212: 90.47301935 | M212: 0.8574370112 | N212: 96.73859203 | O212: 92.18658624 | R212: 0 | S212: 100 | T212: 95.97741145 | W212: 0 | X212: 100 | Y212: 97.98472539 | AB212: 0
B218: =CONCATENATE("Urban use of drinking water sources, ",C199,"–",C200) -> Urban use of drinking water sources, 2000–2020 | S218: Data points used for regression
E253: =IF(ISERROR(INDIRECT(CONCATENATE($B253,"!M18"))),"",INDIRECT(CONCATENATE($B253,"!M18"))) ->  | F253: =IF(ISERROR(INDIRECT(CONCATENATE($B253,"!M19"))),"",INDIRECT(CONCATENATE($B253,"!M19"))) ->  | G253: =IF(ISERROR(INDIRECT(CONCATENATE($B253,"!M20"))),"",INDIRECT(CONCATENATE($B253,"!M20"))) ->  | H253: =IF(ISERROR(INDIRECT(CONCATENATE($B253,"!M21"))),"",INDIRECT(CONCATENATE($B253,"!M21"))) ->  | J253: =IF(ISERROR(INDIRECT(CONCATENATE($B253,"!N18"))),"",INDIRECT(CONCATENATE($B253,"!N18"))) ->  | K253: =IF(ISERROR(INDIRECT(CONCATENATE($B253,"!N19"))),"",INDIRECT(CONCATENATE($B253,"!N19"))) ->  | L253: =IF(ISERROR(INDIRECT(CONCATENATE($B253,"!N20"))),"",INDIRECT(CONCATENATE($B253,"!N20"))) ->  | M253: =IF(ISERROR(INDIRECT(CONCATENATE($B253,"!N21"))),"",INDIRECT(CONCATENATE($B253,"!N21"))) ->  | O253: =IF(ISERROR(INDIRECT(CONCATENATE($B253,"!O18"))),"",INDIRECT(CONCATENATE($B253,"!O18"))) ->  | P253: =IF(ISERROR(INDIRECT(CONCATENATE($B253,"!O19"))),"",INDIRECT(CONCATENATE($B253,"!O19"))) ->  | Q253: =IF(ISERROR(INDIRECT(CONCATENATE($B253,"!O20"))),"",INDIRECT(CONCATENATE($B253,"!O20"))) ->  | R253: =IF(ISERROR(INDIRECT(CONCATENATE($B253,"!O21"))),"",INDIRECT(CONCATENATE($B253,"!O21"))) ->  | T253: =IF(ISERROR(INDIRECT(CONCATENATE($B253,"!P18"))),"",INDIRECT(CONCATENATE($B253,"!P18"))) ->  | U253: =IF(ISERROR(INDIRECT(CONCATENATE($B253,"!P19"))),"",INDIRECT(CONCATENATE($B253,"!P19"))) ->  | V253: =IF(ISERROR(INDIRECT(CONCATENATE($B253,"!P20"))),"",INDIRECT(CONCATENATE($B253,"!P20"))) ->  | W253: =IF(ISERROR(INDIRECT(CONCATENATE($B253,"!P21"))),"",INDIRECT(CONCATENATE($B253,"!P21"))) ->  | Y253: =IF(ISERROR(INDIRECT(CONCATENATE($B253,"!Q18"))),"",INDIRECT(CONCATENATE($B253,"!Q18"))) ->  | Z253: =IF(ISERROR(INDIRECT(CONCATENATE($B253,"!Q19"))),"",INDIRECT(CONCATENATE($B253,"!Q19"))) ->  | AA253: =IF(ISERROR(INDIRECT(CONCATENATE($B253,"!Q20"))),"",INDIRECT(CONCATENATE($B253,"!Q20"))) ->  | AB253: =IF(ISERROR(INDIRECT(CONCATENATE($B253,"!Q21"))),"",INDIRECT(CONCATENATE($B253,"!Q1"))) -> 
E254: =IF(ISERROR(INDIRECT(CONCATENATE($B254,"!M18"))),"",INDIRECT(CONCATENATE($B254,"!M18"))) ->  | F254: =IF(ISERROR(INDIRECT(CONCATENATE($B254,"!M19"))),"",INDIRECT(CONCATENATE($B254,"!M19"))) ->  | G254: =IF(ISERROR(INDIRECT(CONCATENATE($B254,"!M20"))),"",INDIRECT(CONCATENATE($B254,"!M20"))) ->  | H254: =IF(ISERROR(INDIRECT(CONCATENATE($B254,"!M21"))),"",INDIRECT(CONCATENATE($B254,"!M21"))) ->  | J254: =IF(ISERROR(INDIRECT(CONCATENATE($B254,"!N18"))),"",INDIRECT(CONCATENATE($B254,"!N18"))) ->  | K254: =IF(ISERROR(INDIRECT(CONCATENATE($B254,"!N19"))),"",INDIRECT(CONCATENATE($B254,"!N19"))) ->  | L254: =IF(ISERROR(INDIRECT(CONCATENATE($B254,"!N20"))),"",INDIRECT(CONCATENATE($B254,"!N20"))) ->  | M254: =IF(ISERROR(INDIRECT(CONCATENATE($B254,"!N21"))),"",INDIRECT(CONCATENATE($B254,"!N21"))) ->  | O254: =IF(ISERROR(INDIRECT(CONCATENATE($B254,"!O18"))),"",INDIRECT(CONCATENATE($B254,"!O18"))) ->  | P254: =IF(ISERROR(INDIRECT(CONCATENATE($B254,"!O19"))),"",INDIRECT(CONCATENATE($B254,"!O19"))) ->  | Q254: =IF(ISERROR(INDIRECT(CONCATENATE($B254,"!O20"))),"",INDIRECT(CONCATENATE($B254,"!O20"))) ->  | R254: =IF(ISERROR(INDIRECT(CONCATENATE($B254,"!O21"))),"",INDIRECT(CONCATENATE($B254,"!O21"))) ->  | T254: =IF(ISERROR(INDIRECT(CONCATENATE($B254,"!P18"))),"",INDIRECT(CONCATENATE($B254,"!P18"))) ->  | U254: =IF(ISERROR(INDIRECT(CONCATENATE($B254,"!P19"))),"",INDIRECT(CONCATENATE($B254,"!P19"))) ->  | V254: =IF(ISERROR(INDIRECT(CONCATENATE($B254,"!P20"))),"",INDIRECT(CONCATENATE($B254,"!P20"))) ->  | W254: =IF(ISERROR(INDIRECT(CONCATENATE($B254,"!P21"))),"",INDIRECT(CONCATENATE($B254,"!P21"))) ->  | Y254: =IF(ISERROR(INDIRECT(CONCATENATE($B254,"!Q18"))),"",INDIRECT(CONCATENATE($B254,"!Q18"))) ->  | Z254: =IF(ISERROR(INDIRECT(CONCATENATE($B254,"!Q19"))),"",INDIRECT(CONCATENATE($B254,"!Q19"))) ->  | AA254: =IF(ISERROR(INDIRECT(CONCATENATE($B254,"!Q20"))),"",INDIRECT(CONCATENATE($B254,"!Q20"))) ->  | AB254: =IF(ISERROR(INDIRECT(CONCATENATE($B254,"!Q21"))),"",INDIRECT(CONCATENATE($B254,"!Q1"))) -> 
E255: =IF(ISERROR(INDIRECT(CONCATENATE($B255,"!M18"))),"",INDIRECT(CONCATENATE($B255,"!M18"))) ->  | F255: =IF(ISERROR(INDIRECT(CONCATENATE($B255,"!M19"))),"",INDIRECT(CONCATENATE($B255,"!M19"))) ->  | G255: =IF(ISERROR(INDIRECT(CONCATENATE($B255,"!M20"))),"",INDIRECT(CONCATENATE($B255,"!M20"))) ->  | H255: =IF(ISERROR(INDIRECT(CONCATENATE($B255,"!M21"))),"",INDIRECT(CONCATENATE($B255,"!M21"))) ->  | J255: =IF(ISERROR(INDIRECT(CONCATENATE($B255,"!N18"))),"",INDIRECT(CONCATENATE($B255,"!N18"))) ->  | K255: =IF(ISERROR(INDIRECT(CONCATENATE($B255,"!N19"))),"",INDIRECT(CONCATENATE($B255,"!N19"))) ->  | L255: =IF(ISERROR(INDIRECT(CONCATENATE($B255,"!N20"))),"",INDIRECT(CONCATENATE($B255,"!N20"))) ->  | M255: =IF(ISERROR(INDIRECT(CONCATENATE($B255,"!N21"))),"",INDIRECT(CONCATENATE($B255,"!N21"))) ->  | O255: =IF(ISERROR(INDIRECT(CONCATENATE($B255,"!O18"))),"",INDIRECT(CONCATENATE($B255,"!O18"))) ->  | P255: =IF(ISERROR(INDIRECT(CONCATENATE($B255,"!O19"))),"",INDIRECT(CONCATENATE($B255,"!O19"))) ->  | Q255: =IF(ISERROR(INDIRECT(CONCATENATE($B255,"!O20"))),"",INDIRECT(CONCATENATE($B255,"!O20"))) ->  | R255: =IF(ISERROR(INDIRECT(CONCATENATE($B255,"!O21"))),"",INDIRECT(CONCATENATE($B255,"!O21"))) ->  | T255: =IF(ISERROR(INDIRECT(CONCATENATE($B255,"!P18"))),"",INDIRECT(CONCATENATE($B255,"!P18"))) ->  | U255: =IF(ISERROR(INDIRECT(CONCATENATE($B255,"!P19"))),"",INDIRECT(CONCATENATE($B255,"!P19"))) ->  | V255: =IF(ISERROR(INDIRECT(CONCATENATE($B255,"!P20"))),"",INDIRECT(CONCATENATE($B255,"!P20"))) ->  | W255: =IF(ISERROR(INDIRECT(CONCATENATE($B255,"!P21"))),"",INDIRECT(CONCATENATE($B255,"!P21"))) ->  | Y255: =IF(ISERROR(INDIRECT(CONCATENATE($B255,"!Q18"))),"",INDIRECT(CONCATENATE($B255,"!Q18"))) ->  | Z255: =IF(ISERROR(INDIRECT(CONCATENATE($B255,"!Q19"))),"",INDIRECT(CONCATENATE($B255,"!Q19"))) ->  | AA255: =IF(ISERROR(INDIRECT(CONCATENATE($B255,"!Q20"))),"",INDIRECT(CONCATENATE($B255,"!Q20"))) ->  | AB255: =IF(ISERROR(INDIRECT(CONCATENATE($B255,"!Q21"))),"",INDIRECT(CONCATENATE($B255,"!Q1"))) -> 
E256: =IF(ISERROR(INDIRECT(CONCATENATE($B256,"!M18"))),"",INDIRECT(CONCATENATE($B256,"!M18"))) ->  | F256: =IF(ISERROR(INDIRECT(CONCATENATE($B256,"!M19"))),"",INDIRECT(CONCATENATE($B256,"!M19"))) ->  | G256: =IF(ISERROR(INDIRECT(CONCATENATE($B256,"!M20"))),"",INDIRECT(CONCATENATE($B256,"!M20"))) ->  | H256: =IF(ISERROR(INDIRECT(CONCATENATE($B256,"!M21"))),"",INDIRECT(CONCATENATE($B256,"!M21"))) ->  | J256: =IF(ISERROR(INDIRECT(CONCATENATE($B256,"!N18"))),"",INDIRECT(CONCATENATE($B256,"!N18"))) ->  | K256: =IF(ISERROR(INDIRECT(CONCATENATE($B256,"!N19"))),"",INDIRECT(CONCATENATE($B256,"!N19"))) ->  | L256: =IF(ISERROR(INDIRECT(CONCATENATE($B256,"!N20"))),"",INDIRECT(CONCATENATE($B256,"!N20"))) ->  | M256: =IF(ISERROR(INDIRECT(CONCATENATE($B256,"!N21"))),"",INDIRECT(CONCATENATE($B256,"!N21"))) ->  | O256: =IF(ISERROR(INDIRECT(CONCATENATE($B256,"!O18"))),"",INDIRECT(CONCATENATE($B256,"!O18"))) ->  | P256: =IF(ISERROR(INDIRECT(CONCATENATE($B256,"!O19"))),"",INDIRECT(CONCATENATE($B256,"!O19"))) ->  | Q256: =IF(ISERROR(INDIRECT(CONCATENATE($B256,"!O20"))),"",INDIRECT(CONCATENATE($B256,"!O20"))) ->  | R256: =IF(ISERROR(INDIRECT(CONCATENATE($B256,"!O21"))),"",INDIRECT(CONCATENATE($B256,"!O21"))) ->  | T256: =IF(ISERROR(INDIRECT(CONCATENATE($B256,"!P18"))),"",INDIRECT(CONCATENATE($B256,"!P18"))) ->  | U256: =IF(ISERROR(INDIRECT(CONCATENATE($B256,"!P19"))),"",INDIRECT(CONCATENATE($B256,"!P19"))) ->  | V256: =IF(ISERROR(INDIRECT(CONCATENATE($B256,"!P20"))),"",INDIRECT(CONCATENATE($B256,"!P20"))) ->  | W256: =IF(ISERROR(INDIRECT(CONCATENATE($B256,"!P21"))),"",INDIRECT(CONCATENATE($B256,"!P21"))) ->  | Y256: =IF(ISERROR(INDIRECT(CONCATENATE($B256,"!Q18"))),"",INDIRECT(CONCATENATE($B256,"!Q18"))) ->  | Z256: =IF(ISERROR(INDIRECT(CONCATENATE($B256,"!Q19"))),"",INDIRECT(CONCATENATE($B256,"!Q19"))) ->  | AA256: =IF(ISERROR(INDIRECT(CONCATENATE($B256,"!Q20"))),"",INDIRECT(CONCATENATE($B256,"!Q20"))) ->  | AB256: =IF(ISERROR(INDIRECT(CONCATENATE($B256,"!Q21"))),"",INDIRECT(CONCATENATE($B256,"!Q1"))) -> 
E257: =IF(ISERROR(INDIRECT(CONCATENATE($B257,"!M18"))),"",INDIRECT(CONCATENATE($B257,"!M18"))) ->  | F257: =IF(ISERROR(INDIRECT(CONCATENATE($B257,"!M19"))),"",INDIRECT(CONCATENATE($B257,"!M19"))) ->  | G257: =IF(ISERROR(INDIRECT(CONCATENATE($B257,"!M20"))),"",INDIRECT(CONCATENATE($B257,"!M20"))) ->  | H257: =IF(ISERROR(INDIRECT(CONCATENATE($B257,"!M21"))),"",INDIRECT(CONCATENATE($B257,"!M21"))) ->  | J257: =IF(ISERROR(INDIRECT(CONCATENATE($B257,"!N18"))),"",INDIRECT(CONCATENATE($B257,"!N18"))) ->  | K257: =IF(ISERROR(INDIRECT(CONCATENATE($B257,"!N19"))),"",INDIRECT(CONCATENATE($B257,"!N19"))) ->  | L257: =IF(ISERROR(INDIRECT(CONCATENATE($B257,"!N20"))),"",INDIRECT(CONCATENATE($B257,"!N20"))) ->  | M257: =IF(ISERROR(INDIRECT(CONCATENATE($B257,"!N21"))),"",INDIRECT(CONCATENATE($B257,"!N21"))) ->  | O257: =IF(ISERROR(INDIRECT(CONCATENATE($B257,"!O18"))),"",INDIRECT(CONCATENATE($B257,"!O18"))) ->  | P257: =IF(ISERROR(INDIRECT(CONCATENATE($B257,"!O19"))),"",INDIRECT(CONCATENATE($B257,"!O19"))) ->  | Q257: =IF(ISERROR(INDIRECT(CONCATENATE($B257,"!O20"))),"",INDIRECT(CONCATENATE($B257,"!O20"))) ->  | R257: =IF(ISERROR(INDIRECT(CONCATENATE($B257,"!O21"))),"",INDIRECT(CONCATENATE($B257,"!O21"))) ->  | T257: =IF(ISERROR(INDIRECT(CONCATENATE($B257,"!P18"))),"",INDIRECT(CONCATENATE($B257,"!P18"))) ->  | U257: =IF(ISERROR(INDIRECT(CONCATENATE($B257,"!P19"))),"",INDIRECT(CONCATENATE($B257,"!P19"))) ->  | V257: =IF(ISERROR(INDIRECT(CONCATENATE($B257,"!P20"))),"",INDIRECT(CONCATENATE($B257,"!P20"))) ->  | W257: =IF(ISERROR(INDIRECT(CONCATENATE($B257,"!P21"))),"",INDIRECT(CONCATENATE($B257,"!P21"))) ->  | Y257: =IF(ISERROR(INDIRECT(CONCATENATE($B257,"!Q18"))),"",INDIRECT(CONCATENATE($B257,"!Q18"))) ->  | Z257: =IF(ISERROR(INDIRECT(CONCATENATE($B257,"!Q19"))),"",INDIRECT(CONCATENATE($B257,"!Q19"))) ->  | AA257: =IF(ISERROR(INDIRECT(CONCATENATE($B257,"!Q20"))),"",INDIRECT(CONCATENATE($B257,"!Q20"))) ->  | AB257: =IF(ISERROR(INDIRECT(CONCATENATE($B257,"!Q21"))),"",INDIRECT(CONCATENATE($B257,"!Q1"))) -> 
A297: RURAL | D297: Poorest | I297: Poor | N297: Middle | S297: Rich | X297: Richest
D298: Improved | E298: Basic | F298: Limited | G298: Unimproved | H298: Surface water | I298: Improved | J298: Basic | K298: Limited | L298: Unimproved | M298: Surface water | N298: Improved | O298: Basic | P298: Limited | Q298: Unimproved | R298: Surface water | S298: Improved | T298: Basic | U298: Limited | V298: Unimproved | W298: Surface water | X298: Improved | Y298: Basic | Z298: Limited | AA298: Unimproved | AB298: Surface water
A299: Forecast period: | C299: =MinBase(C305:C316) -> 2000 | D299: =IF((D301+H301)>100,D301*100/(D301+H301),D301) -> 60.41843998 | E299: =D299*AVERAGEIF(E305:E316,">0")/100 -> 38.50112004 | F299: =D299*(100-AVERAGEIF(E305:E316,">0"))/100 -> 21.91731995 | G299: =100-(E299+F299+H299) -> 19.9635804 | H299: =IF((D301+H301)>100,H301*100/(D301+H301),H301) -> 19.61797962 | I299: =IF((I301+M301)>100,I301*100/(I301+M301),I301) -> 58.39161474 | J299: =I299*AVERAGEIF(J305:J316,">0")/100 -> 37.97947006 | K299: =I299*(100-AVERAGEIF(J305:J316,">0"))/100 -> 20.41214468 | L299: =100-(J299+K299+M299) -> 19.7811824 | M299: =IF((I301+M301)>100,M301*100/(I301+M301),M301) -> 21.82720286 | N299: =IF((N301+R301)>100,N301*100/(N301+R301),N301) -> 60.61220943 | O299: =N299*AVERAGEIF(O305:O316,">0")/100 -> 39.63391097 | P299: =N299*(100-AVERAGEIF(O305:O316,">0"))/100 -> 20.97829846 | Q299: =100-(O299+P299+R299) -> 19.46303836 | R299: =IF((N301+R301)>100,R301*100/(N301+R301),R301) -> 19.92475221 | S299: =IF((S301+W301)>100,S301*100/(S301+W301),S301) -> 62.76941639 | T299: =S299*AVERAGEIF(T305:T316,">0")/100 -> 41.6647558 | U299: =S299*(100-AVERAGEIF(T305:T316,">0"))/100 -> 21.10466059 | V299: =100-(T299+U299+W299) -> 16.74823808 | W299: =IF((S301+W301)>100,W301*100/(S301+W301),W301) -> 20.48234553 | X299: =IF((X301+AB301)>100,X301*100/(X301+AB301),X301) -> 67.22298492 | Y299: =X299*AVERAGEIF(Y305:Y316,">0")/100 -> 48.18786702 | Z299: =X299*(100-AVERAGEIF(Y305:Y316,">0"))/100 -> 19.0351179 | AA299: =100-(Y299+Z299+AB299) -> 13.81334422 | AB299: =IF((X301+AB301)>100,AB301*100/(X301+AB301),AB301) -> 18.96367085
C300: =MaxTarget(C305:C316) -> 2020 | D300: =IF((D302+H302)>100,D302*100/(D302+H302),D302) -> 65.64835135 | E300: =D300*AVERAGEIF(E305:E316,">0")/100 -> 41.83383511 | F300: =D300*(100-AVERAGEIF(E305:E316,">0"))/100 -> 23.81451625 | G300: =100-(E300+F300+H300) -> 23.87571396 | H300: =IF((D302+H302)>100,H302*100/(D302+H302),H302) -> 10.47593468 | I300: =IF((I302+M302)>100,I302*100/(I302+M302),I302) -> 68.88859646 | J300: =I300*AVERAGEIF(J305:J316,">0")/100 -> 44.8069881 | K300: =I300*(100-AVERAGEIF(J305:J316,">0"))/100 -> 24.08160836 | L300: =100-(J300+K300+M300) -> 22.13113313 | M300: =IF((I302+M302)>100,M302*100/(I302+M302),M302) -> 8.980270407 | N300: =IF((N302+R302)>100,N302*100/(N302+R302),N302) -> 70.05954145 | O300: =N300*AVERAGEIF(O305:O316,">0")/100 -> 45.81145704 | P300: =N300*(100-AVERAGEIF(O305:O316,">0"))/100 -> 24.24808441 | Q300: =100-(O300+P300+R300) -> 20.31810567 | R300: =IF((N302+R302)>100,R302*100/(N302+R302),R302) -> 9.622352884 | S300: =IF((S302+W302)>100,S302*100/(S302+W302),S302) -> 68.8016679 | T300: =S300*AVERAGEIF(T305:T316,">0")/100 -> 45.66881225 | U300: =S300*(100-AVERAGEIF(T305:T316,">0"))/100 -> 23.13285566 | V300: =100-(T300+U300+W300) -> 19.46679146 | W300: =IF((S302+W302)>100,W302*100/(S302+W302),W302) -> 11.73154064 | X300: =IF((X302+AB302)>100,X302*100/(X302+AB302),X302) -> 81.21110943 | Y300: =X300*AVERAGEIF(Y305:Y316,">0")/100 -> 58.21506061 | Z300: =X300*(100-AVERAGEIF(Y305:Y316,">0"))/100 -> 22.99604882 | AA300: =100-(Y300+Z300+AB300) -> 13.14084172 | AB300: =IF((X302+AB302)>100,AB302*100/(X302+AB302),AB302) -> 5.648048844
A301: Regression period: | C301: =MinRegYear(C299,C305:C316) -> 2000 | D301: =IF(MAX(C305:C316)-MIN(C305:C316)<5,AVERAGEIF(C305:C316,">0",D305:D316), IF(FORECAST($C301,D$305:D$316,$C$305:$C$316)<0,0, IF(FORECAST($C301,D$305:D$316,$C$305:$C$316)>100,100, FORECAST($C301,D$305:D$316,$C$305:$C$316)))) -> 60.41843998 | H301: =IF(MAX(C305:C316)-MIN(C305:C316)<5,AVERAGEIF(C305:C316,">0",H305:H316), IF(FORECAST($C301,H$305:H$316,$C$305:$C$316)<0,0, IF(FORECAST($C301,H$305:H$316,$C$305:$C$316)>100,100, FORECAST($C301,H$305:H$316,$C$305:$C$316)))) -> 19.61797962 | I301: =IF(MAX(C305:C316)-MIN(C305:C316)<5,AVERAGEIF(C305:C316,">0",I305:I316), IF(FORECAST($C301,I$305:I$316,$C$305:$C$316)<0,0, IF(FORECAST($C301,I$305:I$316,$C$305:$C$316)>100,100, FORECAST($C301,I$305:I$316,$C$305:$C$316)))) -> 58.39161474 | M301: =IF(MAX(C305:C316)-MIN(C305:C316)<5,AVERAGEIF(C305:C316,">0",M305:M316), IF(FORECAST($C301,M$305:M$316,$C$305:$C$316)<0,0, IF(FORECAST($C301,M$305:M$316,$C$305:$C$316)>100,100, FORECAST($C301,M$305:M$316,$C$305:$C$316)))) -> 21.82720286 | N301: =IF(MAX(C305:C316)-MIN(C305:C316)<5,AVERAGEIF(C305:C316,">0",N305:N316), IF(FORECAST($C301,N$305:N$316,$C$305:$C$316)<0,0, IF(FORECAST($C301,N$305:N$316,$C$305:$C$316)>100,100, FORECAST($C301,N$305:N$316,$C$305:$C$316)))) -> 60.61220943 | R301: =IF(MAX(C305:C316)-MIN(C305:C316)<5,AVERAGEIF(C305:C316,">0",R305:R316), IF(FORECAST($C301,R$305:R$316,$C$305:$C$316)<0,0, IF(FORECAST($C301,R$305:R$316,$C$305:$C$316)>100,100, FORECAST($C301,R$305:R$316,$C$305:$C$316)))) -> 19.92475221 | S301: =IF(MAX(C305:C316)-MIN(C305:C316)<5,AVERAGEIF(C305:C316,">0",S305:S316), IF(FORECAST($C301,S$305:S$316,$C$305:$C$316)<0,0, IF(FORECAST($C301,S$305:S$316,$C$305:$C$316)>100,100, FORECAST($C301,S$305:S$316,$C$305:$C$316)))) -> 62.76941639 | W301: =IF(MAX(C305:C316)-MIN(C305:C316)<5,AVERAGEIF(C305:C316,">0",W305:W316), IF(FORECAST($C301,W$305:W$316,$C$305:$C$316)<0,0, IF(FORECAST($C301,W$305:W$316,$C$305:$C$316)>100,100, FORECAST($C301,W$305:W$316,$C$305:$C$316)))) -> 20.48234553 | X301: =IF(MAX(C305:C316)-MIN(C305:C316)<5,AVERAGEIF(C305:C316,">0",X305:X316), IF(FORECAST($C301,X$305:X$316,$C$305:$C$316)<0,0, IF(FORECAST($C301,X$305:X$316,$C$305:$C$316)>100,100, FORECAST($C301,X$305:X$316,$C$305:$C$316)))) -> 67.22298492 | AB301: =IF(MAX(C305:C316)-MIN(C305:C316)<5,AVERAGEIF(C305:C316,">0",AB305:AB316), IF(FORECAST($C301,AB$305:AB$316,$C$305:$C$316)<0,0, IF(FORECAST($C301,AB$305:AB$316,$C$305:$C$316)>100,100, FORECAST($C301,AB$305:AB$316,$C$305:$C$316)))) -> 18.96367085
C302: =MaxRegYear(C300,C305:C316) -> 2017 | D302: =IF(MAX(C305:C316)-MIN(C305:C316)<5,AVERAGEIF(C305:C316,">0",D305:D316), IF(FORECAST($C302,D$305:D$316,$C$305:$C$316)<0,0, IF(FORECAST($C302,D$305:D$316,$C$305:$C$316)>100,100, FORECAST($C302,D$305:D$316,$C$305:$C$316)))) -> 65.64835135 | H302: =IF(MAX(C305:C316)-MIN(C305:C316)<5,AVERAGEIF(C305:C316,">0",H305:H316), IF(FORECAST($C302,H$305:H$316,$C$305:$C$316)<0,0, IF(FORECAST($C302,H$305:H$316,$C$305:$C$316)>100,100, FORECAST($C302,H$305:H$316,$C$305:$C$316)))) -> 10.47593468 | I302: =IF(MAX(C305:C316)-MIN(C305:C316)<5,AVERAGEIF(C305:C316,">0",I305:I316), IF(FORECAST($C302,I$305:I$316,$C$305:$C$316)<0,0, IF(FORECAST($C302,I$305:I$316,$C$305:$C$316)>100,100, FORECAST($C302,I$305:I$316,$C$305:$C$316)))) -> 68.88859646 | M302: =IF(MAX(C305:C316)-MIN(C305:C316)<5,AVERAGEIF(C305:C316,">0",M305:M316), IF(FORECAST($C302,M$305:M$316,$C$305:$C$316)<0,0, IF(FORECAST($C302,M$305:M$316,$C$305:$C$316)>100,100, FORECAST($C302,M$305:M$316,$C$305:$C$316)))) -> 8.980270407 | N302: =IF(MAX(C305:C316)-MIN(C305:C316)<5,AVERAGEIF(C305:C316,">0",N305:N316), IF(FORECAST($C302,N$305:N$316,$C$305:$C$316)<0,0, IF(FORECAST($C302,N$305:N$316,$C$305:$C$316)>100,100, FORECAST($C302,N$305:N$316,$C$305:$C$316)))) -> 70.05954145 | R302: =IF(MAX(C305:C316)-MIN(C305:C316)<5,AVERAGEIF(C305:C316,">0",R305:R316), IF(FORECAST($C302,R$305:R$316,$C$305:$C$316)<0,0, IF(FORECAST($C302,R$305:R$316,$C$305:$C$316)>100,100, FORECAST($C302,R$305:R$316,$C$305:$C$316)))) -> 9.622352884 | S302: =IF(MAX(C305:C316)-MIN(C305:C316)<5,AVERAGEIF(C305:C316,">0",S305:S316), IF(FORECAST($C302,S$305:S$316,$C$305:$C$316)<0,0, IF(FORECAST($C302,S$305:S$316,$C$305:$C$316)>100,100, FORECAST($C302,S$305:S$316,$C$305:$C$316)))) -> 68.8016679 | W302: =IF(MAX(C305:C316)-MIN(C305:C316)<5,AVERAGEIF(C305:C316,">0",W305:W316), IF(FORECAST($C302,W$305:W$316,$C$305:$C$316)<0,0, IF(FORECAST($C302,W$305:W$316,$C$305:$C$316)>100,100, FORECAST($C302,W$305:W$316,$C$305:$C$316)))) -> 11.73154064 | X302: =IF(MAX(C305:C316)-MIN(C305:C316)<5,AVERAGEIF(C305:C316,">0",X305:X316), IF(FORECAST($C302,X$305:X$316,$C$305:$C$316)<0,0, IF(FORECAST($C302,X$305:X$316,$C$305:$C$316)>100,100, FORECAST($C302,X$305:X$316,$C$305:$C$316)))) -> 81.21110943 | AB302: =IF(MAX(C305:C316)-MIN(C305:C316)<5,AVERAGEIF(C305:C316,">0",AB305:AB316), IF(FORECAST($C302,AB$305:AB$316,$C$305:$C$316)<0,0, IF(FORECAST($C302,AB$305:AB$316,$C$305:$C$316)>100,100, FORECAST($C302,AB$305:AB$316,$C$305:$C$316)))) -> 5.648048844
B304: Survey | C304: Year | D304: Improved | E304: % Improved < = 30min | H304: Surface water | I304: Improved | J304: % Improved < = 30min | M304: Surface water | N304: Improved | O304: % Improved < = 30min | R304: Surface water | S304: Improved | T304: % Improved < = 30min | W304: Surface water | X304: Improved | Y304: % Improved < = 30min | AB304: Surface water
B305: MICS00 | C305: 2000 | D305: =IF(ISERROR(INDIRECT(CONCATENATE($B305,"!M16"))),"",INDIRECT(CONCATENATE($B305,"!M16"))) -> 66.76194271 | E305: =IF(ISERROR(INDIRECT(CONCATENATE($B305,"!M23"))),"",INDIRECT(CONCATENATE($B305,"!M23"))) -> 60.66355633 | H305: =IF(ISERROR(INDIRECT(CONCATENATE($B305,"!M21"))),"",INDIRECT(CONCATENATE($B305,"!M21"))) -> 22.33232085 | I305: =IF(ISERROR(INDIRECT(CONCATENATE($B305,"!N16"))),"",INDIRECT(CONCATENATE($B305,"!N16"))) -> 64.31380275 | J305: =IF(ISERROR(INDIRECT(CONCATENATE($B305,"!N23"))),"",INDIRECT(CONCATENATE($B305,"!N23"))) -> 60.20454059 | M305: =IF(ISERROR(INDIRECT(CONCATENATE($B305,"!N21"))),"",INDIRECT(CONCATENATE($B305,"!N21"))) -> 25.39002151 | N305: =IF(ISERROR(INDIRECT(CONCATENATE($B305,"!O16"))),"",INDIRECT(CONCATENATE($B305,"!O16"))) -> 67.77617017 | O305: =IF(ISERROR(INDIRECT(CONCATENATE($B305,"!O23"))),"",INDIRECT(CONCATENATE($B305,"!O23"))) -> 56.97470329 | R305: =IF(ISERROR(INDIRECT(CONCATENATE($B305,"!O21"))),"",INDIRECT(CONCATENATE($B305,"!O21"))) -> 23.04676449 | S305: =IF(ISERROR(INDIRECT(CONCATENATE($B305,"!P16"))),"",INDIRECT(CONCATENATE($B305,"!P16"))) -> 66.26741347 | T305: =IF(ISERROR(INDIRECT(CONCATENATE($B305,"!P23"))),"",INDIRECT(CONCATENATE($B305,"!P23"))) -> 64.18800737 | W305: =IF(ISERROR(INDIRECT(CONCATENATE($B305,"!P21"))),"",INDIRECT(CONCATENATE($B305,"!P21"))) -> 22.90000671 | X305: =IF(ISERROR(INDIRECT(CONCATENATE($B305,"!Q16"))),"",INDIRECT(CONCATENATE($B305,"!Q16"))) -> 72.54286115 | Y305: =IF(ISERROR(INDIRECT(CONCATENATE($B305,"!Q23"))),"",INDIRECT(CONCATENATE($B305,"!Q23"))) -> 65.84375523 | AB305: =IF(ISERROR(INDIRECT(CONCATENATE($B305,"!Q221"))),"",INDIRECT(CONCATENATE($B305,"!Q21"))) -> 22.16896645
B306: DHS00 | C306: 2000 | D306: 63.68265958 | E306: N/A | H306: 14.70747388 | I306: 63.68265958 | J306: N/A | M306: 14.70747388 | N306: 63.14036985 | O306: N/A | R306: 15.97641216 | S306: 68.27611329 | T306: N/A | W306: 14.2739562 | X306: 69.2150828 | Y306: N/A | AB306: 16.64521506
B307: DHS05 | C307: 2005 | D307: 50.11980481 | E307: N/A | H307: 22.50121453 | I307: 50.11980481 | J307: N/A | M307: 22.50121453 | N307: 52.77706135 | O307: N/A | R307: 19.76025506 | S307: 52.48670402 | T307: N/A | W307: 25.59803406 | X307: 59.61749057 | Y307: N/A | AB307: 17.81363367
B308: DHS08 | C308: 2008 | D308: 55.20765153 | E308: N/A | H308: 16.30232458 | I308: 49.95770966 | J308: N/A | M308: 20.24025625 | N308: 55.29402201 | O308: N/A | R308: 14.68431357 | S308: 56.61490263 | T308: N/A | W308: 17.92516088 | X308: 70.03388718 | Y308: N/A | AB308: 10.11039528
B309: DHS10 | C309: 2010 | D309: 65.87732179 | E309: 64.6 | H309: 9.660367098 | I309: 68.56990885 | J309: 66.4 | M309: 10.85293578 | N309: 68.41827912 | O309: 64.5 | R309: 12.03658813 | S309: 73.87298044 | T309: 63.4 | W309: 9.708786548 | X309: 79.00068735 | Y309: 70.4 | AB309: 7.723005158
B310: MIS13 | C310: 2013 | D310: 72.43966145 | E310: 67.2 | H310: 9.235034011 | I310: 75.91407635 | J310: 62.2 | M310: 9.355079016 | N310: 76.76653537 | O310: 64.8 | R310: 9.85850418 | S310: 72.7199489 | T310: 65 | W310: 12.3758639 | X310: 86.00584461 | Y310: 72 | AB310: 5.872945578
B311: DHS15 | C311: 2015 | D311: 64.52977212 | E311: 61.93229876 | H311: 15.16098757 | I311: 67.67428637 | J311: 64.67496955 | M311: 11.20264168 | N311: 68.45502418 | O311: 65.36604257 | R311: 13.20322992 | S311: 67.24460652 | T311: 67.01827507 | W311: 14.34219573 | X311: 76.10941433 | Y311: 74.12283748 | AB311: 12.46466874
B312: MIS17 | D312: 68.77865434 | E312: 64.22475186 | H312: 9.495201888 | I312: 73.03903972 | J312: 71.73388078 | M312: 7.286014671 | N312: 72.33628007 | O312: 75.3058491 | R312: 6.992495607 | S312: 78.14838509 | T312: 72.28110952 | W312: 5.837448466 | X312: 83.40814183 | Y312: 76.05149207 | AB312: 5.112974866
B318: =CONCATENATE("Rural use of drinking water sources, ",C299,"–",C300) -> Rural use of drinking water sources, 2000–2020 | S318: Data points used for regression

Sheet Sanitation
B4: Summary of trends in use of sanitation facilities by wealth quintile (%)
B5: =IF(ISERROR(INDIRECT(CONCATENATE($B105,"!A2"))),"",INDIRECT(CONCATENATE($B105,"!A2"))) -> Rwanda
B7: =B118 -> National use of sanitation facilities, 2000–2020 | J7: =B218 -> Urban use of sanitation facilities, 2000–2020 | R7: =B318 -> Rural use of sanitation facilities, 2000–2020
B31: =IF(ISERROR(INDIRECT(CONCATENATE($B105,"!A2"))),"",INDIRECT(CONCATENATE($B105,"!A2"))) -> Rwanda | F31: Poorest | J31: Poor | N31: Middle | R31: Rich | V31: Richest
F32: Basic | G32: Limited | H32: Unimproved | I32: Open defecation | J32: Basic | K32: Limited | L32: Unimproved | M32: Open defecation | N32: Basic | O32: Limited | P32: Unimproved | Q32: Open defecation | R32: Basic | S32: Limited | T32: Unimproved | U32: Open defecation | V32: Basic | W32: Limited | X32: Unimproved | Y32: Open defecation
B33: NATIONAL | D33: Estimate | E33: =C99 -> 2000 | F33: =E99 -> 27.05051279 | G33: =F99 -> 7.934060696 | H33: 59.66767441 | I33: 5.347752112 | J33: =J99 -> 40.4700826 | K33: =K99 -> 7.233802354 | L33: 48.52042384 | M33: 3.775691209 | N33: =O99 -> 54.78366786 | O33: =P99 -> 6.630362471 | P33: 37.30357381 | Q33: 1.282395854 | R33: =T99 -> 55.8052676 | S33: =U99 -> 7.294427058 | T33: 34.18240884 | U33: 2.717896504 | V33: =Y99 -> 61.97744093 | W33: =Z99 -> 26.04144424 | X33: 11.33434382 | Y33: 0.6467710091
E34: =C100 -> 2020 | F34: =E100 -> 49.92346205 | G34: 14.64281957 | H34: 29.63774003 | I34: 5.79597835 | J34: =J100 -> 61.60961923 | K34: 11.01237704 | L34: 25.64572435 | M34: 1.732279381 | N34: =O100 -> 70.60798161 | O34: 8.545548879 | P34: 19.78207256 | Q34: 1.064396945 | R34: =T100 -> 76.78661054 | S34: 10.03694371 | T34: 13.17644575 | U34: 0 | V34: =Y100 -> 67.37507049 | W34: 28.3093996 | X34: 4.315529915 | Y34: 0
B36: URBAN | D36: Estimate | E36: =C199 -> 2000 | F36: =E199 -> 35.29214374 | G36: =F199 -> 11.83065686 | H36: 48.55729471 | I36: 4.31990469 | J36: =J199 -> 48.67747044 | K36: =K199 -> 27.87068178 | L36: 21.15546105 | M36: 2.296386728 | N36: =O199 -> 37.15076981 | O36: =P199 -> 51.08885532 | P36: 10.28579829 | Q36: 1.474576589 | R36: =T199 -> 45.86059797 | S36: =U199 -> 51.34878034 | T36: 2.490966296 | U36: 0.2996554008 | V36: =Y199 -> 77.38855698 | W36: =Z199 -> 22.1777132 | X36: 0.4337298223 | Y36: 0
E37: =C200 -> 2020 | F37: =E200 -> 55.39053552 | G37: 18.56805367 | H37: 23.87650313 | I37: 2.164907682 | J37: =J200 -> 57.24014 | K37: 32.7733079 | L37: 9.940193435 | M37: 0.04635866281 | N37: =O200 -> 40.87764539 | O37: 56.21396601 | P37: 2.908388597 | Q37: 0 | R37: =T200 -> 45.95411648 | S37: 51.45349031 | T37: 2.592393207 | U37: 0 | V37: =Y200 -> 76.80229801 | W37: 22.00970537 | X37: 1.187996614 | Y37: 0
B39: RURAL | D39: Estimate | E39: =C299 -> 2000 | F39: =E299 -> 26.1285131 | G39: =F299 -> 7.817794446 | H39: 60.63278733 | I39: 5.420905125 | J39: =J299 -> 40.94952259 | K39: =K299 -> 7.70538147 | L39: 47.18824626 | M39: 4.156849673 | N39: =O299 -> 54.24507103 | O39: =P299 -> 6.684365336 | P39: 37.83463162 | Q39: 1.235932012 | R39: =T299 -> 54.1782097 | S39: =U299 -> 5.854363966 | T39: 37.31819704 | U39: 2.649229289 | V39: =Y299 -> 70.5879694 | W39: =Z299 -> 7.481193402 | X39: 20.72132954 | Y39: 1.209507657
E40: =C300 -> 2020 | F40: =E300 -> 51.78759934 | G40: 15.4951338 | H40: 26.38591984 | I40: 6.331347019 | J40: =J300 -> 62.4369122 | K40: 11.74861624 | L40: 23.63104313 | M40: 2.183428432 | N40: =O300 -> 71.69659669 | O40: 8.83483488 | P40: 18.12842161 | Q40: 1.340146825 | R40: =T300 -> 78.58999115 | S40: 8.492240974 | T40: 12.86501733 | U40: 0.05275054578 | V40: =Y300 -> 84.69202892 | W40: 8.975997656 | X40: 6.331973428 | Y40: 0
A97: NATIONAL | D97: Poorest | I97: Poor | N97: Middle | S97: Rich | X97: Richest
D98: Improved | E98: Basic | F98: Limited | G98: Unimproved | H98: Open defecation | I98: Improved | J98: Basic | K98: Limited | L98: Unimproved | M98: Open defecation | N98: Improved | O98: Basic | P98: Limited | Q98: Unimproved | R98: Open defecation | S98: Improved | T98: Basic | U98: Limited | V98: Unimproved | W98: Open defecation | X98: Improved | Y98: Basic | Z98: Limited | AA98: Unimproved | AB98: Open defecation
A99: Forecast period: | C99: 2000 | D99: =IF((D101+H101)>100,D101*100/(D101+H101),D101) -> 34.98457348 | E99: =D99*AVERAGEIF(E105:E116,">0")/100 -> 27.05051279 | F99: =D99*(100-AVERAGEIF(E105:E116,">0"))/100 -> 7.934060696 | G99: =100-(E99+F99+H99) -> 59.66767441 | H99: =IF((D101+H101)>100,H101*100/(D101+H101),H101) -> 5.347752112 | I99: =IF((I101+M101)>100,I101*100/(I101+M101),I101) -> 47.70388495 | J99: =I99*AVERAGEIF(J105:J116,">0")/100 -> 40.4700826 | K99: =I99*(100-AVERAGEIF(J105:J116,">0"))/100 -> 7.233802354 | L99: =100-(J99+K99+M99) -> 48.52042384 | M99: =IF((I101+M101)>100,M101*100/(I101+M101),M101) -> 3.775691209 | N99: =IF((N101+R101)>100,N101*100/(N101+R101),N101) -> 61.41403033 | O99: =N99*AVERAGEIF(O105:O116,">0")/100 -> 54.78366786 | P99: =N99*(100-AVERAGEIF(O105:O116,">0"))/100 -> 6.630362471 | Q99: =100-(O99+P99+R99) -> 37.30357381 | R99: =IF((N101+R101)>100,R101*100/(N101+R101),R101) -> 1.282395854 | S99: =IF((S101+W101)>100,S101*100/(S101+W101),S101) -> 63.09969466 | T99: =S99*AVERAGEIF(T105:T116,">0")/100 -> 55.8052676 | U99: =S99*(100-AVERAGEIF(T105:T116,">0"))/100 -> 7.294427058 | V99: =100-(T99+U99+W99) -> 34.18240884 | W99: =IF((S101+W101)>100,W101*100/(S101+W101),W101) -> 2.717896504 | X99: =IF((X101+AB101)>100,X101*100/(X101+AB101),X101) -> 88.01888518 | Y99: =X99*AVERAGEIF(Y105:Y116,">0")/100 -> 61.97744093 | Z99: =X99*(100-AVERAGEIF(Y105:Y116,">0"))/100 -> 26.04144424 | AA99: =100-(Y99+Z99+AB99) -> 11.33434382 | AB99: =IF((X101+AB101)>100,AB101*100/(X101+AB101),AB101) -> 0.6467710091
C100: 2020 | D100: =IF((D102+H102)>100,D102*100/(D102+H102),D102) -> 64.56628162 | E100: =D100*AVERAGEIF(E105:E116,">0")/100 -> 49.92346205 | F100: =D100*(100-AVERAGEIF(E105:E116,">0"))/100 -> 14.64281957 | G100: =100-(E100+F100+H100) -> 29.63774003 | H100: =IF((D102+H102)>100,H102*100/(D102+H102),H102) -> 5.79597835 | I100: =IF((I102+M102)>100,I102*100/(I102+M102),I102) -> 72.62199627 | J100: =I100*AVERAGEIF(J105:J116,">0")/100 -> 61.60961923 | K100: =I100*(100-AVERAGEIF(J105:J116,">0"))/100 -> 11.01237704 | L100: =100-(J100+K100+M100) -> 25.64572435 | M100: =IF((I102+M102)>100,M102*100/(I102+M102),M102) -> 1.732279381 | N100: =IF((N102+R102)>100,N102*100/(N102+R102),N102) -> 79.15353049 | O100: =N100*AVERAGEIF(O105:O116,">0")/100 -> 70.60798161 | P100: =N100*(100-AVERAGEIF(O105:O116,">0"))/100 -> 8.545548879 | Q100: =100-(O100+P100+R100) -> 19.78207256 | R100: =IF((N102+R102)>100,R102*100/(N102+R102),R102) -> 1.064396945 | S100: =IF((S102+W102)>100,S102*100/(S102+W102),S102) -> 86.82355425 | T100: =S100*AVERAGEIF(T105:T116,">0")/100 -> 76.78661054 | U100: =S100*(100-AVERAGEIF(T105:T116,">0"))/100 -> 10.03694371 | V100: =100-(T100+U100+W100) -> 13.17644575 | W100: =IF((S102+W102)>100,W102*100/(S102+W102),W102) -> 0 | X100: =IF((X102+AB102)>100,X102*100/(X102+AB102),X102) -> 95.68447008 | Y100: =X100*AVERAGEIF(Y105:Y116,">0")/100 -> 67.37507049 | Z100: =X100*(100-AVERAGEIF(Y105:Y116,">0"))/100 -> 28.3093996 | AA100: =100-(Y100+Z100+AB100) -> 4.315529915 | AB100: =IF((X102+AB102)>100,AB102*100/(X102+AB102),AB102) -> 0
A101: Regression period: | C101: =MinRegYear(C99,C105:C116) -> 2000 | D101: =IF(MAX(C105:C116)-MIN(C105:C116)<5,AVERAGEIF(C105:C116,">0",D105:D116), IF(FORECAST($C101,D$105:D$116,$C$105:$C$116)<0,0, IF(FORECAST($C101,D$105:D$116,$C$105:$C$116)>100,100, FORECAST($C101,D$105:D$116,$C$105:$C$116)))) -> 34.98457348 | H101: =IF(MAX(C105:C116)-MIN(C105:C116)<5,AVERAGEIF(C105:C116,">0",H105:H116), IF(FORECAST($C101,H$105:H$116,$C$105:$C$116)<0,0, IF(FORECAST($C101,H$105:H$116,$C$105:$C$116)>100,100, FORECAST($C101,H$105:H$116,$C$105:$C$116)))) -> 5.347752112 | I101: =IF(MAX(C105:C116)-MIN(C105:C116)<5,AVERAGEIF(C105:C116,">0",I105:I116), IF(FORECAST($C101,I$105:I$116,$C$105:$C$116)<0,0, IF(FORECAST($C101,I$105:I$116,$C$105:$C$116)>100,100, FORECAST($C101,I$105:I$116,$C$105:$C$116)))) -> 47.70388495 | M101: =IF(MAX(C105:C116)-MIN(C105:C116)<5,AVERAGEIF(C105:C116,">0",M105:M116), IF(FORECAST($C101,M$105:M$116,$C$105:$C$116)<0,0, IF(FORECAST($C101,M$105:M$116,$C$105:$C$116)>100,100, FORECAST($C101,M$105:M$116,$C$105:$C$116)))) -> 3.775691209 | N101: =IF(MAX(C105:C116)-MIN(C105:C116)<5,AVERAGEIF(C105:C116,">0",N105:N116), IF(FORECAST($C101,N$105:N$116,$C$105:$C$116)<0,0, IF(FORECAST($C101,N$105:N$116,$C$105:$C$116)>100,100, FORECAST($C101,N$105:N$116,$C$105:$C$116)))) -> 61.41403033 | R101: =IF(MAX(C105:C116)-MIN(C105:C116)<5,AVERAGEIF(C105:C116,">0",R105:R116), IF(FORECAST($C101,R$105:R$116,$C$105:$C$116)<0,0, IF(FORECAST($C101,R$105:R$116,$C$105:$C$116)>100,100, FORECAST($C101,R$105:R$116,$C$105:$C$116)))) -> 1.282395854 | S101: =IF(MAX(C105:C116)-MIN(C105:C116)<5,AVERAGEIF(C105:C116,">0",S105:S116), IF(FORECAST($C101,S$105:S$116,$C$105:$C$116)<0,0, IF(FORECAST($C101,S$105:S$116,$C$105:$C$116)>100,100, FORECAST($C101,S$105:S$116,$C$105:$C$116)))) -> 63.09969466 | W101: =IF(MAX(C105:C116)-MIN(C105:C116)<5,AVERAGEIF(C105:C116,">0",W105:W116), IF(FORECAST($C101,W$105:W$116,$C$105:$C$116)<0,0, IF(FORECAST($C101,W$105:W$116,$C$105:$C$116)>100,100, FORECAST($C101,W$105:W$116,$C$105:$C$116)))) -> 2.717896504 | X101: =IF(MAX(C105:C116)-MIN(C105:C116)<5,AVERAGEIF(C105:C116,">0",X105:X116), IF(FORECAST($C101,X$105:X$116,$C$105:$C$116)<0,0, IF(FORECAST($C101,X$105:X$116,$C$105:$C$116)>100,100, FORECAST($C101,X$105:X$116,$C$105:$C$116)))) -> 88.01888518 | AB101: =IF(MAX(C105:C116)-MIN(C105:C116)<5,AVERAGEIF(C105:C116,">0",AB105:AB116), IF(FORECAST($C101,AB$105:AB$116,$C$105:$C$116)<0,0, IF(FORECAST($C101,AB$105:AB$116,$C$105:$C$116)>100,100, FORECAST($C101,AB$105:AB$116,$C$105:$C$116)))) -> 0.6467710091
C102: =MaxRegYear(C100,C105:C116) -> 2019 | D102: =IF(MAX(C105:C116)-MIN(C105:C116)<5,AVERAGEIF(C105:C116,">0",D105:D116), IF(FORECAST($C102,D$105:D$116,$C$105:$C$116)<0,0, IF(FORECAST($C102,D$105:D$116,$C$105:$C$116)>100,100, FORECAST($C102,D$105:D$116,$C$105:$C$116)))) -> 64.56628162 | H102: =IF(MAX(C105:C116)-MIN(C105:C116)<5,AVERAGEIF(C105:C116,">0",H105:H116), IF(FORECAST($C102,H$105:H$116,$C$105:$C$116)<0,0, IF(FORECAST($C102,H$105:H$116,$C$105:$C$116)>100,100, FORECAST($C102,H$105:H$116,$C$105:$C$116)))) -> 5.79597835 | I102: =IF(MAX(C105:C116)-MIN(C105:C116)<5,AVERAGEIF(C105:C116,">0",I105:I116), IF(FORECAST($C102,I$105:I$116,$C$105:$C$116)<0,0, IF(FORECAST($C102,I$105:I$116,$C$105:$C$116)>100,100, FORECAST($C102,I$105:I$116,$C$105:$C$116)))) -> 72.62199627 | M102: =IF(MAX(C105:C116)-MIN(C105:C116)<5,AVERAGEIF(C105:C116,">0",M105:M116), IF(FORECAST($C102,M$105:M$116,$C$105:$C$116)<0,0, IF(FORECAST($C102,M$105:M$116,$C$105:$C$116)>100,100, FORECAST($C102,M$105:M$116,$C$105:$C$116)))) -> 1.732279381 | N102: =IF(MAX(C105:C116)-MIN(C105:C116)<5,AVERAGEIF(C105:C116,">0",N105:N116), IF(FORECAST($C102,N$105:N$116,$C$105:$C$116)<0,0, IF(FORECAST($C102,N$105:N$116,$C$105:$C$116)>100,100, FORECAST($C102,N$105:N$116,$C$105:$C$116)))) -> 79.15353049 | R102: =IF(MAX(C105:C116)-MIN(C105:C116)<5,AVERAGEIF(C105:C116,">0",R105:R116), IF(FORECAST($C102,R$105:R$116,$C$105:$C$116)<0,0, IF(FORECAST($C102,R$105:R$116,$C$105:$C$116)>100,100, FORECAST($C102,R$105:R$116,$C$105:$C$116)))) -> 1.064396945 | S102: =IF(MAX(C105:C116)-MIN(C105:C116)<5,AVERAGEIF(C105:C116,">0",S105:S116), IF(FORECAST($C102,S$105:S$116,$C$105:$C$116)<0,0, IF(FORECAST($C102,S$105:S$116,$C$105:$C$116)>100,100, FORECAST($C102,S$105:S$116,$C$105:$C$116)))) -> 86.82355425 | W102: =IF(MAX(C105:C116)-MIN(C105:C116)<5,AVERAGEIF(C105:C116,">0",W105:W116), IF(FORECAST($C102,W$105:W$116,$C$105:$C$116)<0,0, IF(FORECAST($C102,W$105:W$116,$C$105:$C$116)>100,100, FORECAST($C102,W$105:W$116,$C$105:$C$116)))) -> 0 | X102: =IF(MAX(C105:C116)-MIN(C105:C116)<5,AVERAGEIF(C105:C116,">0",X105:X116), IF(FORECAST($C102,X$105:X$116,$C$105:$C$116)<0,0, IF(FORECAST($C102,X$105:X$116,$C$105:$C$116)>100,100, FORECAST($C102,X$105:X$116,$C$105:$C$116)))) -> 95.68447008 | AB102: =IF(MAX(C105:C116)-MIN(C105:C116)<5,AVERAGEIF(C105:C116,">0",AB105:AB116), IF(FORECAST($C102,AB$105:AB$116,$C$105:$C$116)<0,0, IF(FORECAST($C102,AB$105:AB$116,$C$105:$C$116)>100,100, FORECAST($C102,AB$105:AB$116,$C$105:$C$116)))) -> 0
B104: Survey | C104: Year | D104: Improved | E104: Not shared | H104: Open defecation | I104: Improved | J104: Not shared | M104: Open defecation | N104: Improved | O104: Not shared | R104: Open defecation | S104: Improved | T104: Not shared | W104: Open defecation | X104: Improved | Y104: Not shared | AB104: Open defecation
B105: MICS00 | C105: 2000 | D105: =IF(ISERROR(INDIRECT(CONCATENATE($B105,"!C122"))),"",INDIRECT(CONCATENATE($B105,"!C122"))) -> 34.61234142 | E105: =IF(ISERROR(INDIRECT(CONCATENATE($B105,"!C129"))),"",INDIRECT(CONCATENATE($B105,"!C129"))) -> N/A | H105: =IF(ISERROR(INDIRECT(CONCATENATE($B105,"!C127"))),"",INDIRECT(CONCATENATE($B105,"!C127"))) -> 5.851338081 | I105: =IF(ISERROR(INDIRECT(CONCATENATE($B105,"!D122"))),"",INDIRECT(CONCATENATE($B105,"!D122"))) -> 47.52427766 | J105: =IF(ISERROR(INDIRECT(CONCATENATE($B105,"!D129"))),"",INDIRECT(CONCATENATE($B105,"!D129"))) -> N/A | M105: =IF(ISERROR(INDIRECT(CONCATENATE($B105,"!D127"))),"",INDIRECT(CONCATENATE($B105,"!D127"))) -> 4.51759875 | N105: =IF(ISERROR(INDIRECT(CONCATENATE($B105,"!E122"))),"",INDIRECT(CONCATENATE($B105,"!E122"))) -> 62.14627863 | O105: =IF(ISERROR(INDIRECT(CONCATENATE($B105,"!E129"))),"",INDIRECT(CONCATENATE($B105,"!E129"))) -> N/A | R105: =IF(ISERROR(INDIRECT(CONCATENATE($B105,"!E127"))),"",INDIRECT(CONCATENATE($B105,"!E127"))) -> 1.412602337 | S105: =IF(ISERROR(INDIRECT(CONCATENATE($B105,"!F122"))),"",INDIRECT(CONCATENATE($B105,"!F122"))) -> 63.12361966 | T105: =IF(ISERROR(INDIRECT(CONCATENATE($B105,"!F129"))),"",INDIRECT(CONCATENATE($B105,"!F129"))) -> N/A | W105: =IF(ISERROR(INDIRECT(CONCATENATE($B105,"!F127"))),"",INDIRECT(CONCATENATE($B105,"!F127"))) -> 2.957187294 | X105: =IF(ISERROR(INDIRECT(CONCATENATE($B105,"!G122"))),"",INDIRECT(CONCATENATE($B105,"!G122"))) -> 87.97829545 | Y105: =IF(ISERROR(INDIRECT(CONCATENATE($B105,"!G129"))),"",INDIRECT(CONCATENATE($B105,"!G129"))) -> N/A | AB105: =IF(ISERROR(INDIRECT(CONCATENATE($B105,"!G2127"))),"",INDIRECT(CONCATENATE($B105,"!G127"))) -> 0.7427304452
B106: DHS00 | D106: 58.16699978 | E106: N/A | H106: 4.821680541 | I106: 65.91838773 | J106: N/A | M106: 4.471272555 | N106: 78.59346114 | O106: N/A | R106: 1.129505305 | S106: 81.8239289 | T106: N/A | W106: 1.667309093 | X106: 95.55773715 | Y106: N/A | AB106: 0.9270876688
B107: DHS05 | D107: 63.26825015 | E107: N/A | H107: 8.841613942 | I107: 70.07573818 | J107: N/A | M107: 5.235777327 | N107: 81.24427982 | O107: N/A | R107: 1.823096932 | S107: 85.78667921 | T107: N/A | W107: 2.473044605 | X107: 96.49854048 | Y107: N/A | AB107: 1.400235804
B108: DHS08 | D108: 82.56561483 | E108: N/A | H108: 4.63645138 | I108: 96.05127289 | J108: N/A | M108: 0 | N108: 89.25734668 | O108: N/A | R108: 1.285887866 | S108: 91.53191732 | T108: N/A | W108: 0.9540119417 | X108: 95.93759665 | Y108: N/A | AB108: 0.411155908
B109: DHS10 | C109: 2010 | D109: 57.69374493 | E109: 74.5660469 | H109: 3.71151408 | I109: 67.43157065 | J109: 82.92919815 | M109: 0.9119616088 | N109: 76.29696355 | O109: 88.11075923 | R109: 0.5964829837 | S109: 81.81940989 | T109: 88.32670182 | W109: 0.3277403569 | X109: 93.98619002 | Y109: 76.22941165 | AB109: 0.009085401332
B110: MIS13 | C110: 2013 | D110: 47.28864089 | E110: 73.56779639 | H110: 5.041382485 | I110: 55.49570594 | J110: 83.03620322 | M110: 1.854530281 | N110: 62.48618028 | O110: 87.10394562 | R110: 1.331322464 | S110: 69.75051339 | T110: 87.50637739 | W110: 0.8733998861 | X110: 90.56623758 | Y110: 70.64859981 | AB110: 0.06481486483
B111: DHS15 | C111: 2015 | D111: 52.38514367 | E111: 77.15409065 | H111: 9.199748694 | I111: 64.27245035 | J111: 84.09146361 | M111: 3.161205264 | N111: 71.91335434 | O111: 88.15155477 | R111: 1.60648694 | S111: 78.97112967 | T111: 87.92043165 | W111: 0.769153766 | X111: 93.04596575 | Y111: 68.92842355 | AB111: 0.2073809775
B112: MIS17 | C112: 2017 | D112: 68.57425689 | E112: 83.99710336 | H112: 4.232274225 | I112: 75.92679504 | J112: 89.28725879 | M112: 2.518020641 | N112: 85.57855955 | O112: 93.44906459 | R112: 0.8340350722 | S112: 90.50813106 | T112: 90.00584029 | W112: 0 | X112: 96.70758814 | Y112: 65.8487612 | AB112: 0.02464505794
B118: =CONCATENATE("National use of sanitation facilities, ",C99,"–",C100) -> National use of sanitation facilities, 2000–2020 | S118: Data points used for regression
A197: URBAN | D197: Poorest | I197: Poor | N197: Middle | S197: Rich | X197: Richest
D198: Improved | E198: Basic | F198: Limited | G198: Unimproved | H198: Open defecation | I198: Improved | J198: Basic | K198: Limited | L198: Unimproved | M198: Open defecation | N198: Improved | O198: Basic | P198: Limited | Q198: Unimproved | R198: Open defecation | S198: Improved | T198: Basic | U198: Limited | V198: Unimproved | W198: Open defecation | X198: Improved | Y198: Basic | Z198: Limited | AA198: Unimproved | AB198: Open defecation
A199: Forecast period: | C199: =MinBase(C205:C216) -> 2000 | D199: =IF((D201+H201)>100,D201*100/(D201+H201),D201) -> 47.1228006 | E199: =D199*AVERAGEIF(E205:E216,">0")/100 -> 35.29214374 | F199: =D199*(100-AVERAGEIF(E205:E216,">0"))/100 -> 11.83065686 | G199: =100-(E199+F199+H199) -> 48.55729471 | H199: =IF((D201+H201)>100,H201*100/(D201+H201),H201) -> 4.31990469 | I199: =IF((I201+M201)>100,I201*100/(I201+M201),I201) -> 76.54815222 | J199: =I199*AVERAGEIF(J205:J216,">0")/100 -> 48.67747044 | K199: =I199*(100-AVERAGEIF(J205:J216,">0"))/100 -> 27.87068178 | L199: =100-(J199+K199+M199) -> 21.15546105 | M199: =IF((I201+M201)>100,M201*100/(I201+M201),M201) -> 2.296386728 | N199: =IF((N201+R201)>100,N201*100/(N201+R201),N201) -> 88.23962512 | O199: =N199*AVERAGEIF(O205:O216,">0")/100 -> 37.15076981 | P199: =N199*(100-AVERAGEIF(O205:O216,">0"))/100 -> 51.08885532 | Q199: =100-(O199+P199+R199) -> 10.28579829 | R199: =IF((N201+R201)>100,R201*100/(N201+R201),R201) -> 1.474576589 | S199: =IF((S201+W201)>100,S201*100/(S201+W201),S201) -> 97.2093783 | T199: =S199*AVERAGEIF(T205:T216,">0")/100 -> 45.86059797 | U199: =S199*(100-AVERAGEIF(T205:T216,">0"))/100 -> 51.34878034 | V199: =100-(T199+U199+W199) -> 2.490966296 | W199: =IF((S201+W201)>100,W201*100/(S201+W201),W201) -> 0.2996554008 | X199: =IF((X201+AB201)>100,X201*100/(X201+AB201),X201) -> 99.56627018 | Y199: =X199*AVERAGEIF(Y205:Y216,">0")/100 -> 77.38855698 | Z199: =X199*(100-AVERAGEIF(Y205:Y216,">0"))/100 -> 22.1777132 | AA199: =100-(Y199+Z199+AB199) -> 0.4337298223 | AB199: =IF((X201+AB201)>100,AB201*100/(X201+AB201),AB201) -> 0
C200: =MaxTarget(C205:C216) -> 2020 | D200: =IF((D202+H202)>100,D202*100/(D202+H202),D202) -> 73.95858919 | E200: =D200*AVERAGEIF(E205:E216,">0")/100 -> 55.39053552 | F200: =D200*(100-AVERAGEIF(E205:E216,">0"))/100 -> 18.56805367 | G200: =100-(E200+F200+H200) -> 23.87650313 | H200: =IF((D202+H202)>100,H202*100/(D202+H202),H202) -> 2.164907682 | I200: =IF((I202+M202)>100,I202*100/(I202+M202),I202) -> 90.0134479 | J200: =I200*AVERAGEIF(J205:J216,">0")/100 -> 57.24014 | K200: =I200*(100-AVERAGEIF(J205:J216,">0"))/100 -> 32.7733079 | L200: =100-(J200+K200+M200) -> 9.940193435 | M200: =IF((I202+M202)>100,M202*100/(I202+M202),M202) -> 0.04635866281 | N200: =IF((N202+R202)>100,N202*100/(N202+R202),N202) -> 97.0916114 | O200: =N200*AVERAGEIF(O205:O216,">0")/100 -> 40.87764539 | P200: =N200*(100-AVERAGEIF(O205:O216,">0"))/100 -> 56.21396601 | Q200: =100-(O200+P200+R200) -> 2.908388597 | R200: =IF((N202+R202)>100,R202*100/(N202+R202),R202) -> 0 | S200: =IF((S202+W202)>100,S202*100/(S202+W202),S202) -> 97.40760679 | T200: =S200*AVERAGEIF(T205:T216,">0")/100 -> 45.95411648 | U200: =S200*(100-AVERAGEIF(T205:T216,">0"))/100 -> 51.45349031 | V200: =100-(T200+U200+W200) -> 2.592393207 | W200: =IF((S202+W202)>100,W202*100/(S202+W202),W202) -> 0 | X200: =IF((X202+AB202)>100,X202*100/(X202+AB202),X202) -> 98.81200339 | Y200: =X200*AVERAGEIF(Y205:Y216,">0")/100 -> 76.80229801 | Z200: =X200*(100-AVERAGEIF(Y205:Y216,">0"))/100 -> 22.00970537 | AA200: =100-(Y200+Z200+AB200) -> 1.187996614 | AB200: =IF((X202+AB202)>100,AB202*100/(X202+AB202),AB202) -> 0
A201: Regression period: | C201: =MinRegYear(C199,C205:C216) -> 2000 | D201: =IF(MAX(C205:C216)-MIN(C205:C216)<5,AVERAGEIF(C205:C216,">0",D205:D216), IF(FORECAST($C201,D$205:D$216,$C$205:$C$216)<0,0, IF(FORECAST($C201,D$205:D$216,$C$205:$C$216)>100,100, FORECAST($C201,D$205:D$216,$C$205:$C$216)))) -> 47.1228006 | H201: =IF(MAX(C205:C216)-MIN(C205:C216)<5,AVERAGEIF(C205:C216,">0",H205:H216), IF(FORECAST($C201,H$205:H$216,$C$205:$C$216)<0,0, IF(FORECAST($C201,H$205:H$216,$C$205:$C$216)>100,100, FORECAST($C201,H$205:H$216,$C$205:$C$216)))) -> 4.31990469 | I201: =IF(MAX(C205:C216)-MIN(C205:C216)<5,AVERAGEIF(C205:C216,">0",I205:I216), IF(FORECAST($C201,I$205:I$216,$C$205:$C$216)<0,0, IF(FORECAST($C201,I$205:I$216,$C$205:$C$216)>100,100, FORECAST($C201,I$205:I$216,$C$205:$C$216)))) -> 76.54815222 | M201: =IF(MAX(C205:C216)-MIN(C205:C216)<5,AVERAGEIF(C205:C216,">0",M205:M216), IF(FORECAST($C201,M$205:M$216,$C$205:$C$216)<0,0, IF(FORECAST($C201,M$205:M$216,$C$205:$C$216)>100,100, FORECAST($C201,M$205:M$216,$C$205:$C$216)))) -> 2.296386728 | N201: =IF(MAX(C205:C216)-MIN(C205:C216)<5,AVERAGEIF(C205:C216,">0",N205:N216), IF(FORECAST($C201,N$205:N$216,$C$205:$C$216)<0,0, IF(FORECAST($C201,N$205:N$216,$C$205:$C$216)>100,100, FORECAST($C201,N$205:N$216,$C$205:$C$216)))) -> 88.23962512 | R201: =IF(MAX(C205:C216)-MIN(C205:C216)<5,AVERAGEIF(C205:C216,">0",R205:R216), IF(FORECAST($C201,R$205:R$216,$C$205:$C$216)<0,0, IF(FORECAST($C201,R$205:R$216,$C$205:$C$216)>100,100, FORECAST($C201,R$205:R$216,$C$205:$C$216)))) -> 1.474576589 | S201: =IF(MAX(C205:C216)-MIN(C205:C216)<5,AVERAGEIF(C205:C216,">0",S205:S216), IF(FORECAST($C201,S$205:S$216,$C$205:$C$216)<0,0, IF(FORECAST($C201,S$205:S$216,$C$205:$C$216)>100,100, FORECAST($C201,S$205:S$216,$C$205:$C$216)))) -> 97.2093783 | W201: =IF(MAX(C205:C216)-MIN(C205:C216)<5,AVERAGEIF(C205:C216,">0",W205:W216), IF(FORECAST($C201,W$205:W$216,$C$205:$C$216)<0,0, IF(FORECAST($C201,W$205:W$216,$C$205:$C$216)>100,100, FORECAST($C201,W$205:W$216,$C$205:$C$216)))) -> 0.2996554008 | X201: =IF(MAX(C205:C216)-MIN(C205:C216)<5,AVERAGEIF(C205:C216,">0",X205:X216), IF(FORECAST($C201,X$205:X$216,$C$205:$C$216)<0,0, IF(FORECAST($C201,X$205:X$216,$C$205:$C$216)>100,100, FORECAST($C201,X$205:X$216,$C$205:$C$216)))) -> 99.56627018 | AB201: =IF(MAX(C205:C216)-MIN(C205:C216)<5,AVERAGEIF(C205:C216,">0",AB205:AB216), IF(FORECAST($C201,AB$205:AB$216,$C$205:$C$216)<0,0, IF(FORECAST($C201,AB$205:AB$216,$C$205:$C$216)>100,100, FORECAST($C201,AB$205:AB$216,$C$205:$C$216)))) -> 0
C202: =MaxRegYear(C200,C205:C216) -> 2019 | D202: =IF(MAX(C205:C216)-MIN(C205:C216)<5,AVERAGEIF(C205:C216,">0",D205:D216), IF(FORECAST($C202,D$205:D$216,$C$205:$C$216)<0,0, IF(FORECAST($C202,D$205:D$216,$C$205:$C$216)>100,100, FORECAST($C202,D$205:D$216,$C$205:$C$216)))) -> 73.95858919 | H202: =IF(MAX(C205:C216)-MIN(C205:C216)<5,AVERAGEIF(C205:C216,">0",H205:H216), IF(FORECAST($C202,H$205:H$216,$C$205:$C$216)<0,0, IF(FORECAST($C202,H$205:H$216,$C$205:$C$216)>100,100, FORECAST($C202,H$205:H$216,$C$205:$C$216)))) -> 2.164907682 | I202: =IF(MAX(C205:C216)-MIN(C205:C216)<5,AVERAGEIF(C205:C216,">0",I205:I216), IF(FORECAST($C202,I$205:I$216,$C$205:$C$216)<0,0, IF(FORECAST($C202,I$205:I$216,$C$205:$C$216)>100,100, FORECAST($C202,I$205:I$216,$C$205:$C$216)))) -> 90.0134479 | M202: =IF(MAX(C205:C216)-MIN(C205:C216)<5,AVERAGEIF(C205:C216,">0",M205:M216), IF(FORECAST($C202,M$205:M$216,$C$205:$C$216)<0,0, IF(FORECAST($C202,M$205:M$216,$C$205:$C$216)>100,100, FORECAST($C202,M$205:M$216,$C$205:$C$216)))) -> 0.04635866281 | N202: =IF(MAX(C205:C216)-MIN(C205:C216)<5,AVERAGEIF(C205:C216,">0",N205:N216), IF(FORECAST($C202,N$205:N$216,$C$205:$C$216)<0,0, IF(FORECAST($C202,N$205:N$216,$C$205:$C$216)>100,100, FORECAST($C202,N$205:N$216,$C$205:$C$216)))) -> 97.0916114 | R202: =IF(MAX(C205:C216)-MIN(C205:C216)<5,AVERAGEIF(C205:C216,">0",R205:R216), IF(FORECAST($C202,R$205:R$216,$C$205:$C$216)<0,0, IF(FORECAST($C202,R$205:R$216,$C$205:$C$216)>100,100, FORECAST($C202,R$205:R$216,$C$205:$C$216)))) -> 0 | S202: =IF(MAX(C205:C216)-MIN(C205:C216)<5,AVERAGEIF(C205:C216,">0",S205:S216), IF(FORECAST($C202,S$205:S$216,$C$205:$C$216)<0,0, IF(FORECAST($C202,S$205:S$216,$C$205:$C$216)>100,100, FORECAST($C202,S$205:S$216,$C$205:$C$216)))) -> 97.40760679 | W202: =IF(MAX(C205:C216)-MIN(C205:C216)<5,AVERAGEIF(C205:C216,">0",W205:W216), IF(FORECAST($C202,W$205:W$216,$C$205:$C$216)<0,0, IF(FORECAST($C202,W$205:W$216,$C$205:$C$216)>100,100, FORECAST($C202,W$205:W$216,$C$205:$C$216)))) -> 0 | X202: =IF(MAX(C205:C216)-MIN(C205:C216)<5,AVERAGEIF(C205:C216,">0",X205:X216), IF(FORECAST($C202,X$205:X$216,$C$205:$C$216)<0,0, IF(FORECAST($C202,X$205:X$216,$C$205:$C$216)>100,100, FORECAST($C202,X$205:X$216,$C$205:$C$216)))) -> 98.81200339 | AB202: =IF(MAX(C205:C216)-MIN(C205:C216)<5,AVERAGEIF(C205:C216,">0",AB205:AB216), IF(FORECAST($C202,AB$205:AB$216,$C$205:$C$216)<0,0, IF(FORECAST($C202,AB$205:AB$216,$C$205:$C$216)>100,100, FORECAST($C202,AB$205:AB$216,$C$205:$C$216)))) -> 0
B204: Survey | C204: Year | D204: Improved | E204: Not shared | H204: Open defecation | I204: Improved | J204: Not shared | M204: Open defecation | N204: Improved | O204: Not shared | R204: Open defecation | S204: Improved | T204: Not shared | W204: Open defecation | X204: Improved | Y204: Not shared | AB204: Open defecation
B205: MICS00 | C205: 2000 | D205: =IF(ISERROR(INDIRECT(CONCATENATE($B205,"!H122"))),"",INDIRECT(CONCATENATE($B205,"!H122"))) -> 48.01835032 | E205: =IF(ISERROR(INDIRECT(CONCATENATE($B205,"!H129"))),"",INDIRECT(CONCATENATE($B205,"!H129"))) -> N/A | H205: =IF(ISERROR(INDIRECT(CONCATENATE($B205,"!H127"))),"",INDIRECT(CONCATENATE($B205,"!H127"))) -> 4.686131015 | I205: =IF(ISERROR(INDIRECT(CONCATENATE($B205,"!I122"))),"",INDIRECT(CONCATENATE($B205,"!I122"))) -> 78.10853841 | J205: =IF(ISERROR(INDIRECT(CONCATENATE($B205,"!I129"))),"",INDIRECT(CONCATENATE($B205,"!I129"))) -> N/A | M205: =IF(ISERROR(INDIRECT(CONCATENATE($B205,"!I127"))),"",INDIRECT(CONCATENATE($B205,"!I127"))) -> 2.646482652 | N205: =IF(ISERROR(INDIRECT(CONCATENATE($B205,"!J122"))),"",INDIRECT(CONCATENATE($B205,"!J122"))) -> 87.92443197 | O205: =IF(ISERROR(INDIRECT(CONCATENATE($B205,"!J129"))),"",INDIRECT(CONCATENATE($B205,"!J129"))) -> N/A | R205: =IF(ISERROR(INDIRECT(CONCATENATE($B205,"!J127"))),"",INDIRECT(CONCATENATE($B205,"!J127"))) -> 1.661381613 | S205: =IF(ISERROR(INDIRECT(CONCATENATE($B205,"!K122"))),"",INDIRECT(CONCATENATE($B205,"!K122"))) -> 97.08274428 | T205: =IF(ISERROR(INDIRECT(CONCATENATE($B205,"!K129"))),"",INDIRECT(CONCATENATE($B205,"!K129"))) -> N/A | W205: =IF(ISERROR(INDIRECT(CONCATENATE($B205,"!K127"))),"",INDIRECT(CONCATENATE($B205,"!K127"))) -> 0.3406044785 | X205: =IF(ISERROR(INDIRECT(CONCATENATE($B205,"!L122"))),"",INDIRECT(CONCATENATE($B205,"!L122"))) -> 99.70408152 | Y205: =IF(ISERROR(INDIRECT(CONCATENATE($B205,"!L129"))),"",INDIRECT(CONCATENATE($B205,"!L129"))) -> N/A | AB205: =IF(ISERROR(INDIRECT(CONCATENATE($B205,"!L2127"))),"",INDIRECT(CONCATENATE($B205,"!L127"))) -> 0
B206: DHS00 | D206: 68.01628122 | E206: N/A | H206: 3.13727351 | I206: 84.95634227 | J206: N/A | M206: 1.079053395 | N206: 96.31084608 | O206: N/A | R206: 1.028931371 | S206: 99.23155568 | T206: N/A | W206: 0.246051975 | X206: 99.9532134 | Y206: N/A | AB206: 0.04678659728
B207: DHS05 | D207: 69.6229622 | E207: N/A | H207: 8.841613942 | I207: 86.43816609 | J207: N/A | M207: 2.355590695 | N207: 95.61031861 | O207: N/A | R207: 2.202043637 | S207: 99.34258257 | T207: N/A | W207: 0.3217730219 | X207: 100 | Y207: N/A | AB207: 0
B208: DHS08 | D208: 85.98218304 | E208: N/A | H208: 4.9519592 | I208: 92.10589353 | J208: N/A | M208: 1.082601054 | N208: 96.83733758 | O208: N/A | R208: 0.4226633365 | S208: 99.06468229 | T208: N/A | W208: 0 | X208: 100 | Y208: N/A | AB208: 0
B209: DHS10 | C209: 2010 | D209: 66.00058097 | E209: 78.30456588 | H209: 3.439067754 | I209: 82.97498025 | J209: 68.8806553 | M209: 0.3025039487 | N209: 94.97896575 | O209: 52.8036215 | R209: 0 | S209: 97.49751012 | T209: 47.82122957 | W209: 0 | X209: 98.91583923 | Y209: 76.8696959 | AB209: 0
B210: MIS13 | C210: 2013 | D210: 57.10732566 | E210: 83.52940904 | H210: 0.2991707414 | I210: 83.25002247 | J210: 74.79775978 | M210: 0 | N210: 91.70493907 | O210: 37.03140307 | R210: 0.1878588838 | S210: 98.28059512 | T210: 49.15315734 | W210: 0 | X210: 98.76859333 | Y210: 76.78758498 | AB210: 0
B211: DHS15 | C211: 2015 | D211: 60.8125009 | E211: 68.20315795 | H211: 3.711390066 | I211: 81.24841378 | J211: 55.51426393 | M211: 1.891822291 | N211: 95.80839191 | O211: 43.81498486 | R211: 0.03007245554 | S211: 95.92778642 | T211: 47.94866524 | W211: 0 | X211: 99.24966858 | Y211: 74.33695884 | AB211: 0
B212: MIS17 | C212: 2017 | D212: 81.35779107 | E212: 69.5388116 | H212: 3.225614639 | I212: 96.1372937 | J212: 55.16993605 | M212: 0.1278856107 | N212: 96.40556772 | O212: 34.7585474 | R212: 0 | S212: 97.83207487 | T212: 43.78548097 | W212: 0 | X212: 99.00976435 | Y212: 82.90846595 | AB212: 0
B218: =CONCATENATE("Urban use of sanitation facilities, ",C199,"–",C200) -> Urban use of sanitation facilities, 2000–2020 | S218: Data points used for regression
A297: RURAL | D297: Poorest | I297: Poor | N297: Middle | S297: Rich | X297: Richest
D298: Improved | E298: Basic | F298: Limited | G298: Unimproved | H298: Open defecation | I298: Improved | J298: Basic | K298: Limited | L298: Unimproved | M298: Open defecation | N298: Improved | O298: Basic | P298: Limited | Q298: Unimproved | R298: Open defecation | S298: Improved | T298: Basic | U298: Limited | V298: Unimproved | W298: Open defecation | X298: Improved | Y298: Basic | Z298: Limited | AA298: Unimproved | AB298: Open defecation
A299: Forecast period: | C299: =MinBase(C305:C316) -> 2000 | D299: =IF((D301+H301)>100,D301*100/(D301+H301),D301) -> 33.94630754 | E299: =D299*AVERAGEIF(E305:E316,">0")/100 -> 26.1285131 | F299: =D299*(100-AVERAGEIF(E305:E316,">0"))/100 -> 7.817794446 | G299: =100-(E299+F299+H299) -> 60.63278733 | H299: =IF((D301+H301)>100,H301*100/(D301+H301),H301) -> 5.420905125 | I299: =IF((I301+M301)>100,I301*100/(I301+M301),I301) -> 48.65490407 | J299: =I299*AVERAGEIF(J305:J316,">0")/100 -> 40.94952259 | K299: =I299*(100-AVERAGEIF(J305:J316,">0"))/100 -> 7.70538147 | L299: =100-(J299+K299+M299) -> 47.18824626 | M299: =IF((I301+M301)>100,M301*100/(I301+M301),M301) -> 4.156849673 | N299: =IF((N301+R301)>100,N301*100/(N301+R301),N301) -> 60.92943636 | O299: =N299*AVERAGEIF(O305:O316,">0")/100 -> 54.24507103 | P299: =N299*(100-AVERAGEIF(O305:O316,">0"))/100 -> 6.684365336 | Q299: =100-(O299+P299+R299) -> 37.83463162 | R299: =IF((N301+R301)>100,R301*100/(N301+R301),R301) -> 1.235932012 | S299: =IF((S301+W301)>100,S301*100/(S301+W301),S301) -> 60.03257367 | T299: =S299*AVERAGEIF(T305:T316,">0")/100 -> 54.1782097 | U299: =S299*(100-AVERAGEIF(T305:T316,">0"))/100 -> 5.854363966 | V299: =100-(T299+U299+W299) -> 37.31819704 | W299: =IF((S301+W301)>100,W301*100/(S301+W301),W301) -> 2.649229289 | X299: =IF((X301+AB301)>100,X301*100/(X301+AB301),X301) -> 78.06916281 | Y299: =X299*AVERAGEIF(Y305:Y316,">0")/100 -> 70.5879694 | Z299: =X299*(100-AVERAGEIF(Y305:Y316,">0"))/100 -> 7.481193402 | AA299: =100-(Y299+Z299+AB299) -> 20.72132954 | AB299: =IF((X301+AB301)>100,AB301*100/(X301+AB301),AB301) -> 1.209507657
C300: =MaxTarget(C305:C316) -> 2020 | D300: =IF((D302+H302)>100,D302*100/(D302+H302),D302) -> 67.28273314 | E300: =D300*AVERAGEIF(E305:E316,">0")/100 -> 51.78759934 | F300: =D300*(100-AVERAGEIF(E305:E316,">0"))/100 -> 15.4951338 | G300: =100-(E300+F300+H300) -> 26.38591984 | H300: =IF((D302+H302)>100,H302*100/(D302+H302),H302) -> 6.331347019 | I300: =IF((I302+M302)>100,I302*100/(I302+M302),I302) -> 74.18552844 | J300: =I300*AVERAGEIF(J305:J316,">0")/100 -> 62.4369122 | K300: =I300*(100-AVERAGEIF(J305:J316,">0"))/100 -> 11.74861624 | L300: =100-(J300+K300+M300) -> 23.63104313 | M300: =IF((I302+M302)>100,M302*100/(I302+M302),M302) -> 2.183428432 | N300: =IF((N302+R302)>100,N302*100/(N302+R302),N302) -> 80.53143157 | O300: =N300*AVERAGEIF(O305:O316,">0")/100 -> 71.69659669 | P300: =N300*(100-AVERAGEIF(O305:O316,">0"))/100 -> 8.83483488 | Q300: =100-(O300+P300+R300) -> 18.12842161 | R300: =IF((N302+R302)>100,R302*100/(N302+R302),R302) -> 1.340146825 | S300: =IF((S302+W302)>100,S302*100/(S302+W302),S302) -> 87.08223213 | T300: =S300*AVERAGEIF(T305:T316,">0")/100 -> 78.58999115 | U300: =S300*(100-AVERAGEIF(T305:T316,">0"))/100 -> 8.492240974 | V300: =100-(T300+U300+W300) -> 12.86501733 | W300: =IF((S302+W302)>100,W302*100/(S302+W302),W302) -> 0.05275054578 | X300: =IF((X302+AB302)>100,X302*100/(X302+AB302),X302) -> 93.66802657 | Y300: =X300*AVERAGEIF(Y305:Y316,">0")/100 -> 84.69202892 | Z300: =X300*(100-AVERAGEIF(Y305:Y316,">0"))/100 -> 8.975997656 | AA300: =100-(Y300+Z300+AB300) -> 6.331973428 | AB300: =IF((X302+AB302)>100,AB302*100/(X302+AB302),AB302) -> 0
A301: Regression period: | C301: =MinRegYear(C299,C305:C316) -> 2000 | D301: =IF(MAX(C305:C316)-MIN(C305:C316)<5,AVERAGEIF(C305:C316,">0",D305:D316), IF(FORECAST($C301,D$305:D$316,$C$305:$C$316)<0,0, IF(FORECAST($C301,D$305:D$316,$C$305:$C$316)>100,100, FORECAST($C301,D$305:D$316,$C$305:$C$316)))) -> 33.94630754 | H301: =IF(MAX(C305:C316)-MIN(C305:C316)<5,AVERAGEIF(C305:C316,">0",H305:H316), IF(FORECAST($C301,H$305:H$316,$C$305:$C$316)<0,0, IF(FORECAST($C301,H$305:H$316,$C$305:$C$316)>100,100, FORECAST($C301,H$305:H$316,$C$305:$C$316)))) -> 5.420905125 | I301: =IF(MAX(C305:C316)-MIN(C305:C316)<5,AVERAGEIF(C305:C316,">0",I305:I316), IF(FORECAST($C301,I$305:I$316,$C$305:$C$316)<0,0, IF(FORECAST($C301,I$305:I$316,$C$305:$C$316)>100,100, FORECAST($C301,I$305:I$316,$C$305:$C$316)))) -> 48.65490407 | M301: =IF(MAX(C305:C316)-MIN(C305:C316)<5,AVERAGEIF(C305:C316,">0",M305:M316), IF(FORECAST($C301,M$305:M$316,$C$305:$C$316)<0,0, IF(FORECAST($C301,M$305:M$316,$C$305:$C$316)>100,100, FORECAST($C301,M$305:M$316,$C$305:$C$316)))) -> 4.156849673 | N301: =IF(MAX(C305:C316)-MIN(C305:C316)<5,AVERAGEIF(C305:C316,">0",N305:N316), IF(FORECAST($C301,N$305:N$316,$C$305:$C$316)<0,0, IF(FORECAST($C301,N$305:N$316,$C$305:$C$316)>100,100, FORECAST($C301,N$305:N$316,$C$305:$C$316)))) -> 60.92943636 | R301: =IF(MAX(C305:C316)-MIN(C305:C316)<5,AVERAGEIF(C305:C316,">0",R305:R316), IF(FORECAST($C301,R$305:R$316,$C$305:$C$316)<0,0, IF(FORECAST($C301,R$305:R$316,$C$305:$C$316)>100,100, FORECAST($C301,R$305:R$316,$C$305:$C$316)))) -> 1.235932012 | S301: =IF(MAX(C305:C316)-MIN(C305:C316)<5,AVERAGEIF(C305:C316,">0",S305:S316), IF(FORECAST($C301,S$305:S$316,$C$305:$C$316)<0,0, IF(FORECAST($C301,S$305:S$316,$C$305:$C$316)>100,100, FORECAST($C301,S$305:S$316,$C$305:$C$316)))) -> 60.03257367 | W301: =IF(MAX(C305:C316)-MIN(C305:C316)<5,AVERAGEIF(C305:C316,">0",W305:W316), IF(FORECAST($C301,W$305:W$316,$C$305:$C$316)<0,0, IF(FORECAST($C301,W$305:W$316,$C$305:$C$316)>100,100, FORECAST($C301,W$305:W$316,$C$305:$C$316)))) -> 2.649229289 | X301: =IF(MAX(C305:C316)-MIN(C305:C316)<5,AVERAGEIF(C305:C316,">0",X305:X316), IF(FORECAST($C301,X$305:X$316,$C$305:$C$316)<0,0, IF(FORECAST($C301,X$305:X$316,$C$305:$C$316)>100,100, FORECAST($C301,X$305:X$316,$C$305:$C$316)))) -> 78.06916281 | AB301: =IF(MAX(C305:C316)-MIN(C305:C316)<5,AVERAGEIF(C305:C316,">0",AB305:AB316), IF(FORECAST($C301,AB$305:AB$316,$C$305:$C$316)<0,0, IF(FORECAST($C301,AB$305:AB$316,$C$305:$C$316)>100,100, FORECAST($C301,AB$305:AB$316,$C$305:$C$316)))) -> 1.209507657
C302: =MaxRegYear(C300,C305:C316) -> 2019 | D302: =IF(MAX(C305:C316)-MIN(C305:C316)<5,AVERAGEIF(C305:C316,">0",D305:D316), IF(FORECAST($C302,D$305:D$316,$C$305:$C$316)<0,0, IF(FORECAST($C302,D$305:D$316,$C$305:$C$316)>100,100, FORECAST($C302,D$305:D$316,$C$305:$C$316)))) -> 67.28273314 | H302: =IF(MAX(C305:C316)-MIN(C305:C316)<5,AVERAGEIF(C305:C316,">0",H305:H316), IF(FORECAST($C302,H$305:H$316,$C$305:$C$316)<0,0, IF(FORECAST($C302,H$305:H$316,$C$305:$C$316)>100,100, FORECAST($C302,H$305:H$316,$C$305:$C$316)))) -> 6.331347019 | I302: =IF(MAX(C305:C316)-MIN(C305:C316)<5,AVERAGEIF(C305:C316,">0",I305:I316), IF(FORECAST($C302,I$305:I$316,$C$305:$C$316)<0,0, IF(FORECAST($C302,I$305:I$316,$C$305:$C$316)>100,100, FORECAST($C302,I$305:I$316,$C$305:$C$316)))) -> 74.18552844 | M302: =IF(MAX(C305:C316)-MIN(C305:C316)<5,AVERAGEIF(C305:C316,">0",M305:M316), IF(FORECAST($C302,M$305:M$316,$C$305:$C$316)<0,0, IF(FORECAST($C302,M$305:M$316,$C$305:$C$316)>100,100, FORECAST($C302,M$305:M$316,$C$305:$C$316)))) -> 2.183428432 | N302: =IF(MAX(C305:C316)-MIN(C305:C316)<5,AVERAGEIF(C305:C316,">0",N305:N316), IF(FORECAST($C302,N$305:N$316,$C$305:$C$316)<0,0, IF(FORECAST($C302,N$305:N$316,$C$305:$C$316)>100,100, FORECAST($C302,N$305:N$316,$C$305:$C$316)))) -> 80.53143157 | R302: =IF(MAX(C305:C316)-MIN(C305:C316)<5,AVERAGEIF(C305:C316,">0",R305:R316), IF(FORECAST($C302,R$305:R$316,$C$305:$C$316)<0,0, IF(FORECAST($C302,R$305:R$316,$C$305:$C$316)>100,100, FORECAST($C302,R$305:R$316,$C$305:$C$316)))) -> 1.340146825 | S302: =IF(MAX(C305:C316)-MIN(C305:C316)<5,AVERAGEIF(C305:C316,">0",S305:S316), IF(FORECAST($C302,S$305:S$316,$C$305:$C$316)<0,0, IF(FORECAST($C302,S$305:S$316,$C$305:$C$316)>100,100, FORECAST($C302,S$305:S$316,$C$305:$C$316)))) -> 87.08223213 | W302: =IF(MAX(C305:C316)-MIN(C305:C316)<5,AVERAGEIF(C305:C316,">0",W305:W316), IF(FORECAST($C302,W$305:W$316,$C$305:$C$316)<0,0, IF(FORECAST($C302,W$305:W$316,$C$305:$C$316)>100,100, FORECAST($C302,W$305:W$316,$C$305:$C$316)))) -> 0.05275054578 | X302: =IF(MAX(C305:C316)-MIN(C305:C316)<5,AVERAGEIF(C305:C316,">0",X305:X316), IF(FORECAST($C302,X$305:X$316,$C$305:$C$316)<0,0, IF(FORECAST($C302,X$305:X$316,$C$305:$C$316)>100,100, FORECAST($C302,X$305:X$316,$C$305:$C$316)))) -> 93.66802657 | AB302: =IF(MAX(C305:C316)-MIN(C305:C316)<5,AVERAGEIF(C305:C316,">0",AB305:AB316), IF(FORECAST($C302,AB$305:AB$316,$C$305:$C$316)<0,0, IF(FORECAST($C302,AB$305:AB$316,$C$305:$C$316)>100,100, FORECAST($C302,AB$305:AB$316,$C$305:$C$316)))) -> 0
B304: Survey | C304: Year | D304: Improved | E304: Not shared | H304: Open defecation | I304: Improved | J304: Not shared | M304: Open defecation | N304: Improved | O304: Not shared | R304: Open defecation | S304: Improved | T304: Not shared | W304: Open defecation | X304: Improved | Y304: Not shared | AB304: Open defecation
B305: MICS00 | C305: 2000 | D305: =IF(ISERROR(INDIRECT(CONCATENATE($B305,"!M122"))),"",INDIRECT(CONCATENATE($B305,"!M122"))) -> 32.77713923 | E305: =IF(ISERROR(INDIRECT(CONCATENATE($B305,"!M129"))),"",INDIRECT(CONCATENATE($B305,"!M129"))) -> N/A | H305: =IF(ISERROR(INDIRECT(CONCATENATE($B305,"!M127"))),"",INDIRECT(CONCATENATE($B305,"!M127"))) -> 5.997726091 | I305: =IF(ISERROR(INDIRECT(CONCATENATE($B305,"!N122"))),"",INDIRECT(CONCATENATE($B305,"!N122"))) -> 47.60544896 | J305: =IF(ISERROR(INDIRECT(CONCATENATE($B305,"!N129"))),"",INDIRECT(CONCATENATE($B305,"!N129"))) -> N/A | M305: =IF(ISERROR(INDIRECT(CONCATENATE($B305,"!N127"))),"",INDIRECT(CONCATENATE($B305,"!N127"))) -> 4.810628366 | N305: =IF(ISERROR(INDIRECT(CONCATENATE($B305,"!O122"))),"",INDIRECT(CONCATENATE($B305,"!O122"))) -> 60.01991427 | O305: =IF(ISERROR(INDIRECT(CONCATENATE($B305,"!O129"))),"",INDIRECT(CONCATENATE($B305,"!O129"))) -> N/A | R305: =IF(ISERROR(INDIRECT(CONCATENATE($B305,"!O127"))),"",INDIRECT(CONCATENATE($B305,"!O127"))) -> 1.37707077 | S305: =IF(ISERROR(INDIRECT(CONCATENATE($B305,"!P122"))),"",INDIRECT(CONCATENATE($B305,"!P122"))) -> 58.3165278 | T305: =IF(ISERROR(INDIRECT(CONCATENATE($B305,"!P129"))),"",INDIRECT(CONCATENATE($B305,"!P129"))) -> N/A | W305: =IF(ISERROR(INDIRECT(CONCATENATE($B305,"!P127"))),"",INDIRECT(CONCATENATE($B305,"!P127"))) -> 3.00460365 | X305: =IF(ISERROR(INDIRECT(CONCATENATE($B305,"!Q122"))),"",INDIRECT(CONCATENATE($B305,"!Q122"))) -> 77.516071 | Y305: =IF(ISERROR(INDIRECT(CONCATENATE($B305,"!Q129"))),"",INDIRECT(CONCATENATE($B305,"!Q129"))) -> N/A | AB305: =IF(ISERROR(INDIRECT(CONCATENATE($B305,"!Q2127"))),"",INDIRECT(CONCATENATE($B305,"!Q127"))) -> 1.342904635
B306: DHS00 | D306: 65.09613632 | E306: N/A | H306: 4.471272555 | I306: 65.09613632 | J306: N/A | M306: 4.471272555 | N306: 77.92252847 | O306: N/A | R306: 1.243972774 | S306: 80.31795957 | T306: N/A | W306: 1.112665635 | X306: 88.28640987 | Y306: N/A | AB306: 2.253458643
B307: DHS05 | D307: 69.39090977 | E307: N/A | H307: 5.235777327 | I307: 69.39090977 | J307: N/A | M307: 5.235777327 | N307: 80.51878626 | O307: N/A | R307: 1.823096932 | S307: 84.77192266 | T307: N/A | W307: 2.044513239 | X307: 92.16395802 | Y307: N/A | AB307: 2.30243946
B308: DHS08 | D308: 82.23741393 | E308: N/A | H308: 4.609590103 | I308: 95.94158176 | J308: N/A | M308: 0 | N308: 88.86316809 | O308: N/A | R308: 1.285887866 | S308: 90.89645646 | T308: N/A | W308: 0.9200205405 | X308: 93.24450015 | Y308: N/A | AB308: 0.6015239486
B309: DHS10 | C309: 2010 | D309: 56.95053623 | E309: 73.52769324 | H309: 3.44041832 | I309: 66.43692036 | J309: 82.50848212 | M309: 1.166561752 | N309: 75.22516073 | O309: 88.18672443 | R309: 0.7956109446 | S309: 80.15633703 | T309: 89.41156066 | W309: 0.34057123 | X309: 88.66351614 | Y309: 89.99635725 | AB309: 0.0954913956
B310: MIS13 | D310: 45.22875242 | E310: 73.37500144 | H310: 5.462247946 | I310: 53.50080842 | J310: 81.95911422 | M310: 2.322317491 | N310: 61.62077075 | O310: 86.50639731 | R310: 1.185148905 | S310: 66.88779762 | T310: 87.19720516 | W310: 1.401154931 | X310: 81.74483405 | Y310: 86.11358021 | AB310: 0.1864478678
B311: DHS15 | C311: 2015 | D311: 51.09687357 | E311: 76.27756231 | H311: 9.845530458 | I311: 62.52406902 | J311: 83.48611933 | M311: 3.872524716 | N311: 70.20953677 | O311: 87.86115057 | R311: 1.85162581 | S311: 75.36910349 | T311: 89.74736373 | W311: 0.876011629 | X311: 86.739848 | Y311: 91.79211685 | AB311: 0.380592361
B312: MIS17 | C312: 2017 | D312: 68.6517272 | E312: 84.70021647 | H312: 4.412501397 | I312: 74.48929495 | J312: 88.69907099 | M312: 2.415384274 | N312: 81.59385992 | O312: 93.56306122 | R312: 1.149790109 | S312: 86.08230821 | T312: 94.63595452 | W312: 0.6361460569 | X312: 93.83891494 | Y312: 93.76683962 | AB312: 0
B318: =CONCATENATE("Rural use of sanitation facilities, ",C299,"–",C300) -> Rural use of sanitation facilities, 2000–2020 | S318: Data points used for regression

Sheet Hygiene
B4: Access to hygiene facilities by wealth quintile (%)
B5: =IF(ISERROR(INDIRECT(CONCATENATE($E$32,"!A2"))),"",INDIRECT(CONCATENATE($E$32,"!A2"))) -> Rwanda
B7: =CONCATENATE("National ",IF(ISERROR(INDIRECT(CONCATENATE($E$32,"!A2"))),"",INDIRECT(CONCATENATE($E$32,"!A210")))) -> National Access to hygiene facilities | K7: =CONCATENATE("Urban ",IF(ISERROR(INDIRECT(CONCATENATE($E$32,"!A2"))),"",INDIRECT(CONCATENATE($E$32,"!A210")))) -> Urban Access to hygiene facilities | S7: =CONCATENATE("Rural ",IF(ISERROR(INDIRECT(CONCATENATE($E$32,"!A2"))),"",INDIRECT(CONCATENATE($E$32,"!A210")))) -> Rural Access to hygiene facilities
E32: =INDEX(B88:B100,A88) -> DHS15 | G32: =IF(ISERROR(INDIRECT(CONCATENATE($E$32,"!A2"))),"",INDIRECT(CONCATENATE($E$32,"!A2"))) -> Rwanda | K32: Poorest | N32: Poor | Q32: Middle | T32: Rich | W32: Richest
K33: Basic | L33: Limited | M33: No facility | N33: Basic | O33: Limited | P33: No facility | Q33: Basic | R33: Limited | S33: No facility | T33: Basic | U33: Limited | V33: No facility | W33: Basic | X33: Limited | Y33: No facility
B34: >>> Select Survey : | G34: NATIONAL | J34: =IF(ISERROR(INDIRECT(CONCATENATE(#REF!,"!A2"))),"",INDIRECT(CONCATENATE(#REF!,"!A210"))) ->  | K34: =IF(ISERROR(INDIRECT(CONCATENATE($E$32,"!C222"))),"",INDIRECT(CONCATENATE($E$32,"!C222"))) -> 0.7935528804 | L34: =IF(ISERROR(INDIRECT(CONCATENATE($E$32,"!C223"))),"",INDIRECT(CONCATENATE($E$32,"!C223"))) -> 8.464887098 | M34: =IF(ISERROR(INDIRECT(CONCATENATE($E$32,"!C224"))),"",INDIRECT(CONCATENATE($E$32,"!C224"))) -> 90.74156002 | N34: =IF(ISERROR(INDIRECT(CONCATENATE($E$32,"!D222"))),"",INDIRECT(CONCATENATE($E$32,"!D222"))) -> 1.48982174 | O34: =IF(ISERROR(INDIRECT(CONCATENATE($E$32,"!D223"))),"",INDIRECT(CONCATENATE($E$32,"!D223"))) -> 8.270650206 | P34: =IF(ISERROR(INDIRECT(CONCATENATE($E$32,"!D224"))),"",INDIRECT(CONCATENATE($E$32,"!D224"))) -> 90.23952805 | Q34: =IF(ISERROR(INDIRECT(CONCATENATE($E$32,"!E222"))),"",INDIRECT(CONCATENATE($E$32,"!E222"))) -> 1.957466633 | R34: =IF(ISERROR(INDIRECT(CONCATENATE($E$32,"!E223"))),"",INDIRECT(CONCATENATE($E$32,"!E223"))) -> 7.110376231 | S34: =IF(ISERROR(INDIRECT(CONCATENATE($E$32,"!E224"))),"",INDIRECT(CONCATENATE($E$32,"!E224"))) -> 90.93215714 | T34: =IF(ISERROR(INDIRECT(CONCATENATE($E$32,"!F222"))),"",INDIRECT(CONCATENATE($E$32,"!F222"))) -> 3.424569368 | U34: =IF(ISERROR(INDIRECT(CONCATENATE($E$32,"!F223"))),"",INDIRECT(CONCATENATE($E$32,"!F223"))) -> 6.983248295 | V34: =IF(ISERROR(INDIRECT(CONCATENATE($E$32,"!F224"))),"",INDIRECT(CONCATENATE($E$32,"!F224"))) -> 89.59218234 | W34: =IF(ISERROR(INDIRECT(CONCATENATE($E$32,"!G222"))),"",INDIRECT(CONCATENATE($E$32,"!G222"))) -> 14.60054338 | X34: =IF(ISERROR(INDIRECT(CONCATENATE($E$32,"!G223"))),"",INDIRECT(CONCATENATE($E$32,"!G223"))) -> 6.465588962 | Y34: =IF(ISERROR(INDIRECT(CONCATENATE($E$32,"!G224"))),"",INDIRECT(CONCATENATE($E$32,"!G224"))) -> 78.93386766
G37: URBAN | J37: =IF(ISERROR(INDIRECT(CONCATENATE(#REF!,"!A2"))),"",INDIRECT(CONCATENATE(#REF!,"!A210"))) ->  | K37: =IF(ISERROR(INDIRECT(CONCATENATE($E$32,"!H222"))),"",INDIRECT(CONCATENATE($E$32,"!H222"))) -> 0.8715884072 | L37: =IF(ISERROR(INDIRECT(CONCATENATE($E$32,"!H223"))),"",INDIRECT(CONCATENATE($E$32,"!H223"))) -> 11.83814671 | M37: =IF(ISERROR(INDIRECT(CONCATENATE($E$32,"!H224"))),"",INDIRECT(CONCATENATE($E$32,"!H224"))) -> 87.29026489 | N37: =IF(ISERROR(INDIRECT(CONCATENATE($E$32,"!I222"))),"",INDIRECT(CONCATENATE($E$32,"!I222"))) -> 5.706704846 | O37: =IF(ISERROR(INDIRECT(CONCATENATE($E$32,"!I223"))),"",INDIRECT(CONCATENATE($E$32,"!I223"))) -> 7.342556945 | P37: =IF(ISERROR(INDIRECT(CONCATENATE($E$32,"!I224"))),"",INDIRECT(CONCATENATE($E$32,"!I224"))) -> 86.95073821 | Q37: =IF(ISERROR(INDIRECT(CONCATENATE($E$32,"!J222"))),"",INDIRECT(CONCATENATE($E$32,"!J222"))) -> 10.29181898 | R37: =IF(ISERROR(INDIRECT(CONCATENATE($E$32,"!J223"))),"",INDIRECT(CONCATENATE($E$32,"!J223"))) -> 5.056292985 | S37: =IF(ISERROR(INDIRECT(CONCATENATE($E$32,"!J224"))),"",INDIRECT(CONCATENATE($E$32,"!J224"))) -> 84.65188803 | T37: =IF(ISERROR(INDIRECT(CONCATENATE($E$32,"!K222"))),"",INDIRECT(CONCATENATE($E$32,"!K222"))) -> 15.45635965 | U37: =IF(ISERROR(INDIRECT(CONCATENATE($E$32,"!K223"))),"",INDIRECT(CONCATENATE($E$32,"!K223"))) -> 5.390373765 | V37: =IF(ISERROR(INDIRECT(CONCATENATE($E$32,"!K224"))),"",INDIRECT(CONCATENATE($E$32,"!K224"))) -> 79.15326658 | W37: =IF(ISERROR(INDIRECT(CONCATENATE($E$32,"!L222"))),"",INDIRECT(CONCATENATE($E$32,"!L222"))) -> 39.44246785 | X37: =IF(ISERROR(INDIRECT(CONCATENATE($E$32,"!L223"))),"",INDIRECT(CONCATENATE($E$32,"!L223"))) -> 4.537270632 | Y37: =IF(ISERROR(INDIRECT(CONCATENATE($E$32,"!L224"))),"",INDIRECT(CONCATENATE($E$32,"!L224"))) -> 56.02026151
G40: RURAL | J40: =IF(ISERROR(INDIRECT(CONCATENATE(#REF!,"!A2"))),"",INDIRECT(CONCATENATE(#REF!,"!A210"))) ->  | K40: =IF(ISERROR(INDIRECT(CONCATENATE($E$32,"!M222"))),"",INDIRECT(CONCATENATE($E$32,"!M222"))) -> 0.8215013943 | L40: =IF(ISERROR(INDIRECT(CONCATENATE($E$32,"!M223"))),"",INDIRECT(CONCATENATE($E$32,"!M223"))) -> 7.834269969 | M40: =IF(ISERROR(INDIRECT(CONCATENATE($E$32,"!M224"))),"",INDIRECT(CONCATENATE($E$32,"!M224"))) -> 91.34422864 | N40: =IF(ISERROR(INDIRECT(CONCATENATE($E$32,"!N222"))),"",INDIRECT(CONCATENATE($E$32,"!N222"))) -> 1.138738438 | O40: =IF(ISERROR(INDIRECT(CONCATENATE($E$32,"!N223"))),"",INDIRECT(CONCATENATE($E$32,"!N223"))) -> 8.475737416 | P40: =IF(ISERROR(INDIRECT(CONCATENATE($E$32,"!N224"))),"",INDIRECT(CONCATENATE($E$32,"!N224"))) -> 90.38552415 | Q40: =IF(ISERROR(INDIRECT(CONCATENATE($E$32,"!O222"))),"",INDIRECT(CONCATENATE($E$32,"!O222"))) -> 1.763267237 | R40: =IF(ISERROR(INDIRECT(CONCATENATE($E$32,"!O223"))),"",INDIRECT(CONCATENATE($E$32,"!O223"))) -> 7.36085159 | S40: =IF(ISERROR(INDIRECT(CONCATENATE($E$32,"!O224"))),"",INDIRECT(CONCATENATE($E$32,"!O224"))) -> 90.87588117 | T40: =IF(ISERROR(INDIRECT(CONCATENATE($E$32,"!P222"))),"",INDIRECT(CONCATENATE($E$32,"!P222"))) -> 2.511915352 | U40: =IF(ISERROR(INDIRECT(CONCATENATE($E$32,"!P223"))),"",INDIRECT(CONCATENATE($E$32,"!P223"))) -> 6.852080563 | V40: =IF(ISERROR(INDIRECT(CONCATENATE($E$32,"!P224"))),"",INDIRECT(CONCATENATE($E$32,"!P224"))) -> 90.63600409 | W40: =IF(ISERROR(INDIRECT(CONCATENATE($E$32,"!Q222"))),"",INDIRECT(CONCATENATE($E$32,"!Q222"))) -> 5.98487132 | X40: =IF(ISERROR(INDIRECT(CONCATENATE($E$32,"!Q223"))),"",INDIRECT(CONCATENATE($E$32,"!Q223"))) -> 7.405263678 | Y40: =IF(ISERROR(INDIRECT(CONCATENATE($E$32,"!Q224"))),"",INDIRECT(CONCATENATE($E$32,"!Q224"))) -> 86.609865
A88: 7 | B88: MICS00
B89: DHS00
B90: DHS05
B91: DHS08
B92: DHS10
B93: MIS13
B94: DHS15
B95: MIS17
B96: Template

Sheet MICS00
A2: =A1026 -> Rwanda
A3: =A1034 -> 2000
A4: Use of drinking water sources
A5: by wealth quintile and sub-national region
A6: Notes:
A7: WHO/UNICEF JMP customised wealth index excludes water,
A8: sanitation and hygiene assets.
A9: Survey used for analysis: | B9: =A1025 -> MICS00
A10: =B1028 -> 
A11: =B1027 -> 
A14: Use of drinking water sources | C14: NATIONAL wealth index quintile | H14: URBAN wealth index quintile | M14: RURAL wealth index quintile | R14: provinces | BA14: Raw numbers of respondents: | BB14: Use of drinking water sources | BC14: NATIONAL wealth index quintile | BH14: URBAN wealth index quintile | BM14: RURAL wealth index quintile | BR14: SUB-REGIONS:
A15: Weighted percentage (used in graphs) | C15: Poorest | D15: Poor | E15: Middle | F15: Rich | G15: Richest | H15: Poorest | I15: Poor | J15: Middle | K15: Rich | L15: Richest | M15: Poorest | N15: Poor | O15: Middle | P15: Rich | Q15: Richest | R15: butare | S15: byumba | T15: cyangugu | U15: gikongoro | V15: gisenyi | W15: gitarama | X15: kibungo | Y15: kibuye | Z15: kigali-rural | AA15: kigali-ville | AB15: ruhengeri | AC15: umutura | BA15: Water data, raw numbers (weighted) | BC15: Poorest | BD15: Poor | BE15: Middle | BF15: Rich | BG15: Richest | BH15: Poorest | BI15: Poor | BJ15: Middle | BK15: Rich | BL15: Richest | BM15: Poorest | BN15: Poor | BO15: Middle | BP15: Rich | BQ15: Richest | BR15: butare | BS15: byumba | BT15: cyangugu | BU15: gikongoro | BV15: gisenyi | BW15: gitarama | BX15: kibungo | BY15: kibuye | BZ15: kigali-rural | CA15: kigali-ville | CB15: ruhengeri | CC15: umutura
A16: Water | B16: Improved | C16: 66.74688074 | D16: 66.16224115 | E16: 70.28087236 | F16: 68.31502178 | G16: 85.19607011 | H16: 85.18863943 | I16: 93.88958435 | J16: 91.82914904 | K16: 97.3698391 | L16: 99.54526923 | M16: 66.76194271 | N16: 64.31380275 | O16: 67.77617017 | P16: 66.26741347 | Q16: 72.54286115 | R16: 81.16805721 | S16: 73.06325515 | T16: 64.34782609 | U16: 68.17275748 | V16: 69.08127208 | W16: 79.66781214 | X16: 64.03235843 | Y16: 76.35402906 | Z16: 64.94047619 | AA16: 92.99410029 | AB16: 76.95390782 | AC16: 48.08707124 | BA16: Water | BB16: Improved | BC16: N/A | BD16: N/A | BE16: N/A | BF16: N/A | BG16: N/A | BH16: N/A | BI16: N/A | BJ16: N/A | BK16: N/A | BL16: N/A | BM16: N/A | BN16: N/A | BO16: N/A | BP16: N/A | BQ16: N/A | BR16: N/A | BS16: N/A | BT16: N/A | BU16: N/A | BV16: N/A | BW16: N/A | BX16: N/A | BY16: N/A | BZ16: N/A | CA16: N/A | CB16: N/A | CC16: N/A
B17: Not Improved | C17: 33.25311926 | D17: 33.83775885 | E17: 29.71912764 | F17: 31.68497822 | G17: 14.80392989 | H17: 14.81136057 | I17: 6.11041565 | J17: 8.170850956 | K17: 2.630160904 | L17: 0.4547307665 | M17: 33.23805729 | N17: 35.68619725 | O17: 32.22382983 | P17: 33.73258653 | Q17: 27.45713885 | R17: 18.83194279 | S17: 26.93674485 | T17: 35.65217391 | U17: 31.82724252 | V17: 30.91872792 | W17: 20.33218786 | X17: 35.96764157 | Y17: 23.64597094 | Z17: 35.05952381 | AA17: 7.005899705 | AB17: 23.04609218 | AC17: 51.91292876 | BB17: Not Improved | BC17: N/A | BD17: N/A | BE17: N/A | BF17: N/A | BG17: N/A | BH17: N/A | BI17: N/A | BJ17: N/A | BK17: N/A | BL17: N/A | BM17: N/A | BN17: N/A | BO17: N/A | BP17: N/A | BQ17: N/A | BR17: N/A | BS17: N/A | BT17: N/A | BU17: N/A | BV17: N/A | BW17: N/A | BX17: N/A | BY17: N/A | BZ17: N/A | CA17: N/A | CB17: N/A | CC17: N/A
A18: Water ladder | B18: Basic | C18: 40.89974986 | D18: 39.94902617 | E18: 42.1119289 | F18: 48.49870773 | G18: 66.06908636 | H18: 69.36102519 | I18: 78.54670692 | J18: 82.6365034 | K18: 91.59882999 | L18: 87.2077014 | M18: 40.50016872 | N18: 38.71982948 | O18: 38.61527186 | P18: 42.53573224 | Q18: 47.76494393 | R18: 50.17878427 | S18: 41.08031272 | T18: 45.92391304 | U18: 48.30564784 | V18: 52.39503253 | W18: 61.11111111 | X18: 38.14561294 | Y18: 52.31175694 | Z18: 30.11904762 | AA18: 80.97345133 | AB18: 54.70941884 | AC18: 21.56992084 | BA18: Water ladder | BB18: Basic | BC18: N/A | BD18: N/A | BE18: N/A | BF18: N/A | BG18: N/A | BH18: N/A | BI18: N/A | BJ18: N/A | BK18: N/A | BL18: N/A | BM18: N/A | BN18: N/A | BO18: N/A | BP18: N/A | BQ18: N/A | BR18: N/A | BS18: N/A | BT18: N/A | BU18: N/A | BV18: N/A | BW18: N/A | BX18: N/A | BY18: N/A | BZ18: N/A | CA18: N/A | CB18: N/A | CC18: N/A
B19: Limited | C19: 25.84713087 | D19: 26.21321498 | E19: 28.16894346 | F19: 19.81631405 | G19: 19.08181437 | H19: 15.82761424 | I19: 15.34287743 | J19: 9.19264564 | K19: 5.715386373 | L19: 12.33756784 | M19: 26.26177398 | N19: 25.59397327 | O19: 29.16089832 | P19: 23.73168123 | Q19: 24.77791722 | R19: 30.98927294 | S19: 31.98294243 | T19: 18.42391304 | U19: 19.86710963 | V19: 16.55824956 | W19: 18.55670103 | X19: 25.88674549 | Y19: 24.04227213 | Z19: 34.82142857 | AA19: 12.02064897 | AB19: 22.24448898 | AC19: 26.5171504 | BB19: Limited | BC19: N/A | BD19: N/A | BE19: N/A | BF19: N/A | BG19: N/A | BH19: N/A | BI19: N/A | BJ19: N/A | BK19: N/A | BL19: N/A | BM19: N/A | BN19: N/A | BO19: N/A | BP19: N/A | BQ19: N/A | BR19: N/A | BS19: N/A | BT19: N/A | BU19: N/A | BV19: N/A | BW19: N/A | BX19: N/A | BY19: N/A | BZ19: N/A | CA19: N/A | CB19: N/A | CC19: N/A
B20: Unimproved | C20: 11.05460199 | D20: 9.276136165 | E20: 10.09224243 | F20: 7.749746687 | G20: 3.030333067 | H20: 5.870004452 | I20: 1.442348875 | J20: 2.673023813 | K20: 0.3007056686 | L20: 0 | M20: 10.90573644 | N20: 10.29617574 | O20: 9.177065338 | P20: 10.83257982 | Q20: 5.288172399 | R20: 2.800953516 | S20: 10.73205402 | T20: 12.39130435 | U20: 8.637873754 | V20: 4.79006505 | W20: 4.696449026 | X20: 10.64094586 | Y20: 8.982826948 | Z20: 13.27380952 | AA20: 2.691740413 | AB20: 7.080828323 | AC20: 15.03957784 | BB20: Unimproved | BC20: N/A | BD20: N/A | BE20: N/A | BF20: N/A | BG20: N/A | BH20: N/A | BI20: N/A | BJ20: N/A | BK20: N/A | BL20: N/A | BM20: N/A | BN20: N/A | BO20: N/A | BP20: N/A | BQ20: N/A | BR20: N/A | BS20: N/A | BT20: N/A | BU20: N/A | BV20: N/A | BW20: N/A | BX20: N/A | BY20: N/A | BZ20: N/A | CA20: N/A | CB20: N/A | CC20: N/A
B21: Surface water | C21: 22.19851727 | D21: 24.56162269 | E21: 19.62688522 | F21: 23.93523154 | G21: 11.8187662 | H21: 8.941356119 | I21: 4.668066775 | J21: 5.497827143 | K21: 2.385077966 | L21: 0.4547307665 | M21: 22.33232085 | N21: 25.39002151 | O21: 23.04676449 | P21: 22.90000671 | Q21: 22.16896645 | R21: 16.03098927 | S21: 16.20469083 | T21: 23.26086957 | U21: 23.18936877 | V21: 26.25665287 | W21: 15.63573883 | X21: 25.32669571 | Y21: 14.66314399 | Z21: 21.78571429 | AA21: 4.314159292 | AB21: 15.96526386 | AC21: 36.87335092 | BB21: Surface water | BC21: N/A | BD21: N/A | BE21: N/A | BF21: N/A | BG21: N/A | BH21: N/A | BI21: N/A | BJ21: N/A | BK21: N/A | BL21: N/A | BM21: N/A | BN21: N/A | BO21: N/A | BP21: N/A | BQ21: N/A | BR21: N/A | BS21: N/A | BT21: N/A | BU21: N/A | BV21: N/A | BW21: N/A | BX21: N/A | BY21: N/A | BZ21: N/A | CA21: N/A | CB21: N/A | CC21: N/A
A22: Improved water point at more than 30 minutes | B22: Yes | C22: 38.72410304 | D22: 39.61959953 | E22: 40.0805262 | F22: 29.00725716 | G22: 22.40940989 | H22: 18.57948941 | I22: 16.34140521 | J22: 10.01059656 | K22: 5.873125826 | L22: 12.39392683 | M22: 39.33644367 | N22: 39.79545941 | O22: 43.02529671 | P22: 35.81199263 | Q22: 34.15624477 | R22: 38.17914831 | S22: 43.77431907 | T22: 28.63175676 | U22: 29.14230019 | V22: 24.01372213 | W22: 23.29259526 | X22: 40.42759961 | Y22: 31.48788927 | Z22: 53.62053162 | AA22: 12.92624901 | AB22: 28.90625 | AC22: 55.14403292 | BA22: Improved water point at more than 30 minutes | BB22: Yes | BC22: N/A | BD22: N/A | BE22: N/A | BF22: N/A | BG22: N/A | BH22: N/A | BI22: N/A | BJ22: N/A | BK22: N/A | BL22: N/A | BM22: N/A | BN22: N/A | BO22: N/A | BP22: N/A | BQ22: N/A | BR22: N/A | BS22: N/A | BT22: N/A | BU22: N/A | BV22: N/A | BW22: N/A | BX22: N/A | BY22: N/A | BZ22: N/A | CA22: N/A | CB22: N/A | CC22: N/A
B23: No | C23: 61.27589696 | D23: 60.38040047 | E23: 59.9194738 | F23: 70.99274284 | G23: 77.59059011 | H23: 81.42051059 | I23: 83.65859479 | J23: 89.98940344 | K23: 94.12687417 | L23: 87.60607317 | M23: 60.66355633 | N23: 60.20454059 | O23: 56.97470329 | P23: 64.18800737 | Q23: 65.84375523 | R23: 61.82085169 | S23: 56.22568093 | T23: 71.36824324 | U23: 70.85769981 | V23: 75.98627787 | W23: 76.70740474 | X23: 59.57240039 | Y23: 68.51211073 | Z23: 46.37946838 | AA23: 87.07375099 | AB23: 71.09375 | AC23: 44.85596708 | BB23: No | BC23: N/A | BD23: N/A | BE23: N/A | BF23: N/A | BG23: N/A | BH23: N/A | BI23: N/A | BJ23: N/A | BK23: N/A | BL23: N/A | BM23: N/A | BN23: N/A | BO23: N/A | BP23: N/A | BQ23: N/A | BR23: N/A | BS23: N/A | BT23: N/A | BU23: N/A | BV23: N/A | BW23: N/A | BX23: N/A | BY23: N/A | BZ23: N/A | CA23: N/A | CB23: N/A | CC23: N/A
A24: Manually calculated ratios | B24: Improved wells
B25: Improved springs | C25: =C63/(C63+C66)*100 -> 70.70440173 | D25: 68.28455271 | E25: 67.13379639 | F25: 75.39492379 | G25: 77.13801261 | H25: 85.78328499 | I25: 81.42266684 | J25: 70.58711361 | K25: 70.58823529 | L25: 100 | M25: 71.79801919 | N25: 64.41486873 | O25: 68.34689662 | P25: 72.59021953 | Q25: 74.87682782 | R25: 93.77431907 | S25: 65.16853933 | T25: 61.50341686 | U25: 69.20152091 | V25: 83.29238329 | W25: 68.51851852 | X25: 55.078125 | Y25: 72.50673854 | Z25: 55.46875 | AA25: 83.87096774 | AB25: 81.64893617 | AC25: 52
B26: Other
C27: NATIONAL wealth index quintile | H27: URBAN wealth index quintile | M27: RURAL wealth index quintile | R27: provinces | BA27: Raw numbers of respondents: | BB27: Use of drinking water sources | BC27: NATIONAL wealth index quintile | BH27: URBAN wealth index quintile | BM27: RURAL wealth index quintile | BR27: SUB-REGIONS:
A28: Percentage based on weighted population | C28: Poorest | D28: Poor | E28: Middle | F28: Rich | G28: Richest | H28: Poorest | I28: Poor | J28: Middle | K28: Rich | L28: Richest | M28: Poorest | N28: Poor | O28: Middle | P28: Rich | Q28: Richest | R28: butare | S28: byumba | T28: cyangugu | U28: gikongoro | V28: gisenyi | W28: gitarama | X28: kibungo | Y28: kibuye | Z28: kigali-rural | AA28: kigali-ville | AB28: ruhengeri | AC28: umutura | BA28: Water data, raw numbers (weighted) | BC28: Poorest | BD28: Poor | BE28: Middle | BF28: Rich | BG28: Richest | BH28: Poorest | BI28: Poor | BJ28: Middle | BK28: Rich | BL28: Richest | BM28: Poorest | BN28: Poor | BO28: Middle | BP28: Rich | BQ28: Richest | BR28: butare | BS28: byumba | BT28: cyangugu | BU28: gikongoro | BV28: gisenyi | BW28: gitarama | BX28: kibungo | BY28: kibuye | BZ28: kigali-rural | CA28: kigali-ville | CB28: ruhengeri | CC28: umutura
A29: Piped water | B29: Yes | C29: 39.37702006 | D29: 41.28224902 | E29: 45.68936115 | F29: 45.54905206 | G29: 67.61648626 | H29: 60.30566158 | I29: 84.03812032 | J29: 82.72559377 | K29: 87.43336148 | L29: 95.60524011 | M29: 38.71784625 | N29: 39.9414621 | O29: 41.99720499 | P29: 40.90652422 | Q29: 48.66411812 | R29: 54.05244338 | S29: 44.98933902 | T29: 38.9673913 | U29: 46.57807309 | V29: 42.40282686 | W29: 63.23024055 | X29: 47.41754823 | Y29: 50.19815059 | Z29: 40.11904762 | AA29: 84.10766962 | AB29: 47.96259185 | AC29: 29.28759894 | BA29: Piped water | BB29: Yes | BC29: N/A | BD29: N/A | BE29: N/A | BF29: N/A | BG29: N/A | BH29: N/A | BI29: N/A | BJ29: N/A | BK29: N/A | BL29: N/A | BM29: N/A | BN29: N/A | BO29: N/A | BP29: N/A | BQ29: N/A | BR29: N/A | BS29: N/A | BT29: N/A | BU29: N/A | BV29: N/A | BW29: N/A | BX29: N/A | BY29: N/A | BZ29: N/A | CA29: N/A | CB29: N/A | CC29: N/A
B30: No | C30: 60.62297994 | D30: 58.71775098 | E30: 54.31063885 | F30: 54.45094794 | G30: 32.38351374 | H30: 39.69433842 | I30: 15.96187968 | J30: 17.27440623 | K30: 12.56663852 | L30: 4.394759893 | M30: 61.28215375 | N30: 60.0585379 | O30: 58.00279501 | P30: 59.09347578 | Q30: 51.33588188 | R30: 45.94755662 | S30: 55.01066098 | T30: 61.0326087 | U30: 53.42192691 | V30: 57.59717314 | W30: 36.76975945 | X30: 52.58245177 | Y30: 49.80184941 | Z30: 59.88095238 | AA30: 15.89233038 | AB30: 52.03740815 | AC30: 70.71240106 | BB30: No | BC30: N/A | BD30: N/A | BE30: N/A | BF30: N/A | BG30: N/A | BH30: N/A | BI30: N/A | BJ30: N/A | BK30: N/A | BL30: N/A | BM30: N/A | BN30: N/A | BO30: N/A | BP30: N/A | BQ30: N/A | BR30: N/A | BS30: N/A | BT30: N/A | BU30: N/A | BV30: N/A | BW30: N/A | BX30: N/A | BY30: N/A | BZ30: N/A | CA30: N/A | CB30: N/A | CC30: N/A
A31: Piped water on premises | B31: Yes | C31: 0.2878538816 | D31: 0.6619704819 | E31: 1.501329117 | F31: 1.335413355 | G31: 19.82481375 | H31: 4.243327359 | I31: 14.0566178 | J31: 23.90876543 | K31: 38.59321188 | L31: 71.98444233 | M31: 0 | N31: 0.6316977368 | O31: 0.3857107125 | P31: 0.03000290203 | Q31: 0.4039462667 | R31: 7.508939213 | S31: 1.066098081 | T31: 4.347826087 | U31: 0.5980066445 | V31: 10.71849234 | W31: 2.691867125 | X31: 1.866832607 | Y31: 0.06605019815 | Z31: 2.857142857 | AA31: 30.05162242 | AB31: 2.805611222 | AC31: 0 | BA31: Piped water on premises | BB31: Yes | BC31: N/A | BD31: N/A | BE31: N/A | BF31: N/A | BG31: N/A | BH31: N/A | BI31: N/A | BJ31: N/A | BK31: N/A | BL31: N/A | BM31: N/A | BN31: N/A | BO31: N/A | BP31: N/A | BQ31: N/A | BR31: N/A | BS31: N/A | BT31: N/A | BU31: N/A | BV31: N/A | BW31: N/A | BX31: N/A | BY31: N/A | BZ31: N/A | CA31: N/A | CB31: N/A | CC31: N/A
B32: No | C32: 99.71214612 | D32: 99.33802952 | E32: 98.49867088 | F32: 98.66458665 | G32: 80.17518625 | H32: 95.75667264 | I32: 85.9433822 | J32: 76.09123457 | K32: 61.40678812 | L32: 28.01555767 | M32: 100 | N32: 99.36830226 | O32: 99.61428929 | P32: 99.9699971 | Q32: 99.59605373 | R32: 92.49106079 | S32: 98.93390192 | T32: 95.65217391 | U32: 99.40199336 | V32: 89.28150766 | W32: 97.30813288 | X32: 98.13316739 | Y32: 99.9339498 | Z32: 97.14285714 | AA32: 69.94837758 | AB32: 97.19438878 | AC32: 100 | BB32: No | BC32: N/A | BD32: N/A | BE32: N/A | BF32: N/A | BG32: N/A | BH32: N/A | BI32: N/A | BJ32: N/A | BK32: N/A | BL32: N/A | BM32: N/A | BN32: N/A | BO32: N/A | BP32: N/A | BQ32: N/A | BR32: N/A | BS32: N/A | BT32: N/A | BU32: N/A | BV32: N/A | BW32: N/A | BX32: N/A | BY32: N/A | BZ32: N/A | CA32: N/A | CB32: N/A | CC32: N/A
A33: Piped water into dwelling | B33: Yes | C33: N/A | D33: N/A | E33: N/A | F33: N/A | G33: N/A | H33: N/A | I33: N/A | J33: N/A | K33: N/A | L33: N/A | M33: N/A | N33: N/A | O33: N/A | P33: N/A | Q33: N/A | R33: N/A | S33: N/A | T33: N/A | U33: N/A | V33: N/A | W33: N/A | X33: N/A | Y33: N/A | Z33: N/A | AA33: N/A | AB33: N/A | AC33: N/A | BA33: Piped water into dwelling | BB33: Yes | BC33: N/A | BD33: N/A | BE33: N/A | BF33: N/A | BG33: N/A | BH33: N/A | BI33: N/A | BJ33: N/A | BK33: N/A | BL33: N/A | BM33: N/A | BN33: N/A | BO33: N/A | BP33: N/A | BQ33: N/A | BR33: N/A | BS33: N/A | BT33: N/A | BU33: N/A | BV33: N/A | BW33: N/A | BX33: N/A | BY33: N/A | BZ33: N/A | CA33: N/A | CB33: N/A | CC33: N/A
B34: No | C34: N/A | D34: N/A | E34: N/A | F34: N/A | G34: N/A | H34: N/A | I34: N/A | J34: N/A | K34: N/A | L34: N/A | M34: N/A | N34: N/A | O34: N/A | P34: N/A | Q34: N/A | R34: N/A | S34: N/A | T34: N/A | U34: N/A | V34: N/A | W34: N/A | X34: N/A | Y34: N/A | Z34: N/A | AA34: N/A | AB34: N/A | AC34: N/A | BB34: No | BC34: N/A | BD34: N/A | BE34: N/A | BF34: N/A | BG34: N/A | BH34: N/A | BI34: N/A | BJ34: N/A | BK34: N/A | BL34: N/A | BM34: N/A | BN34: N/A | BO34: N/A | BP34: N/A | BQ34: N/A | BR34: N/A | BS34: N/A | BT34: N/A | BU34: N/A | BV34: N/A | BW34: N/A | BX34: N/A | BY34: N/A | BZ34: N/A | CA34: N/A | CB34: N/A | CC34: N/A
A35: Water source on premises | B35: Yes | C35: 0.2878538816 | D35: 0.6619704819 | E35: 1.882168017 | F35: 1.335413355 | G35: 20.23372682 | H35: 6.777028603 | I35: 14.14015909 | J35: 23.90876543 | K35: 40.37022214 | L35: 72.99635131 | M35: 0 | N35: 0.6316977368 | O35: 0.3857107125 | P35: 0.03000290203 | Q35: 0.4039462667 | R35: 7.628128725 | S35: 1.208244492 | T35: 4.347826087 | U35: 0.5980066445 | V35: 11.13074205 | W35: 2.691867125 | X35: 1.866832607 | Y35: 0.06605019815 | Z35: 3.511904762 | AA35: 30.12536873 | AB35: 2.805611222 | AC35: 0 | BA35: Water source on premises | BB35: Yes | BC35: N/A | BD35: N/A | BE35: N/A | BF35: N/A | BG35: N/A | BH35: N/A | BI35: N/A | BJ35: N/A | BK35: N/A | BL35: N/A | BM35: N/A | BN35: N/A | BO35: N/A | BP35: N/A | BQ35: N/A | BR35: N/A | BS35: N/A | BT35: N/A | BU35: N/A | BV35: N/A | BW35: N/A | BX35: N/A | BY35: N/A | BZ35: N/A | CA35: N/A | CB35: N/A | CC35: N/A
B36: No | C36: 99.71214612 | D36: 99.33802952 | E36: 98.11783198 | F36: 98.66458665 | G36: 79.76627318 | H36: 93.2229714 | I36: 85.85984091 | J36: 76.09123457 | K36: 59.62977786 | L36: 27.00364869 | M36: 100 | N36: 99.36830226 | O36: 99.61428929 | P36: 99.9699971 | Q36: 99.59605373 | R36: 92.37187128 | S36: 98.79175551 | T36: 95.65217391 | U36: 99.40199336 | V36: 88.86925795 | W36: 97.30813288 | X36: 98.13316739 | Y36: 99.9339498 | Z36: 96.48809524 | AA36: 69.87463127 | AB36: 97.19438878 | AC36: 100 | BB36: No | BC36: N/A | BD36: N/A | BE36: N/A | BF36: N/A | BG36: N/A | BH36: N/A | BI36: N/A | BJ36: N/A | BK36: N/A | BL36: N/A | BM36: N/A | BN36: N/A | BO36: N/A | BP36: N/A | BQ36: N/A | BR36: N/A | BS36: N/A | BT36: N/A | BU36: N/A | BV36: N/A | BW36: N/A | BX36: N/A | BY36: N/A | BZ36: N/A | CA36: N/A | CB36: N/A | CC36: N/A
A37: Improved Water source on premises | B37: Yes | C37: 0.4312619233 | D37: 1.000526086 | E37: 2.587242972 | F37: 1.954787278 | G37: 23.74960112 | H37: 7.440076634 | I37: 15.06041292 | J37: 26.03613959 | K37: 41.4607054 | L37: 73.3298045 | M37: 0 | N37: 0.9822117645 | O37: 0.5690948773 | P37: 0.04527549886 | Q37: 0.5568380682 | R37: 9.3979442 | S37: 1.459143969 | T37: 6.756756757 | U37: 0.8771929825 | V37: 16.11253197 | W37: 3.378864127 | X37: 2.915451895 | Y37: 0.08650519031 | Z37: 5.407882676 | AA37: 32.39492466 | AB37: 3.645833333 | AC37: 0 | BA37: Improved water source on premises | BB37: Yes | BC37: N/A | BD37: N/A | BE37: N/A | BF37: N/A | BG37: N/A | BH37: N/A | BI37: N/A | BJ37: N/A | BK37: N/A | BL37: N/A | BM37: N/A | BN37: N/A | BO37: N/A | BP37: N/A | BQ37: N/A | BR37: N/A | BS37: N/A | BT37: N/A | BU37: N/A | BV37: N/A | BW37: N/A | BX37: N/A | BY37: N/A | BZ37: N/A | CA37: N/A | CB37: N/A | CC37: N/A
B38: No | C38: 99.56873808 | D38: 98.99947391 | E38: 97.41275703 | F38: 98.04521272 | G38: 76.25039888 | H38: 92.55992337 | I38: 84.93958708 | J38: 73.96386041 | K38: 58.5392946 | L38: 26.6701955 | M38: 100 | N38: 99.01778824 | O38: 99.43090512 | P38: 99.9547245 | Q38: 99.44316193 | R38: 90.6020558 | S38: 98.54085603 | T38: 93.24324324 | U38: 99.12280702 | V38: 83.88746803 | W38: 96.62113587 | X38: 97.0845481 | Y38: 99.91349481 | Z38: 94.59211732 | AA38: 67.60507534 | AB38: 96.35416667 | AC38: 100 | BB38: No | BC38: N/A | BD38: N/A | BE38: N/A | BF38: N/A | BG38: N/A | BH38: N/A | BI38: N/A | BJ38: N/A | BK38: N/A | BL38: N/A | BM38: N/A | BN38: N/A | BO38: N/A | BP38: N/A | BQ38: N/A | BR38: N/A | BS38: N/A | BT38: N/A | BU38: N/A | BV38: N/A | BW38: N/A | BX38: N/A | BY38: N/A | BZ38: N/A | CA38: N/A | CB38: N/A | CC38: N/A
A39: Piped water on premises available when needed | B39: Yes | C39: N/A | D39: N/A | E39: N/A | F39: N/A | G39: N/A | H39: N/A | I39: N/A | J39: N/A | K39: N/A | L39: N/A | M39: N/A | N39: N/A | O39: N/A | P39: N/A | Q39: N/A | R39: N/A | S39: N/A | T39: N/A | U39: N/A | V39: N/A | W39: N/A | X39: N/A | Y39: N/A | Z39: N/A | AA39: N/A | AB39: N/A | AC39: N/A | BA39: Piped water on premises available when needed | BB39: Yes | BC39: N/A | BD39: N/A | BE39: N/A | BF39: N/A | BG39: N/A | BH39: N/A | BI39: N/A | BJ39: N/A | BK39: N/A | BL39: N/A | BM39: N/A | BN39: N/A | BO39: N/A | BP39: N/A | BQ39: N/A | BR39: N/A | BS39: N/A | BT39: N/A | BU39: N/A | BV39: N/A | BW39: N/A | BX39: N/A | BY39: N/A | BZ39: N/A | CA39: N/A | CB39: N/A | CC39: N/A
B40: No | C40: N/A | D40: N/A | E40: N/A | F40: N/A | G40: N/A | H40: N/A | I40: N/A | J40: N/A | K40: N/A | L40: N/A | M40: N/A | N40: N/A | O40: N/A | P40: N/A | Q40: N/A | R40: N/A | S40: N/A | T40: N/A | U40: N/A | V40: N/A | W40: N/A | X40: N/A | Y40: N/A | Z40: N/A | AA40: N/A | AB40: N/A | AC40: N/A | BB40: No | BC40: N/A | BD40: N/A | BE40: N/A | BF40: N/A | BG40: N/A | BH40: N/A | BI40: N/A | BJ40: N/A | BK40: N/A | BL40: N/A | BM40: N/A | BN40: N/A | BO40: N/A | BP40: N/A | BQ40: N/A | BR40: N/A | BS40: N/A | BT40: N/A | BU40: N/A | BV40: N/A | BW40: N/A | BX40: N/A | BY40: N/A | BZ40: N/A | CA40: N/A | CB40: N/A | CC40: N/A
A41: Water point at more than 30 minutes | B41: Yes | C41: 43.46217474 | D41: 42.11072749 | E41: 46.68179328 | F41: 33.51226317 | G41: 26.26374309 | H41: 20.38693763 | I41: 19.13611089 | J41: 13.86383877 | K41: 8.186380245 | L41: 12.7922986 | M41: 44.76474341 | N41: 42.3531004 | O41: 47.25612276 | P41: 41.06340795 | Q41: 36.75951358 | R41: 38.67699642 | S41: 44.68236974 | T41: 30.59782609 | U41: 32.82392027 | V41: 29.09520993 | W41: 27.31958763 | X41: 54.07591786 | Y41: 29.85468956 | Z41: 54.19892793 | AA41: 15.82441903 | AB41: 36.14457831 | AC41: 66.09498681 | BA41: Water point at more than 30 minutes | BB41: Yes | BC41: N/A | BD41: N/A | BE41: N/A | BF41: N/A | BG41: N/A | BH41: N/A | BI41: N/A | BJ41: N/A | BK41: N/A | BL41: N/A | BM41: N/A | BN41: N/A | BO41: N/A | BP41: N/A | BQ41: N/A | BR41: N/A | BS41: N/A | BT41: N/A | BU41: N/A | BV41: N/A | BW41: N/A | BX41: N/A | BY41: N/A | BZ41: N/A | CA41: N/A | CB41: N/A | CC41: N/A
B42: No | C42: 56.53782526 | D42: 57.88927251 | E42: 53.31820672 | F42: 66.48773683 | G42: 73.73625691 | H42: 79.61306237 | I42: 80.86388911 | J42: 86.13616123 | K42: 91.81361976 | L42: 87.2077014 | M42: 55.23525659 | N42: 57.6468996 | O42: 52.74387724 | P42: 58.93659205 | Q42: 63.24048642 | R42: 61.32300358 | S42: 55.31763026 | T42: 69.40217391 | U42: 67.17607973 | V42: 70.90479007 | W42: 72.68041237 | X42: 45.92408214 | Y42: 70.14531044 | Z42: 45.80107207 | AA42: 84.17558097 | AB42: 63.85542169 | AC42: 33.90501319 | BB42: No | BC42: N/A | BD42: N/A | BE42: N/A | BF42: N/A | BG42: N/A | BH42: N/A | BI42: N/A | BJ42: N/A | BK42: N/A | BL42: N/A | BM42: N/A | BN42: N/A | BO42: N/A | BP42: N/A | BQ42: N/A | BR42: N/A | BS42: N/A | BT42: N/A | BU42: N/A | BV42: N/A | BW42: N/A | BX42: N/A | BY42: N/A | BZ42: N/A | CA42: N/A | CB42: N/A | CC42: N/A
A43: Water source available when needed | B43: Yes | C43: N/A | D43: N/A | E43: N/A | F43: N/A | G43: N/A | H43: N/A | I43: N/A | J43: N/A | K43: N/A | L43: N/A | M43: N/A | N43: N/A | O43: N/A | P43: N/A | Q43: N/A | R43: N/A | S43: N/A | T43: N/A | U43: N/A | V43: N/A | W43: N/A | X43: N/A | Y43: N/A | Z43: N/A | AA43: N/A | AB43: N/A | AC43: N/A | BA43: Water source available when needed | BB43: Yes | BC43: N/A | BD43: N/A | BE43: N/A | BF43: N/A | BG43: N/A | BH43: N/A | BI43: N/A | BJ43: N/A | BK43: N/A | BL43: N/A | BM43: N/A | BN43: N/A | BO43: N/A | BP43: N/A | BQ43: N/A | BR43: N/A | BS43: N/A | BT43: N/A | BU43: N/A | BV43: N/A | BW43: N/A | BX43: N/A | BY43: N/A | BZ43: N/A | CA43: N/A | CB43: N/A | CC43: N/A
B44: No | C44: N/A | D44: N/A | E44: N/A | F44: N/A | G44: N/A | H44: N/A | I44: N/A | J44: N/A | K44: N/A | L44: N/A | M44: N/A | N44: N/A | O44: N/A | P44: N/A | Q44: N/A | R44: N/A | S44: N/A | T44: N/A | U44: N/A | V44: N/A | W44: N/A | X44: N/A | Y44: N/A | Z44: N/A | AA44: N/A | AB44: N/A | AC44: N/A | BB44: No | BC44: N/A | BD44: N/A | BE44: N/A | BF44: N/A | BG44: N/A | BH44: N/A | BI44: N/A | BJ44: N/A | BK44: N/A | BL44: N/A | BM44: N/A | BN44: N/A | BO44: N/A | BP44: N/A | BQ44: N/A | BR44: N/A | BS44: N/A | BT44: N/A | BU44: N/A | BV44: N/A | BW44: N/A | BX44: N/A | BY44: N/A | BZ44: N/A | CA44: N/A | CB44: N/A | CC44: N/A
A45: Improved water source available when needed | B45: Yes | C45: N/A | D45: N/A | E45: N/A | F45: N/A | G45: N/A | H45: N/A | I45: N/A | J45: N/A | K45: N/A | L45: N/A | M45: N/A | N45: N/A | O45: N/A | P45: N/A | Q45: N/A | R45: N/A | S45: N/A | T45: N/A | U45: N/A | V45: N/A | W45: N/A | X45: N/A | Y45: N/A | Z45: N/A | AA45: N/A | AB45: N/A | AC45: N/A | BA45: Improved water source available when needed | BB45: Yes | BC45: N/A | BD45: N/A | BE45: N/A | BF45: N/A | BG45: N/A | BH45: N/A | BI45: N/A | BJ45: N/A | BK45: N/A | BL45: N/A | BM45: N/A | BN45: N/A | BO45: N/A | BP45: N/A | BQ45: N/A | BR45: N/A | BS45: N/A | BT45: N/A | BU45: N/A | BV45: N/A | BW45: N/A | BX45: N/A | BY45: N/A | BZ45: N/A | CA45: N/A | CB45: N/A | CC45: N/A
B46: No | C46: N/A | D46: N/A | E46: N/A | F46: N/A | G46: N/A | H46: N/A | I46: N/A | J46: N/A | K46: N/A | L46: N/A | M46: N/A | N46: N/A | O46: N/A | P46: N/A | Q46: N/A | R46: N/A | S46: N/A | T46: N/A | U46: N/A | V46: N/A | W46: N/A | X46: N/A | Y46: N/A | Z46: N/A | AA46: N/A | AB46: N/A | AC46: N/A | BB46: No | BC46: N/A | BD46: N/A | BE46: N/A | BF46: N/A | BG46: N/A | BH46: N/A | BI46: N/A | BJ46: N/A | BK46: N/A | BL46: N/A | BM46: N/A | BN46: N/A | BO46: N/A | BP46: N/A | BQ46: N/A | BR46: N/A | BS46: N/A | BT46: N/A | BU46: N/A | BV46: N/A | BW46: N/A | BX46: N/A | BY46: N/A | BZ46: N/A | CA46: N/A | CB46: N/A | CC46: N/A
A47: Microbiological quality at point of collection | B47: Not contaminated (No E. coli in 100 mL) | C47: N/A | D47: N/A | E47: N/A | F47: N/A | G47: N/A | H47: N/A | I47: N/A | J47: N/A | K47: N/A | L47: N/A | M47: N/A | N47: N/A | O47: N/A | P47: N/A | Q47: N/A | R47: N/A | S47: N/A | T47: N/A | U47: N/A | V47: N/A | W47: N/A | X47: N/A | Y47: N/A | Z47: N/A | AA47: N/A | AB47: N/A | AC47: N/A | BA47: Microbiological quality at point of collection | BB47: Not contaminated (No E. coli in 100 mL) | BC47: N/A | BD47: N/A | BE47: N/A | BF47: N/A | BG47: N/A | BH47: N/A | BI47: N/A | BJ47: N/A | BK47: N/A | BL47: N/A | BM47: N/A | BN47: N/A | BO47: N/A | BP47: N/A | BQ47: N/A | BR47: N/A | BS47: N/A | BT47: N/A | BU47: N/A | BV47: N/A | BW47: N/A | BX47: N/A | BY47: N/A | BZ47: N/A | CA47: N/A | CB47: N/A | CC47: N/A
B48: Contaminated (E. coli detected in 100 mL) | C48: N/A | D48: N/A | E48: N/A | F48: N/A | G48: N/A | H48: N/A | I48: N/A | J48: N/A | K48: N/A | L48: N/A | M48: N/A | N48: N/A | O48: N/A | P48: N/A | Q48: N/A | R48: N/A | S48: N/A | T48: N/A | U48: N/A | V48: N/A | W48: N/A | X48: N/A | Y48: N/A | Z48: N/A | AA48: N/A | AB48: N/A | AC48: N/A | BB48: Contaminated (E. coli detected in 100 mL) | BC48: N/A | BD48: N/A | BE48: N/A | BF48: N/A | BG48: N/A | BH48: N/A | BI48: N/A | BJ48: N/A | BK48: N/A | BL48: N/A | BM48: N/A | BN48: N/A | BO48: N/A | BP48: N/A | BQ48: N/A | BR48: N/A | BS48: N/A | BT48: N/A | BU48: N/A | BV48: N/A | BW48: N/A | BX48: N/A | BY48: N/A | BZ48: N/A | CA48: N/A | CB48: N/A | CC48: N/A
B49: Highly contaminated (>100 CFU/100 mL) | C49: N/A | D49: N/A | E49: N/A | F49: N/A | G49: N/A | H49: N/A | I49: N/A | J49: N/A | K49: N/A | L49: N/A | M49: N/A | N49: N/A | O49: N/A | P49: N/A | Q49: N/A | R49: N/A | S49: N/A | T49: N/A | U49: N/A | V49: N/A | W49: N/A | X49: N/A | Y49: N/A | Z49: N/A | AA49: N/A | AB49: N/A | AC49: N/A | BB49: Highly contaminated (>100 CFU/100 mL) | BC49: N/A | BD49: N/A | BE49: N/A | BF49: N/A | BG49: N/A | BH49: N/A | BI49: N/A | BJ49: N/A | BK49: N/A | BL49: N/A | BM49: N/A | BN49: N/A | BO49: N/A | BP49: N/A | BQ49: N/A | BR49: N/A | BS49: N/A | BT49: N/A | BU49: N/A | BV49: N/A | BW49: N/A | BX49: N/A | BY49: N/A | BZ49: N/A | CA49: N/A | CB49: N/A | CC49: N/A
A50: Microbiological quality of improved water sources at point of collection | B50: Not contaminated (No E. coli in 100 mL) | C50: N/A | D50: N/A | E50: N/A | F50: N/A | G50: N/A | H50: N/A | I50: N/A | J50: N/A | K50: N/A | L50: N/A | M50: N/A | N50: N/A | O50: N/A | P50: N/A | Q50: N/A | R50: N/A | S50: N/A | T50: N/A | U50: N/A | V50: N/A | W50: N/A | X50: N/A | Y50: N/A | Z50: N/A | AA50: N/A | AB50: N/A | AC50: N/A | BA50: Microbiological quality of improved water sources at point of collection | BB50: Not contaminated (No E. coli in 100 mL) | BC50: N/A | BD50: N/A | BE50: N/A | BF50: N/A | BG50: N/A | BH50: N/A | BI50: N/A | BJ50: N/A | BK50: N/A | BL50: N/A | BM50: N/A | BN50: N/A | BO50: N/A | BP50: N/A | BQ50: N/A | BR50: N/A | BS50: N/A | BT50: N/A | BU50: N/A | BV50: N/A | BW50: N/A | BX50: N/A | BY50: N/A | BZ50: N/A | CA50: N/A | CB50: N/A | CC50: N/A
B51: Contaminated (E. coli detected in 100 mL) | C51: N/A | D51: N/A | E51: N/A | F51: N/A | G51: N/A | H51: N/A | I51: N/A | J51: N/A | K51: N/A | L51: N/A | M51: N/A | N51: N/A | O51: N/A | P51: N/A | Q51: N/A | R51: N/A | S51: N/A | T51: N/A | U51: N/A | V51: N/A | W51: N/A | X51: N/A | Y51: N/A | Z51: N/A | AA51: N/A | AB51: N/A | AC51: N/A | BB51: Contaminated (E. coli detected in 100 mL) | BC51: N/A | BD51: N/A | BE51: N/A | BF51: N/A | BG51: N/A | BH51: N/A | BI51: N/A | BJ51: N/A | BK51: N/A | BL51: N/A | BM51: N/A | BN51: N/A | BO51: N/A | BP51: N/A | BQ51: N/A | BR51: N/A | BS51: N/A | BT51: N/A | BU51: N/A | BV51: N/A | BW51: N/A | BX51: N/A | BY51: N/A | BZ51: N/A | CA51: N/A | CB51: N/A | CC51: N/A
B52: Highly contaminated (>100 CFU/100 mL) | C52: N/A | D52: N/A | E52: N/A | F52: N/A | G52: N/A | H52: N/A | I52: N/A | J52: N/A | K52: N/A | L52: N/A | M52: N/A | N52: N/A | O52: N/A | P52: N/A | Q52: N/A | R52: N/A | S52: N/A | T52: N/A | U52: N/A | V52: N/A | W52: N/A | X52: N/A | Y52: N/A | Z52: N/A | AA52: N/A | AB52: N/A | AC52: N/A | BB52: Highly contaminated (>100 CFU/100 mL) | BC52: N/A | BD52: N/A | BE52: N/A | BF52: N/A | BG52: N/A | BH52: N/A | BI52: N/A | BJ52: N/A | BK52: N/A | BL52: N/A | BM52: N/A | BN52: N/A | BO52: N/A | BP52: N/A | BQ52: N/A | BR52: N/A | BS52: N/A | BT52: N/A | BU52: N/A | BV52: N/A | BW52: N/A | BX52: N/A | BY52: N/A | BZ52: N/A | CA52: N/A | CB52: N/A | CC52: N/A
A53: Microbiological quality of piped on premises at point of collection | B53: Not contaminated (No E. coli in 100 mL) | C53: N/A | D53: N/A | E53: N/A | F53: N/A | G53: N/A | H53: N/A | I53: N/A | J53: N/A | K53: N/A | L53: N/A | M53: N/A | N53: N/A | O53: N/A | P53: N/A | Q53: N/A | R53: N/A | S53: N/A | T53: N/A | U53: N/A | V53: N/A | W53: N/A | X53: N/A | Y53: N/A | Z53: N/A | AA53: N/A | AB53: N/A | AC53: N/A | BA53: Microbiological quality of piped on premises at point of collection | BB53: Not contaminated (No E. coli in 100 mL) | BC53: N/A | BD53: N/A | BE53: N/A | BF53: N/A | BG53: N/A | BH53: N/A | BI53: N/A | BJ53: N/A | BK53: N/A | BL53: N/A | BM53: N/A | BN53: N/A | BO53: N/A | BP53: N/A | BQ53: N/A | BR53: N/A | BS53: N/A | BT53: N/A | BU53: N/A | BV53: N/A | BW53: N/A | BX53: N/A | BY53: N/A | BZ53: N/A | CA53: N/A | CB53: N/A | CC53: N/A
B54: Contaminated (E. coli detected in 100 mL) | C54: N/A | D54: N/A | E54: N/A | F54: N/A | G54: N/A | H54: N/A | I54: N/A | J54: N/A | K54: N/A | L54: N/A | M54: N/A | N54: N/A | O54: N/A | P54: N/A | Q54: N/A | R54: N/A | S54: N/A | T54: N/A | U54: N/A | V54: N/A | W54: N/A | X54: N/A | Y54: N/A | Z54: N/A | AA54: N/A | AB54: N/A | AC54: N/A | BB54: Contaminated (E. coli detected in 100 mL) | BC54: N/A | BD54: N/A | BE54: N/A | BF54: N/A | BG54: N/A | BH54: N/A | BI54: N/A | BJ54: N/A | BK54: N/A | BL54: N/A | BM54: N/A | BN54: N/A | BO54: N/A | BP54: N/A | BQ54: N/A | BR54: N/A | BS54: N/A | BT54: N/A | BU54: N/A | BV54: N/A | BW54: N/A | BX54: N/A | BY54: N/A | BZ54: N/A | CA54: N/A | CB54: N/A | CC54: N/A
B55: Highly contaminated (>100 CFU/100 mL) | C55: N/A | D55: N/A | E55: N/A | F55: N/A | G55: N/A | H55: N/A | I55: N/A | J55: N/A | K55: N/A | L55: N/A | M55: N/A | N55: N/A | O55: N/A | P55: N/A | Q55: N/A | R55: N/A | S55: N/A | T55: N/A | U55: N/A | V55: N/A | W55: N/A | X55: N/A | Y55: N/A | Z55: N/A | AA55: N/A | AB55: N/A | AC55: N/A | BB55: Highly contaminated (>100 CFU/100 mL) | BC55: N/A | BD55: N/A | BE55: N/A | BF55: N/A | BG55: N/A | BH55: N/A | BI55: N/A | BJ55: N/A | BK55: N/A | BL55: N/A | BM55: N/A | BN55: N/A | BO55: N/A | BP55: N/A | BQ55: N/A | BR55: N/A | BS55: N/A | BT55: N/A | BU55: N/A | BV55: N/A | BW55: N/A | BX55: N/A | BY55: N/A | BZ55: N/A | CA55: N/A | CB55: N/A | CC55: N/A
C56: NATIONAL wealth index quintile | H56: URBAN wealth index quintile | M56: RURAL wealth index quintile | R56: provinces | BA56: Raw numbers of respondents: | BB56: Use of drinking water sources | BC56: NATIONAL wealth index quintile | BH56: URBAN wealth index quintile | BM56: RURAL wealth index quintile | BR56: SUB-REGIONS:
A57: Percentage based on weighted population | C57: Poorest | D57: Poor | E57: Middle | F57: Rich | G57: Richest | H57: Poorest | I57: Poor | J57: Middle | K57: Rich | L57: Richest | M57: Poorest | N57: Poor | O57: Middle | P57: Rich | Q57: Richest | R57: butare | S57: byumba | T57: cyangugu | U57: gikongoro | V57: gisenyi | W57: gitarama | X57: kibungo | Y57: kibuye | Z57: kigali-rural | AA57: kigali-ville | AB57: ruhengeri | AC57: umutura | BA57: Water data, raw numbers (weighted) | BC57: Poorest | BD57: Poor | BE57: Middle | BF57: Rich | BG57: Richest | BH57: Poorest | BI57: Poor | BJ57: Middle | BK57: Rich | BL57: Richest | BM57: Poorest | BN57: Poor | BO57: Middle | BP57: Rich | BQ57: Richest | BR57: butare | BS57: byumba | BT57: cyangugu | BU57: gikongoro | BV57: gisenyi | BW57: gitarama | BX57: kibungo | BY57: kibuye | BZ57: kigali-rural | CA57: kigali-ville | CB57: ruhengeri | CC57: umutura
A58: source principale d'eau a boire | B58: eaurobinet danslogement | C58: 0 | D58: 0.1308290014 | E58: 0.05671020671 | F58: 0.06178168677 | G58: 3.561180887 | H58: 0 | I58: 0.5014571984 | J58: 0.9332649307 | K58: 6.406181339 | L58: 16.56048585 | M58: 0 | N58: 0.1516370972 | O58: 0 | P58: 0.03000290203 | Q58: 0.09641196047 | R58: 3.754469607 | S58: 0.1427551749 | T58: 0.3804347826 | U58: 0 | V58: 0.765606596 | W58: 0 | X58: 0.06222775358 | Y58: 0.06605019815 | Z58: 0 | AA58: 7.70933235 | AB58: 0.2677376171 | AC58: 0
B59: eaurobinet dans cour/ parcelle | C59: 0.2886889821 | D59: 0.5311414805 | E59: 1.445109605 | F59: 1.273714272 | G59: 16.26363286 | H59: 4.243327359 | I59: 13.5610346 | J59: 22.9755005 | K59: 32.18703054 | L59: 55.42395649 | M59: 0 | N59: 0.4800606396 | O59: 0.3858593477 | P59: 0 | Q59: 0.3075343062 | R59: 3.754469607 | S59: 0.9279086367 | T59: 3.967391304 | U59: 0.5980066445 | V59: 9.952885748 | W59: 2.691867125 | X59: 1.804604854 | Y59: 0 | Z59: 2.85884455 | AA59: 22.35337514 | AB59: 2.543507363 | AC59: 0
B60: borne fontaine | C60: 39.20256879 | D60: 40.62027854 | E60: 44.20247448 | F60: 44.2163736 | G60: 47.79167251 | H60: 56.06233422 | I60: 70.01074646 | J60: 58.81682834 | K60: 48.8401496 | L60: 23.62079777 | M60: 38.85050259 | N60: 39.30976436 | O60: 41.62752944 | P60: 40.87652132 | Q60: 48.26017186 | R60: 46.54350417 | S60: 44.11134904 | T60: 34.61956522 | U60: 45.98006645 | V60: 31.68433451 | W60: 60.53837342 | X60: 45.55071562 | Y60: 50.1321004 | Z60: 37.28409768 | AA60: 54.07598672 | AB60: 45.2476573 | AC60: 29.28759894
B61: puits a pompe | C61: 1.534389488 | D61: 1.614610966 | E61: 1.656198784 | F61: 0.9974192763 | G61: 0.6606997855 | H61: 0.7233682066 | I61: 3.079155067 | J61: 2.62462082 | K61: 0 | L61: 0 | M61: 1.688820426 | N61: 1.87141167 | O61: 1.316150466 | P61: 0.8266344078 | Q61: 0.7622690627 | R61: 0.7747318236 | S61: 1.641684511 | T61: 2.119565217 | U61: 0.7973421927 | V61: 0.6478209658 | W61: 1.374570447 | X61: 1.929060361 | Y61: 0.3963011889 | Z61: 1.369863014 | AA61: 1.696790852 | AB61: 0.7362784471 | AC61: 3.298153034
B62: puits protege | C62: 8.499149324 | D62: 10.03053154 | E62: 8.504395819 | F62: 5.334159601 | G62: 6.67755924 | H62: 2.454243857 | I62: 1.55102679 | J62: 2.379711038 | K62: 1.288579929 | L62: 0 | M62: 8.730506731 | N62: 9.58776814 | O62: 10.33061121 | P62: 6.339932881 | Q62: 9.452570203 | R62: 11.74016687 | S62: 9.778729479 | T62: 8.586956522 | U62: 8.704318937 | V62: 5.594817432 | W62: 6.586483391 | X62: 5.91163659 | Y62: 7.992073976 | Z62: 7.802263252 | AA62: 1.438583549 | AB62: 7.764390897 | AC62: 12.07124011
B63: source protegée/amenagee | C63: 17.41572529 | D63: 13.13443895 | E63: 14.4389541 | F63: 16.43579906 | G63: 8.166776464 | H63: 21.70536579 | I63: 5.225398918 | J63: 2.084258489 | K63: 0.5048194924 | L63: 0.5918369503 | M63: 17.72085489 | N63: 12.79678005 | O63: 14.14213753 | P63: 18.19432197 | Q63: 13.55176715 | R63: 14.36233611 | S63: 16.55960029 | T63: 14.67391304 | U63: 12.09302326 | V63: 19.96466431 | W63: 8.476517755 | X63: 8.774113255 | Y63: 17.7675033 | Z63: 12.68612269 | AA63: 5.754334194 | AB63: 20.54886212 | AC63: 3.430079156
B64: eau de pluie (sans systeme de captage) | C64: 0 | D64: 0.100410674 | E64: 0 | F64: 0 | G64: 0.09560755803 | H64: 0 | I64: 0 | J64: 0 | K64: 0 | L64: 0 | M64: 0 | N64: 0.1163807946 | O64: 0 | P64: 0 | Q64: 0.1121366143 | R64: 0.2383790226 | S64: 0.2141327623 | T64: 0 | U64: 0 | V64: 0 | W64: 0 | X64: 0 | Y64: 0 | Z64: 0 | AA64: 0 | AB64: 0 | AC64: 0
B65: puits non protege | C65: 3.091744561 | D65: 2.942868241 | E65: 2.538159807 | F65: 2.38022986 | G65: 0.5013953885 | H65: 0.9361235615 | I65: 0.2089404993 | J65: 1.123014757 | K65: 0.08413658207 | L65: 0 | M65: 3.062523649 | N65: 2.956886747 | O65: 2.284216684 | P65: 3.962475634 | Q65: 0.7411931883 | R65: 1.847437426 | S65: 1.356174161 | T65: 3.206521739 | U65: 3.255813953 | V65: 0.4711425206 | W65: 0.8018327606 | X65: 3.4847542 | Y65: 2.245706737 | Z65: 1.846337105 | AA65: 1.475470306 | AB65: 2.275769746 | AC65: 10.55408971
B66: source non protegee | C66: 7.216015965 | D66: 6.10042227 | E66: 7.06877357 | F66: 5.36381056 | G66: 2.420450492 | H66: 3.597192618 | I66: 1.192223006 | J66: 0.8684879576 | K66: 0.2103414552 | L66: 0 | M66: 6.960682414 | N66: 7.069409699 | O66: 6.549566456 | P66: 6.870104184 | Q66: 4.546979211 | R66: 0.9535160906 | S66: 8.850820842 | T66: 9.184782609 | U66: 5.382059801 | V66: 4.004711425 | W66: 3.894616266 | X66: 7.156191661 | Y66: 6.737120211 | Z66: 10.18463371 | AA66: 1.10660273 | AB66: 4.618473896 | AC66: 3.166226913
B67: mare/ riviere/ruisseau/lac | C67: 22.26291797 | D67: 24.56162269 | E67: 19.63330008 | F67: 23.93671208 | G67: 11.78281477 | H67: 8.941356119 | I67: 4.670017472 | J67: 5.497827143 | K67: 2.335682867 | L67: 0.4547307665 | M67: 22.40883657 | N67: 25.39002151 | O67: 23.05564565 | P67: 22.90000671 | Q67: 22.16896645 | R67: 16.03098927 | S67: 16.27408994 | T67: 23.26086957 | U67: 23.18936877 | V67: 26.14840989 | W67: 15.63573883 | X67: 25.32669571 | Y67: 14.66314399 | Z67: 21.7986897 | AA67: 4.315750646 | AB67: 15.99732262 | AC67: 36.87335092
B68: camion citerne, vendeur d'eau | C68: 0 | D68: 0 | E68: 0 | F68: 0 | G68: 1.978940803 | H68: 0 | I68: 0 | J68: 2.014964931 | K68: 8.143078197 | L68: 3.348192176 | M68: 0 | N68: 0 | O68: 0 | P68: 0 | Q68: 0 | R68: 0 | S68: 0 | T68: 0 | U68: 0 | V68: 0.4711425206 | W68: 0 | X68: 0 | Y68: 0 | Z68: 2.977963073 | AA68: 0 | AB68: 0 | AC68: 0
B69: autre ( a preciser) | C69: 0.4887996328 | D69: 0.2328456539 | E69: 0.4559235518 | F69: 0 | G69: 0.09926923504 | H69: 1.336688273 | I69: 0 | J69: 0.6815210985 | K69: 0 | L69: 0 | M69: 0.5772727318 | N69: 0.269879298 | O69: 0.3082832149 | P69: 0 | Q69: 0 | R69: 0 | S69: 0.1427551749 | T69: 0 | U69: 0 | V69: 0.2944640754 | W69: 0 | X69: 0 | Y69: 0 | Z69: 1.191185229 | AA69: 0.07377351531 | AB69: 0 | AC69: 1.319261214
A108: =A1026 -> Rwanda
A109: =A1034 -> 2000
A110: Use of sanitation facilities
A111: by wealth quintile and sub-national region
A112: Notes:
A113: WHO/UNICEF JMP customised wealth index excludes water,
A114: sanitation and hygiene assets.
A115: Survey used for analysis: | B115: =A1025 -> MICS00
A116: =B1030 -> Ratio of Improved latrines based on:
A117: =B1029 -> Ratio of Shared improved based on:
A120: Use of sanitation facilities | C120: NATIONAL wealth index quintile | H120: URBAN wealth index quintile | M120: RURAL wealth index quintile | R120: provinces | BA120: Raw numbers of respondents: | BB120: Use of sanitation facilities | BC120: NATIONAL wealth index quintile | BH120: URBAN wealth index quintile | BM120: RURAL wealth index quintile | BR120: SUB-REGIONS:
A121: Weighted percentage (used in graphs) | C121: Poorest | D121: Poor | E121: Middle | F121: Rich | G121: Richest | H121: Poorest | I121: Poor | J121: Middle | K121: Rich | L121: Richest | M121: Poorest | N121: Poor | O121: Middle | P121: Rich | Q121: Richest | R121: butare | S121: byumba | T121: cyangugu | U121: gikongoro | V121: gisenyi | W121: gitarama | X121: kibungo | Y121: kibuye | Z121: kigali-rural | AA121: kigali-ville | AB121: ruhengeri | AC121: umutura | BA121: Sanitation data, raw numbers (weighted) | BC121: Poorest | BD121: Poor | BE121: Middle | BF121: Rich | BG121: Richest | BH121: Poorest | BI121: Poor | BJ121: Middle | BK121: Rich | BL121: Richest | BM121: Poorest | BN121: Poor | BO121: Middle | BP121: Rich | BQ121: Richest | BR121: butare | BS121: byumba | BT121: cyangugu | BU121: gikongoro | BV121: gisenyi | BW121: gitarama | BX121: kibungo | BY121: kibuye | BZ121: kigali-rural | CA121: kigali-ville | CB121: ruhengeri | CC121: umutura
A122: Sanitation | B122: Improved | C122: =C153+C154+C155+C156*'DHS10'!C130/100 -> 34.61234142 | D122: =D153+D154+D155+D156*'DHS10'!D130/100 -> 47.52427766 | E122: =E153+E154+E155+E156*'DHS10'!E130/100 -> 62.14627863 | F122: =F153+F154+F155+F156*'DHS10'!F130/100 -> 63.12361966 | G122: =G153+G154+G155+G156*'DHS10'!G130/100 -> 87.97829545 | H122: =H153+H154+H155+H156*'DHS10'!H130/100 -> 48.01835032 | I122: =I153+I154+I155+I156*'DHS10'!I130/100 -> 78.10853841 | J122: =J153+J154+J155+J156*'DHS10'!J130/100 -> 87.92443197 | K122: =K153+K154+K155+K156*'DHS10'!K130/100 -> 97.08274428 | L122: =L153+L154+L155+L156*'DHS10'!L130/100 -> 99.70408152 | M122: =M153+M154+M155+M156*'DHS10'!M130/100 -> 32.77713923 | N122: =N153+N154+N155+N156*'DHS10'!N130/100 -> 47.60544896 | O122: =O153+O154+O155+O156*'DHS10'!O130/100 -> 60.01991427 | P122: =P153+P154+P155+P156*'DHS10'!P130/100 -> 58.3165278 | Q122: =Q153+Q154+Q155+Q156*'DHS10'!Q130/100 -> 77.516071 | R122: N/A | S122: N/A | T122: N/A | U122: N/A | V122: N/A | W122: N/A | X122: N/A | Y122: N/A | Z122: N/A | AA122: N/A | AB122: N/A | AC122: N/A | BA122: Sanitation | BB122: Improved | BC122: N/A | BD122: N/A | BE122: N/A | BF122: N/A | BG122: N/A | BH122: N/A | BI122: N/A | BJ122: N/A | BK122: N/A | BL122: N/A | BM122: N/A | BN122: N/A | BO122: N/A | BP122: N/A | BQ122: N/A | BR122: N/A | BS122: N/A | BT122: N/A | BU122: N/A | BV122: N/A | BW122: N/A | BX122: N/A | BY122: N/A | BZ122: N/A | CA122: N/A | CB122: N/A | CC122: N/A
B123: Not Improved | C123: =100-C122 -> 65.38765858 | D123: =100-D122 -> 52.47572234 | E123: 37.85372137 | F123: 36.87638034 | G123: 12.02170455 | H123: 51.98164968 | I123: 21.89146159 | J123: 12.07556803 | K123: 2.917255717 | L123: 0.2959184751 | M123: 67.22286077 | N123: 52.39455104 | O123: 39.98008573 | P123: 41.6834722 | Q123: 22.483929 | R123: N/A | S123: N/A | T123: N/A | U123: N/A | V123: N/A | W123: N/A | X123: N/A | Y123: N/A | Z123: N/A | AA123: N/A | AB123: N/A | AC123: N/A | BB123: Not Improved | BC123: N/A | BD123: N/A | BE123: N/A | BF123: N/A | BG123: N/A | BH123: N/A | BI123: N/A | BJ123: N/A | BK123: N/A | BL123: N/A | BM123: N/A | BN123: N/A | BO123: N/A | BP123: N/A | BQ123: N/A | BR123: N/A | BS123: N/A | BT123: N/A | BU123: N/A | BV123: N/A | BW123: N/A | BX123: N/A | BY123: N/A | BZ123: N/A | CA123: N/A | CB123: N/A | CC123: N/A
A124: Sanitation ladder | B124: Basic | C124: =C122*'DHS10'!C129/100 -> 25.80905474 | D124: =D122*'DHS10'!D129/100 -> 39.41150239 | E124: =E122*'DHS10'!E129/100 -> 54.75755793 | F124: =F122*'DHS10'!F129/100 -> 55.75501132 | G124: =G122*'DHS10'!G129/100 -> 67.065337 | H124: =H122*'DHS10'!H129/100 -> 37.60056077 | I124: =I122*'DHS10'!I129/100 -> 53.8016731 | J124: =J122*'DHS10'!J129/100 -> 46.42728427 | K124: =K122*'DHS10'!K129/100 -> 46.42616202 | L124: =L122*'DHS10'!L129/100 -> 76.64222426 | M124: =M122*'DHS10'!M129/100 -> 24.10027439 | N124: =N122*'DHS10'!N129/100 -> 39.27853334 | O124: =O122*'DHS10'!O129/100 -> 52.9295964 | P124: =P122*'DHS10'!P129/100 -> 52.14171763 | Q124: =Q122*'DHS10'!Q129/100 -> 69.76164018 | R124: N/A | S124: N/A | T124: N/A | U124: N/A | V124: N/A | W124: N/A | X124: N/A | Y124: N/A | Z124: N/A | AA124: N/A | AB124: N/A | AC124: N/A | BA124: Sanitation ladder | BB124: Basic | BC124: N/A | BD124: N/A | BE124: N/A | BF124: N/A | BG124: N/A | BH124: N/A | BI124: N/A | BJ124: N/A | BK124: N/A | BL124: N/A | BM124: N/A | BN124: N/A | BO124: N/A | BP124: N/A | BQ124: N/A | BR124: N/A | BS124: N/A | BT124: N/A | BU124: N/A | BV124: N/A | BW124: N/A | BX124: N/A | BY124: N/A | BZ124: N/A | CA124: N/A | CB124: N/A | CC124: N/A
B125: Limited | C125: =C122*'DHS10'!C128/100 -> 8.803286681 | D125: =D122*'DHS10'!D128/100 -> 8.11277527 | E125: =E122*'DHS10'!E128/100 -> 7.388720698 | F125: =F122*'DHS10'!F128/100 -> 7.368608343 | G125: =G122*'DHS10'!G128/100 -> 20.91295844 | H125: =H122*'DHS10'!H128/100 -> 10.41778956 | I125: =I122*'DHS10'!I128/100 -> 24.30686531 | J125: =J122*'DHS10'!J128/100 -> 41.49714771 | K125: =K122*'DHS10'!K128/100 -> 50.65658226 | L125: =L122*'DHS10'!L128/100 -> 23.06185726 | M125: =M122*'DHS10'!M128/100 -> 8.676864845 | N125: =N122*'DHS10'!N128/100 -> 8.326915618 | O125: =O122*'DHS10'!O128/100 -> 7.090317867 | P125: =P122*'DHS10'!P128/100 -> 6.174810169 | Q125: =Q122*'DHS10'!Q128/100 -> 7.754430819 | R125: N/A | S125: N/A | T125: N/A | U125: N/A | V125: N/A | W125: N/A | X125: N/A | Y125: N/A | Z125: N/A | AA125: N/A | AB125: N/A | AC125: N/A | BB125: Limited | BC125: N/A | BD125: N/A | BE125: N/A | BF125: N/A | BG125: N/A | BH125: N/A | BI125: N/A | BJ125: N/A | BK125: N/A | BL125: N/A | BM125: N/A | BN125: N/A | BO125: N/A | BP125: N/A | BQ125: N/A | BR125: N/A | BS125: N/A | BT125: N/A | BU125: N/A | BV125: N/A | BW125: N/A | BX125: N/A | BY125: N/A | BZ125: N/A | CA125: N/A | CB125: N/A | CC125: N/A
B126: Unimproved | C126: =100-(C124+C125+C127) -> 59.5363205 | D126: =100-(D124+D125+D127) -> 47.95812359 | E126: 36.44111904 | F126: 33.91919304 | G126: 11.27897411 | H126: 47.29551866 | I126: 19.24497894 | J126: 10.41418641 | K126: 2.576651238 | L126: 0.2959184751 | M126: 61.22513468 | N126: 47.58392267 | O126: 38.60301496 | P126: 38.67886855 | Q126: 21.14102437 | R126: N/A | S126: N/A | T126: N/A | U126: N/A | V126: N/A | W126: N/A | X126: N/A | Y126: N/A | Z126: N/A | AA126: N/A | AB126: N/A | AC126: N/A | BB126: Unimproved | BC126: N/A | BD126: N/A | BE126: N/A | BF126: N/A | BG126: N/A | BH126: N/A | BI126: N/A | BJ126: N/A | BK126: N/A | BL126: N/A | BM126: N/A | BN126: N/A | BO126: N/A | BP126: N/A | BQ126: N/A | BR126: N/A | BS126: N/A | BT126: N/A | BU126: N/A | BV126: N/A | BW126: N/A | BX126: N/A | BY126: N/A | BZ126: N/A | CA126: N/A | CB126: N/A | CC126: N/A
B127: Open defecation | C127: =C160 -> 5.851338081 | D127: =D160 -> 4.51759875 | E127: 1.412602337 | F127: 2.957187294 | G127: 0.7427304452 | H127: 4.686131015 | I127: 2.646482652 | J127: 1.661381613 | K127: 0.3406044785 | L127: 0 | M127: 5.997726091 | N127: 4.810628366 | O127: 1.37707077 | P127: 3.00460365 | Q127: 1.342904635 | R127: N/A | S127: N/A | T127: N/A | U127: N/A | V127: N/A | W127: N/A | X127: N/A | Y127: N/A | Z127: N/A | AA127: N/A | AB127: N/A | AC127: N/A | BB127: Open defecation | BC127: N/A | BD127: N/A | BE127: N/A | BF127: N/A | BG127: N/A | BH127: N/A | BI127: N/A | BJ127: N/A | BK127: N/A | BL127: N/A | BM127: N/A | BN127: N/A | BO127: N/A | BP127: N/A | BQ127: N/A | BR127: N/A | BS127: N/A | BT127: N/A | BU127: N/A | BV127: N/A | BW127: N/A | BX127: N/A | BY127: N/A | BZ127: N/A | CA127: N/A | CB127: N/A | CC127: N/A
A128: Shared among Improved Sanitation | B128: Yes | C128: N/A | D128: N/A | E128: N/A | F128: N/A | G128: N/A | H128: N/A | I128: N/A | J128: N/A | K128: N/A | L128: N/A | M128: N/A | N128: N/A | O128: N/A | P128: N/A | Q128: N/A | R128: N/A | S128: N/A | T128: N/A | U128: N/A | V128: N/A | W128: N/A | X128: N/A | Y128: N/A | Z128: N/A | AA128: N/A | AB128: N/A | AC128: N/A | BA128: Shared among improved sanitation facilities | BB128: Yes | BC128: N/A | BD128: N/A | BE128: N/A | BF128: N/A | BG128: N/A | BH128: N/A | BI128: N/A | BJ128: N/A | BK128: N/A | BL128: N/A | BM128: N/A | BN128: N/A | BO128: N/A | BP128: N/A | BQ128: N/A | BR128: N/A | BS128: N/A | BT128: N/A | BU128: N/A | BV128: N/A | BW128: N/A | BX128: N/A | BY128: N/A | BZ128: N/A | CA128: N/A | CB128: N/A | CC128: N/A
B129: No | C129: N/A | D129: N/A | E129: N/A | F129: N/A | G129: N/A | H129: N/A | I129: N/A | J129: N/A | K129: N/A | L129: N/A | M129: N/A | N129: N/A | O129: N/A | P129: N/A | Q129: N/A | R129: N/A | S129: N/A | T129: N/A | U129: N/A | V129: N/A | W129: N/A | X129: N/A | Y129: N/A | Z129: N/A | AA129: N/A | AB129: N/A | AC129: N/A | BB129: No | BC129: N/A | BD129: N/A | BE129: N/A | BF129: N/A | BG129: N/A | BH129: N/A | BI129: N/A | BJ129: N/A | BK129: N/A | BL129: N/A | BM129: N/A | BN129: N/A | BO129: N/A | BP129: N/A | BQ129: N/A | BR129: N/A | BS129: N/A | BT129: N/A | BU129: N/A | BV129: N/A | BW129: N/A | BX129: N/A | BY129: N/A | BZ129: N/A | CA129: N/A | CB129: N/A | CC129: N/A
A130: Manually calculated ratios | B130: Improved latrines
B131: Other
B132: Other
C133: NATIONAL wealth index quintile | H133: URBAN wealth index quintile | M133: RURAL wealth index quintile | R133: provinces | BA133: Raw numbers of respondents: | BB133: Use of sanitation facilities | BC133: NATIONAL wealth index quintile | BH133: URBAN wealth index quintile | BM133: RURAL wealth index quintile | BR133: SUB-REGIONS:
A134: Percentage based on weighted population | C134: Poorest | D134: Poor | E134: Middle | F134: Rich | G134: Richest | H134: Poorest | I134: Poor | J134: Middle | K134: Rich | L134: Richest | M134: Poorest | N134: Poor | O134: Middle | P134: Rich | Q134: Richest | R134: butare | S134: byumba | T134: cyangugu | U134: gikongoro | V134: gisenyi | W134: gitarama | X134: kibungo | Y134: kibuye | Z134: kigali-rural | AA134: kigali-ville | AB134: ruhengeri | AC134: umutura | BA134: Sanitation data, raw numbers (weighted) | BC134: Poorest | BD134: Poor | BE134: Middle | BF134: Rich | BG134: Richest | BH134: Poorest | BI134: Poor | BJ134: Middle | BK134: Rich | BL134: Richest | BM134: Poorest | BN134: Poor | BO134: Middle | BP134: Rich | BQ134: Richest | BR134: butare | BS134: byumba | BT134: cyangugu | BU134: gikongoro | BV134: gisenyi | BW134: gitarama | BX134: kibungo | BY134: kibuye | BZ134: kigali-rural | CA134: kigali-ville | CB134: ruhengeri | CC134: umutura
A135: Sanitation type | B135: Sewer connection | C135: N/A | D135: N/A | E135: N/A | F135: N/A | G135: N/A | H135: N/A | I135: N/A | J135: N/A | K135: N/A | L135: N/A | M135: N/A | N135: N/A | O135: N/A | P135: N/A | Q135: N/A | R135: N/A | S135: N/A | T135: N/A | U135: N/A | V135: N/A | W135: N/A | X135: N/A | Y135: N/A | Z135: N/A | AA135: N/A | AB135: N/A | AC135: N/A | BA135: Sanitation type | BB135: Sewer connection | BC135: N/A | BD135: N/A | BE135: N/A | BF135: N/A | BG135: N/A | BH135: N/A | BI135: N/A | BJ135: N/A | BK135: N/A | BL135: N/A | BM135: N/A | BN135: N/A | BO135: N/A | BP135: N/A | BQ135: N/A | BR135: N/A | BS135: N/A | BT135: N/A | BU135: N/A | BV135: N/A | BW135: N/A | BX135: N/A | BY135: N/A | BZ135: N/A | CA135: N/A | CB135: N/A | CC135: N/A
B136: Septic tank connection | C136: N/A | D136: N/A | E136: N/A | F136: N/A | G136: N/A | H136: N/A | I136: N/A | J136: N/A | K136: N/A | L136: N/A | M136: N/A | N136: N/A | O136: N/A | P136: N/A | Q136: N/A | R136: N/A | S136: N/A | T136: N/A | U136: N/A | V136: N/A | W136: N/A | X136: N/A | Y136: N/A | Z136: N/A | AA136: N/A | AB136: N/A | AC136: N/A | BB136: Septic tank connection | BC136: N/A | BD136: N/A | BE136: N/A | BF136: N/A | BG136: N/A | BH136: N/A | BI136: N/A | BJ136: N/A | BK136: N/A | BL136: N/A | BM136: N/A | BN136: N/A | BO136: N/A | BP136: N/A | BQ136: N/A | BR136: N/A | BS136: N/A | BT136: N/A | BU136: N/A | BV136: N/A | BW136: N/A | BX136: N/A | BY136: N/A | BZ136: N/A | CA136: N/A | CB136: N/A | CC136: N/A
B137: Improved latrines | C137: N/A | D137: N/A | E137: N/A | F137: N/A | G137: N/A | H137: N/A | I137: N/A | J137: N/A | K137: N/A | L137: N/A | M137: N/A | N137: N/A | O137: N/A | P137: N/A | Q137: N/A | R137: N/A | S137: N/A | T137: N/A | U137: N/A | V137: N/A | W137: N/A | X137: N/A | Y137: N/A | Z137: N/A | AA137: N/A | AB137: N/A | AC137: N/A | BB137: Improved latrines | BC137: N/A | BD137: N/A | BE137: N/A | BF137: N/A | BG137: N/A | BH137: N/A | BI137: N/A | BJ137: N/A | BK137: N/A | BL137: N/A | BM137: N/A | BN137: N/A | BO137: N/A | BP137: N/A | BQ137: N/A | BR137: N/A | BS137: N/A | BT137: N/A | BU137: N/A | BV137: N/A | BW137: N/A | BX137: N/A | BY137: N/A | BZ137: N/A | CA137: N/A | CB137: N/A | CC137: N/A
B138: Unimproved facilities | C138: N/A | D138: N/A | E138: N/A | F138: N/A | G138: N/A | H138: N/A | I138: N/A | J138: N/A | K138: N/A | L138: N/A | M138: N/A | N138: N/A | O138: N/A | P138: N/A | Q138: N/A | R138: N/A | S138: N/A | T138: N/A | U138: N/A | V138: N/A | W138: N/A | X138: N/A | Y138: N/A | Z138: N/A | AA138: N/A | AB138: N/A | AC138: N/A | BB138: Unimproved facilities | BC138: N/A | BD138: N/A | BE138: N/A | BF138: N/A | BG138: N/A | BH138: N/A | BI138: N/A | BJ138: N/A | BK138: N/A | BL138: N/A | BM138: N/A | BN138: N/A | BO138: N/A | BP138: N/A | BQ138: N/A | BR138: N/A | BS138: N/A | BT138: N/A | BU138: N/A | BV138: N/A | BW138: N/A | BX138: N/A | BY138: N/A | BZ138: N/A | CA138: N/A | CB138: N/A | CC138: N/A
B139: Open defecation | C139: 5.851338081 | D139: 4.51759875 | E139: 1.412140792 | F139: 2.957187294 | G139: 0.7427304452 | H139: 4.686131015 | I139: 2.646482652 | J139: 1.661381613 | K139: 0.3406044785 | L139: 0 | M139: 5.997726091 | N139: 4.810628366 | O139: 1.376540315 | P139: 3.00460365 | Q139: 1.342904635 | R139: 3.337306317 | S139: 2.274342573 | T139: 3.695652174 | U139: 2.790697674 | V139: 3.062426384 | W139: 1.890034364 | X139: 2.364654636 | Y139: 3.170409511 | Z139: 1.904761905 | AA139: 0.2581120944 | AB139: 5.344021376 | AC139: 7.7176781 | BB139: Open defecation | BC139: N/A | BD139: N/A | BE139: N/A | BF139: N/A | BG139: N/A | BH139: N/A | BI139: N/A | BJ139: N/A | BK139: N/A | BL139: N/A | BM139: N/A | BN139: N/A | BO139: N/A | BP139: N/A | BQ139: N/A | BR139: N/A | BS139: N/A | BT139: N/A | BU139: N/A | BV139: N/A | BW139: N/A | BX139: N/A | BY139: N/A | BZ139: N/A | CA139: N/A | CB139: N/A | CC139: N/A
A140: Septic tank emptying practices | B140: Not emptied/treated and disposed in situ | C140: N/A | D140: N/A | E140: N/A | F140: N/A | G140: N/A | H140: N/A | I140: N/A | J140: N/A | K140: N/A | L140: N/A | M140: N/A | N140: N/A | O140: N/A | P140: N/A | Q140: N/A | R140: N/A | S140: N/A | T140: N/A | U140: N/A | V140: N/A | W140: N/A | X140: N/A | Y140: N/A | Z140: N/A | AA140: N/A | AB140: N/A | AC140: N/A | BA140: Septic tank emptying practices | BB140: Not emptied/treated and disposed in situ | BC140: N/A | BD140: N/A | BE140: N/A | BF140: N/A | BG140: N/A | BH140: N/A | BI140: N/A | BJ140: N/A | BK140: N/A | BL140: N/A | BM140: N/A | BN140: N/A | BO140: N/A | BP140: N/A | BQ140: N/A | BR140: N/A | BS140: N/A | BT140: N/A | BU140: N/A | BV140: N/A | BW140: N/A | BX140: N/A | BY140: N/A | BZ140: N/A | CA140: N/A | CB140: N/A | CC140: N/A
B141: Emptied and buried on site | C141: N/A | D141: N/A | E141: N/A | F141: N/A | G141: N/A | H141: N/A | I141: N/A | J141: N/A | K141: N/A | L141: N/A | M141: N/A | N141: N/A | O141: N/A | P141: N/A | Q141: N/A | R141: N/A | S141: N/A | T141: N/A | U141: N/A | V141: N/A | W141: N/A | X141: N/A | Y141: N/A | Z141: N/A | AA141: N/A | AB141: N/A | AC141: N/A | BB141: Emptied and buried on site | BC141: N/A | BD141: N/A | BE141: N/A | BF141: N/A | BG141: N/A | BH141: N/A | BI141: N/A | BJ141: N/A | BK141: N/A | BL141: N/A | BM141: N/A | BN141: N/A | BO141: N/A | BP141: N/A | BQ141: N/A | BR141: N/A | BS141: N/A | BT141: N/A | BU141: N/A | BV141: N/A | BW141: N/A | BX141: N/A | BY141: N/A | BZ141: N/A | CA141: N/A | CB141: N/A | CC141: N/A
B142: Emptied and discharged locally | C142: N/A | D142: N/A | E142: N/A | F142: N/A | G142: N/A | H142: N/A | I142: N/A | J142: N/A | K142: N/A | L142: N/A | M142: N/A | N142: N/A | O142: N/A | P142: N/A | Q142: N/A | R142: N/A | S142: N/A | T142: N/A | U142: N/A | V142: N/A | W142: N/A | X142: N/A | Y142: N/A | Z142: N/A | AA142: N/A | AB142: N/A | AC142: N/A | BB142: Emptied and discharged locally | BC142: N/A | BD142: N/A | BE142: N/A | BF142: N/A | BG142: N/A | BH142: N/A | BI142: N/A | BJ142: N/A | BK142: N/A | BL142: N/A | BM142: N/A | BN142: N/A | BO142: N/A | BP142: N/A | BQ142: N/A | BR142: N/A | BS142: N/A | BT142: N/A | BU142: N/A | BV142: N/A | BW142: N/A | BX142: N/A | BY142: N/A | BZ142: N/A | CA142: N/A | CB142: N/A | CC142: N/A
B143: Emptied and removed offsite | C143: N/A | D143: N/A | E143: N/A | F143: N/A | G143: N/A | H143: N/A | I143: N/A | J143: N/A | K143: N/A | L143: N/A | M143: N/A | N143: N/A | O143: N/A | P143: N/A | Q143: N/A | R143: N/A | S143: N/A | T143: N/A | U143: N/A | V143: N/A | W143: N/A | X143: N/A | Y143: N/A | Z143: N/A | AA143: N/A | AB143: N/A | AC143: N/A | BB143: Emptied and removed offsite | BC143: N/A | BD143: N/A | BE143: N/A | BF143: N/A | BG143: N/A | BH143: N/A | BI143: N/A | BJ143: N/A | BK143: N/A | BL143: N/A | BM143: N/A | BN143: N/A | BO143: N/A | BP143: N/A | BQ143: N/A | BR143: N/A | BS143: N/A | BT143: N/A | BU143: N/A | BV143: N/A | BW143: N/A | BX143: N/A | BY143: N/A | BZ143: N/A | CA143: N/A | CB143: N/A | CC143: N/A
A144: Latrine emptying practices | B144: Not emptied/treated and disposed in situ | C144: N/A | D144: N/A | E144: N/A | F144: N/A | G144: N/A | H144: N/A | I144: N/A | J144: N/A | K144: N/A | L144: N/A | M144: N/A | N144: N/A | O144: N/A | P144: N/A | Q144: N/A | R144: N/A | S144: N/A | T144: N/A | U144: N/A | V144: N/A | W144: N/A | X144: N/A | Y144: N/A | Z144: N/A | AA144: N/A | AB144: N/A | AC144: N/A | BA144: Latrine emptying practices | BB144: Not emptied/treated and disposed in situ | BC144: N/A | BD144: N/A | BE144: N/A | BF144: N/A | BG144: N/A | BH144: N/A | BI144: N/A | BJ144: N/A | BK144: N/A | BL144: N/A | BM144: N/A | BN144: N/A | BO144: N/A | BP144: N/A | BQ144: N/A | BR144: N/A | BS144: N/A | BT144: N/A | BU144: N/A | BV144: N/A | BW144: N/A | BX144: N/A | BY144: N/A | BZ144: N/A | CA144: N/A | CB144: N/A | CC144: N/A
B145: Emptied and buried on site | C145: N/A | D145: N/A | E145: N/A | F145: N/A | G145: N/A | H145: N/A | I145: N/A | J145: N/A | K145: N/A | L145: N/A | M145: N/A | N145: N/A | O145: N/A | P145: N/A | Q145: N/A | R145: N/A | S145: N/A | T145: N/A | U145: N/A | V145: N/A | W145: N/A | X145: N/A | Y145: N/A | Z145: N/A | AA145: N/A | AB145: N/A | AC145: N/A | BB145: Emptied and buried on site | BC145: N/A | BD145: N/A | BE145: N/A | BF145: N/A | BG145: N/A | BH145: N/A | BI145: N/A | BJ145: N/A | BK145: N/A | BL145: N/A | BM145: N/A | BN145: N/A | BO145: N/A | BP145: N/A | BQ145: N/A | BR145: N/A | BS145: N/A | BT145: N/A | BU145: N/A | BV145: N/A | BW145: N/A | BX145: N/A | BY145: N/A | BZ145: N/A | CA145: N/A | CB145: N/A | CC145: N/A
B146: Emptied and discharged locally | C146: N/A | D146: N/A | E146: N/A | F146: N/A | G146: N/A | H146: N/A | I146: N/A | J146: N/A | K146: N/A | L146: N/A | M146: N/A | N146: N/A | O146: N/A | P146: N/A | Q146: N/A | R146: N/A | S146: N/A | T146: N/A | U146: N/A | V146: N/A | W146: N/A | X146: N/A | Y146: N/A | Z146: N/A | AA146: N/A | AB146: N/A | AC146: N/A | BB146: Emptied and discharged locally | BC146: N/A | BD146: N/A | BE146: N/A | BF146: N/A | BG146: N/A | BH146: N/A | BI146: N/A | BJ146: N/A | BK146: N/A | BL146: N/A | BM146: N/A | BN146: N/A | BO146: N/A | BP146: N/A | BQ146: N/A | BR146: N/A | BS146: N/A | BT146: N/A | BU146: N/A | BV146: N/A | BW146: N/A | BX146: N/A | BY146: N/A | BZ146: N/A | CA146: N/A | CB146: N/A | CC146: N/A
B147: Emptied and removed offsite | C147: N/A | D147: N/A | E147: N/A | F147: N/A | G147: N/A | H147: N/A | I147: N/A | J147: N/A | K147: N/A | L147: N/A | M147: N/A | N147: N/A | O147: N/A | P147: N/A | Q147: N/A | R147: N/A | S147: N/A | T147: N/A | U147: N/A | V147: N/A | W147: N/A | X147: N/A | Y147: N/A | Z147: N/A | AA147: N/A | AB147: N/A | AC147: N/A | BB147: Emptied and removed offsite | BC147: N/A | BD147: N/A | BE147: N/A | BF147: N/A | BG147: N/A | BH147: N/A | BI147: N/A | BJ147: N/A | BK147: N/A | BL147: N/A | BM147: N/A | BN147: N/A | BO147: N/A | BP147: N/A | BQ147: N/A | BR147: N/A | BS147: N/A | BT147: N/A | BU147: N/A | BV147: N/A | BW147: N/A | BX147: N/A | BY147: N/A | BZ147: N/A | CA147: N/A | CB147: N/A | CC147: N/A
A148: Shared among improved sanitation facilities | B148: Yes | C148: N/A | D148: N/A | E148: N/A | F148: N/A | G148: N/A | H148: N/A | I148: N/A | J148: N/A | K148: N/A | L148: N/A | M148: N/A | N148: N/A | O148: N/A | P148: N/A | Q148: N/A | R148: N/A | S148: N/A | T148: N/A | U148: N/A | V148: N/A | W148: N/A | X148: N/A | Y148: N/A | Z148: N/A | AA148: N/A | AB148: N/A | AC148: N/A | BA148: Shared among improved sanitation facilities | BB148: Yes | BC148: N/A | BD148: N/A | BE148: N/A | BF148: N/A | BG148: N/A | BH148: N/A | BI148: N/A | BJ148: N/A | BK148: N/A | BL148: N/A | BM148: N/A | BN148: N/A | BO148: N/A | BP148: N/A | BQ148: N/A | BR148: N/A | BS148: N/A | BT148: N/A | BU148: N/A | BV148: N/A | BW148: N/A | BX148: N/A | BY148: N/A | BZ148: N/A | CA148: N/A | CB148: N/A | CC148: N/A
B149: No | C149: N/A | D149: N/A | E149: N/A | F149: N/A | G149: N/A | H149: N/A | I149: N/A | J149: N/A | K149: N/A | L149: N/A | M149: N/A | N149: N/A | O149: N/A | P149: N/A | Q149: N/A | R149: N/A | S149: N/A | T149: N/A | U149: N/A | V149: N/A | W149: N/A | X149: N/A | Y149: N/A | Z149: N/A | AA149: N/A | AB149: N/A | AC149: N/A | BB149: No | BC149: N/A | BD149: N/A | BE149: N/A | BF149: N/A | BG149: N/A | BH149: N/A | BI149: N/A | BJ149: N/A | BK149: N/A | BL149: N/A | BM149: N/A | BN149: N/A | BO149: N/A | BP149: N/A | BQ149: N/A | BR149: N/A | BS149: N/A | BT149: N/A | BU149: N/A | BV149: N/A | BW149: N/A | BX149: N/A | BY149: N/A | BZ149: N/A | CA149: N/A | CB149: N/A | CC149: N/A
B150: DK/missing | C150: N/A | D150: N/A | E150: N/A | F150: N/A | G150: N/A | H150: N/A | I150: N/A | J150: N/A | K150: N/A | L150: N/A | M150: N/A | N150: N/A | O150: N/A | P150: N/A | Q150: N/A | R150: N/A | S150: N/A | T150: N/A | U150: N/A | V150: N/A | W150: N/A | X150: N/A | Y150: N/A | Z150: N/A | AA150: N/A | AB150: N/A | AC150: N/A | BB150: DK/missing | BC150: N/A | BD150: N/A | BE150: N/A | BF150: N/A | BG150: N/A | BH150: N/A | BI150: N/A | BJ150: N/A | BK150: N/A | BL150: N/A | BM150: N/A | BN150: N/A | BO150: N/A | BP150: N/A | BQ150: N/A | BR150: N/A | BS150: N/A | BT150: N/A | BU150: N/A | BV150: N/A | BW150: N/A | BX150: N/A | BY150: N/A | BZ150: N/A | CA150: N/A | CB150: N/A | CC150: N/A
A151: Shared among all sanitation facilities | B151: Yes | C151: N/A | D151: N/A | E151: N/A | F151: N/A | G151: N/A | H151: N/A | I151: N/A | J151: N/A | K151: N/A | L151: N/A | M151: N/A | N151: N/A | O151: N/A | P151: N/A | Q151: N/A | R151: N/A | S151: N/A | T151: N/A | U151: N/A | V151: N/A | W151: N/A | X151: N/A | Y151: N/A | Z151: N/A | AA151: N/A | AB151: N/A | AC151: N/A | BA151: Shared among all sanitation facilities | BB151: Yes | BC151: N/A | BD151: N/A | BE151: N/A | BF151: N/A | BG151: N/A | BH151: N/A | BI151: N/A | BJ151: N/A | BK151: N/A | BL151: N/A | BM151: N/A | BN151: N/A | BO151: N/A | BP151: N/A | BQ151: N/A | BR151: N/A | BS151: N/A | BT151: N/A | BU151: N/A | BV151: N/A | BW151: N/A | BX151: N/A | BY151: N/A | BZ151: N/A | CA151: N/A | CB151: N/A | CC151: N/A
B152: No | C152: N/A | D152: N/A | E152: N/A | F152: N/A | G152: N/A | H152: N/A | I152: N/A | J152: N/A | K152: N/A | L152: N/A | M152: N/A | N152: N/A | O152: N/A | P152: N/A | Q152: N/A | R152: N/A | S152: N/A | T152: N/A | U152: N/A | V152: N/A | W152: N/A | X152: N/A | Y152: N/A | Z152: N/A | AA152: N/A | AB152: N/A | AC152: N/A | BB152: No | BC152: N/A | BD152: N/A | BE152: N/A | BF152: N/A | BG152: N/A | BH152: N/A | BI152: N/A | BJ152: N/A | BK152: N/A | BL152: N/A | BM152: N/A | BN152: N/A | BO152: N/A | BP152: N/A | BQ152: N/A | BR152: N/A | BS152: N/A | BT152: N/A | BU152: N/A | BV152: N/A | BW152: N/A | BX152: N/A | BY152: N/A | BZ152: N/A | CA152: N/A | CB152: N/A | CC152: N/A
A153: type of toillette utilise | B153: chasse d'eau avec egouts ou fosse sceptique | C153: 0.2634425232 | D153: 0.3488659868 | E153: 0.5761970829 | F153: 0.3802065827 | G153: 5.258526591 | H153: 0 | I153: 1.754367078 | J153: 3.311134485 | K153: 1.936675624 | L153: 28.22785775 | M153: 0.3109630006 | N153: 0.2378543747 | O153: 0.790037443 | P153: 0.1077071691 | Q153: 0.5199050572 | R153: 3.754469607 | S153: 0.4975124378 | T153: 0.8695652174 | U153: 2.19269103 | V153: 1.472320377 | W153: 0 | X153: 0.3111387679 | Y153: 0.6605019815 | Z153: 0.8338296605 | AA153: 10.65634218 | AB153: 0.5344021376 | AC153: 0.5277044855 | BA153: type of toillette utilise | BB153: chasse d'eau avec egouts ou fosse sceptique | BC153: 10.73143506 | BD153: 14.03341508 | BE153: 23.21877873 | BF153: 15.3327882 | BG153: 212.2782909 | BH153: 0 | BI153: 10.47631225 | BJ153: 19.46945068 | BK153: 11.48315324 | BL153: 166.5570513 | BM153: 10.73143506 | BN153: 8.254950047 | BO153: 27.00175571 | BP153: 3.726480007 | BQ153: 17.89411962 | BR153: 63.61582768 | BS153: 9.005555749 | BT153: 12.50193596 | BU153: 27.24133515 | BV153: 43.85584891 | BW153: 0 | BX153: 5.190240145 | BY153: 7.452960014 | BZ153: 18.43878317 | CA153: 72.08700572 | CB153: 10.83898354 | CC153: 5.366231918
B154: latrinesa evacuation | C154: 0.279224498 | D154: 0.3664110383 | E154: 0.3854608296 | F154: 0 | G154: 2.27572738 | H154: 0 | I154: 0 | J154: 0.7272975458 | K154: 4.301519958 | L154: 8.896942064 | M154: 0.329591771 | N154: 0.3295462447 | O154: 0.3252311217 | P154: 0.2231051242 | Q154: 0.2786314454 | R154: 1.251489869 | S154: 0.8528784648 | T154: 0.9782608696 | U154: 0.4651162791 | V154: 1.531213192 | W154: 0 | X154: 0.3733665215 | Y154: 0 | Z154: 0.4169148303 | AA154: 0.9587020649 | AB154: 0.4676018704 | AC154: 0 | BB154: latrinesa evacuation | BC154: 11.37432003 | BD154: 14.7391789 | BE154: 15.53275776 | BF154: 0 | BG154: 91.86746714 | BH154: 0 | BI154: 0 | BJ154: 4.276505157 | BK154: 25.50505218 | BL154: 52.49595805 | BM154: 11.37432003 | BN154: 11.43719888 | BO154: 11.11568999 | BP154: 7.719047785 | BQ154: 9.589951754 | BR154: 21.20527589 | BS154: 15.43809557 | BT154: 14.06467795 | BU154: 5.778465033 | BV154: 45.61008286 | BW154: 0 | BX154: 6.228288174 | BY154: 0 | BZ154: 9.219391584 | CA154: 6.485336155 | CB154: 9.484110594 | CC154: 0
B155: latrines ameliorees a ventilation | C155: 0.2230977639 | D155: 0.6498076417 | E155: 0.8066970799 | F155: 1.51251948 | G155: 6.009979812 | H155: 4.342015158 | I155: 5.875073559 | J155: 7.388421244 | K155: 11.83442784 | L155: 12.83711987 | M155: 0.2633407441 | N155: 0.7531582714 | O155: 0 | P155: 0.8235993206 | Q155: 1.677211925 | R155: 1.013110846 | S155: 3.127221038 | T155: 0.597826087 | U155: 0.4651162791 | V155: 4.593639576 | W155: 1.431844215 | X155: 0 | Y155: 0.3963011889 | Z155: 2.44192972 | AA155: 4.314159292 | AB155: 1.269205077 | AC155: 0 | BB155: latrines ameliorees a ventilation | BC155: 9.087975383 | BD155: 26.13903534 | BE155: 32.50714305 | BF155: 60.99615812 | BG155: 242.6132531 | BH155: 25.45305897 | BI155: 35.0833676 | BJ155: 43.44387209 | BK155: 70.17001024 | BL155: 75.7447785 | BM155: 9.087975383 | BN155: 26.13903534 | BO155: 0 | BP155: 28.49509859 | BQ155: 57.72636831 | BR155: 17.16617572 | BS155: 56.60635042 | BT155: 8.595080972 | BU155: 5.778465033 | BV155: 136.8302486 | BW155: 32.96957612 | BX155: 0 | BY155: 4.471776009 | BZ155: 53.99929357 | CA155: 29.1840127 | CB155: 25.7425859 | CC155: 0
B156: latrines traditionnelles | C156: 56.42265417 | D156: 67.71532925 | E156: 78.65011653 | F156: 74.20841984 | G156: 78.901535 | H156: 63.20348087 | I156: 84.56152162 | J156: 80.52952396 | K156: 80.03188813 | L156: 49.74216184 | M156: 53.93947252 | N156: 68.79213937 | O156: 77.73898025 | P156: 70.89791734 | Q156: 84.07028962 | R156: 71.21573302 | S156: 69.65174129 | T156: 82.01086957 | U156: 70.7641196 | V156: 67.72673734 | W156: 82.98969072 | X156: 65.09023024 | Y156: 72.25891678 | Z156: 74.15128052 | AA156: 79.35103245 | AB156: 62.99265197 | AC156: 55.07915567 | BB156: latrines traditionnelles | BC156: 2298.399066 | BD156: 2723.903615 | BE156: 3169.331652 | BF156: 2992.641463 | BG156: 3185.128516 | BH156: 370.5012228 | BI156: 504.9643921 | BJ156: 473.5131124 | BK156: 474.5340025 | BL156: 293.5011178 | BM156: 1861.468874 | BN156: 2387.493081 | BO156: 2656.948696 | BP156: 2452.944161 | BQ156: 2893.535653 | BR156: 1206.681176 | BS156: 1260.777805 | BT156: 1179.088835 | BU156: 879.15218 | BV156: 2017.36905 | BW156: 1910.916632 | BX156: 1085.798238 | BY156: 815.3538256 | BZ156: 1639.734646 | CA156: 536.7862848 | CB156: 1277.645184 | CC156: 560.1004565
B157: trou ouvert | C157: 30.80125853 | D157: 19.48477913 | E157: 15.23665247 | F157: 16.83758413 | G157: 6.096187207 | H157: 21.84940905 | I157: 3.628980681 | J157: 5.038936356 | K157: 1.554883975 | L157: 0 | M157: 33.1079933 | N157: 17.97652978 | O157: 16.67802208 | P157: 19.86493129 | Q157: 10.61123555 | R157: 17.69964243 | S157: 20.04264392 | T157: 10.65217391 | U157: 22.25913621 | V157: 16.54888104 | W157: 13.28751432 | X157: 20.53515868 | Y157: 19.35270806 | Z157: 17.9273377 | AA157: 4.166666667 | AB157: 22.51169005 | AC157: 24.01055409 | BB157: trou ouvert | BC157: 1254.701412 | BD157: 783.7909216 | BE157: 613.985167 | BF157: 679.0179943 | BG157: 246.0933075 | BH157: 128.0820717 | BI157: 21.67068411 | BJ157: 29.62891521 | BK157: 9.219391584 | BL157: 0 | BM157: 1142.567699 | BN157: 623.8916376 | BO157: 570.0183984 | BP157: 687.2919409 | BQ157: 365.2180636 | BR157: 299.9031876 | BS157: 362.7952459 | BT157: 153.1487155 | BU157: 276.5408266 | BV157: 492.9397417 | BW157: 305.9576664 | BX157: 342.5558496 | BY157: 218.3717284 | BZ157: 396.4338381 | CA157: 28.18626867 | CB157: 456.5921814 | CC157: 244.1635523
B158: seau | C158: 0.04940020842 | D158: 0.01667534045 | E158: 0 | F158: 0.347997397 | G158: 0.07384945159 | H158: 0 | I158: 0 | J158: 0 | K158: 0 | L158: 0 | M158: 0.05831115212 | N158: 0 | O158: 0.01962615037 | P158: 0 | Q158: 0.4943642756 | R158: 0 | S158: 0 | T158: 0 | U158: 0 | V158: 0.4711425206 | W158: 0 | X158: 0 | Y158: 0.2642007926 | Z158: 0 | AA158: 0 | AB158: 0 | AC158: 0.2638522427 | BB158: seau | BC158: 2.012336969 | BD158: 0.6707789898 | BE158: 0 | BF158: 14.03387165 | BG158: 2.981184006 | BH158: 0 | BI158: 0 | BJ158: 0 | BK158: 0 | BL158: 0 | BM158: 2.012336969 | BN158: 0 | BO158: 0.6707789898 | BP158: 0 | BQ158: 17.01505566 | BR158: 0 | BS158: 0 | BT158: 0 | BU158: 0 | BV158: 14.03387165 | BW158: 0 | BX158: 0 | BY158: 2.981184006 | BZ158: 0 | CA158: 0 | CB158: 0 | CC158: 2.683115959
B159: autre | C159: 6.109584219 | D159: 6.900532865 | E159: 2.932273677 | F159: 3.756085274 | G159: 0.6414641121 | H159: 5.918963914 | I159: 1.533574414 | J159: 1.343304798 | K159: 0 | L159: 0.2959184751 | M159: 5.992601418 | N159: 7.100143596 | O159: 3.071032188 | P159: 5.078136106 | Q159: 1.005457498 | R159: 1.728247914 | S159: 3.55366027 | T159: 1.195652174 | U159: 1.063122924 | V159: 4.593639576 | W159: 0.4009163803 | X159: 11.32545115 | Y159: 3.896961691 | Z159: 2.322811197 | AA159: 0.2949852507 | AB159: 6.880427522 | AC159: 12.40105541 | BB159: autre | BC159: 248.8763223 | BD159: 277.5794879 | BE159: 118.1606358 | BF159: 151.4736004 | BG159: 25.89487816 | BH159: 34.69719291 | BI159: 9.157835111 | BJ159: 7.898624063 | BK159: 0 | BL159: 1.746052042 | BM159: 206.8066388 | BN159: 246.4168707 | BO159: 104.9611783 | BP159: 175.6946435 | BQ159: 34.60588908 | BR159: 29.28347623 | BS159: 64.32539821 | BT159: 17.19016194 | BU159: 13.20792007 | BV159: 136.8302486 | BW159: 9.231481314 | BX159: 188.9247413 | BY159: 43.97246408 | BZ159: 51.36518168 | CA159: 1.995488048 | CB159: 139.551913 | CC159: 126.1064501
B160: pas de toillettes dans parcelle/brousse/champ | C160: 5.851338081 | D160: 4.51759875 | E160: 1.412602337 | F160: 2.957187294 | G160: 0.7427304452 | H160: 4.686131015 | I160: 2.646482652 | J160: 1.661381613 | K160: 0.3406044785 | L160: 0 | M160: 5.997726091 | N160: 4.810628366 | O160: 1.37707077 | P160: 3.00460365 | Q160: 1.342904635 | R160: 3.337306317 | S160: 2.274342573 | T160: 3.695652174 | U160: 2.790697674 | V160: 3.062426384 | W160: 1.890034364 | X160: 2.364654636 | Y160: 3.170409511 | Z160: 1.905896367 | AA160: 0.2581120944 | AB160: 5.344021376 | AC160: 7.7176781 | BB160: pas de toillettes dans parcelle/brousse/champ | BC160: 238.356564 | BD160: 181.7240454 | BE160: 56.92305994 | BF160: 119.2560269 | BG160: 29.98283774 | BH160: 27.47027929 | BI160: 15.80363595 | BJ160: 9.768913805 | BK160: 2.019550085 | BL160: 0 | BM160: 206.983493 | BN160: 166.957185 | BO160: 47.06527376 | BP160: 103.9540406 | BQ160: 46.22016239 | BR160: 56.54740238 | BS160: 41.16825485 | BT160: 53.13322783 | BU160: 34.6707902 | BV160: 91.22016573 | BW160: 43.51984048 | BX160: 39.4458251 | BY160: 35.77420807 | BZ160: 42.1457901 | CA160: 1.746052042 | CB160: 108.3898354 | CC160: 78.48114181
BB161: Total | BC161: 4073.539432 | BD161: 4022.580478 | BE161: 4029.659194 | BF161: 4032.751903 | BG161: 4036.839735 | BH161: 586.2038257 | BI161: 597.1562271 | BJ161: 587.9993934 | BK161: 592.9311598 | BL161: 590.0449578 | BM161: 3451.032772 | BN161: 3470.589959 | BO161: 3417.781772 | BP161: 3459.825413 | BQ161: 3441.805263 | BR161: 1694.402521 | BS161: 1810.116706 | BT161: 1437.722635 | BU161: 1242.369982 | BV161: 2978.689258 | BW161: 2302.595196 | BX161: 1668.143183 | BY161: 1128.378146 | BZ161: 2211.336924 | CA161: 676.4704481 | CB161: 2028.244794 | CC161: 1016.900949
A208: =A1026 -> Rwanda
A209: =A1034 -> 2000
A210: Access to hygiene facilities
A211: by wealth quintile and sub-national region
A212: Notes:
A213: WHO/UNICEF JMP customised wealth index excludes water,
A214: sanitation and hygiene assets.
A215: Survey used for analysis: | B215: =A1025 -> MICS00
A220: Access to handwashing | C220: NATIONAL wealth index quintile | H220: URBAN wealth index quintile | M220: RURAL wealth index quintile | R220: provinces | BA220: Raw numbers of respondents: | BB220: Access to handwashing | BC220: NATIONAL wealth index quintile | BH220: URBAN wealth index quintile | BM220: RURAL wealth index quintile | BR220: SUB-REGIONS:
A221: Weighted percentage (used in graphs) | C221: Poorest | D221: Poor | E221: Middle | F221: Rich | G221: Richest | H221: Poorest | I221: Poor | J221: Middle | K221: Rich | L221: Richest | M221: Poorest | N221: Poor | O221: Middle | P221: Rich | Q221: Richest | R221: butare | S221: byumba | T221: cyangugu | U221: gikongoro | V221: gisenyi | W221: gitarama | X221: kibungo | Y221: kibuye | Z221: kigali-rural | AA221: kigali-ville | AB221: ruhengeri | AC221: umutura | BA221: Hygiene data, raw numbers (weighted) | BC221: Poorest | BD221: Poor | BE221: Middle | BF221: Rich | BG221: Richest | BH221: Poorest | BI221: Poor | BJ221: Middle | BK221: Rich | BL221: Richest | BM221: Poorest | BN221: Poor | BO221: Middle | BP221: Rich | BQ221: Richest | BR221: butare | BS221: byumba | BT221: cyangugu | BU221: gikongoro | BV221: gisenyi | BW221: gitarama | BX221: kibungo | BY221: kibuye | BZ221: kigali-rural | CA221: kigali-ville | CB221: ruhengeri | CC221: umutura
A222: Hygiene ladder | B222: Basic | C222: N/A | D222: N/A | E222: N/A | F222: N/A | G222: N/A | H222: N/A | I222: N/A | J222: N/A | K222: N/A | L222: N/A | M222: N/A | N222: N/A | O222: N/A | P222: N/A | Q222: N/A | R222: N/A | S222: N/A | T222: N/A | U222: N/A | V222: N/A | W222: N/A | X222: N/A | Y222: N/A | Z222: N/A | AA222: N/A | AB222: N/A | AC222: N/A | BA222: Hygiene ladder | BB222: Basic | BC222: N/A | BD222: N/A | BE222: N/A | BF222: N/A | BG222: N/A | BH222: N/A | BI222: N/A | BJ222: N/A | BK222: N/A | BL222: N/A | BM222: N/A | BN222: N/A | BO222: N/A | BP222: N/A | BQ222: N/A | BR222: N/A | BS222: N/A | BT222: N/A | BU222: N/A | BV222: N/A | BW222: N/A | BX222: N/A | BY222: N/A | BZ222: N/A | CA222: N/A | CB222: N/A | CC222: N/A
B223: Limited | C223: N/A | D223: N/A | E223: N/A | F223: N/A | G223: N/A | H223: N/A | I223: N/A | J223: N/A | K223: N/A | L223: N/A | M223: N/A | N223: N/A | O223: N/A | P223: N/A | Q223: N/A | R223: N/A | S223: N/A | T223: N/A | U223: N/A | V223: N/A | W223: N/A | X223: N/A | Y223: N/A | Z223: N/A | AA223: N/A | AB223: N/A | AC223: N/A | BB223: Limited | BC223: N/A | BD223: N/A | BE223: N/A | BF223: N/A | BG223: N/A | BH223: N/A | BI223: N/A | BJ223: N/A | BK223: N/A | BL223: N/A | BM223: N/A | BN223: N/A | BO223: N/A | BP223: N/A | BQ223: N/A | BR223: N/A | BS223: N/A | BT223: N/A | BU223: N/A | BV223: N/A | BW223: N/A | BX223: N/A | BY223: N/A | BZ223: N/A | CA223: N/A | CB223: N/A | CC223: N/A
B224: No facility | C224: N/A | D224: N/A | E224: N/A | F224: N/A | G224: N/A | H224: N/A | I224: N/A | J224: N/A | K224: N/A | L224: N/A | M224: N/A | N224: N/A | O224: N/A | P224: N/A | Q224: N/A | R224: N/A | S224: N/A | T224: N/A | U224: N/A | V224: N/A | W224: N/A | X224: N/A | Y224: N/A | Z224: N/A | AA224: N/A | AB224: N/A | AC224: N/A | BB224: No facility | BC224: N/A | BD224: N/A | BE224: N/A | BF224: N/A | BG224: N/A | BH224: N/A | BI224: N/A | BJ224: N/A | BK224: N/A | BL224: N/A | BM224: N/A | BN224: N/A | BO224: N/A | BP224: N/A | BQ224: N/A | BR224: N/A | BS224: N/A | BT224: N/A | BU224: N/A | BV224: N/A | BW224: N/A | BX224: N/A | BY224: N/A | BZ224: N/A | CA224: N/A | CB224: N/A | CC224: N/A
BA225: Observed handwashing place | BB225: Fixed | BC225: N/A | BD225: N/A | BE225: N/A | BF225: N/A | BG225: N/A | BH225: N/A | BI225: N/A | BJ225: N/A | BK225: N/A | BL225: N/A | BM225: N/A | BN225: N/A | BO225: N/A | BP225: N/A | BQ225: N/A | BR225: N/A | BS225: N/A | BT225: N/A | BU225: N/A | BV225: N/A | BW225: N/A | BX225: N/A | BY225: N/A | BZ225: N/A | CA225: N/A | CB225: N/A | CC225: N/A
BB226: Mobile | BC226: N/A | BD226: N/A | BE226: N/A | BF226: N/A | BG226: N/A | BH226: N/A | BI226: N/A | BJ226: N/A | BK226: N/A | BL226: N/A | BM226: N/A | BN226: N/A | BO226: N/A | BP226: N/A | BQ226: N/A | BR226: N/A | BS226: N/A | BT226: N/A | BU226: N/A | BV226: N/A | BW226: N/A | BX226: N/A | BY226: N/A | BZ226: N/A | CA226: N/A | CB226: N/A | CC226: N/A
BA227: Water / Soap | BB227: Water and soap | BC227: N/A | BD227: N/A | BE227: N/A | BF227: N/A | BG227: N/A | BH227: N/A | BI227: N/A | BJ227: N/A | BK227: N/A | BL227: N/A | BM227: N/A | BN227: N/A | BO227: N/A | BP227: N/A | BQ227: N/A | BR227: N/A | BS227: N/A | BT227: N/A | BU227: N/A | BV227: N/A | BW227: N/A | BX227: N/A | BY227: N/A | BZ227: N/A | CA227: N/A | CB227: N/A | CC227: N/A
BB228: Water only | BC228: N/A | BD228: N/A | BE228: N/A | BF228: N/A | BG228: N/A | BH228: N/A | BI228: N/A | BJ228: N/A | BK228: N/A | BL228: N/A | BM228: N/A | BN228: N/A | BO228: N/A | BP228: N/A | BQ228: N/A | BR228: N/A | BS228: N/A | BT228: N/A | BU228: N/A | BV228: N/A | BW228: N/A | BX228: N/A | BY228: N/A | BZ228: N/A | CA228: N/A | CB228: N/A | CC228: N/A
BB229: Soap only | BC229: N/A | BD229: N/A | BE229: N/A | BF229: N/A | BG229: N/A | BH229: N/A | BI229: N/A | BJ229: N/A | BK229: N/A | BL229: N/A | BM229: N/A | BN229: N/A | BO229: N/A | BP229: N/A | BQ229: N/A | BR229: N/A | BS229: N/A | BT229: N/A | BU229: N/A | BV229: N/A | BW229: N/A | BX229: N/A | BY229: N/A | BZ229: N/A | CA229: N/A | CB229: N/A | CC229: N/A
BB230: Neither | BC230: N/A | BD230: N/A | BE230: N/A | BF230: N/A | BG230: N/A | BH230: N/A | BI230: N/A | BJ230: N/A | BK230: N/A | BL230: N/A | BM230: N/A | BN230: N/A | BO230: N/A | BP230: N/A | BQ230: N/A | BR230: N/A | BS230: N/A | BT230: N/A | BU230: N/A | BV230: N/A | BW230: N/A | BX230: N/A | BY230: N/A | BZ230: N/A | CA230: N/A | CB230: N/A | CC230: N/A
BA259: Raw numbers of respondents: | BB259: Menstrual health and hygiene | BC259: NATIONAL wealth index quintile | BH259: URBAN wealth index quintile | BM259: RURAL wealth index quintile | BR259: SUB-REGIONS:
BA260: MHH data, raw numbers (weighted) | BC260: Poorest | BD260: Poor | BE260: Middle | BF260: Rich | BG260: Richest | BH260: Poorest | BI260: Poor | BJ260: Middle | BK260: Rich | BL260: Richest | BM260: Poorest | BN260: Poor | BO260: Middle | BP260: Rich | BQ260: Richest | BR260: butare | BS260: byumba | BT260: cyangugu | BU260: gikongoro | BV260: gisenyi | BW260: gitarama | BX260: kibungo | BY260: kibuye | BZ260: kigali-rural | CA260: kigali-ville | CB260: ruhengeri | CC260: umutura
BA261: Private place to wash and change | BB261: Yes | BC261: N/A | BD261: N/A | BE261: N/A | BF261: N/A | BG261: N/A | BH261: N/A | BI261: N/A | BJ261: N/A | BK261: N/A | BL261: N/A | BM261: N/A | BN261: N/A | BO261: N/A | BP261: N/A | BQ261: N/A | BR261: N/A | BS261: N/A | BT261: N/A | BU261: N/A | BV261: N/A | BW261: N/A | BX261: N/A | BY261: N/A | BZ261: N/A | CA261: N/A | CB261: N/A | CC261: N/A
BB262: No | BC262: N/A | BD262: N/A | BE262: N/A | BF262: N/A | BG262: N/A | BH262: N/A | BI262: N/A | BJ262: N/A | BK262: N/A | BL262: N/A | BM262: N/A | BN262: N/A | BO262: N/A | BP262: N/A | BQ262: N/A | BR262: N/A | BS262: N/A | BT262: N/A | BU262: N/A | BV262: N/A | BW262: N/A | BX262: N/A | BY262: N/A | BZ262: N/A | CA262: N/A | CB262: N/A | CC262: N/A
BB263: DK/not sure/missing | BC263: N/A | BD263: N/A | BE263: N/A | BF263: N/A | BG263: N/A | BH263: N/A | BI263: N/A | BJ263: N/A | BK263: N/A | BL263: N/A | BM263: N/A | BN263: N/A | BO263: N/A | BP263: N/A | BQ263: N/A | BR263: N/A | BS263: N/A | BT263: N/A | BU263: N/A | BV263: N/A | BW263: N/A | BX263: N/A | BY263: N/A | BZ263: N/A | CA263: N/A | CB263: N/A | CC263: N/A
BA264: Use of menstrual materials | BB264: Materials reusable | BC264: N/A | BD264: N/A | BE264: N/A | BF264: N/A | BG264: N/A | BH264: N/A | BI264: N/A | BJ264: N/A | BK264: N/A | BL264: N/A | BM264: N/A | BN264: N/A | BO264: N/A | BP264: N/A | BQ264: N/A | BR264: N/A | BS264: N/A | BT264: N/A | BU264: N/A | BV264: N/A | BW264: N/A | BX264: N/A | BY264: N/A | BZ264: N/A | CA264: N/A | CB264: N/A | CC264: N/A
BB265: Materials not reusable | BC265: N/A | BD265: N/A | BE265: N/A | BF265: N/A | BG265: N/A | BH265: N/A | BI265: N/A | BJ265: N/A | BK265: N/A | BL265: N/A | BM265: N/A | BN265: N/A | BO265: N/A | BP265: N/A | BQ265: N/A | BR265: N/A | BS265: N/A | BT265: N/A | BU265: N/A | BV265: N/A | BW265: N/A | BX265: N/A | BY265: N/A | BZ265: N/A | CA265: N/A | CB265: N/A | CC265: N/A
BB266: No materials used | BC266: N/A | BD266: N/A | BE266: N/A | BF266: N/A | BG266: N/A | BH266: N/A | BI266: N/A | BJ266: N/A | BK266: N/A | BL266: N/A | BM266: N/A | BN266: N/A | BO266: N/A | BP266: N/A | BQ266: N/A | BR266: N/A | BS266: N/A | BT266: N/A | BU266: N/A | BV266: N/A | BW266: N/A | BX266: N/A | BY266: N/A | BZ266: N/A | CA266: N/A | CB266: N/A | CC266: N/A
BB267: DK/not sure/missing | BC267: N/A | BD267: N/A | BE267: N/A | BF267: N/A | BG267: N/A | BH267: N/A | BI267: N/A | BJ267: N/A | BK267: N/A | BL267: N/A | BM267: N/A | BN267: N/A | BO267: N/A | BP267: N/A | BQ267: N/A | BR267: N/A | BS267: N/A | BT267: N/A | BU267: N/A | BV267: N/A | BW267: N/A | BX267: N/A | BY267: N/A | BZ267: N/A | CA267: N/A | CB267: N/A | CC267: N/A
BA268: Use of menstrual materials with private place to wash and change | BB268: Materials reusable | BC268: N/A | BD268: N/A | BE268: N/A | BF268: N/A | BG268: N/A | BH268: N/A | BI268: N/A | BJ268: N/A | BK268: N/A | BL268: N/A | BM268: N/A | BN268: N/A | BO268: N/A | BP268: N/A | BQ268: N/A | BR268: N/A | BS268: N/A | BT268: N/A | BU268: N/A | BV268: N/A | BW268: N/A | BX268: N/A | BY268: N/A | BZ268: N/A | CA268: N/A | CB268: N/A | CC268: N/A
BB269: Materials not reusable | BC269: N/A | BD269: N/A | BE269: N/A | BF269: N/A | BG269: N/A | BH269: N/A | BI269: N/A | BJ269: N/A | BK269: N/A | BL269: N/A | BM269: N/A | BN269: N/A | BO269: N/A | BP269: N/A | BQ269: N/A | BR269: N/A | BS269: N/A | BT269: N/A | BU269: N/A | BV269: N/A | BW269: N/A | BX269: N/A | BY269: N/A | BZ269: N/A | CA269: N/A | CB269: N/A | CC269: N/A
BB270: No materials used | BC270: N/A | BD270: N/A | BE270: N/A | BF270: N/A | BG270: N/A | BH270: N/A | BI270: N/A | BJ270: N/A | BK270: N/A | BL270: N/A | BM270: N/A | BN270: N/A | BO270: N/A | BP270: N/A | BQ270: N/A | BR270: N/A | BS270: N/A | BT270: N/A | BU270: N/A | BV270: N/A | BW270: N/A | BX270: N/A | BY270: N/A | BZ270: N/A | CA270: N/A | CB270: N/A | CC270: N/A
BA271: Awareness of menstruation before menarche | BB271: Yes | BC271: N/A | BD271: N/A | BE271: N/A | BF271: N/A | BG271: N/A | BH271: N/A | BI271: N/A | BJ271: N/A | BK271: N/A | BL271: N/A | BM271: N/A | BN271: N/A | BO271: N/A | BP271: N/A | BQ271: N/A | BR271: N/A | BS271: N/A | BT271: N/A | BU271: N/A | BV271: N/A | BW271: N/A | BX271: N/A | BY271: N/A | BZ271: N/A | CA271: N/A | CB271: N/A | CC271: N/A
BB272: No | BC272: N/A | BD272: N/A | BE272: N/A | BF272: N/A | BG272: N/A | BH272: N/A | BI272: N/A | BJ272: N/A | BK272: N/A | BL272: N/A | BM272: N/A | BN272: N/A | BO272: N/A | BP272: N/A | BQ272: N/A | BR272: N/A | BS272: N/A | BT272: N/A | BU272: N/A | BV272: N/A | BW272: N/A | BX272: N/A | BY272: N/A | BZ272: N/A | CA272: N/A | CB272: N/A | CC272: N/A
BB273: DK/not sure/missing | BC273: N/A | BD273: N/A | BE273: N/A | BF273: N/A | BG273: N/A | BH273: N/A | BI273: N/A | BJ273: N/A | BK273: N/A | BL273: N/A | BM273: N/A | BN273: N/A | BO273: N/A | BP273: N/A | BQ273: N/A | BR273: N/A | BS273: N/A | BT273: N/A | BU273: N/A | BV273: N/A | BW273: N/A | BX273: N/A | BY273: N/A | BZ273: N/A | CA273: N/A | CB273: N/A | CC273: N/A
BA274: Participation in (all) activities during menstruation | BB274: Yes | BC274: N/A | BD274: N/A | BE274: N/A | BF274: N/A | BG274: N/A | BH274: N/A | BI274: N/A | BJ274: N/A | BK274: N/A | BL274: N/A | BM274: N/A | BN274: N/A | BO274: N/A | BP274: N/A | BQ274: N/A | BR274: N/A | BS274: N/A | BT274: N/A | BU274: N/A | BV274: N/A | BW274: N/A | BX274: N/A | BY274: N/A | BZ274: N/A | CA274: N/A | CB274: N/A | CC274: N/A
BB275: No | BC275: N/A | BD275: N/A | BE275: N/A | BF275: N/A | BG275: N/A | BH275: N/A | BI275: N/A | BJ275: N/A | BK275: N/A | BL275: N/A | BM275: N/A | BN275: N/A | BO275: N/A | BP275: N/A | BQ275: N/A | BR275: N/A | BS275: N/A | BT275: N/A | BU275: N/A | BV275: N/A | BW275: N/A | BX275: N/A | BY275: N/A | BZ275: N/A | CA275: N/A | CB275: N/A | CC275: N/A
BB276: DK/not sure/missing/no such activity | BC276: N/A | BD276: N/A | BE276: N/A | BF276: N/A | BG276: N/A | BH276: N/A | BI276: N/A | BJ276: N/A | BK276: N/A | BL276: N/A | BM276: N/A | BN276: N/A | BO276: N/A | BP276: N/A | BQ276: N/A | BR276: N/A | BS276: N/A | BT276: N/A | BU276: N/A | BV276: N/A | BW276: N/A | BX276: N/A | BY276: N/A | BZ276: N/A | CA276: N/A | CB276: N/A | CC276: N/A
BA277: Participation in specific activities during menstruation | BB277: Did not go to school (amongst those usually attending school) | BC277: N/A | BD277: N/A | BE277: N/A | BF277: N/A | BG277: N/A | BH277: N/A | BI277: N/A | BJ277: N/A | BK277: N/A | BL277: N/A | BM277: N/A | BN277: N/A | BO277: N/A | BP277: N/A | BQ277: N/A | BR277: N/A | BS277: N/A | BT277: N/A | BU277: N/A | BV277: N/A | BW277: N/A | BX277: N/A | BY277: N/A | BZ277: N/A | CA277: N/A | CB277: N/A | CC277: N/A
BB278: Did not go to work (amongst those who usually work) | BC278: N/A | BD278: N/A | BE278: N/A | BF278: N/A | BG278: N/A | BH278: N/A | BI278: N/A | BJ278: N/A | BK278: N/A | BL278: N/A | BM278: N/A | BN278: N/A | BO278: N/A | BP278: N/A | BQ278: N/A | BR278: N/A | BS278: N/A | BT278: N/A | BU278: N/A | BV278: N/A | BW278: N/A | BX278: N/A | BY278: N/A | BZ278: N/A | CA278: N/A | CB278: N/A | CC278: N/A
BB279: Did not participate in social activities | BC279: N/A | BD279: N/A | BE279: N/A | BF279: N/A | BG279: N/A | BH279: N/A | BI279: N/A | BJ279: N/A | BK279: N/A | BL279: N/A | BM279: N/A | BN279: N/A | BO279: N/A | BP279: N/A | BQ279: N/A | BR279: N/A | BS279: N/A | BT279: N/A | BU279: N/A | BV279: N/A | BW279: N/A | BX279: N/A | BY279: N/A | BZ279: N/A | CA279: N/A | CB279: N/A | CC279: N/A
BB280: Did not cook food | BC280: N/A | BD280: N/A | BE280: N/A | BF280: N/A | BG280: N/A | BH280: N/A | BI280: N/A | BJ280: N/A | BK280: N/A | BL280: N/A | BM280: N/A | BN280: N/A | BO280: N/A | BP280: N/A | BQ280: N/A | BR280: N/A | BS280: N/A | BT280: N/A | BU280: N/A | BV280: N/A | BW280: N/A | BX280: N/A | BY280: N/A | BZ280: N/A | CA280: N/A | CB280: N/A | CC280: N/A
BB281: Did not eat with others | BC281: N/A | BD281: N/A | BE281: N/A | BF281: N/A | BG281: N/A | BH281: N/A | BI281: N/A | BJ281: N/A | BK281: N/A | BL281: N/A | BM281: N/A | BN281: N/A | BO281: N/A | BP281: N/A | BQ281: N/A | BR281: N/A | BS281: N/A | BT281: N/A | BU281: N/A | BV281: N/A | BW281: N/A | BX281: N/A | BY281: N/A | BZ281: N/A | CA281: N/A | CB281: N/A | CC281: N/A
BB282: Did not bathe in regular place | BC282: N/A | BD282: N/A | BE282: N/A | BF282: N/A | BG282: N/A | BH282: N/A | BI282: N/A | BJ282: N/A | BK282: N/A | BL282: N/A | BM282: N/A | BN282: N/A | BO282: N/A | BP282: N/A | BQ282: N/A | BR282: N/A | BS282: N/A | BT282: N/A | BU282: N/A | BV282: N/A | BW282: N/A | BX282: N/A | BY282: N/A | BZ282: N/A | CA282: N/A | CB282: N/A | CC282: N/A
BB283: Did not participate in other activities | BC283: N/A | BD283: N/A | BE283: N/A | BF283: N/A | BG283: N/A | BH283: N/A | BI283: N/A | BJ283: N/A | BK283: N/A | BL283: N/A | BM283: N/A | BN283: N/A | BO283: N/A | BP283: N/A | BQ283: N/A | BR283: N/A | BS283: N/A | BT283: N/A | BU283: N/A | BV283: N/A | BW283: N/A | BX283: N/A | BY283: N/A | BZ283: N/A | CA283: N/A | CB283: N/A | CC283: N/A
BB284: DK/not sure/missing/no such activity | BC284: N/A | BD284: N/A | BE284: N/A | BF284: N/A | BG284: N/A | BH284: N/A | BI284: N/A | BJ284: N/A | BK284: N/A | BL284: N/A | BM284: N/A | BN284: N/A | BO284: N/A | BP284: N/A | BQ284: N/A | BR284: N/A | BS284: N/A | BT284: N/A | BU284: N/A | BV284: N/A | BW284: N/A | BX284: N/A | BY284: N/A | BZ284: N/A | CA284: N/A | CB284: N/A | CC284: N/A
BA339: Raw numbers of respondents: | BB339: Basic water, sanitation and hygiene | BC339: NATIONAL wealth index quintile | BH339: URBAN wealth index quintile | BM339: RURAL wealth index quintile | BR339: SUB-REGIONS:
BA340: WatSan data, raw numbers (weighted) | BC340: Poorest | BD340: Poor | BE340: Middle | BF340: Rich | BG340: Richest | BH340: Poorest | BI340: Poor | BJ340: Middle | BK340: Rich | BL340: Richest | BM340: Poorest | BN340: Poor | BO340: Middle | BP340: Rich | BQ340: Richest | BR340: butare | BS340: byumba | BT340: cyangugu | BU340: gikongoro | BV340: gisenyi | BW340: gitarama | BX340: kibungo | BY340: kibuye | BZ340: kigali-rural | CA340: kigali-ville | CB340: ruhengeri | CC340: umutura
BA341: Use of Basic Water Sanitation and Hygiene | BB341: Yes | BC341: N/A | BD341: N/A | BE341: N/A | BF341: N/A | BG341: N/A | BH341: N/A | BI341: N/A | BJ341: N/A | BK341: N/A | BL341: N/A | BM341: N/A | BN341: N/A | BO341: N/A | BP341: N/A | BQ341: N/A | BR341: N/A | BS341: N/A | BT341: N/A | BU341: N/A | BV341: N/A | BW341: N/A | BX341: N/A | BY341: N/A | BZ341: N/A | CA341: N/A | CB341: N/A | CC341: N/A
BB342: No | BC342: N/A | BD342: N/A | BE342: N/A | BF342: N/A | BG342: N/A | BH342: N/A | BI342: N/A | BJ342: N/A | BK342: N/A | BL342: N/A | BM342: N/A | BN342: N/A | BO342: N/A | BP342: N/A | BQ342: N/A | BR342: N/A | BS342: N/A | BT342: N/A | BU342: N/A | BV342: N/A | BW342: N/A | BX342: N/A | BY342: N/A | BZ342: N/A | CA342: N/A | CB342: N/A | CC342: N/A
BA343: Use of Basic Water and Sanitation | BB343: Yes | BC343: N/A | BD343: N/A | BE343: N/A | BF343: N/A | BG343: N/A | BH343: N/A | BI343: N/A | BJ343: N/A | BK343: N/A | BL343: N/A | BM343: N/A | BN343: N/A | BO343: N/A | BP343: N/A | BQ343: N/A | BR343: N/A | BS343: N/A | BT343: N/A | BU343: N/A | BV343: N/A | BW343: N/A | BX343: N/A | BY343: N/A | BZ343: N/A | CA343: N/A | CB343: N/A | CC343: N/A
BB344: No | BC344: N/A | BD344: N/A | BE344: N/A | BF344: N/A | BG344: N/A | BH344: N/A | BI344: N/A | BJ344: N/A | BK344: N/A | BL344: N/A | BM344: N/A | BN344: N/A | BO344: N/A | BP344: N/A | BQ344: N/A | BR344: N/A | BS344: N/A | BT344: N/A | BU344: N/A | BV344: N/A | BW344: N/A | BX344: N/A | BY344: N/A | BZ344: N/A | CA344: N/A | CB344: N/A | CC344: N/A
BA345: Use of Basic Water and Hygiene | BB345: Yes | BC345: N/A | BD345: N/A | BE345: N/A | BF345: N/A | BG345: N/A | BH345: N/A | BI345: N/A | BJ345: N/A | BK345: N/A | BL345: N/A | BM345: N/A | BN345: N/A | BO345: N/A | BP345: N/A | BQ345: N/A | BR345: N/A | BS345: N/A | BT345: N/A | BU345: N/A | BV345: N/A | BW345: N/A | BX345: N/A | BY345: N/A | BZ345: N/A | CA345: N/A | CB345: N/A | CC345: N/A
BB346: No | BC346: N/A | BD346: N/A | BE346: N/A | BF346: N/A | BG346: N/A | BH346: N/A | BI346: N/A | BJ346: N/A | BK346: N/A | BL346: N/A | BM346: N/A | BN346: N/A | BO346: N/A | BP346: N/A | BQ346: N/A | BR346: N/A | BS346: N/A | BT346: N/A | BU346: N/A | BV346: N/A | BW346: N/A | BX346: N/A | BY346: N/A | BZ346: N/A | CA346: N/A | CB346: N/A | CC346: N/A
BA347: Use of Basic Sanitation and Hygiene | BB347: Yes | BC347: N/A | BD347: N/A | BE347: N/A | BF347: N/A | BG347: N/A | BH347: N/A | BI347: N/A | BJ347: N/A | BK347: N/A | BL347: N/A | BM347: N/A | BN347: N/A | BO347: N/A | BP347: N/A | BQ347: N/A | BR347: N/A | BS347: N/A | BT347: N/A | BU347: N/A | BV347: N/A | BW347: N/A | BX347: N/A | BY347: N/A | BZ347: N/A | CA347: N/A | CB347: N/A | CC347: N/A
BB348: No | BC348: N/A | BD348: N/A | BE348: N/A | BF348: N/A | BG348: N/A | BH348: N/A | BI348: N/A | BJ348: N/A | BK348: N/A | BL348: N/A | BM348: N/A | BN348: N/A | BO348: N/A | BP348: N/A | BQ348: N/A | BR348: N/A | BS348: N/A | BT348: N/A | BU348: N/A | BV348: N/A | BW348: N/A | BX348: N/A | BY348: N/A | BZ348: N/A | CA348: N/A | CB348: N/A | CC348: N/A
BA349: Use of Basic Water | BB349: Yes | BC349: N/A | BD349: N/A | BE349: N/A | BF349: N/A | BG349: N/A | BH349: N/A | BI349: N/A | BJ349: N/A | BK349: N/A | BL349: N/A | BM349: N/A | BN349: N/A | BO349: N/A | BP349: N/A | BQ349: N/A | BR349: N/A | BS349: N/A | BT349: N/A | BU349: N/A | BV349: N/A | BW349: N/A | BX349: N/A | BY349: N/A | BZ349: N/A | CA349: N/A | CB349: N/A | CC349: N/A
BB350: No | BC350: N/A | BD350: N/A | BE350: N/A | BF350: N/A | BG350: N/A | BH350: N/A | BI350: N/A | BJ350: N/A | BK350: N/A | BL350: N/A | BM350: N/A | BN350: N/A | BO350: N/A | BP350: N/A | BQ350: N/A | BR350: N/A | BS350: N/A | BT350: N/A | BU350: N/A | BV350: N/A | BW350: N/A | BX350: N/A | BY350: N/A | BZ350: N/A | CA350: N/A | CB350: N/A | CC350: N/A
BA351: Use of Basic Sanitation | BB351: Yes | BC351: N/A | BD351: N/A | BE351: N/A | BF351: N/A | BG351: N/A | BH351: N/A | BI351: N/A | BJ351: N/A | BK351: N/A | BL351: N/A | BM351: N/A | BN351: N/A | BO351: N/A | BP351: N/A | BQ351: N/A | BR351: N/A | BS351: N/A | BT351: N/A | BU351: N/A | BV351: N/A | BW351: N/A | BX351: N/A | BY351: N/A | BZ351: N/A | CA351: N/A | CB351: N/A | CC351: N/A
BB352: No | BC352: N/A | BD352: N/A | BE352: N/A | BF352: N/A | BG352: N/A | BH352: N/A | BI352: N/A | BJ352: N/A | BK352: N/A | BL352: N/A | BM352: N/A | BN352: N/A | BO352: N/A | BP352: N/A | BQ352: N/A | BR352: N/A | BS352: N/A | BT352: N/A | BU352: N/A | BV352: N/A | BW352: N/A | BX352: N/A | BY352: N/A | BZ352: N/A | CA352: N/A | CB352: N/A | CC352: N/A
BA353: Access to Basic Hygiene | BB353: Yes | BC353: N/A | BD353: N/A | BE353: N/A | BF353: N/A | BG353: N/A | BH353: N/A | BI353: N/A | BJ353: N/A | BK353: N/A | BL353: N/A | BM353: N/A | BN353: N/A | BO353: N/A | BP353: N/A | BQ353: N/A | BR353: N/A | BS353: N/A | BT353: N/A | BU353: N/A | BV353: N/A | BW353: N/A | BX353: N/A | BY353: N/A | BZ353: N/A | CA353: N/A | CB353: N/A | CC353: N/A
BB354: No | BC354: N/A | BD354: N/A | BE354: N/A | BF354: N/A | BG354: N/A | BH354: N/A | BI354: N/A | BJ354: N/A | BK354: N/A | BL354: N/A | BM354: N/A | BN354: N/A | BO354: N/A | BP354: N/A | BQ354: N/A | BR354: N/A | BS354: N/A | BT354: N/A | BU354: N/A | BV354: N/A | BW354: N/A | BX354: N/A | BY354: N/A | BZ354: N/A | CA354: N/A | CB354: N/A | CC354: N/A
C399: INITIAL (national) Wealth Index | H399: URBAN Wealth Index | M399: RURAL Wealth Index
C400: Component Matrix | H400: Component Matrix | M400: Component Matrix
E401: Component | J401: Component | O401: Component
B402: Note: The INITIAL (national) Wealth Index is based on the first component of the Principal Component Analysis (PCA) which has been obtained at national level. The final national-level (NATIONAL) Wealth Index is based on the URBAN and RURAL specific wealth indexes. Regression procedures are used to establish the relationships between the two sets of scores (urban and rural) and the initial (national) wealth factors. This allows best use of the available information for each area and a better precision of the FINAL (NATIONAL) Wealth Index. For dependency reasons, all WASH variables (contained in the generic MICS and DHS scripts) have been excluded from the sets of asset variables used in the PCAs. The PCA can extracts as many components as there are asset variables in the input. Only the first of the components is used to represent the Wealth Index. The scores represent the weights of the asset variables on the Wealth Index (correlations between the variables and the component). The communalities are the proportion of each variable's variance that can be explained by the component. Proportion of explained variance is the part of the model's total variance that is explained by the component. For more information on the procedure used: The DHS Wealth Index, DHS Comparative Reports No. 6, Shea Oscar Rutstein, Kiersten Johnson, ORC Macro International Inc., 2004. The DHS Wealth Index: Approaches for Rural and Urban Areas, Shea O. Rutstein, ORC Macro International Inc., 2008. MICS Methodological Paper No. 4, Review of options for reporting water, sanitation and hygiene coverage by wealth quintile, UNICEF, 2016. | E402: 1 | J402: 1 | O402: 1
C403: pise | E403: -0.8223258311 | H403: dwelling floor - dirt/straw | J403: -0.8686052279 | M403: dwelling floor - dirt/straw | O403: -0.9630046125
C404: dwelling floor - dirt/straw | E404: -0.8218365029 | H404: pise | J404: -0.8664043154 | M404: pise | O404: -0.9626824033
C405: dwelling floor - planks/concrete | E405: 0.6966881672 | H405: dwelling floor - planks/concrete | J405: 0.6326485082 | M405: dwelling floor - planks/concrete | O405: 0.941024718
C406: adobe | E406: 0.6952803029 | H406: adobe | J406: 0.6300471684 | M406: adobe | O406: 0.940789411
C407: avoir un lit avec matelas | E407: 0.5701948183 | H407: avoir un salon | J407: 0.5361741779 | M407: avoir une table a manger | O407: 0.2443605844
C408: avoir un salon | E408: 0.5643809278 | H408: avoir une television | J408: 0.5175616895 | M408: avoir un lit avec matelas | O408: 0.2410859699
C409: avoir une television | E409: 0.5060864077 | H409: avoir une table a manger | J409: 0.5111673965 | M409: avoir une radio | O409: 0.2104956533
C410: avoir une table a manger | E410: 0.4786048263 | H410: avoir un frigo | J410: 0.4970377274 | M410: Persons per sleeping rooms | O410: -0.2025514324
C411: avoir une radio | E411: 0.4769944968 | H411: avoir un lit avec matelas | J411: 0.4867881285 | M411: avoir des chaises ordinaires | O411: 0.1718238937
C412: avoir un frigo | E412: 0.4704969398 | H412: avoir une radio | J412: 0.4662028223 | M412: dwelling floor - wood/tile | O412: 0.152444745
C413: dwelling floor - wood/tile | E413: 0.427105432 | H413: dwelling floor - wood/tile | J413: 0.402022203 | M413: brique | O413: 0.1524229146
C414: brique | E414: 0.4268152572 | H414: avoir un vehicule | J414: 0.401733981 | M414: avoir un salon | O414: 0.1369223434
C415: avoir un vehicule | E415: 0.3806200957 | H415: brique | J415: 0.4015868601 | M415: possede un stock alimentaire | O415: 0.132672719
C416: avoir des chaises ordinaires | E416: 0.2924981252 | H416: avoir des chaises ordinaires | J416: 0.3582490432 | M416: acceptable living condition | O416: 0.1286240538
C417: possede un stock alimentaire | E417: 0.1182376279 | H417: Persons per sleeping rooms | J417: -0.1168550167 | M417: avoir un velo | O417: 0.09396648606
C418: avoir un velo | E418: 0.1161831115 | H418: avoir une moto | J418: 0.05592527987 | M418: avoir un vehicule | O418: 0.06423159449
C419: Persons per sleeping rooms | E419: -0.1149381843 | H419: avoir un velo | J419: 0.05088004974 | M419: autre | O419: 0.04596825688
... 108 more rows

Sheet DHS00
A2: =A1026 -> Rwanda
A3: =A1034 -> 2000
A4: Use of drinking water sources
A5: by wealth quintile and sub-national region
A6: Notes:
A7: WHO/UNICEF JMP customised wealth index excludes water,
A8: sanitation and hygiene assets.
A9: Survey used for analysis: | B9: =A1025 -> DHS00
A10: Improved springs based on: | B10: MICS00
A11: Time to source based on: | B11: MICS00
A14: Use of drinking water sources | C14: NATIONAL wealth index quintile | H14: URBAN wealth index quintile | M14: RURAL wealth index quintile | R14: SUB-REGIONS: | BA14: Raw numbers of respondents: | BB14: Use of drinking water sources | BC14: NATIONAL wealth index quintile | BH14: URBAN wealth index quintile | BM14: RURAL wealth index quintile | BR14: SUB-REGIONS:
A15: Weighted percentage (used in graphs) | C15: Poorest | D15: Poor | E15: Middle | F15: Rich | G15: Richest | H15: Poorest | I15: Poor | J15: Middle | K15: Rich | L15: Richest | M15: Poorest | N15: Poor | O15: Middle | P15: Rich | Q15: Richest | R15: Butare | S15: Byumba | T15: Cyangugu | U15: Gikongoro | V15: Gisenyi | W15: Gitarama | X15: Kibungo | Y15: Kibuye | Z15: Kigali Rurale | AA15: Kigali Ville (PVK) | AB15: Ruhengeri | AC15: Umutara | BA15: Water data, raw numbers (weighted) | BC15: Poorest | BD15: Poor | BE15: Middle | BF15: Rich | BG15: Richest | BH15: Poorest | BI15: Poor | BJ15: Middle | BK15: Rich | BL15: Richest | BM15: Poorest | BN15: Poor | BO15: Middle | BP15: Rich | BQ15: Richest | BR15: Butare | BS15: Byumba | BT15: Cyangugu | BU15: Gikongoro | BV15: Gisenyi | BW15: Gitarama | BX15: Kibungo | BY15: Kibuye | BZ15: Kigali Rurale | CA15: Kigali Ville (PVK) | CB15: Ruhengeri | CC15: Umutara
A16: Water | B16: Improved | C16: =C58+C59+C60+C64+C69+C70+C71+C65*MICS00!C25/100 -> 78.8573947 | D16: =D58+D59+D60+D64+D69+D70+D71+D65*MICS00!D25/100 -> 65.54913761 | E16: =E58+E59+E60+E64+E69+E70+E71+E65*MICS00!E25/100 -> 63.34763962 | F16: =F58+F59+F60+F64+F69+F70+F71+F65*MICS00!F25/100 -> 68.4452212 | G16: =G58+G59+G60+G64+G69+G70+G71+G65*MICS00!G25/100 -> 87.59483016 | H16: =H58+H59+H60+H64+H69+H70+H71+H65*MICS00!H25/100 -> 84.25921664 | I16: =I58+I59+I60+I64+I69+I70+I71+I65*MICS00!I25/100 -> 90.59888135 | J16: =J58+J59+J60+J64+J69+J70+J71+J65*MICS00!J25/100 -> 93.71330386 | K16: =K58+K59+K60+K64+K69+K70+K71+K65*MICS00!K25/100 -> 95.41942937 | L16: =L58+L59+L60+L64+L69+L70+L71+L65*MICS00!L25/100 -> 97.1745544 | M16: =N16 -> 63.68265958 | N16: =N58+N59+N60+N64+N69+N70+N71+N65*MICS00!N25/100 -> 63.68265958 | O16: =O58+O59+O60+O64+O69+O70+O71+O65*MICS00!O25/100 -> 63.14036985 | P16: =P58+P59+P60+P64+P69+P70+P71+P65*MICS00!P25/100 -> 68.27611329 | Q16: =Q58+Q59+Q60+Q64+Q69+Q70+Q71+Q65*MICS00!Q25/100 -> 69.2150828 | R16: =R58+R59+R60+R64+R69+R70+R71+R65*MICS00!R25/100 -> 76.54315935 | S16: =S58+S59+S60+S64+S69+S70+S71+S65*MICS00!S25/100 -> 72.38511228 | T16: =T58+T59+T60+T64+T69+T70+T71+T65*MICS00!T25/100 -> 69.15701813 | U16: =U58+U59+U60+U64+U69+U70+U71+U65*MICS00!U25/100 -> 69.14745285 | V16: =V58+V59+V60+V64+V69+V70+V71+V65*MICS00!V25/100 -> 78.47242908 | W16: =W58+W59+W60+W64+W69+W70+W71+W65*MICS00!W25/100 -> 69.03204521 | X16: =X58+X59+X60+X64+X69+X70+X71+X65*MICS00!X25/100 -> 65.24234694 | Y16: =Y58+Y59+Y60+Y64+Y69+Y70+Y71+Y65*MICS00!Y25/100 -> 71.03272263 | Z16: =Z58+Z59+Z60+Z64+Z69+Z70+Z71+Z65*MICS00!Z25/100 -> 62.62554862 | AA16: =AA58+AA59+AA60+AA64+AA69+AA70+AA71+AA65*MICS00!AA25/100 -> 93.80528201 | AB16: =AB58+AB59+AB60+AB64+AB69+AB70+AB71+AB65*MICS00!AB25/100 -> 80.58289323 | AC16: =AC58+AC59+AC60+AC64+AC69+AC70+AC71+AC65*MICS00!AC25/100 -> 31.27257595 | BA16: Water | BB16: Improved | BC16: N/A | BD16: N/A | BE16: N/A | BF16: N/A | BG16: N/A | BH16: N/A | BI16: N/A | BJ16: N/A | BK16: N/A | BL16: N/A | BM16: N/A | BN16: N/A | BO16: N/A | BP16: N/A | BQ16: N/A | BR16: N/A | BS16: N/A | BT16: N/A | BU16: N/A | BV16: N/A | BW16: N/A | BX16: N/A | BY16: N/A | BZ16: N/A | CA16: N/A | CB16: N/A | CC16: N/A
B17: Not Improved | C17: =100-C16 -> 21.1426053 | D17: =100-D16 -> 34.45086239 | E17: 36.65236038 | F17: 31.5547788 | G17: 12.40516984 | H17: 15.74078336 | I17: 9.401118654 | J17: 6.286696143 | K17: 4.580570626 | L17: 2.825445604 | M17: =N17 -> 36.31734042 | N17: 36.31734042 | O17: 36.85963015 | P17: 31.72388671 | Q17: 30.7849172 | R17: 23.45684065 | S17: 27.61488772 | T17: 30.84298187 | U17: 30.85254715 | V17: 21.52757092 | W17: 30.96795479 | X17: 34.75765306 | Y17: 28.96727737 | Z17: 37.37445138 | AA17: 6.19471799 | AB17: 19.41710677 | AC17: 68.72742405 | BB17: Not Improved | BC17: N/A | BD17: N/A | BE17: N/A | BF17: N/A | BG17: N/A | BH17: N/A | BI17: N/A | BJ17: N/A | BK17: N/A | BL17: N/A | BM17: N/A | BN17: N/A | BO17: N/A | BP17: N/A | BQ17: N/A | BR17: N/A | BS17: N/A | BT17: N/A | BU17: N/A | BV17: N/A | BW17: N/A | BX17: N/A | BY17: N/A | BZ17: N/A | CA17: N/A | CB17: N/A | CC17: N/A
A18: Water ladder | B18: Basic | C18: =C16*MICS00!C23/100 -> 48.32057592 | D18: =D16*MICS00!D23/100 -> 39.57883179 | E18: =E16*MICS00!E23/100 -> 37.95757232 | F18: =F16*MICS00!F23/100 -> 48.59113987 | G18: =G16*MICS00!G23/100 -> 67.96534563 | H18: =H16*MICS00!H23/100 -> 68.60428441 | I18: =I16*MICS00!I23/100 -> 75.79375103 | J18: =J16*MICS00!J23/100 -> 84.33204308 | K18: =K16*MICS00!K23/100 -> 89.81532623 | L18: =L16*MICS00!L23/100 -> 85.13081122 | M18: =N18 -> 38.33985263 | N18: =N16*MICS00!N23/100 -> 38.33985263 | O18: =O16*MICS00!O23/100 -> 35.97403838 | P18: =P16*MICS00!P23/100 -> 43.82507663 | Q18: =Q16*MICS00!Q23/100 -> 45.5738097 | R18: =R16*MICS00!R23/100 -> 47.31963302 | S18: =S16*MICS00!S23/100 -> 40.69902227 | T18: =T16*MICS00!T23/100 -> 49.35614892 | U18: =U16*MICS00!U23/100 -> 48.99629456 | V18: =V16*MICS00!V23/100 -> 59.62827801 | W18: =W16*MICS00!W23/100 -> 52.95269033 | X18: =X16*MICS00!X23/100 -> 38.86643214 | Y18: =Y16*MICS00!Y23/100 -> 48.66601758 | Z18: =Z16*MICS00!Z23/100 -> 29.04539652 | AA18: =AA16*MICS00!AA23/100 -> 81.67977767 | AB18: =AB16*MICS00!AB23/100 -> 57.28940066 | AC18: =AC16*MICS00!AC23/100 -> 14.02761637 | BA18: Water ladder | BB18: Basic | BC18: N/A | BD18: N/A | BE18: N/A | BF18: N/A | BG18: N/A | BH18: N/A | BI18: N/A | BJ18: N/A | BK18: N/A | BL18: N/A | BM18: N/A | BN18: N/A | BO18: N/A | BP18: N/A | BQ18: N/A | BR18: N/A | BS18: N/A | BT18: N/A | BU18: N/A | BV18: N/A | BW18: N/A | BX18: N/A | BY18: N/A | BZ18: N/A | CA18: N/A | CB18: N/A | CC18: N/A
B19: Limited | C19: =C16*MICS00!C22/100 -> 30.53681878 | D19: =D16*MICS00!D22/100 -> 25.97030581 | E19: =E16*MICS00!E22/100 -> 25.39006729 | F19: =F16*MICS00!F22/100 -> 19.85408133 | G19: =G16*MICS00!G22/100 -> 19.62948453 | H19: =H16*MICS00!H22/100 -> 15.65493223 | I19: =I16*MICS00!I22/100 -> 14.80513032 | J19: =J16*MICS00!J22/100 -> 9.381260777 | K19: =K16*MICS00!K22/100 -> 5.604103149 | L19: =L16*MICS00!L22/100 -> 12.04374317 | M19: 25.34280694 | N19: =N16*MICS00!N22/100 -> 25.34280694 | O19: =O16*MICS00!O22/100 -> 27.16633148 | P19: =P16*MICS00!P22/100 -> 24.45103666 | Q19: =Q16*MICS00!Q22/100 -> 23.6412731 | R19: =R16*MICS00!R22/100 -> 29.22352633 | S19: =S16*MICS00!S22/100 -> 31.68609 | T19: =T16*MICS00!T22/100 -> 19.80086921 | U19: =U16*MICS00!U22/100 -> 20.15115829 | V19: =V16*MICS00!V22/100 -> 18.84415106 | W19: =W16*MICS00!W22/100 -> 16.07935489 | X19: =X16*MICS00!X22/100 -> 26.3759148 | Y19: =Y16*MICS00!Y22/100 -> 22.36670505 | Z19: =Z16*MICS00!Z22/100 -> 33.5801521 | AA19: =AA16*MICS00!AA22/100 -> 12.12550434 | AB19: =AB16*MICS00!AB22/100 -> 23.29349258 | AC19: =AC16*MICS00!AC22/100 -> 17.24495958 | BB19: Limited | BC19: N/A | BD19: N/A | BE19: N/A | BF19: N/A | BG19: N/A | BH19: N/A | BI19: N/A | BJ19: N/A | BK19: N/A | BL19: N/A | BM19: N/A | BN19: N/A | BO19: N/A | BP19: N/A | BQ19: N/A | BR19: N/A | BS19: N/A | BT19: N/A | BU19: N/A | BV19: N/A | BW19: N/A | BX19: N/A | BY19: N/A | BZ19: N/A | CA19: N/A | CB19: N/A | CC19: N/A
B20: Unimproved | C20: =100-(C18+C19+C21) -> 12.87966169 | D20: =100-(D18+D19+D21) -> 19.74338851 | E20: 20.34955453 | F20: 15.20520182 | G20: 7.488149519 | H20: 7.406098929 | I20: 6.126779956 | J20: 4.082461748 | K20: 3.053117444 | L20: 2.358748616 | M20: 21.60986654 | N20: 21.60986654 | O20: 20.88321798 | P20: 17.44993051 | Q20: 14.13970214 | R20: 8.428699393 | S20: 15.97607213 | T20: 19.07983795 | U20: 19.98031128 | V20: 12.45188439 | W20: 21.36299739 | X20: 15.39747656 | Y20: 17.91655273 | Z20: 18.06317522 | AA20: 5.33683518 | AB20: 11.80892798 | AC20: 24.49105285 | BB20: Unimproved | BC20: N/A | BD20: N/A | BE20: N/A | BF20: N/A | BG20: N/A | BH20: N/A | BI20: N/A | BJ20: N/A | BK20: N/A | BL20: N/A | BM20: N/A | BN20: N/A | BO20: N/A | BP20: N/A | BQ20: N/A | BR20: N/A | BS20: N/A | BT20: N/A | BU20: N/A | BV20: N/A | BW20: N/A | BX20: N/A | BY20: N/A | BZ20: N/A | CA20: N/A | CB20: N/A | CC20: N/A
B21: Surface water | C21: =C66+C67+C68 -> 8.262943613 | D21: 14.70747388 | E21: 16.30280585 | F21: 16.34957698 | G21: 4.917020326 | H21: 8.334684431 | I21: 3.274338698 | J21: 2.204234395 | K21: 1.527453182 | L21: 0.4666969885 | M21: 14.70747388 | N21: =N66+N67+N68 -> 14.70747388 | O21: 15.97641216 | P21: 14.2739562 | Q21: 16.64521506 | R21: 15.02814126 | S21: 11.6388156 | T21: 11.76314392 | U21: 10.87223587 | V21: 9.075686537 | W21: 9.604957397 | X21: 19.3601765 | Y21: 11.05072464 | Z21: 19.31127616 | AA21: 0.85788281 | AB21: 7.608178792 | AC21: 44.2363712 | BB21: Surface water | BC21: N/A | BD21: N/A | BE21: N/A | BF21: N/A | BG21: N/A | BH21: N/A | BI21: N/A | BJ21: N/A | BK21: N/A | BL21: N/A | BM21: N/A | BN21: N/A | BO21: N/A | BP21: N/A | BQ21: N/A | BR21: N/A | BS21: N/A | BT21: N/A | BU21: N/A | BV21: N/A | BW21: N/A | BX21: N/A | BY21: N/A | BZ21: N/A | CA21: N/A | CB21: N/A | CC21: N/A
A22: Improved water point at more than 30 minutes | B22: Yes | C22: N/A | D22: N/A | E22: N/A | F22: N/A | G22: N/A | H22: N/A | I22: N/A | J22: N/A | K22: N/A | L22: N/A | M22: N/A | N22: N/A | O22: N/A | P22: N/A | Q22: N/A | R22: N/A | S22: N/A | T22: N/A | U22: N/A | V22: N/A | W22: N/A | X22: N/A | Y22: N/A | Z22: N/A | AA22: N/A | AB22: N/A | AC22: N/A | BA22: Improved water point at more than 30 minutes | BB22: Yes | BC22: N/A | BD22: N/A | BE22: N/A | BF22: N/A | BG22: N/A | BH22: N/A | BI22: N/A | BJ22: N/A | BK22: N/A | BL22: N/A | BM22: N/A | BN22: N/A | BO22: N/A | BP22: N/A | BQ22: N/A | BR22: N/A | BS22: N/A | BT22: N/A | BU22: N/A | BV22: N/A | BW22: N/A | BX22: N/A | BY22: N/A | BZ22: N/A | CA22: N/A | CB22: N/A | CC22: N/A
B23: No | C23: N/A | D23: N/A | E23: N/A | F23: N/A | G23: N/A | H23: N/A | I23: N/A | J23: N/A | K23: N/A | L23: N/A | M23: N/A | N23: N/A | O23: N/A | P23: N/A | Q23: N/A | R23: N/A | S23: N/A | T23: N/A | U23: N/A | V23: N/A | W23: N/A | X23: N/A | Y23: N/A | Z23: N/A | AA23: N/A | AB23: N/A | AC23: N/A | BB23: No | BC23: N/A | BD23: N/A | BE23: N/A | BF23: N/A | BG23: N/A | BH23: N/A | BI23: N/A | BJ23: N/A | BK23: N/A | BL23: N/A | BM23: N/A | BN23: N/A | BO23: N/A | BP23: N/A | BQ23: N/A | BR23: N/A | BS23: N/A | BT23: N/A | BU23: N/A | BV23: N/A | BW23: N/A | BX23: N/A | BY23: N/A | BZ23: N/A | CA23: N/A | CB23: N/A | CC23: N/A
A24: Manually calculated ratios | B24: Improved wells
B25: Improved springs
B26: Other
C27: NATIONAL wealth index quintile | H27: URBAN wealth index quintile | M27: RURAL wealth index quintile | R27: SUB-REGIONS: | BA27: Raw numbers of respondents: | BB27: Use of drinking water sources | BC27: NATIONAL wealth index quintile | BH27: URBAN wealth index quintile | BM27: RURAL wealth index quintile | BR27: SUB-REGIONS:
A28: Percentage based on weighted population | C28: Poorest | D28: Poor | E28: Middle | F28: Rich | G28: Richest | H28: Poorest | I28: Poor | J28: Middle | K28: Rich | L28: Richest | M28: Poorest | N28: Poor | O28: Middle | P28: Rich | Q28: Richest | R28: Butare | S28: Byumba | T28: Cyangugu | U28: Gikongoro | V28: Gisenyi | W28: Gitarama | X28: Kibungo | Y28: Kibuye | Z28: Kigali Rurale | AA28: Kigali Ville (PVK) | AB28: Ruhengeri | AC28: Umutara | BA28: Water data, raw numbers (weighted) | BC28: Poorest | BD28: Poor | BE28: Middle | BF28: Rich | BG28: Richest | BH28: Poorest | BI28: Poor | BJ28: Middle | BK28: Rich | BL28: Richest | BM28: Poorest | BN28: Poor | BO28: Middle | BP28: Rich | BQ28: Richest | BR28: Butare | BS28: Byumba | BT28: Cyangugu | BU28: Gikongoro | BV28: Gisenyi | BW28: Gitarama | BX28: Kibungo | BY28: Kibuye | BZ28: Kigali Rurale | CA28: Kigali Ville (PVK) | CB28: Ruhengeri | CC28: Umutara
A29: Piped water | B29: Yes | C29: 44.48250883 | D29: 26.42660476 | E29: 22.63891523 | F29: 28.67661341 | G29: 69.47930807 | H29: 46.01895569 | I29: 73.54745478 | J29: 86.13931152 | K29: 88.98797556 | L29: 89.07052225 | M29: N/A | N29: 26.42660476 | O29: 19.44467616 | P29: 25.96308235 | Q29: 37.24718948 | R29: 21.831718 | S29: 41.63002052 | T29: 39.56452469 | U29: 28.09057528 | V29: 42.86671132 | W29: 23.34279082 | X29: 47.38003309 | Y29: 21.99457668 | Z29: 35.86516854 | AA29: 81.02472927 | AB29: 36.32905373 | AC29: 10.44527674 | BA29: Piped water | BB29: Yes | BC29: N/A | BD29: N/A | BE29: N/A | BF29: N/A | BG29: N/A | BH29: N/A | BI29: N/A | BJ29: N/A | BK29: N/A | BL29: N/A | BM29: N/A | BN29: N/A | BO29: N/A | BP29: N/A | BQ29: N/A | BR29: N/A | BS29: N/A | BT29: N/A | BU29: N/A | BV29: N/A | BW29: N/A | BX29: N/A | BY29: N/A | BZ29: N/A | CA29: N/A | CB29: N/A | CC29: N/A
B30: No | C30: 55.51749117 | D30: 73.57339524 | E30: 77.36108477 | F30: 71.32338659 | G30: 30.52069193 | H30: 53.98104431 | I30: 26.45254522 | J30: 13.86068848 | K30: 11.01202444 | L30: 10.92947775 | M30: N/A | N30: 73.57339524 | O30: 80.55532384 | P30: 74.03691765 | Q30: 62.75281052 | R30: 78.168282 | S30: 58.36997948 | T30: 60.43547531 | U30: 71.90942472 | V30: 57.13328868 | W30: 76.65720918 | X30: 52.61996691 | Y30: 78.00542332 | Z30: 64.13483146 | AA30: 18.97527073 | AB30: 63.67094627 | AC30: 89.55472326 | BB30: No | BC30: N/A | BD30: N/A | BE30: N/A | BF30: N/A | BG30: N/A | BH30: N/A | BI30: N/A | BJ30: N/A | BK30: N/A | BL30: N/A | BM30: N/A | BN30: N/A | BO30: N/A | BP30: N/A | BQ30: N/A | BR30: N/A | BS30: N/A | BT30: N/A | BU30: N/A | BV30: N/A | BW30: N/A | BX30: N/A | BY30: N/A | BZ30: N/A | CA30: N/A | CB30: N/A | CC30: N/A
A31: Piped water on premises | B31: Yes | C31: 3.282101355 | D31: 0.479696284 | E31: 0 | F31: 0.8395222017 | G31: 29.57506864 | H31: 3.90794675 | I31: 12.90469327 | J31: 35.90067296 | K31: 53.93261683 | L31: 71.82348889 | M31: N/A | N31: 0.479696284 | O31: 0 | P31: 0.4325467884 | Q31: 3.266694212 | R31: 3.509328597 | S31: 4.514805043 | T31: 4.912373871 | U31: 0.5813953488 | V31: 13.9651708 | W31: 2.218209956 | X31: 4.302261445 | Y31: 0.301295571 | Z31: 4.741573034 | AA31: 37.07774366 | AB31: 6.300523062 | AC31: 0 | BA31: Piped water on premises | BB31: Yes | BC31: N/A | BD31: N/A | BE31: N/A | BF31: N/A | BG31: N/A | BH31: N/A | BI31: N/A | BJ31: N/A | BK31: N/A | BL31: N/A | BM31: N/A | BN31: N/A | BO31: N/A | BP31: N/A | BQ31: N/A | BR31: N/A | BS31: N/A | BT31: N/A | BU31: N/A | BV31: N/A | BW31: N/A | BX31: N/A | BY31: N/A | BZ31: N/A | CA31: N/A | CB31: N/A | CC31: N/A
B32: No | C32: 96.71789865 | D32: 99.52030372 | E32: 100 | F32: 99.1604778 | G32: 70.42493136 | H32: 96.09205325 | I32: 87.09530673 | J32: 64.09932704 | K32: 46.06738317 | L32: 28.17651111 | M32: N/A | N32: 99.52030372 | O32: 100 | P32: 99.56745321 | Q32: 96.73330579 | R32: 96.4906714 | S32: 95.48519496 | T32: 95.08762613 | U32: 99.41860465 | V32: 86.0348292 | W32: 97.78179004 | X32: 95.69773855 | Y32: 99.69870443 | Z32: 95.25842697 | AA32: 62.92225634 | AB32: 93.69947694 | AC32: 100 | BB32: No | BC32: N/A | BD32: N/A | BE32: N/A | BF32: N/A | BG32: N/A | BH32: N/A | BI32: N/A | BJ32: N/A | BK32: N/A | BL32: N/A | BM32: N/A | BN32: N/A | BO32: N/A | BP32: N/A | BQ32: N/A | BR32: N/A | BS32: N/A | BT32: N/A | BU32: N/A | BV32: N/A | BW32: N/A | BX32: N/A | BY32: N/A | BZ32: N/A | CA32: N/A | CB32: N/A | CC32: N/A
A33: Piped water into dwelling | B33: Yes | C33: N/A | D33: N/A | E33: N/A | F33: N/A | G33: N/A | H33: N/A | I33: N/A | J33: N/A | K33: N/A | L33: N/A | M33: N/A | N33: N/A | O33: N/A | P33: N/A | Q33: N/A | R33: N/A | S33: N/A | T33: N/A | U33: N/A | V33: N/A | W33: N/A | X33: N/A | Y33: N/A | Z33: N/A | AA33: N/A | AB33: N/A | AC33: N/A | BA33: Piped water into dwelling | BB33: Yes | BC33: N/A | BD33: N/A | BE33: N/A | BF33: N/A | BG33: N/A | BH33: N/A | BI33: N/A | BJ33: N/A | BK33: N/A | BL33: N/A | BM33: N/A | BN33: N/A | BO33: N/A | BP33: N/A | BQ33: N/A | BR33: N/A | BS33: N/A | BT33: N/A | BU33: N/A | BV33: N/A | BW33: N/A | BX33: N/A | BY33: N/A | BZ33: N/A | CA33: N/A | CB33: N/A | CC33: N/A
B34: No | C34: N/A | D34: N/A | E34: N/A | F34: N/A | G34: N/A | H34: N/A | I34: N/A | J34: N/A | K34: N/A | L34: N/A | M34: N/A | N34: N/A | O34: N/A | P34: N/A | Q34: N/A | R34: N/A | S34: N/A | T34: N/A | U34: N/A | V34: N/A | W34: N/A | X34: N/A | Y34: N/A | Z34: N/A | AA34: N/A | AB34: N/A | AC34: N/A | BB34: No | BC34: N/A | BD34: N/A | BE34: N/A | BF34: N/A | BG34: N/A | BH34: N/A | BI34: N/A | BJ34: N/A | BK34: N/A | BL34: N/A | BM34: N/A | BN34: N/A | BO34: N/A | BP34: N/A | BQ34: N/A | BR34: N/A | BS34: N/A | BT34: N/A | BU34: N/A | BV34: N/A | BW34: N/A | BX34: N/A | BY34: N/A | BZ34: N/A | CA34: N/A | CB34: N/A | CC34: N/A
A35: Water source on premises | B35: Yes | C35: 3.282101355 | D35: 0.5661689546 | E35: 0 | F35: 0.9707615369 | G35: 29.71952174 | H35: 3.90794675 | I35: 12.90469327 | J35: 35.90067296 | K35: 53.93261683 | L35: 72.75688287 | M35: N/A | N35: 0.5661689546 | O35: 0 | P35: 0.5723860547 | Q35: 3.338848554 | R35: 3.509328597 | S35: 4.514805043 | T35: 4.912373871 | U35: 0.7343941248 | V35: 14.09912927 | W35: 2.218209956 | X35: 4.302261445 | Y35: 0.3916842422 | Z35: 5.258426966 | AA35: 37.07774366 | AB35: 6.395625297 | AC35: 0 | BA35: Water source on premises | BB35: Yes | BC35: N/A | BD35: N/A | BE35: N/A | BF35: N/A | BG35: N/A | BH35: N/A | BI35: N/A | BJ35: N/A | BK35: N/A | BL35: N/A | BM35: N/A | BN35: N/A | BO35: N/A | BP35: N/A | BQ35: N/A | BR35: N/A | BS35: N/A | BT35: N/A | BU35: N/A | BV35: N/A | BW35: N/A | BX35: N/A | BY35: N/A | BZ35: N/A | CA35: N/A | CB35: N/A | CC35: N/A
B36: No | C36: 96.71789865 | D36: 99.43383105 | E36: 100 | F36: 99.02923846 | G36: 70.28047826 | H36: 96.09205325 | I36: 87.09530673 | J36: 64.09932704 | K36: 46.06738317 | L36: 27.24311713 | M36: N/A | N36: 99.43383105 | O36: 100 | P36: 99.42761395 | Q36: 96.66115145 | R36: 96.4906714 | S36: 95.48519496 | T36: 95.08762613 | U36: 99.26560588 | V36: 85.90087073 | W36: 97.78179004 | X36: 95.69773855 | Y36: 99.60831576 | Z36: 94.74157303 | AA36: 62.92225634 | AB36: 93.6043747 | AC36: 100 | BB36: No | BC36: N/A | BD36: N/A | BE36: N/A | BF36: N/A | BG36: N/A | BH36: N/A | BI36: N/A | BJ36: N/A | BK36: N/A | BL36: N/A | BM36: N/A | BN36: N/A | BO36: N/A | BP36: N/A | BQ36: N/A | BR36: N/A | BS36: N/A | BT36: N/A | BU36: N/A | BV36: N/A | BW36: N/A | BX36: N/A | BY36: N/A | BZ36: N/A | CA36: N/A | CB36: N/A | CC36: N/A
A37: Improved Water source on premises | B37: Yes | C37: N/A | D37: N/A | E37: N/A | F37: N/A | G37: N/A | H37: N/A | I37: N/A | J37: N/A | K37: N/A | L37: N/A | M37: N/A | N37: N/A | O37: N/A | P37: N/A | Q37: N/A | R37: N/A | S37: N/A | T37: N/A | U37: N/A | V37: N/A | W37: N/A | X37: N/A | Y37: N/A | Z37: N/A | AA37: N/A | AB37: N/A | AC37: N/A | BA37: Improved water source on premises | BB37: Yes | BC37: N/A | BD37: N/A | BE37: N/A | BF37: N/A | BG37: N/A | BH37: N/A | BI37: N/A | BJ37: N/A | BK37: N/A | BL37: N/A | BM37: N/A | BN37: N/A | BO37: N/A | BP37: N/A | BQ37: N/A | BR37: N/A | BS37: N/A | BT37: N/A | BU37: N/A | BV37: N/A | BW37: N/A | BX37: N/A | BY37: N/A | BZ37: N/A | CA37: N/A | CB37: N/A | CC37: N/A
B38: No | C38: N/A | D38: N/A | E38: N/A | F38: N/A | G38: N/A | H38: N/A | I38: N/A | J38: N/A | K38: N/A | L38: N/A | M38: N/A | N38: N/A | O38: N/A | P38: N/A | Q38: N/A | R38: N/A | S38: N/A | T38: N/A | U38: N/A | V38: N/A | W38: N/A | X38: N/A | Y38: N/A | Z38: N/A | AA38: N/A | AB38: N/A | AC38: N/A | BB38: No | BC38: N/A | BD38: N/A | BE38: N/A | BF38: N/A | BG38: N/A | BH38: N/A | BI38: N/A | BJ38: N/A | BK38: N/A | BL38: N/A | BM38: N/A | BN38: N/A | BO38: N/A | BP38: N/A | BQ38: N/A | BR38: N/A | BS38: N/A | BT38: N/A | BU38: N/A | BV38: N/A | BW38: N/A | BX38: N/A | BY38: N/A | BZ38: N/A | CA38: N/A | CB38: N/A | CC38: N/A
A39: Piped water on premises available when needed | B39: Yes | C39: N/A | D39: N/A | E39: N/A | F39: N/A | G39: N/A | H39: N/A | I39: N/A | J39: N/A | K39: N/A | L39: N/A | M39: N/A | N39: N/A | O39: N/A | P39: N/A | Q39: N/A | R39: N/A | S39: N/A | T39: N/A | U39: N/A | V39: N/A | W39: N/A | X39: N/A | Y39: N/A | Z39: N/A | AA39: N/A | AB39: N/A | AC39: N/A | BA39: Piped water on premises available when needed | BB39: Yes | BC39: N/A | BD39: N/A | BE39: N/A | BF39: N/A | BG39: N/A | BH39: N/A | BI39: N/A | BJ39: N/A | BK39: N/A | BL39: N/A | BM39: N/A | BN39: N/A | BO39: N/A | BP39: N/A | BQ39: N/A | BR39: N/A | BS39: N/A | BT39: N/A | BU39: N/A | BV39: N/A | BW39: N/A | BX39: N/A | BY39: N/A | BZ39: N/A | CA39: N/A | CB39: N/A | CC39: N/A
B40: No | C40: N/A | D40: N/A | E40: N/A | F40: N/A | G40: N/A | H40: N/A | I40: N/A | J40: N/A | K40: N/A | L40: N/A | M40: N/A | N40: N/A | O40: N/A | P40: N/A | Q40: N/A | R40: N/A | S40: N/A | T40: N/A | U40: N/A | V40: N/A | W40: N/A | X40: N/A | Y40: N/A | Z40: N/A | AA40: N/A | AB40: N/A | AC40: N/A | BB40: No | BC40: N/A | BD40: N/A | BE40: N/A | BF40: N/A | BG40: N/A | BH40: N/A | BI40: N/A | BJ40: N/A | BK40: N/A | BL40: N/A | BM40: N/A | BN40: N/A | BO40: N/A | BP40: N/A | BQ40: N/A | BR40: N/A | BS40: N/A | BT40: N/A | BU40: N/A | BV40: N/A | BW40: N/A | BX40: N/A | BY40: N/A | BZ40: N/A | CA40: N/A | CB40: N/A | CC40: N/A
A41: Water point at more than 30 minutes | B41: Yes | C41: 24.94171695 | D41: 40.03282111 | E41: 34.17890433 | F41: 39.60348454 | G41: 22.78873478 | H41: 27.58528393 | I41: 22.97667618 | J41: 13.4186161 | K41: 13.40661622 | L41: 8.117653291 | M41: N/A | N41: 40.03282111 | O41: 33.49131543 | P41: 38.42673201 | Q41: 40.54442936 | R41: 45.55037272 | S41: 39.19952913 | T41: 31.46574615 | U41: 35.23076923 | V41: 25.38513061 | W41: 31.31939065 | X41: 46.99393271 | Y41: 31.20845921 | Z41: 44.4920027 | AA41: 16.48530128 | AB41: 34.52551264 | AC41: 55.52774301 | BA41: Water point at more than 30 minutes | BB41: Yes | BC41: N/A | BD41: N/A | BE41: N/A | BF41: N/A | BG41: N/A | BH41: N/A | BI41: N/A | BJ41: N/A | BK41: N/A | BL41: N/A | BM41: N/A | BN41: N/A | BO41: N/A | BP41: N/A | BQ41: N/A | BR41: N/A | BS41: N/A | BT41: N/A | BU41: N/A | BV41: N/A | BW41: N/A | BX41: N/A | BY41: N/A | BZ41: N/A | CA41: N/A | CB41: N/A | CC41: N/A
B42: No | C42: 75.05828305 | D42: 59.96717889 | E42: 65.82109567 | F42: 60.39651546 | G42: 77.21126522 | H42: 72.41471607 | I42: 77.02332382 | J42: 86.5813839 | K42: 86.59338378 | L42: 91.88234671 | M42: N/A | N42: 59.96717889 | O42: 66.50868457 | P42: 61.57326799 | Q42: 59.45557064 | R42: 54.44962728 | S42: 60.80047087 | T42: 68.53425385 | U42: 64.76923077 | V42: 74.61486939 | W42: 68.68060935 | X42: 53.00606729 | Y42: 68.79154079 | Z42: 55.5079973 | AA42: 83.51469872 | AB42: 65.47448736 | AC42: 44.47225699 | BB42: No | BC42: N/A | BD42: N/A | BE42: N/A | BF42: N/A | BG42: N/A | BH42: N/A | BI42: N/A | BJ42: N/A | BK42: N/A | BL42: N/A | BM42: N/A | BN42: N/A | BO42: N/A | BP42: N/A | BQ42: N/A | BR42: N/A | BS42: N/A | BT42: N/A | BU42: N/A | BV42: N/A | BW42: N/A | BX42: N/A | BY42: N/A | BZ42: N/A | CA42: N/A | CB42: N/A | CC42: N/A
A43: Water source available when needed | B43: Yes | C43: N/A | D43: N/A | E43: N/A | F43: N/A | G43: N/A | H43: N/A | I43: N/A | J43: N/A | K43: N/A | L43: N/A | M43: N/A | N43: N/A | O43: N/A | P43: N/A | Q43: N/A | R43: N/A | S43: N/A | T43: N/A | U43: N/A | V43: N/A | W43: N/A | X43: N/A | Y43: N/A | Z43: N/A | AA43: N/A | AB43: N/A | AC43: N/A | BA43: Water source available when needed | BB43: Yes | BC43: N/A | BD43: N/A | BE43: N/A | BF43: N/A | BG43: N/A | BH43: N/A | BI43: N/A | BJ43: N/A | BK43: N/A | BL43: N/A | BM43: N/A | BN43: N/A | BO43: N/A | BP43: N/A | BQ43: N/A | BR43: N/A | BS43: N/A | BT43: N/A | BU43: N/A | BV43: N/A | BW43: N/A | BX43: N/A | BY43: N/A | BZ43: N/A | CA43: N/A | CB43: N/A | CC43: N/A
B44: No | C44: N/A | D44: N/A | E44: N/A | F44: N/A | G44: N/A | H44: N/A | I44: N/A | J44: N/A | K44: N/A | L44: N/A | M44: N/A | N44: N/A | O44: N/A | P44: N/A | Q44: N/A | R44: N/A | S44: N/A | T44: N/A | U44: N/A | V44: N/A | W44: N/A | X44: N/A | Y44: N/A | Z44: N/A | AA44: N/A | AB44: N/A | AC44: N/A | BB44: No | BC44: N/A | BD44: N/A | BE44: N/A | BF44: N/A | BG44: N/A | BH44: N/A | BI44: N/A | BJ44: N/A | BK44: N/A | BL44: N/A | BM44: N/A | BN44: N/A | BO44: N/A | BP44: N/A | BQ44: N/A | BR44: N/A | BS44: N/A | BT44: N/A | BU44: N/A | BV44: N/A | BW44: N/A | BX44: N/A | BY44: N/A | BZ44: N/A | CA44: N/A | CB44: N/A | CC44: N/A
A45: Improved water source available when needed | B45: Yes | C45: N/A | D45: N/A | E45: N/A | F45: N/A | G45: N/A | H45: N/A | I45: N/A | J45: N/A | K45: N/A | L45: N/A | M45: N/A | N45: N/A | O45: N/A | P45: N/A | Q45: N/A | R45: N/A | S45: N/A | T45: N/A | U45: N/A | V45: N/A | W45: N/A | X45: N/A | Y45: N/A | Z45: N/A | AA45: N/A | AB45: N/A | AC45: N/A | BA45: Improved water source available when needed | BB45: Yes | BC45: N/A | BD45: N/A | BE45: N/A | BF45: N/A | BG45: N/A | BH45: N/A | BI45: N/A | BJ45: N/A | BK45: N/A | BL45: N/A | BM45: N/A | BN45: N/A | BO45: N/A | BP45: N/A | BQ45: N/A | BR45: N/A | BS45: N/A | BT45: N/A | BU45: N/A | BV45: N/A | BW45: N/A | BX45: N/A | BY45: N/A | BZ45: N/A | CA45: N/A | CB45: N/A | CC45: N/A
B46: No | C46: N/A | D46: N/A | E46: N/A | F46: N/A | G46: N/A | H46: N/A | I46: N/A | J46: N/A | K46: N/A | L46: N/A | M46: N/A | N46: N/A | O46: N/A | P46: N/A | Q46: N/A | R46: N/A | S46: N/A | T46: N/A | U46: N/A | V46: N/A | W46: N/A | X46: N/A | Y46: N/A | Z46: N/A | AA46: N/A | AB46: N/A | AC46: N/A | BB46: No | BC46: N/A | BD46: N/A | BE46: N/A | BF46: N/A | BG46: N/A | BH46: N/A | BI46: N/A | BJ46: N/A | BK46: N/A | BL46: N/A | BM46: N/A | BN46: N/A | BO46: N/A | BP46: N/A | BQ46: N/A | BR46: N/A | BS46: N/A | BT46: N/A | BU46: N/A | BV46: N/A | BW46: N/A | BX46: N/A | BY46: N/A | BZ46: N/A | CA46: N/A | CB46: N/A | CC46: N/A
A47: Microbiological quality at point of collection | B47: Not contaminated (No E. coli in 100 mL) | C47: N/A | D47: N/A | E47: N/A | F47: N/A | G47: N/A | H47: N/A | I47: N/A | J47: N/A | K47: N/A | L47: N/A | M47: N/A | N47: N/A | O47: N/A | P47: N/A | Q47: N/A | R47: N/A | S47: N/A | T47: N/A | U47: N/A | V47: N/A | W47: N/A | X47: N/A | Y47: N/A | Z47: N/A | AA47: N/A | AB47: N/A | AC47: N/A | BA47: Microbiological quality at point of collection | BB47: Not contaminated (No E. coli in 100 mL) | BC47: N/A | BD47: N/A | BE47: N/A | BF47: N/A | BG47: N/A | BH47: N/A | BI47: N/A | BJ47: N/A | BK47: N/A | BL47: N/A | BM47: N/A | BN47: N/A | BO47: N/A | BP47: N/A | BQ47: N/A | BR47: N/A | BS47: N/A | BT47: N/A | BU47: N/A | BV47: N/A | BW47: N/A | BX47: N/A | BY47: N/A | BZ47: N/A | CA47: N/A | CB47: N/A | CC47: N/A
B48: Contaminated (E. coli detected in 100 mL) | C48: N/A | D48: N/A | E48: N/A | F48: N/A | G48: N/A | H48: N/A | I48: N/A | J48: N/A | K48: N/A | L48: N/A | M48: N/A | N48: N/A | O48: N/A | P48: N/A | Q48: N/A | R48: N/A | S48: N/A | T48: N/A | U48: N/A | V48: N/A | W48: N/A | X48: N/A | Y48: N/A | Z48: N/A | AA48: N/A | AB48: N/A | AC48: N/A | BB48: Contaminated (E. coli detected in 100 mL) | BC48: N/A | BD48: N/A | BE48: N/A | BF48: N/A | BG48: N/A | BH48: N/A | BI48: N/A | BJ48: N/A | BK48: N/A | BL48: N/A | BM48: N/A | BN48: N/A | BO48: N/A | BP48: N/A | BQ48: N/A | BR48: N/A | BS48: N/A | BT48: N/A | BU48: N/A | BV48: N/A | BW48: N/A | BX48: N/A | BY48: N/A | BZ48: N/A | CA48: N/A | CB48: N/A | CC48: N/A
B49: Highly contaminated (>100 CFU/100 mL) | C49: N/A | D49: N/A | E49: N/A | F49: N/A | G49: N/A | H49: N/A | I49: N/A | J49: N/A | K49: N/A | L49: N/A | M49: N/A | N49: N/A | O49: N/A | P49: N/A | Q49: N/A | R49: N/A | S49: N/A | T49: N/A | U49: N/A | V49: N/A | W49: N/A | X49: N/A | Y49: N/A | Z49: N/A | AA49: N/A | AB49: N/A | AC49: N/A | BB49: Highly contaminated (>100 CFU/100 mL) | BC49: N/A | BD49: N/A | BE49: N/A | BF49: N/A | BG49: N/A | BH49: N/A | BI49: N/A | BJ49: N/A | BK49: N/A | BL49: N/A | BM49: N/A | BN49: N/A | BO49: N/A | BP49: N/A | BQ49: N/A | BR49: N/A | BS49: N/A | BT49: N/A | BU49: N/A | BV49: N/A | BW49: N/A | BX49: N/A | BY49: N/A | BZ49: N/A | CA49: N/A | CB49: N/A | CC49: N/A
A50: Microbiological quality of improved water sources at point of collection | B50: Not contaminated (No E. coli in 100 mL) | C50: N/A | D50: N/A | E50: N/A | F50: N/A | G50: N/A | H50: N/A | I50: N/A | J50: N/A | K50: N/A | L50: N/A | M50: N/A | N50: N/A | O50: N/A | P50: N/A | Q50: N/A | R50: N/A | S50: N/A | T50: N/A | U50: N/A | V50: N/A | W50: N/A | X50: N/A | Y50: N/A | Z50: N/A | AA50: N/A | AB50: N/A | AC50: N/A | BA50: Microbiological quality of improved water sources at point of collection | BB50: Not contaminated (No E. coli in 100 mL) | BC50: N/A | BD50: N/A | BE50: N/A | BF50: N/A | BG50: N/A | BH50: N/A | BI50: N/A | BJ50: N/A | BK50: N/A | BL50: N/A | BM50: N/A | BN50: N/A | BO50: N/A | BP50: N/A | BQ50: N/A | BR50: N/A | BS50: N/A | BT50: N/A | BU50: N/A | BV50: N/A | BW50: N/A | BX50: N/A | BY50: N/A | BZ50: N/A | CA50: N/A | CB50: N/A | CC50: N/A
B51: Contaminated (E. coli detected in 100 mL) | C51: N/A | D51: N/A | E51: N/A | F51: N/A | G51: N/A | H51: N/A | I51: N/A | J51: N/A | K51: N/A | L51: N/A | M51: N/A | N51: N/A | O51: N/A | P51: N/A | Q51: N/A | R51: N/A | S51: N/A | T51: N/A | U51: N/A | V51: N/A | W51: N/A | X51: N/A | Y51: N/A | Z51: N/A | AA51: N/A | AB51: N/A | AC51: N/A | BB51: Contaminated (E. coli detected in 100 mL) | BC51: N/A | BD51: N/A | BE51: N/A | BF51: N/A | BG51: N/A | BH51: N/A | BI51: N/A | BJ51: N/A | BK51: N/A | BL51: N/A | BM51: N/A | BN51: N/A | BO51: N/A | BP51: N/A | BQ51: N/A | BR51: N/A | BS51: N/A | BT51: N/A | BU51: N/A | BV51: N/A | BW51: N/A | BX51: N/A | BY51: N/A | BZ51: N/A | CA51: N/A | CB51: N/A | CC51: N/A
B52: Highly contaminated (>100 CFU/100 mL) | C52: N/A | D52: N/A | E52: N/A | F52: N/A | G52: N/A | H52: N/A | I52: N/A | J52: N/A | K52: N/A | L52: N/A | M52: N/A | N52: N/A | O52: N/A | P52: N/A | Q52: N/A | R52: N/A | S52: N/A | T52: N/A | U52: N/A | V52: N/A | W52: N/A | X52: N/A | Y52: N/A | Z52: N/A | AA52: N/A | AB52: N/A | AC52: N/A | BB52: Highly contaminated (>100 CFU/100 mL) | BC52: N/A | BD52: N/A | BE52: N/A | BF52: N/A | BG52: N/A | BH52: N/A | BI52: N/A | BJ52: N/A | BK52: N/A | BL52: N/A | BM52: N/A | BN52: N/A | BO52: N/A | BP52: N/A | BQ52: N/A | BR52: N/A | BS52: N/A | BT52: N/A | BU52: N/A | BV52: N/A | BW52: N/A | BX52: N/A | BY52: N/A | BZ52: N/A | CA52: N/A | CB52: N/A | CC52: N/A
A53: Microbiological quality of piped on premises at point of collection | B53: Not contaminated (No E. coli in 100 mL) | C53: N/A | D53: N/A | E53: N/A | F53: N/A | G53: N/A | H53: N/A | I53: N/A | J53: N/A | K53: N/A | L53: N/A | M53: N/A | N53: N/A | O53: N/A | P53: N/A | Q53: N/A | R53: N/A | S53: N/A | T53: N/A | U53: N/A | V53: N/A | W53: N/A | X53: N/A | Y53: N/A | Z53: N/A | AA53: N/A | AB53: N/A | AC53: N/A | BA53: Microbiological quality of piped on premises at point of collection | BB53: Not contaminated (No E. coli in 100 mL) | BC53: N/A | BD53: N/A | BE53: N/A | BF53: N/A | BG53: N/A | BH53: N/A | BI53: N/A | BJ53: N/A | BK53: N/A | BL53: N/A | BM53: N/A | BN53: N/A | BO53: N/A | BP53: N/A | BQ53: N/A | BR53: N/A | BS53: N/A | BT53: N/A | BU53: N/A | BV53: N/A | BW53: N/A | BX53: N/A | BY53: N/A | BZ53: N/A | CA53: N/A | CB53: N/A | CC53: N/A
B54: Contaminated (E. coli detected in 100 mL) | C54: N/A | D54: N/A | E54: N/A | F54: N/A | G54: N/A | H54: N/A | I54: N/A | J54: N/A | K54: N/A | L54: N/A | M54: N/A | N54: N/A | O54: N/A | P54: N/A | Q54: N/A | R54: N/A | S54: N/A | T54: N/A | U54: N/A | V54: N/A | W54: N/A | X54: N/A | Y54: N/A | Z54: N/A | AA54: N/A | AB54: N/A | AC54: N/A | BB54: Contaminated (E. coli detected in 100 mL) | BC54: N/A | BD54: N/A | BE54: N/A | BF54: N/A | BG54: N/A | BH54: N/A | BI54: N/A | BJ54: N/A | BK54: N/A | BL54: N/A | BM54: N/A | BN54: N/A | BO54: N/A | BP54: N/A | BQ54: N/A | BR54: N/A | BS54: N/A | BT54: N/A | BU54: N/A | BV54: N/A | BW54: N/A | BX54: N/A | BY54: N/A | BZ54: N/A | CA54: N/A | CB54: N/A | CC54: N/A
B55: Highly contaminated (>100 CFU/100 mL) | C55: N/A | D55: N/A | E55: N/A | F55: N/A | G55: N/A | H55: N/A | I55: N/A | J55: N/A | K55: N/A | L55: N/A | M55: N/A | N55: N/A | O55: N/A | P55: N/A | Q55: N/A | R55: N/A | S55: N/A | T55: N/A | U55: N/A | V55: N/A | W55: N/A | X55: N/A | Y55: N/A | Z55: N/A | AA55: N/A | AB55: N/A | AC55: N/A | BB55: Highly contaminated (>100 CFU/100 mL) | BC55: N/A | BD55: N/A | BE55: N/A | BF55: N/A | BG55: N/A | BH55: N/A | BI55: N/A | BJ55: N/A | BK55: N/A | BL55: N/A | BM55: N/A | BN55: N/A | BO55: N/A | BP55: N/A | BQ55: N/A | BR55: N/A | BS55: N/A | BT55: N/A | BU55: N/A | BV55: N/A | BW55: N/A | BX55: N/A | BY55: N/A | BZ55: N/A | CA55: N/A | CB55: N/A | CC55: N/A
C56: NATIONAL wealth index quintile | H56: URBAN wealth index quintile | M56: RURAL wealth index quintile | R56: SUB-REGIONS: | BA56: Raw numbers of respondents: | BB56: Use of drinking water sources | BC56: NATIONAL wealth index quintile | BH56: URBAN wealth index quintile | BM56: RURAL wealth index quintile | BR56: SUB-REGIONS:
A57: Percentage based on weighted population | C57: Poorest | D57: Poor | E57: Middle | F57: Rich | G57: Richest | H57: Poorest | I57: Poor | J57: Middle | K57: Rich | L57: Richest | M57: Poorest | N57: Poor | O57: Middle | P57: Rich | Q57: Richest | R57: Butare | S57: Byumba | T57: Cyangugu | U57: Gikongoro | V57: Gisenyi | W57: Gitarama | X57: Kibungo | Y57: Kibuye | Z57: Kigali Rurale | AA57: Kigali Ville (PVK) | AB57: Ruhengeri | AC57: Umutara | BA57: Water data, raw numbers (weighted) | BC57: Poorest | BD57: Poor | BE57: Middle | BF57: Rich | BG57: Richest | BH57: Poorest | BI57: Poor | BJ57: Middle | BK57: Rich | BL57: Richest | BM57: Poorest | BN57: Poor | BO57: Middle | BP57: Rich | BQ57: Richest | BR57: Butare | BS57: Byumba | BT57: Cyangugu | BU57: Gikongoro | BV57: Gisenyi | BW57: Gitarama | BX57: Kibungo | BY57: Kibuye | BZ57: Kigali Rurale | CA57: Kigali Ville (PVK) | CB57: Ruhengeri | CC57: Umutara
A58: Source of drinking water | B58: Piped into dwelling | C58: 0.9048692125 | D58: 0.2824820724 | E58: 0 | F58: 0.2256545886 | G58: 10.22962585 | H58: 1.15473192 | I58: 1.821357925 | J58: 9.424205981 | K58: 11.50073611 | L58: 37.95194617 | M58: N/A | N58: 0.2824820724 | O58: 0 | P58: 0.06942367358 | Q58: 1.126164662 | R58: 1.840631742 | S58: 2.814423923 | T58: 1.248008497 | U58: 0.4914004914 | V58: 5.190890824 | W58: 0.6713142267 | X58: 0.9100937672 | Y58: 0.09057971014 | Z58: 1.823092505 | AA58: 13.07866624 | AB58: 1.11745126 | AC58: 0
B59: Piped into yard/plot | C59: 2.377232142 | D59: 0.1974321607 | E59: 0 | F59: 0.6143870931 | G59: 19.39330034 | H59: 2.758982995 | I59: 11.08333534 | J59: 26.50199602 | K59: 42.43188072 | L59: 33.87154272 | M59: N/A | N59: 0.1974321607 | O59: 0 | P59: 0.3631231148 | Q59: 2.14942445 | R59: 1.668696855 | S59: 1.70038112 | T59: 3.664365374 | U59: 0.09213759214 | V59: 8.774279973 | W59: 1.549186677 | X59: 3.392167678 | Y59: 0.211352657 | Z59: 2.925950934 | AA59: 24.05309162 | AB59: 5.183071802 | AC59: 0
B60: Public tap | C60: 41.20040748 | D60: 25.9586974 | E60: 22.63891523 | F60: 27.85431626 | G60: 39.96881136 | H60: 42.17316517 | I60: 60.64276151 | J60: 50.27436337 | K60: 35.05535872 | L60: 17.24703336 | M60: N/A | N60: 25.9586974 | O60: 19.44467616 | P60: 25.53053556 | Q60: 34.07302094 | R60: 18.3223894 | S60: 37.11521548 | T60: 34.65215082 | U60: 27.61056511 | V60: 28.90154052 | W60: 21.14639814 | X60: 43.07777165 | Y60: 21.73913043 | Z60: 31.17263111 | AA60: 44.0110068 | AB60: 30.02853067 | AC60: 10.44527674
B61: Open well in yard/plot | C61: 0 | D61: 0 | E61: 0 | F61: 0 | G61: 0.02175738985 | H61: 0 | I61: 0 | J61: 0 | K61: 0 | L61: 0.1403597918 | M61: N/A | N61: 0 | O61: 0 | P61: 0 | Q61: 0 | R61: 0 | S61: 0 | T61: 0 | U61: 0 | V61: 0 | W61: 0 | X61: 0 | Y61: 0 | Z61: 0 | AA61: 0.09711880868 | AB61: 0 | AC61: 0
B62: Open public well | C62: 2.669339207 | D62: 4.428468759 | E62: 1.084246866 | F62: 4.278506804 | G62: 2.496193345 | H62: 2.297854817 | I62: 2.08876603 | J62: 0.2370340388 | K62: 0.5098860385 | L62: 0.09357319456 | M62: N/A | N62: 4.428468759 | O62: 1.189298278 | P62: 4.347587354 | Q62: 4.958719769 | R62: 5.536785446 | S62: 3.518029903 | T62: 3.133297929 | U62: 4.207616708 | V62: 5.894172806 | W62: 3.098373354 | X62: 4.495311638 | Y62: 2.053140097 | Z62: 4.411433716 | AA62: 1.294917449 | AB62: 2.639087019 | AC62: 6.533499792
B63: Protected well in yard/plot | C63: 0 | D63: 0.0174986238 | E63: 0 | F63: 0.04001804679 | G63: 0 | H63: 0 | I63: 0 | J63: 0 | K63: 0 | L63: 0 | M63: N/A | N63: 0.0174986238 | O63: 0 | P63: 0 | Q63: 0.0716555743 | R63: 0 | S63: 0 | T63: 0 | U63: 0.1842751843 | V63: 0 | W63: 0 | X63: 0 | Y63: 0 | Z63: 0.06752194463 | AA63: 0 | AB63: 0 | AC63: 0
B64: Protected public well | C64: 9.732455441 | D64: 6.043988384 | E64: 1.356651442 | F64: 6.73212566 | G64: 3.539850125 | H64: 8.982129008 | I64: 3.443885579 | J64: 2.224092731 | K64: 0.8484328577 | L64: 2.286932142 | M64: N/A | N64: 6.043988384 | O64: 1.171639179 | P64: 7.52964089 | Q64: 5.256218641 | R64: 11.00018812 | S64: 7.446496629 | T64: 4.036112586 | U64: 5.927518428 | V64: 2.913596785 | W64: 5.912729151 | X64: 4.302261445 | Y64: 7.155797101 | Z64: 9.633130767 | AA64: 2.136613791 | AB64: 3.946742748 | AC64: 1.206824802
B65: Spring | C65: 34.85275291 | D65: 48.23334506 | E65: 58.61738061 | F65: 43.72192206 | G65: 17.85410186 | H65: 34.02785 | I65: 16.71222709 | J65: 5.884537432 | K65: 6.897780918 | L65: 3.226522569 | M65: N/A | N65: 48.23334506 | O65: 62.21797422 | P65: 47.80170776 | Q65: 35.53870387 | R65: 46.45136777 | S65: 35.76663735 | T65: 41.42326075 | U65: 50.61425061 | V65: 39.24983255 | W65: 58.01704105 | X65: 24.26916713 | Y65: 57.69927536 | Z65: 28.58428989 | AA65: 12.41502104 | AB65: 49.191631 | AC65: 37.41156887
B66: River, stream | C66: 4.342831746 | D66: 7.037981941 | E66: 7.823100989 | F66: 6.948988074 | G66: 2.244232975 | H66: 4.690696619 | I66: 2.127738543 | J66: 0.4063291419 | K66: 0 | L66: 0 | M66: N/A | N66: 7.037981941 | O66: 6.675118601 | P66: 6.503508166 | Q66: 6.792914621 | R66: 5.46477864 | S66: 7.593081208 | T66: 6.797663303 | U66: 4.453316953 | V66: 5.994641661 | W66: 7.152078492 | X66: 6.287920574 | Y66: 5.495169082 | Z66: 5.154175107 | AA66: 0 | AB66: 3.566333809 | AC66: 19.97503121
B67: Pond, lake | C67: 3.348615522 | D67: 7.005141922 | E67: 7.144520359 | F67: 8.895102969 | G67: 2.586809438 | H67: 3.348786007 | I67: 1.146600155 | J67: 1.797905253 | K67: 1.527453182 | L67: 0.4666969885 | M67: N/A | N67: 7.005141922 | O67: 7.83674459 | P67: 7.322414641 | Q67: 9.361266786 | R67: 7.772129622 | S67: 3.899149809 | T67: 4.753053638 | U67: 5.128992629 | V67: 2.176825184 | W67: 2.168861348 | X67: 12.27247656 | Y67: 5.555555556 | Z67: 14.02205717 | AA67: 0.6636451926 | AB67: 3.946742748 | AC67: 23.80357886
B68: Dam | C68: 0.5714963447 | D68: 0.6643500209 | E68: 1.335184506 | F68: 0.5054859374 | G68: 0.08597791316 | H68: 0.295201805 | I68: 0 | J68: 0 | K68: 0 | L68: 0 | M68: N/A | N68: 0.6643500209 | O68: 1.464548973 | P68: 0.4480333923 | Q68: 0.4910336567 | R68: 1.791232999 | S68: 0.1465845793 | T68: 0.2124269782 | U68: 1.28992629 | V68: 0.9042196919 | W68: 0.2840175574 | X68: 0.7997793712 | Y68: 0 | Z68: 0.1350438893 | AA68: 0.1942376174 | AB68: 0.0951022349 | AC68: 0.4577611319
B69: Rainwater | C69: 0 | D69: 0.04487910382 | E69: 0 | F69: 0 | G69: 0 | H69: 0 | I69: 0 | J69: 0 | K69: 0 | L69: 0 | M69: N/A | N69: 0.04487910382 | O69: 0 | P69: 0 | Q69: 0 | R69: 0 | S69: 0 | T69: 0 | U69: 0 | V69: 0 | W69: 0 | X69: 0 | Y69: 0 | Z69: 0 | AA69: 0 | AB69: 0.1426533524 | AC69: 0.1248439451
B70: Tanker truck | C70: 0 | D70: 0.08573454616 | E70: 0 | F70: 0.05462777745 | G70: 0.6655595261 | H70: 0 | I70: 0 | J70: 1.134920633 | K70: 0.713999136 | L70: 2.42682434 | M70: N/A | N70: 0.08573454616 | O70: 0 | P70: 0.08402544855 | Q70: 0 | R70: 0.1517994067 | S70: 0 | T70: 0.07966011683 | U70: 0 | V70: 0 | W70: 0 | X70: 0.1930501931 | Y70: 0 | Z70: 1.215395003 | AA70: 0 | AB70: 0 | AC70: 0.04161464836
B71: Bottled water | C71: 0 | D71: 0 | E71: 0 | F71: 0 | G71: 0.02538362149 | H71: 0 | I71: 0 | J71: 0 | K71: 0 | L71: 0.1637530905 | M71: N/A | N71: 0 | O71: 0 | P71: 0 | Q71: 0 | R71: 0 | S71: 0 | T71: 0 | U71: 0 | V71: 0 | W71: 0 | X71: 0 | Y71: 0 | Z71: 0 | AA71: 0.1133052768 | AB71: 0 | AC71: 0
B72: Other | C72: 0 | D72: 0 | E72: 0 | F72: 0.1288647302 | G72: 0.8883962686 | H72: 0.2706016546 | I72: 0.9333278205 | J72: 2.1146154 | K72: 0.5144723114 | L72: 2.12481563 | M72: N/A | N72: 0 | O72: 0 | P72: 0 | Q72: 0.1808770276 | R72: 0 | S72: 0 | T72: 0 | U72: 0 | V72: 0 | W72: 0 | X72: 0 | Y72: 0 | Z72: 0.8552779653 | AA72: 1.942376174 | AB72: 0.1426533524 | AC72: 0
A108: =A1026 -> Rwanda
A109: =A1034 -> 2000
A110: Use of sanitation facilities
A111: by wealth quintile and sub-national region
A112: Notes:
A113: WHO/UNICEF JMP customised wealth index excludes water,
A114: sanitation and hygiene assets.
A115: Survey used for analysis: | B115: =A1025 -> DHS00
A116: =B1030 -> Ratio of Improved latrines based on: | B116: DHS10
A117: =B1029 -> Ratio of Shared improved based on: | B117: DHS10
A120: Use of sanitation facilities | C120: NATIONAL wealth index quintile | H120: URBAN wealth index quintile | M120: RURAL wealth index quintile | R120: SUB-REGIONS: | BA120: Raw numbers of respondents: | BB120: Use of sanitation facilities | BC120: NATIONAL wealth index quintile | BH120: URBAN wealth index quintile | BM120: RURAL wealth index quintile | BR120: SUB-REGIONS:
A121: Weighted percentage (used in graphs) | C121: Poorest | D121: Poor | E121: Middle | F121: Rich | G121: Richest | H121: Poorest | I121: Poor | J121: Middle | K121: Rich | L121: Richest | M121: Poorest | N121: Poor | O121: Middle | P121: Rich | Q121: Richest | R121: Butare | S121: Byumba | T121: Cyangugu | U121: Gikongoro | V121: Gisenyi | W121: Gitarama | X121: Kibungo | Y121: Kibuye | Z121: Kigali Rurale | AA121: Kigali Ville (PVK) | AB121: Ruhengeri | AC121: Umutara | BA121: Sanitation data, raw numbers (weighted) | BC121: Poorest | BD121: Poor | BE121: Middle | BF121: Rich | BG121: Richest | BH121: Poorest | BI121: Poor | BJ121: Middle | BK121: Rich | BL121: Richest | BM121: Poorest | BN121: Poor | BO121: Middle | BP121: Rich | BQ121: Richest | BR121: Butare | BS121: Byumba | BT121: Cyangugu | BU121: Gikongoro | BV121: Gisenyi | BW121: Gitarama | BX121: Kibungo | BY121: Kibuye | BZ121: Kigali Rurale | CA121: Kigali Ville (PVK) | CB121: Ruhengeri | CC121: Umutara
A122: Sanitation | B122: Improved | C122: =C153+C155+C154*'DHS10'!C130/100 -> 58.16699978 | D122: =D153+D155+D154*'DHS10'!D130/100 -> 65.91838773 | E122: =E153+E155+E154*'DHS10'!E130/100 -> 78.59346114 | F122: =F153+F155+F154*'DHS10'!F130/100 -> 81.8239289 | G122: =G153+G155+G154*'DHS10'!G130/100 -> 95.55773715 | H122: =H153+H155+H154*'DHS10'!H130/100 -> 68.01628122 | I122: =I153+I155+I154*'DHS10'!I130/100 -> 84.95634227 | J122: =J153+J155+J154*'DHS10'!J130/100 -> 96.31084608 | K122: =K153+K155+K154*'DHS10'!K130/100 -> 99.23155568 | L122: =L153+L155+L154*'DHS10'!L130/100 -> 99.9532134 | M122: =N122 -> 65.09613632 | N122: =N153+N155+N154*'DHS10'!N130/100 -> 65.09613632 | O122: =O153+O155+O154*'DHS10'!O130/100 -> 77.92252847 | P122: =P153+P155+P154*'DHS10'!P130/100 -> 80.31795957 | Q122: =Q153+Q155+Q154*'DHS10'!Q130/100 -> 88.28640987 | R122: N/A | S122: N/A | T122: N/A | U122: N/A | V122: N/A | W122: N/A | X122: N/A | Y122: N/A | Z122: N/A | AA122: N/A | AB122: N/A | AC122: N/A | BA122: Sanitation | BB122: Improved | BC122: N/A | BD122: N/A | BE122: N/A | BF122: N/A | BG122: N/A | BH122: N/A | BI122: N/A | BJ122: N/A | BK122: N/A | BL122: N/A | BM122: N/A | BN122: N/A | BO122: N/A | BP122: N/A | BQ122: N/A | BR122: N/A | BS122: N/A | BT122: N/A | BU122: N/A | BV122: N/A | BW122: N/A | BX122: N/A | BY122: N/A | BZ122: N/A | CA122: N/A | CB122: N/A | CC122: N/A
B123: Not Improved | C123: =100-C122 -> 41.83300022 | D123: =100-D122 -> 34.08161227 | E123: 21.40653886 | F123: 18.1760711 | G123: 4.442262855 | H123: 31.98371878 | I123: 15.04365773 | J123: 3.689153917 | K123: 0.7684443224 | L123: 0.04678659728 | M123: 34.90386368 | N123: 34.90386368 | O123: 22.07747153 | P123: 19.68204043 | Q123: 11.71359013 | R123: N/A | S123: N/A | T123: N/A | U123: N/A | V123: N/A | W123: N/A | X123: N/A | Y123: N/A | Z123: N/A | AA123: N/A | AB123: N/A | AC123: N/A | BB123: Not Improved | BC123: N/A | BD123: N/A | BE123: N/A | BF123: N/A | BG123: N/A | BH123: N/A | BI123: N/A | BJ123: N/A | BK123: N/A | BL123: N/A | BM123: N/A | BN123: N/A | BO123: N/A | BP123: N/A | BQ123: N/A | BR123: N/A | BS123: N/A | BT123: N/A | BU123: N/A | BV123: N/A | BW123: N/A | BX123: N/A | BY123: N/A | BZ123: N/A | CA123: N/A | CB123: N/A | CC123: N/A
A124: Sanitation ladder | B124: Basic | C124: =C122*'DHS10'!C129/100 -> 43.37283234 | D124: =D122*'DHS10'!D129/100 -> 54.66559038 | E124: =E122*'DHS10'!E129/100 -> 69.24929532 | F124: =F122*'DHS10'!F129/100 -> 72.2723777 | G124: =G122*'DHS10'!G129/100 -> 72.84310082 | H124: =H122*'DHS10'!H129/100 -> 53.25985374 | I124: =I122*'DHS10'!I129/100 -> 58.51848528 | J124: =J122*'DHS10'!J129/100 -> 50.85561463 | K124: =K122*'DHS10'!K129/100 -> 47.45375005 | L124: =L122*'DHS10'!L129/100 -> 76.83373118 | M124: =M122*'DHS10'!M129/100 -> 47.86368742 | N124: =N122*'DHS10'!N129/100 -> 53.709834 | O124: =O122*'DHS10'!O129/100 -> 68.71732545 | P124: =P122*'DHS10'!P129/100 -> 71.81354115 | Q124: =Q122*'DHS10'!Q129/100 -> 79.45455283 | R124: N/A | S124: N/A | T124: N/A | U124: N/A | V124: N/A | W124: N/A | X124: N/A | Y124: N/A | Z124: N/A | AA124: N/A | AB124: N/A | AC124: N/A | BA124: Sanitation ladder | BB124: Basic | BC124: N/A | BD124: N/A | BE124: N/A | BF124: N/A | BG124: N/A | BH124: N/A | BI124: N/A | BJ124: N/A | BK124: N/A | BL124: N/A | BM124: N/A | BN124: N/A | BO124: N/A | BP124: N/A | BQ124: N/A | BR124: N/A | BS124: N/A | BT124: N/A | BU124: N/A | BV124: N/A | BW124: N/A | BX124: N/A | BY124: N/A | BZ124: N/A | CA124: N/A | CB124: N/A | CC124: N/A
B125: Limited | C125: =C122*'DHS10'!C128/100 -> 14.79416744 | D125: =D122*'DHS10'!D128/100 -> 11.25279735 | E125: =E122*'DHS10'!E128/100 -> 9.344165828 | F125: =F122*'DHS10'!F128/100 -> 9.5515512 | G125: =G122*'DHS10'!G128/100 -> 22.71463633 | H125: =H122*'DHS10'!H128/100 -> 14.75642748 | I125: =I122*'DHS10'!I128/100 -> 26.437857 | J125: =J122*'DHS10'!J128/100 -> 45.45523145 | K125: =K122*'DHS10'!K128/100 -> 51.77780563 | L125: =L122*'DHS10'!L128/100 -> 23.11948222 | M125: =M122*'DHS10'!M128/100 -> 17.2324489 | N125: =N122*'DHS10'!N128/100 -> 11.38630233 | O125: =O122*'DHS10'!O128/100 -> 9.205203016 | P125: =P122*'DHS10'!P128/100 -> 8.504418425 | Q125: =Q122*'DHS10'!Q128/100 -> 8.831857043 | R125: N/A | S125: N/A | T125: N/A | U125: N/A | V125: N/A | W125: N/A | X125: N/A | Y125: N/A | Z125: N/A | AA125: N/A | AB125: N/A | AC125: N/A | BB125: Limited | BC125: N/A | BD125: N/A | BE125: N/A | BF125: N/A | BG125: N/A | BH125: N/A | BI125: N/A | BJ125: N/A | BK125: N/A | BL125: N/A | BM125: N/A | BN125: N/A | BO125: N/A | BP125: N/A | BQ125: N/A | BR125: N/A | BS125: N/A | BT125: N/A | BU125: N/A | BV125: N/A | BW125: N/A | BX125: N/A | BY125: N/A | BZ125: N/A | CA125: N/A | CB125: N/A | CC125: N/A
B126: Unimproved | C126: =100-(C124+C125+C127) -> 37.01131968 | D126: =100-(D124+D125+D127) -> 29.61033971 | E126: 20.27703355 | F126: 16.50876201 | G126: 3.515175186 | H126: 28.84644527 | I126: 13.96460433 | J126: 2.660222546 | K126: 0.5223923474 | L126: 0 | M126: 30.43259112 | N126: 30.43259112 | O126: 20.83349876 | P126: 18.56937479 | Q126: 9.460131486 | R126: N/A | S126: N/A | T126: N/A | U126: N/A | V126: N/A | W126: N/A | X126: N/A | Y126: N/A | Z126: N/A | AA126: N/A | AB126: N/A | AC126: N/A | BB126: Unimproved | BC126: N/A | BD126: N/A | BE126: N/A | BF126: N/A | BG126: N/A | BH126: N/A | BI126: N/A | BJ126: N/A | BK126: N/A | BL126: N/A | BM126: N/A | BN126: N/A | BO126: N/A | BP126: N/A | BQ126: N/A | BR126: N/A | BS126: N/A | BT126: N/A | BU126: N/A | BV126: N/A | BW126: N/A | BX126: N/A | BY126: N/A | BZ126: N/A | CA126: N/A | CB126: N/A | CC126: N/A
B127: Open defecation | C127: =C156 -> 4.821680541 | D127: =D156 -> 4.471272555 | E127: 1.129505305 | F127: 1.667309093 | G127: 0.9270876688 | H127: 3.13727351 | I127: 1.079053395 | J127: 1.028931371 | K127: 0.246051975 | L127: 0.04678659728 | M127: =N127 -> 4.471272555 | N127: 4.471272555 | O127: 1.243972774 | P127: 1.112665635 | Q127: 2.253458643 | R127: N/A | S127: N/A | T127: N/A | U127: N/A | V127: N/A | W127: N/A | X127: N/A | Y127: N/A | Z127: N/A | AA127: N/A | AB127: N/A | AC127: N/A | BB127: Open defecation | BC127: N/A | BD127: N/A | BE127: N/A | BF127: N/A | BG127: N/A | BH127: N/A | BI127: N/A | BJ127: N/A | BK127: N/A | BL127: N/A | BM127: N/A | BN127: N/A | BO127: N/A | BP127: N/A | BQ127: N/A | BR127: N/A | BS127: N/A | BT127: N/A | BU127: N/A | BV127: N/A | BW127: N/A | BX127: N/A | BY127: N/A | BZ127: N/A | CA127: N/A | CB127: N/A | CC127: N/A
A128: Shared among Improved Sanitation | B128: Yes | C128: N/A | D128: N/A | E128: N/A | F128: N/A | G128: N/A | H128: N/A | I128: N/A | J128: N/A | K128: N/A | L128: N/A | M128: N/A | N128: N/A | O128: N/A | P128: N/A | Q128: N/A | R128: N/A | S128: N/A | T128: N/A | U128: N/A | V128: N/A | W128: N/A | X128: N/A | Y128: N/A | Z128: N/A | AA128: N/A | AB128: N/A | AC128: N/A | BA128: Shared among improved sanitation facilities | BB128: Yes | BC128: N/A | BD128: N/A | BE128: N/A | BF128: N/A | BG128: N/A | BH128: N/A | BI128: N/A | BJ128: N/A | BK128: N/A | BL128: N/A | BM128: N/A | BN128: N/A | BO128: N/A | BP128: N/A | BQ128: N/A | BR128: N/A | BS128: N/A | BT128: N/A | BU128: N/A | BV128: N/A | BW128: N/A | BX128: N/A | BY128: N/A | BZ128: N/A | CA128: N/A | CB128: N/A | CC128: N/A
B129: No | C129: N/A | D129: N/A | E129: N/A | F129: N/A | G129: N/A | H129: N/A | I129: N/A | J129: N/A | K129: N/A | L129: N/A | M129: N/A | N129: N/A | O129: N/A | P129: N/A | Q129: N/A | R129: N/A | S129: N/A | T129: N/A | U129: N/A | V129: N/A | W129: N/A | X129: N/A | Y129: N/A | Z129: N/A | AA129: N/A | AB129: N/A | AC129: N/A | BB129: No | BC129: N/A | BD129: N/A | BE129: N/A | BF129: N/A | BG129: N/A | BH129: N/A | BI129: N/A | BJ129: N/A | BK129: N/A | BL129: N/A | BM129: N/A | BN129: N/A | BO129: N/A | BP129: N/A | BQ129: N/A | BR129: N/A | BS129: N/A | BT129: N/A | BU129: N/A | BV129: N/A | BW129: N/A | BX129: N/A | BY129: N/A | BZ129: N/A | CA129: N/A | CB129: N/A | CC129: N/A
A130: Manually calculated ratios | B130: Improved latrines
B131: Other
B132: Other
C133: NATIONAL wealth index quintile | H133: URBAN wealth index quintile | M133: RURAL wealth index quintile | R133: SUB-REGIONS: | BA133: Raw numbers of respondents: | BB133: Use of sanitation facilities | BC133: NATIONAL wealth index quintile | BH133: URBAN wealth index quintile | BM133: RURAL wealth index quintile | BR133: SUB-REGIONS:
A134: Percentage based on weighted population | C134: Poorest | D134: Poor | E134: Middle | F134: Rich | G134: Richest | H134: Poorest | I134: Poor | J134: Middle | K134: Rich | L134: Richest | M134: Poorest | N134: Poor | O134: Middle | P134: Rich | Q134: Richest | R134: Butare | S134: Byumba | T134: Cyangugu | U134: Gikongoro | V134: Gisenyi | W134: Gitarama | X134: Kibungo | Y134: Kibuye | Z134: Kigali Rurale | AA134: Kigali Ville (PVK) | AB134: Ruhengeri | AC134: Umutara | BA134: Sanitation data, raw numbers (weighted) | BC134: Poorest | BD134: Poor | BE134: Middle | BF134: Rich | BG134: Richest | BH134: Poorest | BI134: Poor | BJ134: Middle | BK134: Rich | BL134: Richest | BM134: Poorest | BN134: Poor | BO134: Middle | BP134: Rich | BQ134: Richest | BR134: Butare | BS134: Byumba | BT134: Cyangugu | BU134: Gikongoro | BV134: Gisenyi | BW134: Gitarama | BX134: Kibungo | BY134: Kibuye | BZ134: Kigali Rurale | CA134: Kigali Ville (PVK) | CB134: Ruhengeri | CC134: Umutara
A135: Sanitation type | B135: Sewer connection | C135: N/A | D135: N/A | E135: N/A | F135: N/A | G135: N/A | H135: N/A | I135: N/A | J135: N/A | K135: N/A | L135: N/A | M135: N/A | N135: N/A | O135: N/A | P135: N/A | Q135: N/A | R135: N/A | S135: N/A | T135: N/A | U135: N/A | V135: N/A | W135: N/A | X135: N/A | Y135: N/A | Z135: N/A | AA135: N/A | AB135: N/A | AC135: N/A | BA135: Sanitation type | BB135: Sewer connection | BC135: N/A | BD135: N/A | BE135: N/A | BF135: N/A | BG135: N/A | BH135: N/A | BI135: N/A | BJ135: N/A | BK135: N/A | BL135: N/A | BM135: N/A | BN135: N/A | BO135: N/A | BP135: N/A | BQ135: N/A | BR135: N/A | BS135: N/A | BT135: N/A | BU135: N/A | BV135: N/A | BW135: N/A | BX135: N/A | BY135: N/A | BZ135: N/A | CA135: N/A | CB135: N/A | CC135: N/A
B136: Septic tank connection | C136: N/A | D136: N/A | E136: N/A | F136: N/A | G136: N/A | H136: N/A | I136: N/A | J136: N/A | K136: N/A | L136: N/A | M136: N/A | N136: N/A | O136: N/A | P136: N/A | Q136: N/A | R136: N/A | S136: N/A | T136: N/A | U136: N/A | V136: N/A | W136: N/A | X136: N/A | Y136: N/A | Z136: N/A | AA136: N/A | AB136: N/A | AC136: N/A | BB136: Septic tank connection | BC136: N/A | BD136: N/A | BE136: N/A | BF136: N/A | BG136: N/A | BH136: N/A | BI136: N/A | BJ136: N/A | BK136: N/A | BL136: N/A | BM136: N/A | BN136: N/A | BO136: N/A | BP136: N/A | BQ136: N/A | BR136: N/A | BS136: N/A | BT136: N/A | BU136: N/A | BV136: N/A | BW136: N/A | BX136: N/A | BY136: N/A | BZ136: N/A | CA136: N/A | CB136: N/A | CC136: N/A
B137: Improved latrines | C137: N/A | D137: N/A | E137: N/A | F137: N/A | G137: N/A | H137: N/A | I137: N/A | J137: N/A | K137: N/A | L137: N/A | M137: N/A | N137: N/A | O137: N/A | P137: N/A | Q137: N/A | R137: N/A | S137: N/A | T137: N/A | U137: N/A | V137: N/A | W137: N/A | X137: N/A | Y137: N/A | Z137: N/A | AA137: N/A | AB137: N/A | AC137: N/A | BB137: Improved latrines | BC137: N/A | BD137: N/A | BE137: N/A | BF137: N/A | BG137: N/A | BH137: N/A | BI137: N/A | BJ137: N/A | BK137: N/A | BL137: N/A | BM137: N/A | BN137: N/A | BO137: N/A | BP137: N/A | BQ137: N/A | BR137: N/A | BS137: N/A | BT137: N/A | BU137: N/A | BV137: N/A | BW137: N/A | BX137: N/A | BY137: N/A | BZ137: N/A | CA137: N/A | CB137: N/A | CC137: N/A
B138: Unimproved facilities | C138: N/A | D138: N/A | E138: N/A | F138: N/A | G138: N/A | H138: N/A | I138: N/A | J138: N/A | K138: N/A | L138: N/A | M138: N/A | N138: N/A | O138: N/A | P138: N/A | Q138: N/A | R138: N/A | S138: N/A | T138: N/A | U138: N/A | V138: N/A | W138: N/A | X138: N/A | Y138: N/A | Z138: N/A | AA138: N/A | AB138: N/A | AC138: N/A | BB138: Unimproved facilities | BC138: N/A | BD138: N/A | BE138: N/A | BF138: N/A | BG138: N/A | BH138: N/A | BI138: N/A | BJ138: N/A | BK138: N/A | BL138: N/A | BM138: N/A | BN138: N/A | BO138: N/A | BP138: N/A | BQ138: N/A | BR138: N/A | BS138: N/A | BT138: N/A | BU138: N/A | BV138: N/A | BW138: N/A | BX138: N/A | BY138: N/A | BZ138: N/A | CA138: N/A | CB138: N/A | CC138: N/A
B139: Open defecation | C139: 4.821680541 | D139: 4.462590322 | E139: 1.084246866 | F139: 1.665076238 | G139: 0.9260923593 | H139: 3.13727351 | I139: 1.079053395 | J139: 1.028931371 | K139: 0.246051975 | L139: 0.04678659728 | M139: N/A | N139: 4.462590322 | O139: 1.189298278 | P139: 1.112047673 | Q139: 2.246498231 | R139: 3.987212195 | S139: 1.231310466 | T139: 2.655337228 | U139: 3.610771114 | V139: 2.511721366 | W139: 3.301521795 | X139: 3.61279647 | Y139: 1.988550768 | Z139: 2.337078652 | AA139: 0.9859382576 | AB139: 2.496433666 | AC139: 10.57012068 | BB139: Open defecation | BC139: N/A | BD139: N/A | BE139: N/A | BF139: N/A | BG139: N/A | BH139: N/A | BI139: N/A | BJ139: N/A | BK139: N/A | BL139: N/A | BM139: N/A | BN139: N/A | BO139: N/A | BP139: N/A | BQ139: N/A | BR139: N/A | BS139: N/A | BT139: N/A | BU139: N/A | BV139: N/A | BW139: N/A | BX139: N/A | BY139: N/A | BZ139: N/A | CA139: N/A | CB139: N/A | CC139: N/A
A140: Septic tank emptying practices | B140: Not emptied/treated and disposed in situ | C140: N/A | D140: N/A | E140: N/A | F140: N/A | G140: N/A | H140: N/A | I140: N/A | J140: N/A | K140: N/A | L140: N/A | M140: N/A | N140: N/A | O140: N/A | P140: N/A | Q140: N/A | R140: N/A | S140: N/A | T140: N/A | U140: N/A | V140: N/A | W140: N/A | X140: N/A | Y140: N/A | Z140: N/A | AA140: N/A | AB140: N/A | AC140: N/A | BA140: Septic tank emptying practices | BB140: Not emptied/treated and disposed in situ | BC140: N/A | BD140: N/A | BE140: N/A | BF140: N/A | BG140: N/A | BH140: N/A | BI140: N/A | BJ140: N/A | BK140: N/A | BL140: N/A | BM140: N/A | BN140: N/A | BO140: N/A | BP140: N/A | BQ140: N/A | BR140: N/A | BS140: N/A | BT140: N/A | BU140: N/A | BV140: N/A | BW140: N/A | BX140: N/A | BY140: N/A | BZ140: N/A | CA140: N/A | CB140: N/A | CC140: N/A
B141: Emptied and buried on site | C141: N/A | D141: N/A | E141: N/A | F141: N/A | G141: N/A | H141: N/A | I141: N/A | J141: N/A | K141: N/A | L141: N/A | M141: N/A | N141: N/A | O141: N/A | P141: N/A | Q141: N/A | R141: N/A | S141: N/A | T141: N/A | U141: N/A | V141: N/A | W141: N/A | X141: N/A | Y141: N/A | Z141: N/A | AA141: N/A | AB141: N/A | AC141: N/A | BB141: Emptied and buried on site | BC141: N/A | BD141: N/A | BE141: N/A | BF141: N/A | BG141: N/A | BH141: N/A | BI141: N/A | BJ141: N/A | BK141: N/A | BL141: N/A | BM141: N/A | BN141: N/A | BO141: N/A | BP141: N/A | BQ141: N/A | BR141: N/A | BS141: N/A | BT141: N/A | BU141: N/A | BV141: N/A | BW141: N/A | BX141: N/A | BY141: N/A | BZ141: N/A | CA141: N/A | CB141: N/A | CC141: N/A
B142: Emptied and discharged locally | C142: N/A | D142: N/A | E142: N/A | F142: N/A | G142: N/A | H142: N/A | I142: N/A | J142: N/A | K142: N/A | L142: N/A | M142: N/A | N142: N/A | O142: N/A | P142: N/A | Q142: N/A | R142: N/A | S142: N/A | T142: N/A | U142: N/A | V142: N/A | W142: N/A | X142: N/A | Y142: N/A | Z142: N/A | AA142: N/A | AB142: N/A | AC142: N/A | BB142: Emptied and discharged locally | BC142: N/A | BD142: N/A | BE142: N/A | BF142: N/A | BG142: N/A | BH142: N/A | BI142: N/A | BJ142: N/A | BK142: N/A | BL142: N/A | BM142: N/A | BN142: N/A | BO142: N/A | BP142: N/A | BQ142: N/A | BR142: N/A | BS142: N/A | BT142: N/A | BU142: N/A | BV142: N/A | BW142: N/A | BX142: N/A | BY142: N/A | BZ142: N/A | CA142: N/A | CB142: N/A | CC142: N/A
B143: Emptied and removed offsite | C143: N/A | D143: N/A | E143: N/A | F143: N/A | G143: N/A | H143: N/A | I143: N/A | J143: N/A | K143: N/A | L143: N/A | M143: N/A | N143: N/A | O143: N/A | P143: N/A | Q143: N/A | R143: N/A | S143: N/A | T143: N/A | U143: N/A | V143: N/A | W143: N/A | X143: N/A | Y143: N/A | Z143: N/A | AA143: N/A | AB143: N/A | AC143: N/A | BB143: Emptied and removed offsite | BC143: N/A | BD143: N/A | BE143: N/A | BF143: N/A | BG143: N/A | BH143: N/A | BI143: N/A | BJ143: N/A | BK143: N/A | BL143: N/A | BM143: N/A | BN143: N/A | BO143: N/A | BP143: N/A | BQ143: N/A | BR143: N/A | BS143: N/A | BT143: N/A | BU143: N/A | BV143: N/A | BW143: N/A | BX143: N/A | BY143: N/A | BZ143: N/A | CA143: N/A | CB143: N/A | CC143: N/A
A144: Latrine emptying practices | B144: Not emptied/treated and disposed in situ | C144: N/A | D144: N/A | E144: N/A | F144: N/A | G144: N/A | H144: N/A | I144: N/A | J144: N/A | K144: N/A | L144: N/A | M144: N/A | N144: N/A | O144: N/A | P144: N/A | Q144: N/A | R144: N/A | S144: N/A | T144: N/A | U144: N/A | V144: N/A | W144: N/A | X144: N/A | Y144: N/A | Z144: N/A | AA144: N/A | AB144: N/A | AC144: N/A | BA144: Latrine emptying practices | BB144: Not emptied/treated and disposed in situ | BC144: N/A | BD144: N/A | BE144: N/A | BF144: N/A | BG144: N/A | BH144: N/A | BI144: N/A | BJ144: N/A | BK144: N/A | BL144: N/A | BM144: N/A | BN144: N/A | BO144: N/A | BP144: N/A | BQ144: N/A | BR144: N/A | BS144: N/A | BT144: N/A | BU144: N/A | BV144: N/A | BW144: N/A | BX144: N/A | BY144: N/A | BZ144: N/A | CA144: N/A | CB144: N/A | CC144: N/A
B145: Emptied and buried on site | C145: N/A | D145: N/A | E145: N/A | F145: N/A | G145: N/A | H145: N/A | I145: N/A | J145: N/A | K145: N/A | L145: N/A | M145: N/A | N145: N/A | O145: N/A | P145: N/A | Q145: N/A | R145: N/A | S145: N/A | T145: N/A | U145: N/A | V145: N/A | W145: N/A | X145: N/A | Y145: N/A | Z145: N/A | AA145: N/A | AB145: N/A | AC145: N/A | BB145: Emptied and buried on site | BC145: N/A | BD145: N/A | BE145: N/A | BF145: N/A | BG145: N/A | BH145: N/A | BI145: N/A | BJ145: N/A | BK145: N/A | BL145: N/A | BM145: N/A | BN145: N/A | BO145: N/A | BP145: N/A | BQ145: N/A | BR145: N/A | BS145: N/A | BT145: N/A | BU145: N/A | BV145: N/A | BW145: N/A | BX145: N/A | BY145: N/A | BZ145: N/A | CA145: N/A | CB145: N/A | CC145: N/A
B146: Emptied and discharged locally | C146: N/A | D146: N/A | E146: N/A | F146: N/A | G146: N/A | H146: N/A | I146: N/A | J146: N/A | K146: N/A | L146: N/A | M146: N/A | N146: N/A | O146: N/A | P146: N/A | Q146: N/A | R146: N/A | S146: N/A | T146: N/A | U146: N/A | V146: N/A | W146: N/A | X146: N/A | Y146: N/A | Z146: N/A | AA146: N/A | AB146: N/A | AC146: N/A | BB146: Emptied and discharged locally | BC146: N/A | BD146: N/A | BE146: N/A | BF146: N/A | BG146: N/A | BH146: N/A | BI146: N/A | BJ146: N/A | BK146: N/A | BL146: N/A | BM146: N/A | BN146: N/A | BO146: N/A | BP146: N/A | BQ146: N/A | BR146: N/A | BS146: N/A | BT146: N/A | BU146: N/A | BV146: N/A | BW146: N/A | BX146: N/A | BY146: N/A | BZ146: N/A | CA146: N/A | CB146: N/A | CC146: N/A
B147: Emptied and removed offsite | C147: N/A | D147: N/A | E147: N/A | F147: N/A | G147: N/A | H147: N/A | I147: N/A | J147: N/A | K147: N/A | L147: N/A | M147: N/A | N147: N/A | O147: N/A | P147: N/A | Q147: N/A | R147: N/A | S147: N/A | T147: N/A | U147: N/A | V147: N/A | W147: N/A | X147: N/A | Y147: N/A | Z147: N/A | AA147: N/A | AB147: N/A | AC147: N/A | BB147: Emptied and removed offsite | BC147: N/A | BD147: N/A | BE147: N/A | BF147: N/A | BG147: N/A | BH147: N/A | BI147: N/A | BJ147: N/A | BK147: N/A | BL147: N/A | BM147: N/A | BN147: N/A | BO147: N/A | BP147: N/A | BQ147: N/A | BR147: N/A | BS147: N/A | BT147: N/A | BU147: N/A | BV147: N/A | BW147: N/A | BX147: N/A | BY147: N/A | BZ147: N/A | CA147: N/A | CB147: N/A | CC147: N/A
A148: Shared among improved sanitation facilities | B148: Yes | C148: N/A | D148: N/A | E148: N/A | F148: N/A | G148: N/A | H148: N/A | I148: N/A | J148: N/A | K148: N/A | L148: N/A | M148: N/A | N148: N/A | O148: N/A | P148: N/A | Q148: N/A | R148: N/A | S148: N/A | T148: N/A | U148: N/A | V148: N/A | W148: N/A | X148: N/A | Y148: N/A | Z148: N/A | AA148: N/A | AB148: N/A | AC148: N/A | BA148: Shared among improved sanitation facilities | BB148: Yes | BC148: N/A | BD148: N/A | BE148: N/A | BF148: N/A | BG148: N/A | BH148: N/A | BI148: N/A | BJ148: N/A | BK148: N/A | BL148: N/A | BM148: N/A | BN148: N/A | BO148: N/A | BP148: N/A | BQ148: N/A | BR148: N/A | BS148: N/A | BT148: N/A | BU148: N/A | BV148: N/A | BW148: N/A | BX148: N/A | BY148: N/A | BZ148: N/A | CA148: N/A | CB148: N/A | CC148: N/A
B149: No | C149: N/A | D149: N/A | E149: N/A | F149: N/A | G149: N/A | H149: N/A | I149: N/A | J149: N/A | K149: N/A | L149: N/A | M149: N/A | N149: N/A | O149: N/A | P149: N/A | Q149: N/A | R149: N/A | S149: N/A | T149: N/A | U149: N/A | V149: N/A | W149: N/A | X149: N/A | Y149: N/A | Z149: N/A | AA149: N/A | AB149: N/A | AC149: N/A | BB149: No | BC149: N/A | BD149: N/A | BE149: N/A | BF149: N/A | BG149: N/A | BH149: N/A | BI149: N/A | BJ149: N/A | BK149: N/A | BL149: N/A | BM149: N/A | BN149: N/A | BO149: N/A | BP149: N/A | BQ149: N/A | BR149: N/A | BS149: N/A | BT149: N/A | BU149: N/A | BV149: N/A | BW149: N/A | BX149: N/A | BY149: N/A | BZ149: N/A | CA149: N/A | CB149: N/A | CC149: N/A
B150: DK/missing | C150: N/A | D150: N/A | E150: N/A | F150: N/A | G150: N/A | H150: N/A | I150: N/A | J150: N/A | K150: N/A | L150: N/A | M150: N/A | N150: N/A | O150: N/A | P150: N/A | Q150: N/A | R150: N/A | S150: N/A | T150: N/A | U150: N/A | V150: N/A | W150: N/A | X150: N/A | Y150: N/A | Z150: N/A | AA150: N/A | AB150: N/A | AC150: N/A | BB150: DK/missing | BC150: N/A | BD150: N/A | BE150: N/A | BF150: N/A | BG150: N/A | BH150: N/A | BI150: N/A | BJ150: N/A | BK150: N/A | BL150: N/A | BM150: N/A | BN150: N/A | BO150: N/A | BP150: N/A | BQ150: N/A | BR150: N/A | BS150: N/A | BT150: N/A | BU150: N/A | BV150: N/A | BW150: N/A | BX150: N/A | BY150: N/A | BZ150: N/A | CA150: N/A | CB150: N/A | CC150: N/A
A151: Shared among all sanitation facilities | B151: Yes | C151: 24.56147201 | D151: 9.768405423 | E151: 4.333017985 | F151: 8.750932017 | G151: 23.90459103 | H151: 19.22253969 | I151: 28.02257986 | J151: 41.28184469 | K151: 45.52925033 | L151: 15.74144538 | M151: N/A | N151: 9.768405423 | O151: 3.8599577 | P151: 8.217482894 | Q151: 8.893391282 | R151: 10.47578356 | S151: 5.788067676 | T151: 9.87452264 | U151: 11.61904762 | V151: 18.2755067 | W151: 8.268871699 | X151: 11.15879828 | Y151: 6.855210575 | Z151: 12.14910262 | AA151: 42.47469801 | AB151: 12.02145818 | AC151: 10.7026524 | BA151: Shared among all sanitation facilities | BB151: Yes | BC151: N/A | BD151: N/A | BE151: N/A | BF151: N/A | BG151: N/A | BH151: N/A | BI151: N/A | BJ151: N/A | BK151: N/A | BL151: N/A | BM151: N/A | BN151: N/A | BO151: N/A | BP151: N/A | BQ151: N/A | BR151: N/A | BS151: N/A | BT151: N/A | BU151: N/A | BV151: N/A | BW151: N/A | BX151: N/A | BY151: N/A | BZ151: N/A | CA151: N/A | CB151: N/A | CC151: N/A
B152: No | C152: 75.43852799 | D152: 89.31796395 | E152: 92.37930454 | F152: 89.95892917 | G152: 75.64178733 | H152: 79.65099927 | I152: 71.81998136 | J152: 58.67028968 | K152: 53.74508131 | L152: 84.25855462 | M152: N/A | N152: 89.31796395 | O152: 92.52999162 | P152: 90.68377627 | Q152: 89.90065437 | R152: 88.44911385 | S152: 92.96527159 | T152: 88.97981451 | U152: 86.88888889 | V152: 80.79697698 | W152: 91.4643905 | X152: 87.92560801 | Y152: 91.79219182 | Z152: 86.67740451 | AA152: 57.3783872 | AB152: 87.14947574 | AC152: 89.06468125 | BB152: No | BC152: N/A | BD152: N/A | BE152: N/A | BF152: N/A | BG152: N/A | BH152: N/A | BI152: N/A | BJ152: N/A | BK152: N/A | BL152: N/A | BM152: N/A | BN152: N/A | BO152: N/A | BP152: N/A | BQ152: N/A | BR152: N/A | BS152: N/A | BT152: N/A | BU152: N/A | BV152: N/A | BW152: N/A | BX152: N/A | BY152: N/A | BZ152: N/A | CA152: N/A | CB152: N/A | CC152: N/A
A153: Type of toilet facility | B153: Flush Toilet | C153: 0 | D153: 0.1354642046 | E153: 0 | F153: 0.04403942812 | G153: 7.16160381 | H153: 0 | I153: 0 | J153: 5.138995402 | K153: 5.889327196 | L153: 29.61965719 | M153: N/A | N153: 0.1354642046 | O153: 0 | P153: 0.06772778973 | Q153: 1.041267269 | R153: 1.522087978 | S153: 1.028806584 | T153: 1.887293993 | U153: 0 | V153: 2.930279555 | W153: 0.9029927761 | X153: 0.3310344828 | Y153: 0.1811594203 | Z153: 1.304250056 | AA153: 6.271213835 | AB153: 1.786565031 | AC153: 0 | BA153: Type of toilet facility | BB153: Flush Toilet | BC153: 0 | BD153: 29.894371 | BE153: 0 | BF153: 5.616081 | BG153: 638.427033 | BH153: 0 | BI153: 0 | BJ153: 70.096617 | BK153: 85.065281 | BL153: 409.081077 | BM153: N/A | BN153: 29.894371 | BO153: 0 | BP153: 5.616081 | BQ153: 74.184058 | BR153: 52.728071 | BS153: 40.319335 | BT153: 63.527676 | BU153: 0 | BV153: 159.953067 | BW153: 42.74417 | BX153: 11.950932 | BY153: 4.564356 | BZ153: 74.769134 | CA153: 125.358144 | CB153: 98.0226 | CC153: 0
B154: Traditional pit toilet | C154: 92.49954458 | D154: 92.98359013 | E154: 87.27967469 | F154: 94.4008218 | G154: 62.08268011 | H154: 93.36724268 | I154: 83.85404415 | J154: 53.13228269 | K154: 40.91738637 | L154: 17.69475356 | M154: N/A | N154: 92.98359013 | O154: 85.99055862 | P154: 95.84661168 | Q154: 88.07518229 | R154: 90.56789928 | S154: 94.00352734 | T154: 87.69271664 | U154: 93.29230769 | V154: 83.12563153 | W154: 88.46749226 | X154: 90.8137931 | Y154: 94.98792271 | Z154: 85.38340454 | AA154: 50.21819945 | AB154: 89.82848976 | AC154: 84.6858094 | BB154: Traditional pit toilet | BC154: 627.520924 | BD154: 20519.70812 | BE154: 267.049282 | BF154: 12038.3639 | BG154: 5534.411329 | BH154: 1228.055936 | BI154: 1217.707261 | BJ154: 724.731777 | BK154: 591.00961 | BL154: 244.384626 | BM154: N/A | BN154: 20519.70812 | BO154: 238.894673 | BP154: 7947.732193 | BQ154: 6274.82936 | BR154: 3137.447173 | BS154: 3684.035238 | BT154: 2951.800044 | BU154: 2580.708024 | BV154: 4537.519188 | BW154: 4187.707398 | BX154: 3278.539012 | BY154: 2393.243996 | BZ154: 4894.800031 | CA154: 1003.834416 | CB154: 4928.576328 | CC154: 1408.84271
B155: Ventilated improved pit (VIP) latrine | C155: 2.678774877 | D155: 2.399232871 | E155: 11.59082001 | F155: 3.887829676 | G155: 29.82862842 | H155: 3.49548381 | I155: 15.06690246 | J155: 40.69979054 | K155: 52.94723446 | L155: 52.63880265 | M155: N/A | N155: 2.399232871 | O155: 12.76546861 | P155: 2.972994897 | Q155: 8.630091796 | R155: 3.922800549 | S155: 3.67430923 | T155: 7.761828814 | U155: 3.076923077 | V155: 11.41798585 | W155: 7.327141383 | X155: 5.24137931 | Y155: 2.838164251 | Z155: 10.97369013 | AA155: 42.52464846 | AB155: 5.883754169 | AC155: 4.744069913 | BB155: Ventilated improved pit (VIP) latrine | BC155: 18.172925 | BD155: 529.465018 | BE155: 35.464387 | BF155: 495.791324 | BG155: 2659.097493 | BH155: 45.975971 | BI155: 218.797754 | BJ155: 555.150843 | BK155: 764.768407 | BL155: 727.001597 | BM155: N/A | BN155: 529.465018 | BO155: 35.464387 | BP155: 246.524805 | BQ155: 614.842365 | BR155: 135.893397 | BS155: 143.997625 | BT155: 261.268752 | BU155: 85.1157 | BV155: 623.265399 | BW155: 346.838408 | BX155: 189.22309 | BY155: 71.508244 | BZ155: 629.092024 | CA155: 850.044528 | CB155: 322.821096 | CC155: 78.922884
B156: No facility | C156: 4.821680541 | D156: 4.471272555 | E156: 1.129505305 | F156: 1.667309093 | G156: 0.9270876688 | H156: 3.13727351 | I156: 1.079053395 | J156: 1.028931371 | K156: 0.246051975 | L156: 0.04678659728 | M156: N/A | N156: 4.471272555 | O156: 1.243972774 | P156: 1.112665635 | Q156: 2.253458643 | R156: 3.987212195 | S156: 1.234567901 | T156: 2.658160553 | U156: 3.630769231 | V156: 2.526103065 | W156: 3.302373581 | X156: 3.613793103 | Y156: 1.992753623 | Z156: 2.338655273 | AA156: 0.9859382576 | AB156: 2.501191043 | AC156: 10.57012068 | BB156: No facility | BC156: 32.71049 | BD156: 986.724729 | BE156: 3.455943 | BF156: 212.62181 | BG156: 82.645989 | BH156: 41.264444 | BI156: 15.669741 | BJ156: 14.034768 | BK156: 3.553968 | BL156: 0.646176 | BM156: N/A | BN156: 986.724729 | BO156: 3.455943 | BP156: 92.263757 | BQ156: 160.545435 | BR156: 138.124741 | BS156: 48.383202 | BT156: 89.4756 | BU156: 100.436526 | BV156: 137.890575 | BW156: 156.321536 | BX156: 130.464341 | BY156: 50.207916 | BZ156: 134.068792 | CA156: 19.708368 | CB156: 137.23164 | CC156: 175.845724
B157: OTHER | C157: 0 | D157: 0.01044023906 | E157: 0 | F157: 0 | G157: 0 | H157: 0 | I157: 0 | J157: 0 | K157: 0 | L157: 0 | M157: N/A | N157: 0.01044023906 | O157: 0 | P157: 0 | Q157: 0 | R157: 0 | S157: 0.05878894768 | T157: 0 | U157: 0 | V157: 0 | W157: 0 | X157: 0 | Y157: 0 | Z157: 0 | AA157: 0 | AB157: 0 | AC157: 0 | BB157: OTHER | BC157: 0 | BD157: 2.303962 | BE157: 0 | BF157: 0 | BG157: 0 | BH157: 0 | BI157: 0 | BJ157: 0 | BK157: 0 | BL157: 0 | BM157: N/A | BN157: 2.303962 | BO157: 0 | BP157: 0 | BQ157: 0 | BR157: 0 | BS157: 2.303962 | BT157: 0 | BU157: 0 | BV157: 0 | BW157: 0 | BX157: 0 | BY157: 0 | BZ157: 0 | CA157: 0 | CB157: 0 | CC157: 0
BB158: Total | BC158: 678.404339 | BD158: 22068.0962 | BE158: 305.969612 | BF158: 12752.39312 | BG158: 8914.581844 | BH158: 1315.296351 | BI158: 1452.174756 | BJ158: 1364.014005 | BK158: 1444.397266 | BL158: 1381.113476 | BM158: N/A | BN158: 22068.0962 | BO158: 277.815003 | BP158: 8292.136836 | BQ158: 7124.401218 | BR158: 3464.193382 | BS158: 3919.039362 | BT158: 3366.072072 | BU158: 2766.26025 | BV158: 5458.628229 | BW158: 4733.611512 | BX158: 3610.177375 | BY158: 2519.524512 | BZ158: 5732.729981 | CA158: 1998.945456 | CB158: 5486.651664 | CC158: 1663.611318
A208: =A1026 -> Rwanda
A209: =A1034 -> 2000
A210: Access to hygiene facilities
A211: by wealth quintile and sub-national region
A212: Notes:
A213: WHO/UNICEF JMP customised wealth index excludes water,
A214: sanitation and hygiene assets.
A215: Survey used for analysis: | B215: =A1025 -> DHS00
A220: Access to handwashing | C220: NATIONAL wealth index quintile | H220: URBAN wealth index quintile | M220: RURAL wealth index quintile | R220: SUB-REGIONS: | BA220: Raw numbers of respondents: | BB220: Access to handwashing | BC220: NATIONAL wealth index quintile | BH220: URBAN wealth index quintile | BM220: RURAL wealth index quintile | BR220: SUB-REGIONS:
A221: Weighted percentage (used in graphs) | C221: Poorest | D221: Poor | E221: Middle | F221: Rich | G221: Richest | H221: Poorest | I221: Poor | J221: Middle | K221: Rich | L221: Richest | M221: Poorest | N221: Poor | O221: Middle | P221: Rich | Q221: Richest | R221: Butare | S221: Byumba | T221: Cyangugu | U221: Gikongoro | V221: Gisenyi | W221: Gitarama | X221: Kibungo | Y221: Kibuye | Z221: Kigali Rurale | AA221: Kigali Ville (PVK) | AB221: Ruhengeri | AC221: Umutara | BA221: Hygiene data, raw numbers (weighted) | BC221: Poorest | BD221: Poor | BE221: Middle | BF221: Rich | BG221: Richest | BH221: Poorest | BI221: Poor | BJ221: Middle | BK221: Rich | BL221: Richest | BM221: Poorest | BN221: Poor | BO221: Middle | BP221: Rich | BQ221: Richest | BR221: Butare | BS221: Byumba | BT221: Cyangugu | BU221: Gikongoro | BV221: Gisenyi | BW221: Gitarama | BX221: Kibungo | BY221: Kibuye | BZ221: Kigali Rurale | CA221: Kigali Ville (PVK) | CB221: Ruhengeri | CC221: Umutara
A222: Hygiene ladder | B222: Basic | C222: 0 | D222: 0 | E222: 0 | F222: 0.06000304173 | G222: 7.281061591 | H222: 0 | I222: 0.3648335146 | J222: 3.468836011 | K222: 4.99996017 | L222: 34.17329755 | M222: =N222 -> 0 | N222: 0 | O222: 0 | P222: 0.09189087797 | Q222: 0.8303775422 | R222: 1.340182902 | S222: 1.088555457 | T222: 1.497326203 | U222: 0 | V222: 3.851306095 | W222: 0.595546349 | X222: 0.1379310345 | Y222: 0.3021148036 | Z222: 1.127141569 | AA222: 6.673145449 | AB222: 1.223902088 | AC222: 0 | BA222: Hygiene ladder | BB222: Basic | BC222: 0 | BD222: 0 | BE222: 0 | BF222: 7.60726 | BG222: 647.73978 | BH222: 0 | BI222: 5.294484 | BJ222: 47.315409 | BK222: 72.219288 | BL222: 464.211096 | BM222: N/A | BN222: 0 | BO222: 0 | BP222: 7.60726 | BQ222: 58.699503 | BR222: 46.285577 | BS222: 42.623297 | BT222: 50.106336 | BU222: 0 | BV222: 211.432215 | BW222: 28.089026 | BX222: 4.979555 | BY222: 7.60726 | BZ222: 64.45615 | CA222: 133.112256 | CB222: 66.655368 | CC222: 0
B223: Limited | C223: 0 | D223: 0.4708702733 | E223: 0 | F223: 0.9896887313 | G223: 2.93154717 | H223: 0.07369168167 | I223: 1.48990037 | J223: 3.269168926 | K223: 3.495585265 | L223: 5.233124741 | M223: =N223 -> 0.4708702733 | N223: 0.4708702733 | O223: 0 | P223: 0.9714256837 | Q223: 1.656398564 | R223: 1.003546878 | S223: 2.177110915 | T223: 1.176470588 | U223: 0.5849753695 | V223: 1.574012056 | W223: 1.08751942 | X223: 0.7724137931 | Y223: 1.027190332 | Z223: 0.7213706041 | AA223: 2.915451895 | AB223: 0.3359731222 | AC223: 0.3341687552 | BB223: Limited | BC223: 0 | BD223: 103.874439 | BE223: 0 | BF223: 125.473964 | BG223: 260.797096 | BH223: 0.969264 | BI223: 21.621516 | BJ223: 44.591922 | BK223: 50.490138 | BL223: 71.086923 | BM223: N/A | BN223: 103.874439 | BO223: 0 | BP223: 80.420254 | BQ223: 117.091043 | BR223: 34.659259 | BS223: 85.246594 | BT223: 39.369264 | BU223: 16.171983 | BV223: 86.411427 | BW223: 51.293004 | BX223: 27.885508 | BY223: 25.864684 | BZ223: 41.251936 | CA223: 58.15584 | CB223: 18.297552 | CC223: 5.538448
B224: No facility | C224: 100 | D224: 99.52912973 | E224: 100 | F224: 98.95030823 | G224: 89.78739124 | H224: 99.92630832 | I224: 98.14526612 | J224: 93.26199506 | K224: 91.50445456 | L224: 60.59357771 | M224: =N224 -> 99.52912973 | N224: 99.52912973 | O224: 100 | P224: 98.93668344 | Q224: 97.51322389 | R224: 97.65627022 | S224: 96.73433363 | T224: 97.32620321 | U224: 99.41502463 | V224: 94.57468185 | W224: 98.31693423 | X224: 99.08965517 | Y224: 98.67069486 | Z224: 98.15148783 | AA224: 90.41140266 | AB224: 98.44012479 | AC224: 99.66583124 | BB224: No facility | BC224: 678.404339 | BD224: 21956.22255 | BE224: 318.741341 | BF224: 12545.04272 | BG224: 7987.690301 | BH224: 1314.327087 | BI224: 1424.289492 | BJ224: 1272.106674 | BK224: 1321.68784 | BL224: 823.104972 | BM224: N/A | BN224: 21956.22255 | BO224: 290.586732 | BP224: 8190.552654 | BQ224: 6893.223248 | BR224: 3372.731296 | BS224: 3787.713528 | BT224: 3256.91184 | BU224: 2748.385953 | BV224: 5192.039784 | BW224: 4637.131814 | BX224: 3577.312312 | BY224: 2484.531116 | BZ224: 5612.841542 | CA224: 1803.477216 | CB224: 5361.182736 | CC224: 1651.842116
A225: Place for hand washing | B225: In dwelling/yard/plot | C225: 0 | D225: 0.4697855973 | E225: 0 | F225: 1.042180874 | G225: 10.18063997 | H225: 0.07369168167 | I225: 1.85349593 | J225: 6.738004937 | K225: 8.495545435 | L225: 38.75843863 | M225: 0.4697855973 | N225: 0.4697855973 | O225: 0 | P225: 1.060988575 | Q225: 2.459821736 | R225: 2.336614244 | S225: 3.254177661 | T225: 2.655337228 | U225: 0.5813953488 | V225: 5.425318151 | W225: 1.676554037 | X225: 0.9100937672 | Y225: 1.325700512 | Z225: 1.842696629 | AA225: 9.568449976 | AB225: 1.545411317 | AC225: 0.3329171868 | BA225: Observed handwashing place | BB225: Fixed | BC225: N/A | BD225: N/A | BE225: N/A | BF225: N/A | BG225: N/A | BH225: N/A | BI225: N/A | BJ225: N/A | BK225: N/A | BL225: N/A | BM225: N/A | BN225: N/A | BO225: N/A | BP225: N/A | BQ225: N/A | BR225: N/A | BS225: N/A | BT225: N/A | BU225: N/A | BV225: N/A | BW225: N/A | BX225: N/A | BY225: N/A | BZ225: N/A | CA225: N/A | CB225: N/A | CC225: N/A
B226: Somewhere else | C226: 100 | D226: 99.29985882 | E226: 100 | F226: 98.24228539 | G226: 89.50632748 | H226: 99.92630832 | I226: 98.07975838 | J226: 93.26199506 | K226: 91.50445456 | L226: 59.59720083 | M226: 99.29985882 | N226: 99.29985882 | O226: 100 | P226: 98.72007505 | Q226: 96.45627005 | R226: 97.35978694 | S226: 96.39401935 | T226: 96.65427509 | U226: 98.80660955 | V226: 94.57468185 | W226: 97.93654888 | X226: 99.06232763 | Y226: 98.40313347 | Z226: 97.84269663 | AA226: 90.22143203 | AB226: 97.52734189 | AC226: 99.29255098 | BB226: Mobile | BC226: N/A | BD226: N/A | BE226: N/A | BF226: N/A | BG226: N/A | BH226: N/A | BI226: N/A | BJ226: N/A | BK226: N/A | BL226: N/A | BM226: N/A | BN226: N/A | BO226: N/A | BP226: N/A | BQ226: N/A | BR226: N/A | BS226: N/A | BT226: N/A | BU226: N/A | BV226: N/A | BW226: N/A | BX226: N/A | BY226: N/A | BZ226: N/A | CA226: N/A | CB226: N/A | CC226: N/A
B227: missing | C227: 0 | D227: 0.2303555815 | E227: 0 | F227: 0.7155337334 | G227: 0.3130325489 | H227: 0 | I227: 0.06674568581 | J227: 0 | K227: 0 | L227: 1.644360539 | M227: 0.2303555815 | N227: 0.2303555815 | O227: 0 | P227: 0.2189363723 | Q227: 1.083908217 | R227: 0.3035988134 | S227: 0.3518029903 | T227: 0.6903876792 | U227: 0.611995104 | V227: 0 | W227: 0.3868970854 | X227: 0.02757859901 | Y227: 0.2711660139 | Z227: 0.3146067416 | AA227: 0.2101179893 | AB227: 0.9272467903 | AC227: 0.3745318352 | BA227: Water / Soap | BB227: Water and soap | BC227: N/A | BD227: N/A | BE227: N/A | BF227: N/A | BG227: N/A | BH227: N/A | BI227: N/A | BJ227: N/A | BK227: N/A | BL227: N/A | BM227: N/A | BN227: N/A | BO227: N/A | BP227: N/A | BQ227: N/A | BR227: N/A | BS227: N/A | BT227: N/A | BU227: N/A | BV227: N/A | BW227: N/A | BX227: N/A | BY227: N/A | BZ227: N/A | CA227: N/A | CB227: N/A | CC227: N/A
BB228: Water only | BC228: N/A | BD228: N/A | BE228: N/A | BF228: N/A | BG228: N/A | BH228: N/A | BI228: N/A | BJ228: N/A | BK228: N/A | BL228: N/A | BM228: N/A | BN228: N/A | BO228: N/A | BP228: N/A | BQ228: N/A | BR228: N/A | BS228: N/A | BT228: N/A | BU228: N/A | BV228: N/A | BW228: N/A | BX228: N/A | BY228: N/A | BZ228: N/A | CA228: N/A | CB228: N/A | CC228: N/A
BB229: Soap only | BC229: N/A | BD229: N/A | BE229: N/A | BF229: N/A | BG229: N/A | BH229: N/A | BI229: N/A | BJ229: N/A | BK229: N/A | BL229: N/A | BM229: N/A | BN229: N/A | BO229: N/A | BP229: N/A | BQ229: N/A | BR229: N/A | BS229: N/A | BT229: N/A | BU229: N/A | BV229: N/A | BW229: N/A | BX229: N/A | BY229: N/A | BZ229: N/A | CA229: N/A | CB229: N/A | CC229: N/A
BB230: Neither | BC230: N/A | BD230: N/A | BE230: N/A | BF230: N/A | BG230: N/A | BH230: N/A | BI230: N/A | BJ230: N/A | BK230: N/A | BL230: N/A | BM230: N/A | BN230: N/A | BO230: N/A | BP230: N/A | BQ230: N/A | BR230: N/A | BS230: N/A | BT230: N/A | BU230: N/A | BV230: N/A | BW230: N/A | BX230: N/A | BY230: N/A | BZ230: N/A | CA230: N/A | CB230: N/A | CC230: N/A
BA231: Place for hand washing | BB231: In dwelling/yard/plot | BC231: 0 | BD231: 103.874439 | BE231: 0 | BF231: 133.081224 | BG231: 908.536876 | BH231: 0.969264 | BI231: 26.916 | BJ231: 91.907331 | BK231: 122.709426 | BL231: 535.298019 | BM231: N/A | BN231: 103.874439 | BO231: 0 | BP231: 88.027514 | BQ231: 175.790546 | BR231: 80.944836 | BS231: 127.869891 | BT231: 89.4756 | BU231: 16.171983 | BV231: 297.843642 | BW231: 79.38203 | BX231: 32.865063 | BY231: 33.471944 | BZ231: 105.708086 | CA231: 191.268096 | CB231: 84.95292 | CC231: 5.538448
BB232: Somewhere else | BC232: 678.404339 | BD232: 21956.22255 | BE232: 318.741341 | BF232: 12545.04272 | BG232: 7987.690301 | BH232: 1314.327087 | BI232: 1424.289492 | BJ232: 1272.106674 | BK232: 1321.68784 | BL232: 823.104972 | BM232: N/A | BN232: 21956.22255 | BO232: 290.586732 | BP232: 8190.552654 | BQ232: 6893.223248 | BR232: 3372.731296 | BS232: 3787.713528 | BT232: 3256.91184 | BU232: 2748.385953 | BV232: 5192.039784 | BW232: 4637.131814 | BX232: 3577.312312 | BY232: 2484.531116 | BZ232: 5612.841542 | CA232: 1803.477216 | CB232: 5361.182736 | CC232: 1651.842116
BB233: missing | BC233: 0 | BD233: 50.933994 | BE233: 0 | BF233: 91.370037 | BG233: 27.935534 | BH233: 0 | BI233: 0.969264 | BJ233: 0 | BK233: 0 | BL233: 22.710485 | BM233: N/A | BN233: 50.933994 | BO233: 0 | BP233: 18.164592 | BQ233: 77.46123 | BR233: 10.51725 | BS233: 13.823772 | BT233: 23.263656 | BU233: 17.02314 | BV233: 0 | BW233: 18.31893 | BX233: 0.995911 | BY233: 6.846534 | BZ233: 18.047722 | CA233: 4.200144 | CB233: 50.971752 | CC233: 6.230754
BB234: Total | BC234: 678.404339 | BD234: 22111.03099 | BE234: 318.741341 | BF234: 12769.49398 | BG234: 8924.162711 | BH234: 1315.296351 | BI234: 1452.174756 | BJ234: 1364.014005 | BK234: 1444.397266 | BL234: 1381.113476 | BM234: N/A | BN234: 22111.03099 | BO234: 290.586732 | BP234: 8296.74476 | BQ234: 7146.475024 | BR234: 3464.193382 | BS234: 3929.407191 | BT234: 3369.651096 | BU234: 2781.581076 | BV234: 5489.883426 | BW234: 4734.832774 | BX234: 3611.173286 | BY234: 2524.849594 | BZ234: 5736.59735 | CA234: 1998.945456 | CB234: 5497.107408 | CC234: 1663.611318
BA259: Raw numbers of respondents: | BB259: Menstrual health and hygiene | BC259: NATIONAL wealth index quintile | BH259: URBAN wealth index quintile | BM259: RURAL wealth index quintile | BR259: SUB-REGIONS:
BA260: MHH data, raw numbers (weighted) | BC260: Poorest | BD260: Poor | BE260: Middle | BF260: Rich | BG260: Richest | BH260: Poorest | BI260: Poor | BJ260: Middle | BK260: Rich | BL260: Richest | BM260: Poorest | BN260: Poor | BO260: Middle | BP260: Rich | BQ260: Richest | BR260: Butare | BS260: Byumba | BT260: Cyangugu | BU260: Gikongoro | BV260: Gisenyi | BW260: Gitarama | BX260: Kibungo | BY260: Kibuye | BZ260: Kigali Rurale | CA260: Kigali Ville (PVK) | CB260: Ruhengeri | CC260: Umutara
BA261: Private place to wash and change | BB261: Yes | BC261: N/A | BD261: N/A | BE261: N/A | BF261: N/A | BG261: N/A | BH261: N/A | BI261: N/A | BJ261: N/A | BK261: N/A | BL261: N/A | BM261: N/A | BN261: N/A | BO261: N/A | BP261: N/A | BQ261: N/A | BR261: N/A | BS261: N/A | BT261: N/A | BU261: N/A | BV261: N/A | BW261: N/A | BX261: N/A | BY261: N/A | BZ261: N/A | CA261: N/A | CB261: N/A | CC261: N/A
BB262: No | BC262: N/A | BD262: N/A | BE262: N/A | BF262: N/A | BG262: N/A | BH262: N/A | BI262: N/A | BJ262: N/A | BK262: N/A | BL262: N/A | BM262: N/A | BN262: N/A | BO262: N/A | BP262: N/A | BQ262: N/A | BR262: N/A | BS262: N/A | BT262: N/A | BU262: N/A | BV262: N/A | BW262: N/A | BX262: N/A | BY262: N/A | BZ262: N/A | CA262: N/A | CB262: N/A | CC262: N/A
BB263: DK/not sure/missing | BC263: N/A | BD263: N/A | BE263: N/A | BF263: N/A | BG263: N/A | BH263: N/A | BI263: N/A | BJ263: N/A | BK263: N/A | BL263: N/A | BM263: N/A | BN263: N/A | BO263: N/A | BP263: N/A | BQ263: N/A | BR263: N/A | BS263: N/A | BT263: N/A | BU263: N/A | BV263: N/A | BW263: N/A | BX263: N/A | BY263: N/A | BZ263: N/A | CA263: N/A | CB263: N/A | CC263: N/A
BA264: Use of menstrual materials | BB264: Materials reusable | BC264: N/A | BD264: N/A | BE264: N/A | BF264: N/A | BG264: N/A | BH264: N/A | BI264: N/A | BJ264: N/A | BK264: N/A | BL264: N/A | BM264: N/A | BN264: N/A | BO264: N/A | BP264: N/A | BQ264: N/A | BR264: N/A | BS264: N/A | BT264: N/A | BU264: N/A | BV264: N/A | BW264: N/A | BX264: N/A | BY264: N/A | BZ264: N/A | CA264: N/A | CB264: N/A | CC264: N/A
BB265: Materials not reusable | BC265: N/A | BD265: N/A | BE265: N/A | BF265: N/A | BG265: N/A | BH265: N/A | BI265: N/A | BJ265: N/A | BK265: N/A | BL265: N/A | BM265: N/A | BN265: N/A | BO265: N/A | BP265: N/A | BQ265: N/A | BR265: N/A | BS265: N/A | BT265: N/A | BU265: N/A | BV265: N/A | BW265: N/A | BX265: N/A | BY265: N/A | BZ265: N/A | CA265: N/A | CB265: N/A | CC265: N/A
BB266: No materials used | BC266: N/A | BD266: N/A | BE266: N/A | BF266: N/A | BG266: N/A | BH266: N/A | BI266: N/A | BJ266: N/A | BK266: N/A | BL266: N/A | BM266: N/A | BN266: N/A | BO266: N/A | BP266: N/A | BQ266: N/A | BR266: N/A | BS266: N/A | BT266: N/A | BU266: N/A | BV266: N/A | BW266: N/A | BX266: N/A | BY266: N/A | BZ266: N/A | CA266: N/A | CB266: N/A | CC266: N/A
BB267: DK/not sure/missing | BC267: N/A | BD267: N/A | BE267: N/A | BF267: N/A | BG267: N/A | BH267: N/A | BI267: N/A | BJ267: N/A | BK267: N/A | BL267: N/A | BM267: N/A | BN267: N/A | BO267: N/A | BP267: N/A | BQ267: N/A | BR267: N/A | BS267: N/A | BT267: N/A | BU267: N/A | BV267: N/A | BW267: N/A | BX267: N/A | BY267: N/A | BZ267: N/A | CA267: N/A | CB267: N/A | CC267: N/A
BA268: Use of menstrual materials with private place to wash and change | BB268: Materials reusable | BC268: N/A | BD268: N/A | BE268: N/A | BF268: N/A | BG268: N/A | BH268: N/A | BI268: N/A | BJ268: N/A | BK268: N/A | BL268: N/A | BM268: N/A | BN268: N/A | BO268: N/A | BP268: N/A | BQ268: N/A | BR268: N/A | BS268: N/A | BT268: N/A | BU268: N/A | BV268: N/A | BW268: N/A | BX268: N/A | BY268: N/A | BZ268: N/A | CA268: N/A | CB268: N/A | CC268: N/A
BB269: Materials not reusable | BC269: N/A | BD269: N/A | BE269: N/A | BF269: N/A | BG269: N/A | BH269: N/A | BI269: N/A | BJ269: N/A | BK269: N/A | BL269: N/A | BM269: N/A | BN269: N/A | BO269: N/A | BP269: N/A | BQ269: N/A | BR269: N/A | BS269: N/A | BT269: N/A | BU269: N/A | BV269: N/A | BW269: N/A | BX269: N/A | BY269: N/A | BZ269: N/A | CA269: N/A | CB269: N/A | CC269: N/A
BB270: No materials used | BC270: N/A | BD270: N/A | BE270: N/A | BF270: N/A | BG270: N/A | BH270: N/A | BI270: N/A | BJ270: N/A | BK270: N/A | BL270: N/A | BM270: N/A | BN270: N/A | BO270: N/A | BP270: N/A | BQ270: N/A | BR270: N/A | BS270: N/A | BT270: N/A | BU270: N/A | BV270: N/A | BW270: N/A | BX270: N/A | BY270: N/A | BZ270: N/A | CA270: N/A | CB270: N/A | CC270: N/A
BA271: Awareness of menstruation before menarche | BB271: Yes | BC271: N/A | BD271: N/A | BE271: N/A | BF271: N/A | BG271: N/A | BH271: N/A | BI271: N/A | BJ271: N/A | BK271: N/A | BL271: N/A | BM271: N/A | BN271: N/A | BO271: N/A | BP271: N/A | BQ271: N/A | BR271: N/A | BS271: N/A | BT271: N/A | BU271: N/A | BV271: N/A | BW271: N/A | BX271: N/A | BY271: N/A | BZ271: N/A | CA271: N/A | CB271: N/A | CC271: N/A
BB272: No | BC272: N/A | BD272: N/A | BE272: N/A | BF272: N/A | BG272: N/A | BH272: N/A | BI272: N/A | BJ272: N/A | BK272: N/A | BL272: N/A | BM272: N/A | BN272: N/A | BO272: N/A | BP272: N/A | BQ272: N/A | BR272: N/A | BS272: N/A | BT272: N/A | BU272: N/A | BV272: N/A | BW272: N/A | BX272: N/A | BY272: N/A | BZ272: N/A | CA272: N/A | CB272: N/A | CC272: N/A
BB273: DK/not sure/missing | BC273: N/A | BD273: N/A | BE273: N/A | BF273: N/A | BG273: N/A | BH273: N/A | BI273: N/A | BJ273: N/A | BK273: N/A | BL273: N/A | BM273: N/A | BN273: N/A | BO273: N/A | BP273: N/A | BQ273: N/A | BR273: N/A | BS273: N/A | BT273: N/A | BU273: N/A | BV273: N/A | BW273: N/A | BX273: N/A | BY273: N/A | BZ273: N/A | CA273: N/A | CB273: N/A | CC273: N/A
BA274: Participation in (all) activities during menstruation | BB274: Yes | BC274: N/A | BD274: N/A | BE274: N/A | BF274: N/A | BG274: N/A | BH274: N/A | BI274: N/A | BJ274: N/A | BK274: N/A | BL274: N/A | BM274: N/A | BN274: N/A | BO274: N/A | BP274: N/A | BQ274: N/A | BR274: N/A | BS274: N/A | BT274: N/A | BU274: N/A | BV274: N/A | BW274: N/A | BX274: N/A | BY274: N/A | BZ274: N/A | CA274: N/A | CB274: N/A | CC274: N/A
BB275: No | BC275: N/A | BD275: N/A | BE275: N/A | BF275: N/A | BG275: N/A | BH275: N/A | BI275: N/A | BJ275: N/A | BK275: N/A | BL275: N/A | BM275: N/A | BN275: N/A | BO275: N/A | BP275: N/A | BQ275: N/A | BR275: N/A | BS275: N/A | BT275: N/A | BU275: N/A | BV275: N/A | BW275: N/A | BX275: N/A | BY275: N/A | BZ275: N/A | CA275: N/A | CB275: N/A | CC275: N/A
BB276: DK/not sure/missing/no such activity | BC276: N/A | BD276: N/A | BE276: N/A | BF276: N/A | BG276: N/A | BH276: N/A | BI276: N/A | BJ276: N/A | BK276: N/A | BL276: N/A | BM276: N/A | BN276: N/A | BO276: N/A | BP276: N/A | BQ276: N/A | BR276: N/A | BS276: N/A | BT276: N/A | BU276: N/A | BV276: N/A | BW276: N/A | BX276: N/A | BY276: N/A | BZ276: N/A | CA276: N/A | CB276: N/A | CC276: N/A
BA277: Participation in specific activities during menstruation | BB277: Did not go to school (amongst those usually attending school) | BC277: N/A | BD277: N/A | BE277: N/A | BF277: N/A | BG277: N/A | BH277: N/A | BI277: N/A | BJ277: N/A | BK277: N/A | BL277: N/A | BM277: N/A | BN277: N/A | BO277: N/A | BP277: N/A | BQ277: N/A | BR277: N/A | BS277: N/A | BT277: N/A | BU277: N/A | BV277: N/A | BW277: N/A | BX277: N/A | BY277: N/A | BZ277: N/A | CA277: N/A | CB277: N/A | CC277: N/A
BB278: Did not go to work (amongst those who usually work) | BC278: N/A | BD278: N/A | BE278: N/A | BF278: N/A | BG278: N/A | BH278: N/A | BI278: N/A | BJ278: N/A | BK278: N/A | BL278: N/A | BM278: N/A | BN278: N/A | BO278: N/A | BP278: N/A | BQ278: N/A | BR278: N/A | BS278: N/A | BT278: N/A | BU278: N/A | BV278: N/A | BW278: N/A | BX278: N/A | BY278: N/A | BZ278: N/A | CA278: N/A | CB278: N/A | CC278: N/A
BB279: Did not participate in social activities | BC279: N/A | BD279: N/A | BE279: N/A | BF279: N/A | BG279: N/A | BH279: N/A | BI279: N/A | BJ279: N/A | BK279: N/A | BL279: N/A | BM279: N/A | BN279: N/A | BO279: N/A | BP279: N/A | BQ279: N/A | BR279: N/A | BS279: N/A | BT279: N/A | BU279: N/A | BV279: N/A | BW279: N/A | BX279: N/A | BY279: N/A | BZ279: N/A | CA279: N/A | CB279: N/A | CC279: N/A
